Workbook

Sheet WB! Status
A1: What'sBest!® 13.0.2.0 (Mar 18, 2016) - Lib. 9.0.2217.270 - 64-bit - Status Report -
A3: DATE GENERATED: | B3: 2023-03-02T16:38:30 | C3: 44987.6934
A6: MODEL INFORMATION:
A8: CLASSIFICATION DATA Current Capacity Limits
A9: --------------------------------------------------------
A10: Total Cells 2892269
A11: Numerics 2874915
A12: Adjustables 11968 Unlimited
A13: Continuous 7703
A14: Free 0
A15: Integers/Binaries 46/4219 Unlimited
A16: Constants 2753160
A17: Formulas 109787
A18: Strings 0
A19: Constraints 17354 Unlimited
A20: Nonlinears 0 Unlimited
A21: Coefficients 513795
A23: Minimum coefficient value: 1.2e-008 on Res_MWh!JU100
A24: Minimum coefficient in formula: NEI!BB22
A25: Maximum coefficient value: 1561933.6254003 on Selection!Z103
A26: Maximum coefficient in formula: New_Resource_Annual_Cost!Z19
A28: MODEL TYPE: | B28: Mixed Integer / Linear (Mixed Integer Linear Program)
A30: SOLUTION STATUS: | B30: GLOBALLY OPTIMAL TO TOLERANCES
... 27 more rows

Sheet README
B2: Notice
B3: This Model is Provided “As Is”
B4: For Informational Purposes Only
B5: Inputs are Subject to Change at Any Time and May Impact Results
B8: Version
B9: PRiSM version 8.0
B11: Model Design Date
B12: 2023-03-02
B14: Scenario
B15: All information is draft and subject to change
B16: No Energy Requirement
B17: No CETA
B18: No SCGHG
B19: No generation NCIF
B20: CS2 Added Back in 2045
B21: High Natural Gas Prices

Sheet Selection_Summary
A2: Nameplate MW | C2: 2023 | D2: 2024 | E2: 2025 | F2: 2026 | G2: 2027 | H2: 2028 | I2: 2029 | J2: 2030 | K2: 2031 | L2: 2032 | M2: 2033 | N2: 2034 | O2: 2035 | P2: 2036 | Q2: 2037 | R2: 2038 | S2: 2039 | T2: 2040 | U2: 2041 | V2: 2042 | W2: 2043 | X2: 2044 | Y2: 2045 | AA2: 2022 | AB2: 2023 | AC2: 2024 | AD2: 2025 | AE2: 2026 | AF2: 2027 | AG2: 2028 | AH2: 2029 | AI2: 2030 | AJ2: 2031 | AK2: 2032 | AL2: 2033 | AM2: 2034 | AN2: 2035 | AO2: 2036 | AP2: 2037 | AQ2: 2038 | AR2: 2039 | AS2: 2040 | AT2: 2041 | AU2: 2042 | AV2: 2043 | AW2: 2044 | AX2: 2045
A3: Coyote Springs 2 | C3: =Selection!AZ4 -> 1 | D3: =Selection!BA4 -> 1 | E3: =Selection!BB4 -> 1 | F3: =Selection!BC4 -> 1 | G3: =Selection!BD4 -> 1 | H3: =Selection!BE4 -> 1 | I3: =Selection!BF4 -> 1 | J3: =Selection!BG4 -> 1 | K3: =Selection!BH4 -> 1 | L3: =Selection!BI4 -> 1 | M3: =Selection!BJ4 -> 1 | N3: =Selection!BK4 -> 1 | O3: =Selection!BL4 -> 1 | P3: =Selection!BM4 -> 1 | Q3: =Selection!BN4 -> 1 | R3: =Selection!BO4 -> 1 | S3: =Selection!BP4 -> 1 | T3: =Selection!BQ4 -> 1 | U3: =Selection!BR4 -> 1 | V3: =Selection!BS4 -> 1 | W3: =Selection!BT4 -> 1 | X3: =Selection!BU4 -> 1 | Y3: =Selection!BV4 -> 1
A4: Lancaster | C4: =Selection!AZ5 -> 1 | D4: =Selection!BA5 -> 1 | E4: =Selection!BB5 -> 1 | F4: =Selection!BC5 -> 1 | G4: =Selection!BD5 -> 1 | H4: =Selection!BE5 -> 1 | I4: =Selection!BF5 -> 1 | J4: =Selection!BG5 -> 1 | K4: =Selection!BH5 -> 1 | L4: =Selection!BI5 -> 1 | M4: =Selection!BJ5 -> 1 | N4: =Selection!BK5 -> 1 | O4: =Selection!BL5 -> 1 | P4: =Selection!BM5 -> 1 | Q4: =Selection!BN5 -> 1 | R4: =Selection!BO5 -> 1 | S4: =Selection!BP5 -> 1 | T4: =Selection!BQ5 -> 1 | U4: =Selection!BR5 -> 1 | V4: =Selection!BS5 -> 0 | W4: =Selection!BT5 -> 0 | X4: =Selection!BU5 -> 0 | Y4: =Selection!BV5 -> 0
A5: Colstrip (3) | C5: =Selection!AZ6 -> 1 | D5: =Selection!BA6 -> 1 | E5: =Selection!BB6 -> 1 | F5: =Selection!BC6 -> 0 | G5: =Selection!BD6 -> 0 | H5: =Selection!BE6 -> 0 | I5: =Selection!BF6 -> 0 | J5: =Selection!BG6 -> 0 | K5: =Selection!BH6 -> 0 | L5: =Selection!BI6 -> 0 | M5: =Selection!BJ6 -> 0 | N5: =Selection!BK6 -> 0 | O5: =Selection!BL6 -> 0 | P5: =Selection!BM6 -> 0 | Q5: =Selection!BN6 -> 0 | R5: =Selection!BO6 -> 0 | S5: =Selection!BP6 -> 0 | T5: =Selection!BQ6 -> 0 | U5: =Selection!BR6 -> 0 | V5: =Selection!BS6 -> 0 | W5: =Selection!BT6 -> 0 | X5: =Selection!BU6 -> 0 | Y5: =Selection!BV6 -> 0
A6: Colstrip (4) | C6: =Selection!AZ7 -> 1 | D6: =Selection!BA7 -> 1 | E6: =Selection!BB7 -> 1 | F6: =Selection!BC7 -> 0 | G6: =Selection!BD7 -> 0 | H6: =Selection!BE7 -> 0 | I6: =Selection!BF7 -> 0 | J6: =Selection!BG7 -> 0 | K6: =Selection!BH7 -> 0 | L6: =Selection!BI7 -> 0 | M6: =Selection!BJ7 -> 0 | N6: =Selection!BK7 -> 0 | O6: =Selection!BL7 -> 0 | P6: =Selection!BM7 -> 0 | Q6: =Selection!BN7 -> 0 | R6: =Selection!BO7 -> 0 | S6: =Selection!BP7 -> 0 | T6: =Selection!BQ7 -> 0 | U6: =Selection!BR7 -> 0 | V6: =Selection!BS7 -> 0 | W6: =Selection!BT7 -> 0 | X6: =Selection!BU7 -> 0 | Y6: =Selection!BV7 -> 0
A7: Kettle Falls | C7: =Selection!AZ8 -> 1 | D7: =Selection!BA8 -> 1 | E7: =Selection!BB8 -> 1 | F7: =Selection!BC8 -> 1 | G7: =Selection!BD8 -> 1 | H7: =Selection!BE8 -> 1 | I7: =Selection!BF8 -> 1 | J7: =Selection!BG8 -> 1 | K7: =Selection!BH8 -> 1 | L7: =Selection!BI8 -> 1 | M7: =Selection!BJ8 -> 1 | N7: =Selection!BK8 -> 1 | O7: =Selection!BL8 -> 1 | P7: =Selection!BM8 -> 1 | Q7: =Selection!BN8 -> 1 | R7: =Selection!BO8 -> 1 | S7: =Selection!BP8 -> 1 | T7: =Selection!BQ8 -> 1 | U7: =Selection!BR8 -> 1 | V7: =Selection!BS8 -> 1 | W7: =Selection!BT8 -> 1 | X7: =Selection!BU8 -> 1 | Y7: =Selection!BV8 -> 1
A8: Kettle Falls CT | C8: =Selection!AZ9 -> 1 | D8: =Selection!BA9 -> 1 | E8: =Selection!BB9 -> 1 | F8: =Selection!BC9 -> 1 | G8: =Selection!BD9 -> 1 | H8: =Selection!BE9 -> 1 | I8: =Selection!BF9 -> 1 | J8: =Selection!BG9 -> 1 | K8: =Selection!BH9 -> 1 | L8: =Selection!BI9 -> 1 | M8: =Selection!BJ9 -> 1 | N8: =Selection!BK9 -> 1 | O8: =Selection!BL9 -> 1 | P8: =Selection!BM9 -> 1 | Q8: =Selection!BN9 -> 1 | R8: =Selection!BO9 -> 1 | S8: =Selection!BP9 -> 1 | T8: =Selection!BQ9 -> 1 | U8: =Selection!BR9 -> 0 | V8: =Selection!BS9 -> 0 | W8: =Selection!BT9 -> 0 | X8: =Selection!BU9 -> 0 | Y8: =Selection!BV9 -> 0
A9: Boulder Park 1-6 | C9: =Selection!AZ10 -> 1 | D9: =Selection!BA10 -> 1 | E9: =Selection!BB10 -> 1 | F9: =Selection!BC10 -> 1 | G9: =Selection!BD10 -> 1 | H9: =Selection!BE10 -> 1 | I9: =Selection!BF10 -> 1 | J9: =Selection!BG10 -> 1 | K9: =Selection!BH10 -> 1 | L9: =Selection!BI10 -> 1 | M9: =Selection!BJ10 -> 1 | N9: =Selection!BK10 -> 1 | O9: =Selection!BL10 -> 1 | P9: =Selection!BM10 -> 1 | Q9: =Selection!BN10 -> 1 | R9: =Selection!BO10 -> 1 | S9: =Selection!BP10 -> 1 | T9: =Selection!BQ10 -> 1 | U9: =Selection!BR10 -> 0 | V9: =Selection!BS10 -> 0 | W9: =Selection!BT10 -> 0 | X9: =Selection!BU10 -> 0 | Y9: =Selection!BV10 -> 0
A10: Rathdrum 1 | C10: =Selection!AZ11 -> 1 | D10: =Selection!BA11 -> 1 | E10: =Selection!BB11 -> 1 | F10: =Selection!BC11 -> 1 | G10: =Selection!BD11 -> 1 | H10: =Selection!BE11 -> 1 | I10: =Selection!BF11 -> 1 | J10: =Selection!BG11 -> 1 | K10: =Selection!BH11 -> 1 | L10: =Selection!BI11 -> 1 | M10: =Selection!BJ11 -> 1 | N10: =Selection!BK11 -> 1 | O10: =Selection!BL11 -> 1 | P10: =Selection!BM11 -> 1 | Q10: =Selection!BN11 -> 1 | R10: =Selection!BO11 -> 1 | S10: =Selection!BP11 -> 1 | T10: =Selection!BQ11 -> 1 | U10: =Selection!BR11 -> 1 | V10: =Selection!BS11 -> 1 | W10: =Selection!BT11 -> 1 | X10: =Selection!BU11 -> 1 | Y10: =Selection!BV11 -> 0
A11: Rathdrum 2 | C11: =Selection!AZ12 -> 1 | D11: =Selection!BA12 -> 1 | E11: =Selection!BB12 -> 1 | F11: =Selection!BC12 -> 1 | G11: =Selection!BD12 -> 1 | H11: =Selection!BE12 -> 1 | I11: =Selection!BF12 -> 1 | J11: =Selection!BG12 -> 1 | K11: =Selection!BH12 -> 1 | L11: =Selection!BI12 -> 1 | M11: =Selection!BJ12 -> 1 | N11: =Selection!BK12 -> 1 | O11: =Selection!BL12 -> 1 | P11: =Selection!BM12 -> 1 | Q11: =Selection!BN12 -> 1 | R11: =Selection!BO12 -> 1 | S11: =Selection!BP12 -> 1 | T11: =Selection!BQ12 -> 1 | U11: =Selection!BR12 -> 1 | V11: =Selection!BS12 -> 1 | W11: =Selection!BT12 -> 1 | X11: =Selection!BU12 -> 1 | Y11: =Selection!BV12 -> 0
A12: Northeast A&B | C12: =Selection!AZ13 -> 1 | D12: =Selection!BA13 -> 1 | E12: =Selection!BB13 -> 1 | F12: =Selection!BC13 -> 1 | G12: =Selection!BD13 -> 1 | H12: =Selection!BE13 -> 1 | I12: =Selection!BF13 -> 1 | J12: =Selection!BG13 -> 1 | K12: =Selection!BH13 -> 1 | L12: =Selection!BI13 -> 1 | M12: =Selection!BJ13 -> 1 | N12: =Selection!BK13 -> 1 | O12: =Selection!BL13 -> 1 | P12: =Selection!BM13 -> 0 | Q12: =Selection!BN13 -> 0 | R12: =Selection!BO13 -> 0 | S12: =Selection!BP13 -> 0 | T12: =Selection!BQ13 -> 0 | U12: =Selection!BR13 -> 0 | V12: =Selection!BS13 -> 0 | W12: =Selection!BT13 -> 0 | X12: =Selection!BU13 -> 0 | Y12: =Selection!BV13 -> 0
A14: Shared System Resource
A15: NG CT | C15: =SUM(Selection!AZ100:AZ102) -> 0 | D15: =SUM(Selection!BA100:BA102) -> 0 | E15: =SUM(Selection!BB100:BB102) -> 0 | F15: =SUM(Selection!BC100:BC102) -> 0 | G15: =SUM(Selection!BD100:BD102) -> 0 | H15: =SUM(Selection!BE100:BE102) -> 0 | I15: =SUM(Selection!BF100:BF102) -> 0 | J15: =SUM(Selection!BG100:BG102) -> 0 | K15: =SUM(Selection!BH100:BH102) -> 0 | L15: =SUM(Selection!BI100:BI102) -> 0 | M15: =SUM(Selection!BJ100:BJ102) -> 0 | N15: =SUM(Selection!BK100:BK102) -> 0 | O15: =SUM(Selection!BL100:BL102) -> 0 | P15: =SUM(Selection!BM100:BM102) -> 114.1407009 | Q15: =SUM(Selection!BN100:BN102) -> 0 | R15: =SUM(Selection!BO100:BO102) -> 90.6117991 | S15: =SUM(Selection!BP100:BP102) -> 0 | T15: =SUM(Selection!BQ100:BQ102) -> 0 | U15: =SUM(Selection!BR100:BR102) -> 0 | V15: =SUM(Selection!BS100:BS102) -> 0 | W15: =SUM(Selection!BT100:BT102) -> 0 | X15: =SUM(Selection!BU100:BU102) -> 0 | Y15: =SUM(Selection!BV100:BV102) -> 0
A16: Solar | C16: =SUM(Selection!AZ108,Selection!AZ110,Selection!AZ112,Selection!AZ114,Selection!AZ116:AZ119,Selection!AZ144) -> 0 | D16: =SUM(Selection!BA108,Selection!BA110,Selection!BA112,Selection!BA114,Selection!BA116:BA119,Selection!BA144) -> 0 | E16: =SUM(Selection!BB108,Selection!BB110,Selection!BB112,Selection!BB114,Selection!BB116:BB119,Selection!BB144) -> 0 | F16: =SUM(Selection!BC108,Selection!BC110,Selection!BC112,Selection!BC114,Selection!BC116:BC119,Selection!BC144) -> 0 | G16: =SUM(Selection!BD108,Selection!BD110,Selection!BD112,Selection!BD114,Selection!BD116:BD119,Selection!BD144) -> 0 | H16: =SUM(Selection!BE108,Selection!BE110,Selection!BE112,Selection!BE114,Selection!BE116:BE119,Selection!BE144) -> 0 | I16: =SUM(Selection!BF108,Selection!BF110,Selection!BF112,Selection!BF114,Selection!BF116:BF119,Selection!BF144) -> 0 | J16: =SUM(Selection!BG108,Selection!BG110,Selection!BG112,Selection!BG114,Selection!BG116:BG119,Selection!BG144) -> 0 | K16: =SUM(Selection!BH108,Selection!BH110,Selection!BH112,Selection!BH114,Selection!BH116:BH119,Selection!BH144) -> 0 | L16: =SUM(Selection!BI108,Selection!BI110,Selection!BI112,Selection!BI114,Selection!BI116:BI119,Selection!BI144) -> 0 | M16: =SUM(Selection!BJ108,Selection!BJ110,Selection!BJ112,Selection!BJ114,Selection!BJ116:BJ119,Selection!BJ144) -> 0 | N16: =SUM(Selection!BK108,Selection!BK110,Selection!BK112,Selection!BK114,Selection!BK116:BK119,Selection!BK144) -> 0 | O16: =SUM(Selection!BL108,Selection!BL110,Selection!BL112,Selection!BL114,Selection!BL116:BL119,Selection!BL144) -> 0 | P16: =SUM(Selection!BM108,Selection!BM110,Selection!BM112,Selection!BM114,Selection!BM116:BM119,Selection!BM144) -> 0 | Q16: =SUM(Selection!BN108,Selection!BN110,Selection!BN112,Selection!BN114,Selection!BN116:BN119,Selection!BN144) -> 0 | R16: =SUM(Selection!BO108,Selection!BO110,Selection!BO112,Selection!BO114,Selection!BO116:BO119,Selection!BO144) -> 0 | S16: =SUM(Selection!BP108,Selection!BP110,Selection!BP112,Selection!BP114,Selection!BP116:BP119,Selection!BP144) -> 0 | T16: =SUM(Selection!BQ108,Selection!BQ110,Selection!BQ112,Selection!BQ114,Selection!BQ116:BQ119,Selection!BQ144) -> 0 | U16: =SUM(Selection!BR108,Selection!BR110,Selection!BR112,Selection!BR114,Selection!BR116:BR119,Selection!BR144) -> 0 | V16: =SUM(Selection!BS108,Selection!BS110,Selection!BS112,Selection!BS114,Selection!BS116:BS119,Selection!BS144) -> 0 | W16: =SUM(Selection!BT108,Selection!BT110,Selection!BT112,Selection!BT114,Selection!BT116:BT119,Selection!BT144) -> 0 | X16: =SUM(Selection!BU108,Selection!BU110,Selection!BU112,Selection!BU114,Selection!BU116:BU119,Selection!BU144) -> 0 | Y16: =SUM(Selection!BV108,Selection!BV110,Selection!BV112,Selection!BV114,Selection!BV116:BV119,Selection!BV144) -> 0
A17: Storage Added to Solar | C17: =SUM(Selection!AZ109,Selection!AZ111,Selection!AZ113,Selection!AZ115,Selection!AZ120,Selection!AZ121,Selection!AZ122) -> 0 | D17: =SUM(Selection!BA109,Selection!BA111,Selection!BA113,Selection!BA115,Selection!BA120,Selection!BA121,Selection!BA122) -> 0 | E17: =SUM(Selection!BB109,Selection!BB111,Selection!BB113,Selection!BB115,Selection!BB120,Selection!BB121,Selection!BB122) -> 0 | F17: =SUM(Selection!BC109,Selection!BC111,Selection!BC113,Selection!BC115,Selection!BC120,Selection!BC121,Selection!BC122) -> 0 | G17: =SUM(Selection!BD109,Selection!BD111,Selection!BD113,Selection!BD115,Selection!BD120,Selection!BD121,Selection!BD122) -> 0 | H17: =SUM(Selection!BE109,Selection!BE111,Selection!BE113,Selection!BE115,Selection!BE120,Selection!BE121,Selection!BE122) -> 0 | I17: =SUM(Selection!BF109,Selection!BF111,Selection!BF113,Selection!BF115,Selection!BF120,Selection!BF121,Selection!BF122) -> 0 | J17: =SUM(Selection!BG109,Selection!BG111,Selection!BG113,Selection!BG115,Selection!BG120,Selection!BG121,Selection!BG122) -> 0 | K17: =SUM(Selection!BH109,Selection!BH111,Selection!BH113,Selection!BH115,Selection!BH120,Selection!BH121,Selection!BH122) -> 0 | L17: =SUM(Selection!BI109,Selection!BI111,Selection!BI113,Selection!BI115,Selection!BI120,Selection!BI121,Selection!BI122) -> 0 | M17: =SUM(Selection!BJ109,Selection!BJ111,Selection!BJ113,Selection!BJ115,Selection!BJ120,Selection!BJ121,Selection!BJ122) -> 0 | N17: =SUM(Selection!BK109,Selection!BK111,Selection!BK113,Selection!BK115,Selection!BK120,Selection!BK121,Selection!BK122) -> 0 | O17: =SUM(Selection!BL109,Selection!BL111,Selection!BL113,Selection!BL115,Selection!BL120,Selection!BL121,Selection!BL122) -> 0 | P17: =SUM(Selection!BM109,Selection!BM111,Selection!BM113,Selection!BM115,Selection!BM120,Selection!BM121,Selection!BM122) -> 0 | Q17: =SUM(Selection!BN109,Selection!BN111,Selection!BN113,Selection!BN115,Selection!BN120,Selection!BN121,Selection!BN122) -> 0 | R17: =SUM(Selection!BO109,Selection!BO111,Selection!BO113,Selection!BO115,Selection!BO120,Selection!BO121,Selection!BO122) -> 0 | S17: =SUM(Selection!BP109,Selection!BP111,Selection!BP113,Selection!BP115,Selection!BP120,Selection!BP121,Selection!BP122) -> 0 | T17: =SUM(Selection!BQ109,Selection!BQ111,Selection!BQ113,Selection!BQ115,Selection!BQ120,Selection!BQ121,Selection!BQ122) -> 0 | U17: =SUM(Selection!BR109,Selection!BR111,Selection!BR113,Selection!BR115,Selection!BR120,Selection!BR121,Selection!BR122) -> 0 | V17: =SUM(Selection!BS109,Selection!BS111,Selection!BS113,Selection!BS115,Selection!BS120,Selection!BS121,Selection!BS122) -> 0 | W17: =SUM(Selection!BT109,Selection!BT111,Selection!BT113,Selection!BT115,Selection!BT120,Selection!BT121,Selection!BT122) -> 0 | X17: =SUM(Selection!BU109,Selection!BU111,Selection!BU113,Selection!BU115,Selection!BU120,Selection!BU121,Selection!BU122) -> 0 | Y17: =SUM(Selection!BV109,Selection!BV111,Selection!BV113,Selection!BV115,Selection!BV120,Selection!BV121,Selection!BV122) -> 0
A18: Wind | C18: =SUM(Selection!AZ104:AZ107,Selection!AZ142:AZ143) -> 0 | D18: =SUM(Selection!BA104:BA107,Selection!BA142:BA143) -> 0 | E18: =SUM(Selection!BB104:BB107,Selection!BB142:BB143) -> 0 | F18: =SUM(Selection!BC104:BC107,Selection!BC142:BC143) -> 0 | G18: =SUM(Selection!BD104:BD107,Selection!BD142:BD143) -> 0 | H18: =SUM(Selection!BE104:BE107,Selection!BE142:BE143) -> 0 | I18: =SUM(Selection!BF104:BF107,Selection!BF142:BF143) -> 0 | J18: =SUM(Selection!BG104:BG107,Selection!BG142:BG143) -> 0 | K18: =SUM(Selection!BH104:BH107,Selection!BH142:BH143) -> 0 | L18: =SUM(Selection!BI104:BI107,Selection!BI142:BI143) -> 100 | M18: =SUM(Selection!BJ104:BJ107,Selection!BJ142:BJ143) -> 0 | N18: =SUM(Selection!BK104:BK107,Selection!BK142:BK143) -> 0 | O18: =SUM(Selection!BL104:BL107,Selection!BL142:BL143) -> 0 | P18: =SUM(Selection!BM104:BM107,Selection!BM142:BM143) -> 0 | Q18: =SUM(Selection!BN104:BN107,Selection!BN142:BN143) -> 0 | R18: =SUM(Selection!BO104:BO107,Selection!BO142:BO143) -> 0 | S18: =SUM(Selection!BP104:BP107,Selection!BP142:BP143) -> 0 | T18: =SUM(Selection!BQ104:BQ107,Selection!BQ142:BQ143) -> 0 | U18: =SUM(Selection!BR104:BR107,Selection!BR142:BR143) -> 0 | V18: =SUM(Selection!BS104:BS107,Selection!BS142:BS143) -> 0 | W18: =SUM(Selection!BT104:BT107,Selection!BT142:BT143) -> 0 | X18: =SUM(Selection!BU104:BU107,Selection!BU142:BU143) -> 0 | Y18: =SUM(Selection!BV104:BV107,Selection!BV142:BV143) -> 0
A19: Storage | C19: =SUM(Selection!AZ123:AZ130,Selection!AZ134:AZ137) -> 0 | D19: =SUM(Selection!BA123:BA130,Selection!BA134:BA137) -> 0 | E19: =SUM(Selection!BB123:BB130,Selection!BB134:BB137) -> 0 | F19: =SUM(Selection!BC123:BC130,Selection!BC134:BC137) -> 0 | G19: =SUM(Selection!BD123:BD130,Selection!BD134:BD137) -> 0 | H19: =SUM(Selection!BE123:BE130,Selection!BE134:BE137) -> 0 | I19: =SUM(Selection!BF123:BF130,Selection!BF134:BF137) -> 0 | J19: =SUM(Selection!BG123:BG130,Selection!BG134:BG137) -> 0 | K19: =SUM(Selection!BH123:BH130,Selection!BH134:BH137) -> 0 | L19: =SUM(Selection!BI123:BI130,Selection!BI134:BI137) -> 0 | M19: =SUM(Selection!BJ123:BJ130,Selection!BJ134:BJ137) -> 0 | N19: =SUM(Selection!BK123:BK130,Selection!BK134:BK137) -> 0 | O19: =SUM(Selection!BL123:BL130,Selection!BL134:BL137) -> 0 | P19: =SUM(Selection!BM123:BM130,Selection!BM134:BM137) -> 0 | Q19: =SUM(Selection!BN123:BN130,Selection!BN134:BN137) -> 0 | R19: =SUM(Selection!BO123:BO130,Selection!BO134:BO137) -> 0 | S19: =SUM(Selection!BP123:BP130,Selection!BP134:BP137) -> 0 | T19: =SUM(Selection!BQ123:BQ130,Selection!BQ134:BQ137) -> 0 | U19: =SUM(Selection!BR123:BR130,Selection!BR134:BR137) -> 0 | V19: =SUM(Selection!BS123:BS130,Selection!BS134:BS137) -> 0 | W19: =SUM(Selection!BT123:BT130,Selection!BT134:BT137) -> 67.74820559 | X19: =SUM(Selection!BU123:BU130,Selection!BU134:BU137) -> 59.67593389 | Y19: =SUM(Selection!BV123:BV130,Selection!BV134:BV137) -> 0
A20: Hydrogen/Ammonia | C20: =SUM(Selection!AZ132:AZ133) -> 0 | D20: =SUM(Selection!BA132:BA133) -> 0 | E20: =SUM(Selection!BB132:BB133) -> 0 | F20: =SUM(Selection!BC132:BC133) -> 0 | G20: =SUM(Selection!BD132:BD133) -> 0 | H20: =SUM(Selection!BE132:BE133) -> 0 | I20: =SUM(Selection!BF132:BF133) -> 0 | J20: =SUM(Selection!BG132:BG133) -> 0 | K20: =SUM(Selection!BH132:BH133) -> 0 | L20: =SUM(Selection!BI132:BI133) -> 0 | M20: =SUM(Selection!BJ132:BJ133) -> 0 | N20: =SUM(Selection!BK132:BK133) -> 0 | O20: =SUM(Selection!BL132:BL133) -> 0 | P20: =SUM(Selection!BM132:BM133) -> 0 | Q20: =SUM(Selection!BN132:BN133) -> 0 | R20: =SUM(Selection!BO132:BO133) -> 0 | S20: =SUM(Selection!BP132:BP133) -> 0 | T20: =SUM(Selection!BQ132:BQ133) -> 0 | U20: =SUM(Selection!BR132:BR133) -> 0 | V20: =SUM(Selection!BS132:BS133) -> 0 | W20: =SUM(Selection!BT132:BT133) -> 0 | X20: =SUM(Selection!BU132:BU133) -> 0 | Y20: =SUM(Selection!BV132:BV133) -> 0
A21: Other "Clean" Baseload | C21: =SUM(Selection!AZ138,Selection!AZ131,Selection!AZ103) -> 0 | D21: =SUM(Selection!BA138,Selection!BA131,Selection!BA103) -> 0 | E21: =SUM(Selection!BB138,Selection!BB131,Selection!BB103) -> 0 | F21: =SUM(Selection!BC138,Selection!BC131,Selection!BC103) -> 0 | G21: =SUM(Selection!BD138,Selection!BD131,Selection!BD103) -> 0 | H21: =SUM(Selection!BE138,Selection!BE131,Selection!BE103) -> 0 | I21: =SUM(Selection!BF138,Selection!BF131,Selection!BF103) -> 0 | J21: =SUM(Selection!BG138,Selection!BG131,Selection!BG103) -> 0 | K21: =SUM(Selection!BH138,Selection!BH131,Selection!BH103) -> 0 | L21: =SUM(Selection!BI138,Selection!BI131,Selection!BI103) -> 0 | M21: =SUM(Selection!BJ138,Selection!BJ131,Selection!BJ103) -> 0 | N21: =SUM(Selection!BK138,Selection!BK131,Selection!BK103) -> 0 | O21: =SUM(Selection!BL138,Selection!BL131,Selection!BL103) -> 0 | P21: =SUM(Selection!BM138,Selection!BM131,Selection!BM103) -> 0 | Q21: =SUM(Selection!BN138,Selection!BN131,Selection!BN103) -> 0 | R21: =SUM(Selection!BO138,Selection!BO131,Selection!BO103) -> 0 | S21: =SUM(Selection!BP138,Selection!BP131,Selection!BP103) -> 0 | T21: =SUM(Selection!BQ138,Selection!BQ131,Selection!BQ103) -> 0 | U21: =SUM(Selection!BR138,Selection!BR131,Selection!BR103) -> 0 | V21: =SUM(Selection!BS138,Selection!BS131,Selection!BS103) -> 0 | W21: =SUM(Selection!BT138,Selection!BT131,Selection!BT103) -> 0 | X21: =SUM(Selection!BU138,Selection!BU131,Selection!BU103) -> 0 | Y21: =SUM(Selection!BV138,Selection!BV131,Selection!BV103) -> 0
A22: Existing Plant Upgrades | C22: =SUM(Selection!AZ139:AZ141) -> 0 | D22: =SUM(Selection!BA139:BA141) -> 0 | E22: =SUM(Selection!BB139:BB141) -> 0 | F22: =SUM(Selection!BC139:BC141) -> 0 | G22: =SUM(Selection!BD139:BD141) -> 0 | H22: =SUM(Selection!BE139:BE141) -> 0 | I22: =SUM(Selection!BF139:BF141) -> 0 | J22: =SUM(Selection!BG139:BG141) -> 0 | K22: =SUM(Selection!BH139:BH141) -> 0 | L22: =SUM(Selection!BI139:BI141) -> 0 | M22: =SUM(Selection!BJ139:BJ141) -> 0 | N22: =SUM(Selection!BK139:BK141) -> 0 | O22: =SUM(Selection!BL139:BL141) -> 5 | P22: =SUM(Selection!BM139:BM141) -> 0 | Q22: =SUM(Selection!BN139:BN141) -> 0 | R22: =SUM(Selection!BO139:BO141) -> 0 | S22: =SUM(Selection!BP139:BP141) -> 0 | T22: =SUM(Selection!BQ139:BQ141) -> 0 | U22: =SUM(Selection!BR139:BR141) -> 0 | V22: =SUM(Selection!BS139:BS141) -> 0 | W22: =SUM(Selection!BT139:BT141) -> 0 | X22: =SUM(Selection!BU139:BU141) -> 0 | Y22: =SUM(Selection!BV139:BV141) -> 0
A26: Washington
A27: NG CT | C27: =SUM(Selection!D100:D102) -> 0 | D27: =SUM(Selection!E100:E102) -> 0 | E27: =SUM(Selection!F100:F102) -> 0 | F27: =SUM(Selection!G100:G102) -> 0 | G27: =SUM(Selection!H100:H102) -> 0 | H27: =SUM(Selection!I100:I102) -> 0 | I27: =SUM(Selection!J100:J102) -> 0 | J27: =SUM(Selection!K100:K102) -> 0 | K27: =SUM(Selection!L100:L102) -> 0 | L27: =SUM(Selection!M100:M102) -> 0 | M27: =SUM(Selection!N100:N102) -> 0 | N27: =SUM(Selection!O100:O102) -> 0 | O27: =SUM(Selection!P100:P102) -> 0 | P27: =SUM(Selection!Q100:Q102) -> 0 | Q27: =SUM(Selection!R100:R102) -> 0 | R27: =SUM(Selection!S100:S102) -> 0 | S27: =SUM(Selection!T100:T102) -> 0 | T27: =SUM(Selection!U100:U102) -> 90.2475 | U27: =SUM(Selection!V100:V102) -> 0 | V27: =SUM(Selection!W100:W102) -> 208.8388074 | W27: =SUM(Selection!X100:X102) -> 0 | X27: =SUM(Selection!Y100:Y102) -> 0 | Y27: =SUM(Selection!Z100:Z102) -> 0 | AA27: =B27+(B15*G_A!P$9) -> 0 | AB27: =C27+(C15*G_A!Q$9) -> 0 | AC27: =D27+(D15*G_A!R$9) -> 0 | AD27: =E27+(E15*G_A!S$9) -> 0 | AE27: =F27+(F15*G_A!T$9) -> 0 | AF27: =G27+(G15*G_A!U$9) -> 0 | AG27: =H27+(H15*G_A!V$9) -> 0 | AH27: =I27+(I15*G_A!W$9) -> 0 | AI27: =J27+(J15*G_A!X$9) -> 0 | AJ27: =K27+(K15*G_A!Y$9) -> 0 | AK27: =L27+(L15*G_A!Z$9) -> 0 | AL27: =M27+(M15*G_A!AA$9) -> 0 | AM27: =N27+(N15*G_A!AB$9) -> 0 | AN27: =O27+(O15*G_A!AC$9) -> 0 | AO27: =P27+(P15*G_A!AD$9) -> 73.50661138 | AP27: =Q27+(Q15*G_A!AE$9) -> 0 | AQ27: =R27+(R15*G_A!AF$9) -> 58.35399862 | AR27: =S27+(S15*G_A!AG$9) -> 0 | AS27: =T27+(T15*G_A!AH$9) -> 90.2475 | AT27: =U27+(U15*G_A!AI$9) -> 0 | AU27: =V27+(V15*G_A!AJ$9) -> 208.8388074 | AV27: =W27+(W15*G_A!AK$9) -> 0 | AW27: =X27+(X15*G_A!AL$9) -> 0 | AX27: =Y27+(Y15*G_A!AM$9) -> 0
A28: Solar | C28: =SUM(Selection!D108,Selection!D110,Selection!D112,Selection!D114,Selection!D116:D119,Selection!D144,Selection!D145) -> 0 | D28: =SUM(Selection!E108,Selection!E110,Selection!E112,Selection!E114,Selection!E116:E119,Selection!E144,Selection!E145) -> 0 | E28: =SUM(Selection!F108,Selection!F110,Selection!F112,Selection!F114,Selection!F116:F119,Selection!F144,Selection!F145) -> 0 | F28: =SUM(Selection!G108,Selection!G110,Selection!G112,Selection!G114,Selection!G116:G119,Selection!G144,Selection!G145) -> 0 | G28: =SUM(Selection!H108,Selection!H110,Selection!H112,Selection!H114,Selection!H116:H119,Selection!H144,Selection!H145) -> 0 | H28: =SUM(Selection!I108,Selection!I110,Selection!I112,Selection!I114,Selection!I116:I119,Selection!I144,Selection!I145) -> 0 | I28: =SUM(Selection!J108,Selection!J110,Selection!J112,Selection!J114,Selection!J116:J119,Selection!J144,Selection!J145) -> 0 | J28: =SUM(Selection!K108,Selection!K110,Selection!K112,Selection!K114,Selection!K116:K119,Selection!K144,Selection!K145) -> 0 | K28: =SUM(Selection!L108,Selection!L110,Selection!L112,Selection!L114,Selection!L116:L119,Selection!L144,Selection!L145) -> 0 | L28: =SUM(Selection!M108,Selection!M110,Selection!M112,Selection!M114,Selection!M116:M119,Selection!M144,Selection!M145) -> 0 | M28: =SUM(Selection!N108,Selection!N110,Selection!N112,Selection!N114,Selection!N116:N119,Selection!N144,Selection!N145) -> 0 | N28: =SUM(Selection!O108,Selection!O110,Selection!O112,Selection!O114,Selection!O116:O119,Selection!O144,Selection!O145) -> 0 | O28: =SUM(Selection!P108,Selection!P110,Selection!P112,Selection!P114,Selection!P116:P119,Selection!P144,Selection!P145) -> 0 | P28: =SUM(Selection!Q108,Selection!Q110,Selection!Q112,Selection!Q114,Selection!Q116:Q119,Selection!Q144,Selection!Q145) -> 0 | Q28: =SUM(Selection!R108,Selection!R110,Selection!R112,Selection!R114,Selection!R116:R119,Selection!R144,Selection!R145) -> 0 | R28: =SUM(Selection!S108,Selection!S110,Selection!S112,Selection!S114,Selection!S116:S119,Selection!S144,Selection!S145) -> 0 | S28: =SUM(Selection!T108,Selection!T110,Selection!T112,Selection!T114,Selection!T116:T119,Selection!T144,Selection!T145) -> 0 | T28: =SUM(Selection!U108,Selection!U110,Selection!U112,Selection!U114,Selection!U116:U119,Selection!U144,Selection!U145) -> 0 | U28: =SUM(Selection!V108,Selection!V110,Selection!V112,Selection!V114,Selection!V116:V119,Selection!V144,Selection!V145) -> 0 | V28: =SUM(Selection!W108,Selection!W110,Selection!W112,Selection!W114,Selection!W116:W119,Selection!W144,Selection!W145) -> 0 | W28: =SUM(Selection!X108,Selection!X110,Selection!X112,Selection!X114,Selection!X116:X119,Selection!X144,Selection!X145) -> 0 | X28: =SUM(Selection!Y108,Selection!Y110,Selection!Y112,Selection!Y114,Selection!Y116:Y119,Selection!Y144,Selection!Y145) -> 0 | Y28: =SUM(Selection!Z108,Selection!Z110,Selection!Z112,Selection!Z114,Selection!Z116:Z119,Selection!Z144,Selection!Z145) -> 0 | AA28: =B28+(B16*G_A!P$9) -> 0 | AB28: =C28+(C16*G_A!Q$9) -> 0 | AC28: =D28+(D16*G_A!R$9) -> 0 | AD28: =E28+(E16*G_A!S$9) -> 0 | AE28: =F28+(F16*G_A!T$9) -> 0 | AF28: =G28+(G16*G_A!U$9) -> 0 | AG28: =H28+(H16*G_A!V$9) -> 0 | AH28: =I28+(I16*G_A!W$9) -> 0 | AI28: =J28+(J16*G_A!X$9) -> 0 | AJ28: =K28+(K16*G_A!Y$9) -> 0 | AK28: =L28+(L16*G_A!Z$9) -> 0 | AL28: =M28+(M16*G_A!AA$9) -> 0 | AM28: =N28+(N16*G_A!AB$9) -> 0 | AN28: =O28+(O16*G_A!AC$9) -> 0 | AO28: =P28+(P16*G_A!AD$9) -> 0 | AP28: =Q28+(Q16*G_A!AE$9) -> 0 | AQ28: =R28+(R16*G_A!AF$9) -> 0 | AR28: =S28+(S16*G_A!AG$9) -> 0 | AS28: =T28+(T16*G_A!AH$9) -> 0 | AT28: =U28+(U16*G_A!AI$9) -> 0 | AU28: =V28+(V16*G_A!AJ$9) -> 0 | AV28: =W28+(W16*G_A!AK$9) -> 0 | AW28: =X28+(X16*G_A!AL$9) -> 0 | AX28: =Y28+(Y16*G_A!AM$9) -> 0
A29: Storage Added to Solar | C29: =SUM(,Selection!D109,Selection!D111,Selection!D113,Selection!D115,Selection!D120:D122) -> 0 | D29: =SUM(,Selection!E109,Selection!E111,Selection!E113,Selection!E115,Selection!E120:E122) -> 0 | E29: =SUM(,Selection!F109,Selection!F111,Selection!F113,Selection!F115,Selection!F120:F122) -> 0 | F29: =SUM(,Selection!G109,Selection!G111,Selection!G113,Selection!G115,Selection!G120:G122) -> 0 | G29: =SUM(,Selection!H109,Selection!H111,Selection!H113,Selection!H115,Selection!H120:H122) -> 0 | H29: =SUM(,Selection!I109,Selection!I111,Selection!I113,Selection!I115,Selection!I120:I122) -> 0 | I29: =SUM(,Selection!J109,Selection!J111,Selection!J113,Selection!J115,Selection!J120:J122) -> 0 | J29: =SUM(,Selection!K109,Selection!K111,Selection!K113,Selection!K115,Selection!K120:K122) -> 0 | K29: =SUM(,Selection!L109,Selection!L111,Selection!L113,Selection!L115,Selection!L120:L122) -> 0 | L29: =SUM(,Selection!M109,Selection!M111,Selection!M113,Selection!M115,Selection!M120:M122) -> 0 | M29: =SUM(,Selection!N109,Selection!N111,Selection!N113,Selection!N115,Selection!N120:N122) -> 0 | N29: =SUM(,Selection!O109,Selection!O111,Selection!O113,Selection!O115,Selection!O120:O122) -> 0 | O29: =SUM(,Selection!P109,Selection!P111,Selection!P113,Selection!P115,Selection!P120:P122) -> 0 | P29: =SUM(,Selection!Q109,Selection!Q111,Selection!Q113,Selection!Q115,Selection!Q120:Q122) -> 0 | Q29: =SUM(,Selection!R109,Selection!R111,Selection!R113,Selection!R115,Selection!R120:R122) -> 0 | R29: =SUM(,Selection!S109,Selection!S111,Selection!S113,Selection!S115,Selection!S120:S122) -> 0 | S29: =SUM(,Selection!T109,Selection!T111,Selection!T113,Selection!T115,Selection!T120:T122) -> 0 | T29: =SUM(,Selection!U109,Selection!U111,Selection!U113,Selection!U115,Selection!U120:U122) -> 0 | U29: =SUM(,Selection!V109,Selection!V111,Selection!V113,Selection!V115,Selection!V120:V122) -> 0 | V29: =SUM(,Selection!W109,Selection!W111,Selection!W113,Selection!W115,Selection!W120:W122) -> 0 | W29: =SUM(,Selection!X109,Selection!X111,Selection!X113,Selection!X115,Selection!X120:X122) -> 0 | X29: =SUM(,Selection!Y109,Selection!Y111,Selection!Y113,Selection!Y115,Selection!Y120:Y122) -> 0 | Y29: =SUM(,Selection!Z109,Selection!Z111,Selection!Z113,Selection!Z115,Selection!Z120:Z122) -> 0 | AA29: =B29+(B17*G_A!P$9) -> 0 | AB29: =C29+(C17*G_A!Q$9) -> 0 | AC29: =D29+(D17*G_A!R$9) -> 0 | AD29: =E29+(E17*G_A!S$9) -> 0 | AE29: =F29+(F17*G_A!T$9) -> 0 | AF29: =G29+(G17*G_A!U$9) -> 0 | AG29: =H29+(H17*G_A!V$9) -> 0 | AH29: =I29+(I17*G_A!W$9) -> 0 | AI29: =J29+(J17*G_A!X$9) -> 0 | AJ29: =K29+(K17*G_A!Y$9) -> 0 | AK29: =L29+(L17*G_A!Z$9) -> 0 | AL29: =M29+(M17*G_A!AA$9) -> 0 | AM29: =N29+(N17*G_A!AB$9) -> 0 | AN29: =O29+(O17*G_A!AC$9) -> 0 | AO29: =P29+(P17*G_A!AD$9) -> 0 | AP29: =Q29+(Q17*G_A!AE$9) -> 0 | AQ29: =R29+(R17*G_A!AF$9) -> 0 | AR29: =S29+(S17*G_A!AG$9) -> 0 | AS29: =T29+(T17*G_A!AH$9) -> 0 | AT29: =U29+(U17*G_A!AI$9) -> 0 | AU29: =V29+(V17*G_A!AJ$9) -> 0 | AV29: =W29+(W17*G_A!AK$9) -> 0 | AW29: =X29+(X17*G_A!AL$9) -> 0 | AX29: =Y29+(Y17*G_A!AM$9) -> 0
A30: Wind | C30: =SUM(Selection!D104:D107,Selection!D142:D143) -> 0 | D30: =SUM(Selection!E104:E107,Selection!E142:E143) -> 0 | E30: =SUM(Selection!F104:F107,Selection!F142:F143) -> 0 | F30: =SUM(Selection!G104:G107,Selection!G142:G143) -> 0 | G30: =SUM(Selection!H104:H107,Selection!H142:H143) -> 0 | H30: =SUM(Selection!I104:I107,Selection!I142:I143) -> 0 | I30: =SUM(Selection!J104:J107,Selection!J142:J143) -> 0 | J30: =SUM(Selection!K104:K107,Selection!K142:K143) -> 200 | K30: =SUM(Selection!L104:L107,Selection!L142:L143) -> 0 | L30: =SUM(Selection!M104:M107,Selection!M142:M143) -> 100 | M30: =SUM(Selection!N104:N107,Selection!N142:N143) -> 0 | N30: =SUM(Selection!O104:O107,Selection!O142:O143) -> 0 | O30: =SUM(Selection!P104:P107,Selection!P142:P143) -> 0 | P30: =SUM(Selection!Q104:Q107,Selection!Q142:Q143) -> 0 | Q30: =SUM(Selection!R104:R107,Selection!R142:R143) -> 0 | R30: =SUM(Selection!S104:S107,Selection!S142:S143) -> 0 | S30: =SUM(Selection!T104:T107,Selection!T142:T143) -> 0 | T30: =SUM(Selection!U104:U107,Selection!U142:U143) -> 0 | U30: =SUM(Selection!V104:V107,Selection!V142:V143) -> 0 | V30: =SUM(Selection!W104:W107,Selection!W142:W143) -> 0 | W30: =SUM(Selection!X104:X107,Selection!X142:X143) -> 0 | X30: =SUM(Selection!Y104:Y107,Selection!Y142:Y143) -> 0 | Y30: =SUM(Selection!Z104:Z107,Selection!Z142:Z143) -> 0 | AA30: =B30+(B18*G_A!P$9) -> 0 | AB30: =C30+(C18*G_A!Q$9) -> 0 | AC30: =D30+(D18*G_A!R$9) -> 0 | AD30: =E30+(E18*G_A!S$9) -> 0 | AE30: =F30+(F18*G_A!T$9) -> 0 | AF30: =G30+(G18*G_A!U$9) -> 0 | AG30: =H30+(H18*G_A!V$9) -> 0 | AH30: =I30+(I18*G_A!W$9) -> 0 | AI30: =J30+(J18*G_A!X$9) -> 200 | AJ30: =K30+(K18*G_A!Y$9) -> 0 | AK30: =L30+(L18*G_A!Z$9) -> 164.4 | AL30: =M30+(M18*G_A!AA$9) -> 0 | AM30: =N30+(N18*G_A!AB$9) -> 0 | AN30: =O30+(O18*G_A!AC$9) -> 0 | AO30: =P30+(P18*G_A!AD$9) -> 0 | AP30: =Q30+(Q18*G_A!AE$9) -> 0 | AQ30: =R30+(R18*G_A!AF$9) -> 0 | AR30: =S30+(S18*G_A!AG$9) -> 0 | AS30: =T30+(T18*G_A!AH$9) -> 0 | AT30: =U30+(U18*G_A!AI$9) -> 0 | AU30: =V30+(V18*G_A!AJ$9) -> 0 | AV30: =W30+(W18*G_A!AK$9) -> 0 | AW30: =X30+(X18*G_A!AL$9) -> 0 | AX30: =Y30+(Y18*G_A!AM$9) -> 0
A31: Storage | C31: =SUM(Selection!D123:D130,Selection!D135:D137) -> 0 | D31: =SUM(Selection!E123:E130,Selection!E135:E137) -> 0 | E31: =SUM(Selection!F123:F130,Selection!F135:F137) -> 0 | F31: =SUM(Selection!G123:G130,Selection!G135:G137) -> 0 | G31: =SUM(Selection!H123:H130,Selection!H135:H137) -> 0 | H31: =SUM(Selection!I123:I130,Selection!I135:I137) -> 0 | I31: =SUM(Selection!J123:J130,Selection!J135:J137) -> 0 | J31: =SUM(Selection!K123:K130,Selection!K135:K137) -> 0 | K31: =SUM(Selection!L123:L130,Selection!L135:L137) -> 0 | L31: =SUM(Selection!M123:M130,Selection!M135:M137) -> 0 | M31: =SUM(Selection!N123:N130,Selection!N135:N137) -> 0 | N31: =SUM(Selection!O123:O130,Selection!O135:O137) -> 0 | O31: =SUM(Selection!P123:P130,Selection!P135:P137) -> 0 | P31: =SUM(Selection!Q123:Q130,Selection!Q135:Q137) -> 0 | Q31: =SUM(Selection!R123:R130,Selection!R135:R137) -> 0 | R31: =SUM(Selection!S123:S130,Selection!S135:S137) -> 0 | S31: =SUM(Selection!T123:T130,Selection!T135:T137) -> 0 | T31: =SUM(Selection!U123:U130,Selection!U135:U137) -> 0 | U31: =SUM(Selection!V123:V130,Selection!V135:V137) -> 0 | V31: =SUM(Selection!W123:W130,Selection!W135:W137) -> 25 | W31: =SUM(Selection!X123:X130,Selection!X135:X137) -> 0 | X31: =SUM(Selection!Y123:Y130,Selection!Y135:Y137) -> 0 | Y31: =SUM(Selection!Z123:Z130,Selection!Z135:Z137) -> 157.552944 | AA31: =B31+(B19*G_A!P$9) -> 0 | AB31: =C31+(C19*G_A!Q$9) -> 0 | AC31: =D31+(D19*G_A!R$9) -> 0 | AD31: =E31+(E19*G_A!S$9) -> 0 | AE31: =F31+(F19*G_A!T$9) -> 0 | AF31: =G31+(G19*G_A!U$9) -> 0 | AG31: =H31+(H19*G_A!V$9) -> 0 | AH31: =I31+(I19*G_A!W$9) -> 0 | AI31: =J31+(J19*G_A!X$9) -> 0 | AJ31: =K31+(K19*G_A!Y$9) -> 0 | AK31: =L31+(L19*G_A!Z$9) -> 0 | AL31: =M31+(M19*G_A!AA$9) -> 0 | AM31: =N31+(N19*G_A!AB$9) -> 0 | AN31: =O31+(O19*G_A!AC$9) -> 0 | AO31: =P31+(P19*G_A!AD$9) -> 0 | AP31: =Q31+(Q19*G_A!AE$9) -> 0 | AQ31: =R31+(R19*G_A!AF$9) -> 0 | AR31: =S31+(S19*G_A!AG$9) -> 0 | AS31: =T31+(T19*G_A!AH$9) -> 0 | AT31: =U31+(U19*G_A!AI$9) -> 0 | AU31: =V31+(V19*G_A!AJ$9) -> 25 | AV31: =W31+(W19*G_A!AK$9) -> 43.6298444 | AW31: =X31+(X19*G_A!AL$9) -> 38.43130142 | AX31: =Y31+(Y19*G_A!AM$9) -> 157.552944
... 33 more rows

Sheet CBI
A2: CBI # | B2: CBI Name | C2: Item | D2: Unit | E2: 2016 | F2: 2017 | G2: 2018 | H2: 2019 | I2: 2020 | J2: 2021 | K2: 2022 | L2: 2023 | M2: 2024 | N2: 2025 | O2: 2026 | P2: 2027 | Q2: 2028 | R2: 2029 | S2: 2030 | T2: 2031 | U2: 2032 | V2: 2033 | W2: 2034 | X2: 2035 | Y2: 2036 | Z2: 2037 | AA2: 2038 | AB2: 2039 | AC2: 2040 | AD2: 2041 | AE2: 2042 | AF2: 2043 | AG2: 2044 | AH2: 2045
A3: 2a | B3: Energy Burden | C3: Number of Customers with Energy Burden | D3: # | L3: ='Energy Burden'!FE$4 -> 45347.9511 | M3: ='Energy Burden'!FF$4 -> 45685.60139 | N3: ='Energy Burden'!FG$4 -> 46135.82246 | O3: ='Energy Burden'!FH$4 -> 45360.69116 | P3: ='Energy Burden'!FI$4 -> 46714.99086 | Q3: ='Energy Burden'!FJ$4 -> 47052.35713 | R3: ='Energy Burden'!FK$4 -> 47385.40672 | S3: ='Energy Burden'!FL$4 -> 47710.88506 | T3: ='Energy Burden'!FM$4 -> 48042.50856 | U3: ='Energy Burden'!FN$4 -> 48413.85645 | V3: ='Energy Burden'!FO$4 -> 48697.85949 | W3: ='Energy Burden'!FP$4 -> 47617.2384 | X3: ='Energy Burden'!FQ$4 -> 47923.33872 | Y3: ='Energy Burden'!FR$4 -> 48224.19857 | Z3: ='Energy Burden'!FS$4 -> 48520.12507 | AA3: ='Energy Burden'!FT$4 -> 48809.93647 | AB3: ='Energy Burden'!FU$4 -> 49094.72296 | AC3: ='Energy Burden'!FV$4 -> 49375.4593 | AD3: ='Energy Burden'!FW$4 -> 49650.89649 | AE3: ='Energy Burden'!FX$4 -> 49922.49645 | AF3: ='Energy Burden'!FY$4 -> 51281.14459 | AG3: ='Energy Burden'!FZ$4 -> 50454.3685 | AH3: ='Energy Burden'!GA$4 -> 52254.94385
A4: 2b | B4: Energy Burden | C4: Percent of Customer with Excess Energy Burden | D4: Percent | L4: ='Energy Burden'!FE$6 -> 0.2047844528 | M4: ='Energy Burden'!FF$6 -> 0.2041284255 | N4: ='Energy Burden'!FG$6 -> 0.2041284255 | O4: ='Energy Burden'!FH$6 -> 0.1988931975 | P4: ='Energy Burden'!FI$6 -> 0.2032190807 | Q4: ='Energy Burden'!FJ$6 -> 0.2032190807 | R4: ='Energy Burden'!FK$6 -> 0.2032190807 | S4: ='Energy Burden'!FL$6 -> 0.2031866041 | T4: ='Energy Burden'!FM$6 -> 0.2031866041 | U4: ='Energy Burden'!FN$6 -> 0.2033619777 | V4: ='Energy Burden'!FO$6 -> 0.2031866041 | W4: ='Energy Burden'!FP$6 -> 0.1973797879 | X4: ='Energy Burden'!FQ$6 -> 0.1973797879 | Y4: ='Energy Burden'!FR$6 -> 0.1973797879 | Z4: ='Energy Burden'!FS$6 -> 0.1973797879 | AA4: ='Energy Burden'!FT$6 -> 0.1973797879 | AB4: ='Energy Burden'!FU$6 -> 0.1973797879 | AC4: ='Energy Burden'!FV$6 -> 0.1973797879 | AD4: ='Energy Burden'!FW$6 -> 0.1973797879 | AE4: ='Energy Burden'!FX$6 -> 0.1973797879 | AF4: ='Energy Burden'!FY$6 -> 0.2016731945 | AG4: ='Energy Burden'!FZ$6 -> 0.1973797879 | AH4: ='Energy Burden'!GA$6 -> 0.2033619777
A5: 2c | B5: Energy Burden | C5: Average excess burden per household | D5: $ | L5: ='Energy Burden'!FE$5 -> 916.8762498 | M5: ='Energy Burden'!FF$5 -> 929.0532991 | N5: ='Energy Burden'!FG$5 -> 915.0835635 | O5: ='Energy Burden'!FH$5 -> 898.9132461 | P5: ='Energy Burden'!FI$5 -> 949.7599489 | Q5: ='Energy Burden'!FJ$5 -> 989.310508 | R5: ='Energy Burden'!FK$5 -> 1006.924039 | S5: ='Energy Burden'!FL$5 -> 1031.392184 | T5: ='Energy Burden'!FM$5 -> 1080.392409 | U5: ='Energy Burden'!FN$5 -> 1164.936276 | V5: ='Energy Burden'!FO$5 -> 1172.26472 | W5: ='Energy Burden'!FP$5 -> 1185.087029 | X5: ='Energy Burden'!FQ$5 -> 1222.969338 | Y5: ='Energy Burden'!FR$5 -> 1293.502813 | Z5: ='Energy Burden'!FS$5 -> 1310.915703 | AA5: ='Energy Burden'!FT$5 -> 1371.080145 | AB5: ='Energy Burden'!FU$5 -> 1422.086606 | AC5: ='Energy Burden'!FV$5 -> 1437.284278 | AD5: ='Energy Burden'!FW$5 -> 1471.478001 | AE5: ='Energy Burden'!FX$5 -> 1518.562221 | AF5: ='Energy Burden'!FY$5 -> 1597.000945 | AG5: ='Energy Burden'!FZ$5 -> 1655.31448 | AH5: ='Energy Burden'!GA$5 -> 2052.506677
B7: DER Gen | C7: Great Northern | D7: MWh | E7: 0 | F7: 0 | G7: 0 | H7: 0 | I7: 0 | J7: 100.569 | L7: =J7 -> 100.569 | M7: =L7*0.995 -> 100.066155 | N7: 99.56582423 | O7: 99.0679951 | P7: 98.57265513 | Q7: 98.07979185 | R7: 97.58939289 | S7: 97.10144593 | T7: 96.6159387 | U7: 96.13285901 | V7: 95.65219471 | W7: 95.17393374 | X7: 94.69806407 | Y7: 94.22457375 | Z7: 93.75345088 | AA7: 93.28468363 | AB7: 92.81826021 | AC7: 92.35416891 | AD7: 91.89239806 | AE7: 91.43293607 | AF7: 90.97577139 | AG7: 90.52089253 | AH7: 90.06828807
B8: DER Gen | C8: Boulder Park Solar | D8: MWh | E8: 196.17152 | F8: 521.87004 | G8: 539.32164 | H8: 556.20931 | I8: 540.31473 | J8: 535.65707 | L8: =AVERAGE(F8:J8) -> 538.674558 | M8: =L8*0.995 -> 535.9811852 | N8: 533.3012793 | O8: 530.6347729 | P8: 527.981599 | Q8: 525.341691 | R8: 522.7149826 | S8: 520.1014077 | T8: 517.5009006 | U8: 514.9133961 | V8: 512.3388291 | W8: 509.777135 | X8: 507.2282493 | Y8: 504.6921081 | Z8: 502.1686475 | AA8: 499.6578043 | AB8: 497.1595153 | AC8: 494.6737177 | AD8: 492.2003491 | AE8: 489.7393474 | AF8: 487.2906506 | AG8: 484.8541974 | AH8: 482.4299264
B9: DER Gen | C9: PURPA | D9: MWh | E9: 20683.74834 | F9: 18428.68819 | G9: 16644.39831 | H9: 16383.29287 | I9: 20149.58491 | J9: 14413.20254 | L9: =AVERAGE(E9:J9) -> 17783.81919 | M9: =L9 -> 17783.81919 | N9: 17783.81919 | O9: 17783.81919 | P9: 17783.81919 | Q9: 17783.81919 | R9: 17783.81919 | S9: 17783.81919 | T9: 17783.81919 | U9: 17783.81919 | V9: 17783.81919 | W9: 17783.81919 | X9: 17783.81919 | Y9: 17783.81919 | Z9: 17783.81919 | AA9: 17783.81919 | AB9: 17783.81919 | AC9: 17783.81919 | AD9: 17783.81919 | AE9: 17783.81919 | AF9: 17783.81919 | AG9: 17783.81919 | AH9: 17783.81919
B10: DER Gen | C10: Spokane County Digester | D10: MWh | E10: 991.76 | F10: 1190.48 | G10: 1271.44 | H10: 1239.81104 | I10: 1132.35992 | J10: 1123 | L10: =AVERAGE(E10:J10) -> 1158.141827 | M10: =L10 -> 1158.141827 | N10: 1158.141827 | O10: 1158.141827 | P10: 1158.141827 | Q10: 1158.141827 | R10: 1158.141827 | S10: 1158.141827 | T10: 1158.141827 | U10: 1158.141827 | V10: 1158.141827 | W10: 1158.141827 | X10: 1158.141827 | Y10: 1158.141827 | Z10: 1158.141827 | AA10: 1158.141827 | AB10: 1158.141827 | AC10: 1158.141827 | AD10: 1158.141827 | AE10: 1158.141827 | AF10: 1158.141827 | AG10: 1158.141827 | AH10: 1158.141827
B11: DER Gen | C11: Customer Net Meter | D11: MWh | E11: 0 | F11: 0 | G11: 0 | H11: 0 | I11: 0 | J11: 0
B12: DER Gen | C12: Selected Resources | D12: MWh | E12: 0 | F12: 0 | G12: 0 | H12: 0 | I12: 0 | J12: 0 | L12: =Res_MWh!JU$141+Res_MWh!JU$104+Res_MWh!JU$106+Res_MWh!JU$108+Res_MWh!JU$110 -> 0 | M12: =Res_MWh!JV$141+Res_MWh!JV$104+Res_MWh!JV$106+Res_MWh!JV$108+Res_MWh!JV$110 -> 0 | N12: =Res_MWh!JW$141+Res_MWh!JW$104+Res_MWh!JW$106+Res_MWh!JW$108+Res_MWh!JW$110 -> 0 | O12: =Res_MWh!JX$141+Res_MWh!JX$104+Res_MWh!JX$106+Res_MWh!JX$108+Res_MWh!JX$110 -> 0 | P12: =Res_MWh!JY$141+Res_MWh!JY$104+Res_MWh!JY$106+Res_MWh!JY$108+Res_MWh!JY$110 -> 0 | Q12: =Res_MWh!JZ$141+Res_MWh!JZ$104+Res_MWh!JZ$106+Res_MWh!JZ$108+Res_MWh!JZ$110 -> 0 | R12: =Res_MWh!KA$141+Res_MWh!KA$104+Res_MWh!KA$106+Res_MWh!KA$108+Res_MWh!KA$110 -> 0 | S12: =Res_MWh!KB$141+Res_MWh!KB$104+Res_MWh!KB$106+Res_MWh!KB$108+Res_MWh!KB$110 -> 0 | T12: =Res_MWh!KC$141+Res_MWh!KC$104+Res_MWh!KC$106+Res_MWh!KC$108+Res_MWh!KC$110 -> 0 | U12: =Res_MWh!KD$141+Res_MWh!KD$104+Res_MWh!KD$106+Res_MWh!KD$108+Res_MWh!KD$110 -> 0 | V12: =Res_MWh!KE$141+Res_MWh!KE$104+Res_MWh!KE$106+Res_MWh!KE$108+Res_MWh!KE$110 -> 0 | W12: =Res_MWh!KF$141+Res_MWh!KF$104+Res_MWh!KF$106+Res_MWh!KF$108+Res_MWh!KF$110 -> 0 | X12: =Res_MWh!KG$141+Res_MWh!KG$104+Res_MWh!KG$106+Res_MWh!KG$108+Res_MWh!KG$110 -> 0 | Y12: =Res_MWh!KH$141+Res_MWh!KH$104+Res_MWh!KH$106+Res_MWh!KH$108+Res_MWh!KH$110 -> 0 | Z12: =Res_MWh!KI$141+Res_MWh!KI$104+Res_MWh!KI$106+Res_MWh!KI$108+Res_MWh!KI$110 -> 0 | AA12: =Res_MWh!KJ$141+Res_MWh!KJ$104+Res_MWh!KJ$106+Res_MWh!KJ$108+Res_MWh!KJ$110 -> 0 | AB12: =Res_MWh!KK$141+Res_MWh!KK$104+Res_MWh!KK$106+Res_MWh!KK$108+Res_MWh!KK$110 -> 0 | AC12: =Res_MWh!KL$141+Res_MWh!KL$104+Res_MWh!KL$106+Res_MWh!KL$108+Res_MWh!KL$110 -> 0 | AD12: =Res_MWh!KM$141+Res_MWh!KM$104+Res_MWh!KM$106+Res_MWh!KM$108+Res_MWh!KM$110 -> 0 | AE12: =Res_MWh!KN$141+Res_MWh!KN$104+Res_MWh!KN$106+Res_MWh!KN$108+Res_MWh!KN$110 -> 0 | AF12: =Res_MWh!KO$141+Res_MWh!KO$104+Res_MWh!KO$106+Res_MWh!KO$108+Res_MWh!KO$110 -> 0 | AG12: =Res_MWh!KP$141+Res_MWh!KP$104+Res_MWh!KP$106+Res_MWh!KP$108+Res_MWh!KP$110 -> 0 | AH12: =Res_MWh!KQ$141+Res_MWh!KQ$104+Res_MWh!KQ$106+Res_MWh!KQ$108+Res_MWh!KQ$110 -> 0
A13: 5a | B13: DER Gen | C13: Total MWh of DER <5 MW | D13: MWh | E13: =SUM(E7:E12) -> 21871.67986 | F13: =SUM(F7:F12) -> 20141.03823 | G13: 18455.15995 | H13: 18179.31322 | I13: 21822.25956 | J13: 16172.42861 | L13: 19581.20458 | M13: 19578.00836 | N13: 19574.82812 | O13: 19571.66379 | P13: 19568.51527 | Q13: 19565.3825 | R13: 19562.2654 | S13: 19559.16387 | T13: 19556.07786 | U13: 19553.00728 | V13: 19549.95204 | W13: 19546.91209 | X13: 19543.88733 | Y13: 19540.8777 | Z13: 19537.88312 | AA13: 19534.90351 | AB13: 19531.9388 | AC13: 19528.98891 | AD13: 19526.05377 | AE13: 19523.1333 | AF13: 19520.22744 | AG13: 19517.33611 | AH13: 19514.45923
B15: DER Storage | C15: Existing storage/EAG | L15: 1.328 | M15: 1.328 | N15: 1.328 | O15: 1.328 | P15: 1.328 | Q15: 1.328 | R15: 1.328 | S15: 1.328 | T15: 1.328 | U15: 1.328 | V15: 1.328 | W15: 1.328 | X15: 1.328 | Y15: 1.328 | Z15: 1.328 | AA15: 1.328 | AB15: 1.328 | AC15: 1.328 | AD15: 1.328 | AE15: 1.328 | AF15: 1.328 | AG15: 1.328 | AH15: 1.328
B16: DER Storage | C16: Selected Resources | L16: =((Selection!D$213+Selection!D$209+Selection!D$211+Selection!D$221+Selection!D$207)*4)+(Selection!D$222*8) -> 0 | M16: =((Selection!E$213+Selection!E$209+Selection!E$211+Selection!E$221+Selection!E$207)*4)+(Selection!E$222*8) -> 0 | N16: =((Selection!F$213+Selection!F$209+Selection!F$211+Selection!F$221+Selection!F$207)*4)+(Selection!F$222*8) -> 0 | O16: =((Selection!G$213+Selection!G$209+Selection!G$211+Selection!G$221+Selection!G$207)*4)+(Selection!G$222*8) -> 0 | P16: =((Selection!H$213+Selection!H$209+Selection!H$211+Selection!H$221+Selection!H$207)*4)+(Selection!H$222*8) -> 0 | Q16: =((Selection!I$213+Selection!I$209+Selection!I$211+Selection!I$221+Selection!I$207)*4)+(Selection!I$222*8) -> 0 | R16: =((Selection!J$213+Selection!J$209+Selection!J$211+Selection!J$221+Selection!J$207)*4)+(Selection!J$222*8) -> 0 | S16: =((Selection!K$213+Selection!K$209+Selection!K$211+Selection!K$221+Selection!K$207)*4)+(Selection!K$222*8) -> 0 | T16: =((Selection!L$213+Selection!L$209+Selection!L$211+Selection!L$221+Selection!L$207)*4)+(Selection!L$222*8) -> 0 | U16: =((Selection!M$213+Selection!M$209+Selection!M$211+Selection!M$221+Selection!M$207)*4)+(Selection!M$222*8) -> 0 | V16: =((Selection!N$213+Selection!N$209+Selection!N$211+Selection!N$221+Selection!N$207)*4)+(Selection!N$222*8) -> 0 | W16: =((Selection!O$213+Selection!O$209+Selection!O$211+Selection!O$221+Selection!O$207)*4)+(Selection!O$222*8) -> 0 | X16: =((Selection!P$213+Selection!P$209+Selection!P$211+Selection!P$221+Selection!P$207)*4)+(Selection!P$222*8) -> 0 | Y16: =((Selection!Q$213+Selection!Q$209+Selection!Q$211+Selection!Q$221+Selection!Q$207)*4)+(Selection!Q$222*8) -> 0 | Z16: =((Selection!R$213+Selection!R$209+Selection!R$211+Selection!R$221+Selection!R$207)*4)+(Selection!R$222*8) -> 0 | AA16: =((Selection!S$213+Selection!S$209+Selection!S$211+Selection!S$221+Selection!S$207)*4)+(Selection!S$222*8) -> 0 | AB16: =((Selection!T$213+Selection!T$209+Selection!T$211+Selection!T$221+Selection!T$207)*4)+(Selection!T$222*8) -> 0 | AC16: =((Selection!U$213+Selection!U$209+Selection!U$211+Selection!U$221+Selection!U$207)*4)+(Selection!U$222*8) -> 0 | AD16: =((Selection!V$213+Selection!V$209+Selection!V$211+Selection!V$221+Selection!V$207)*4)+(Selection!V$222*8) -> 0 | AE16: =((Selection!W$213+Selection!W$209+Selection!W$211+Selection!W$221+Selection!W$207)*4)+(Selection!W$222*8) -> 0 | AF16: =((Selection!X$213+Selection!X$209+Selection!X$211+Selection!X$221+Selection!X$207)*4)+(Selection!X$222*8) -> 0 | AG16: =((Selection!Y$213+Selection!Y$209+Selection!Y$211+Selection!Y$221+Selection!Y$207)*4)+(Selection!Y$222*8) -> 0 | AH16: =((Selection!Z$213+Selection!Z$209+Selection!Z$211+Selection!Z$221+Selection!Z$207)*4)+(Selection!Z$222*8) -> 0
A17: 5b | B17: DER Storage | C17: Total of MWh of DER energy storage < 5 MW | D17: MWh Capability | E17: =SUM(E15:E16) -> 0 | F17: =SUM(F15:F16) -> 0 | G17: 0 | H17: 0 | I17: 0 | J17: 0 | L17: 1.328 | M17: 1.328 | N17: 1.328 | O17: 1.328 | P17: 1.328 | Q17: 1.328 | R17: 1.328 | S17: 1.328 | T17: 1.328 | U17: 1.328 | V17: 1.328 | W17: 1.328 | X17: 1.328 | Y17: 1.328 | Z17: 1.328 | AA17: 1.328 | AB17: 1.328 | AC17: 1.328 | AD17: 1.328 | AE17: 1.328 | AF17: 1.328 | AG17: 1.328 | AH17: 1.328
C19: Low Income EE Values
C20: Low Income EE from target | D20: GWH | L20: 4.908714137 | M20: 10.76077901 | N20: 17.70732477 | O20: 25.44708819 | P20: 33.95803378 | Q20: 43.63962422 | R20: 53.97238009 | S20: 64.3391688 | T20: 73.95577928 | U20: 82.47865895 | V20: 89.53086276 | W20: 94.87536188 | X20: 98.88843601 | Y20: 101.8166229 | Z20: 103.9513194 | AA20: 105.3276126 | AB20: 106.380196 | AC20: 107.0852391 | AD20: 107.7134509 | AE20: 108.3411453 | AF20: 108.8853194 | AG20: 109.4223451 | AH20: 109.8680634
C21: Low Income EE from simulation | D21: GWH | L21: =EE_Selection!K19 -> 5.097170645 | M21: =EE_Selection!L19 -> 11.16792883 | N21: =EE_Selection!M19 -> 18.36457372 | O21: =EE_Selection!N19 -> 26.3715183 | P21: =EE_Selection!O19 -> 35.15874977 | Q21: =EE_Selection!P19 -> 45.1277311 | R21: =EE_Selection!Q19 -> 55.73463524 | S21: =EE_Selection!R19 -> 66.34032407 | T21: =EE_Selection!S19 -> 76.14639499 | U21: =EE_Selection!T19 -> 84.80502646 | V21: =EE_Selection!U19 -> 91.94365182 | W21: =EE_Selection!V19 -> 97.33191323 | X21: =EE_Selection!W19 -> 101.3609058 | Y21: =EE_Selection!X19 -> 104.2882775 | Z21: =EE_Selection!Y19 -> 106.4158467 | AA21: =EE_Selection!Z19 -> 107.7809753 | AB21: =EE_Selection!AA19 -> 108.8267911 | AC21: =EE_Selection!AB19 -> 109.5285104 | AD21: =EE_Selection!AC19 -> 110.1546441 | AE21: =EE_Selection!AD19 -> 110.7811359 | AF21: =EE_Selection!AE19 -> 111.324653 | AG21: =EE_Selection!AF19 -> 111.8614015 | AH21: =EE_Selection!AG19 -> 112.3072706
C22: Incremental EE from Named Community Fund | D22: GWH | L22: =L21-L20 -> 0.1884565083 | M22: =M21-M20 -> 0.407149821 | N22: 0.6572489483 | O22: 0.9244301084 | P22: 1.200715986 | Q22: 1.488106876 | R22: 1.762255159 | S22: 2.001155271 | T22: 2.19061571 | U22: 2.326367504 | V22: 2.412789062 | W22: 2.456551343 | X22: 2.472469755 | Y22: 2.471654559 | Z22: 2.464527393 | AA22: 2.453362705 | AB22: 2.446595048 | AC22: 2.443271247 | AD22: 2.441193186 | AE22: 2.439990671 | AF22: 2.43933361 | AG22: 2.439056383 | AH22: 2.439207263
V23: =EE_Selection!U4/(EE_Selection!U4-V22) -> 1.007210378
C24: Low Income EE Investment | D24: Millions $ | L24: =EE_Selection!CE12 -> 7.971364163 | M24: =EE_Selection!CF12 -> 10.44400958 | N24: =EE_Selection!CG12 -> 12.76819239 | O24: =EE_Selection!CH12 -> 16.85062511 | P24: =EE_Selection!CI12 -> 20.73081272 | Q24: =EE_Selection!CJ12 -> 25.06535352 | R24: =EE_Selection!CK12 -> 27.90854468 | S24: =EE_Selection!CL12 -> 28.82900602 | T24: =EE_Selection!CM12 -> 27.97358413 | U24: =EE_Selection!CN12 -> 25.89326878 | V24: =EE_Selection!CO12 -> 23.35334146 | W24: =EE_Selection!CP12 -> 20.9410364 | X24: =EE_Selection!CQ12 -> 19.19826709 | Y24: =EE_Selection!CR12 -> 17.70762136 | Z24: =EE_Selection!CS12 -> 16.45085848 | AA24: =EE_Selection!CT12 -> 14.79484071 | AB24: =EE_Selection!CU12 -> 13.7543494 | AC24: =EE_Selection!CV12 -> 13.06965859 | AD24: =EE_Selection!CW12 -> 13.75505431 | AE24: =EE_Selection!CX12 -> 14.45568798 | AF24: =EE_Selection!CY12 -> 15.04063671 | AG24: =EE_Selection!CZ12 -> 15.66794963 | AH24: =EE_Selection!DA12 -> 16.31224216
C25: Low Income EE Investment (Cost Effectiveness Test) | D25: Millions $ | L25: 5.631639753 | M25: 7.455568492 | N25: 9.10481247 | O25: 12.59141198 | P25: 15.87365456 | Q25: 19.53703789 | R25: 22.06112646 | S25: 23.01996454 | T25: 22.45221046 | U25: 20.7079064 | V25: 18.35106639 | W25: 15.85434307 | X25: 13.69827651 | Y25: 11.79669611 | Z25: 10.04083849 | AA25: 7.923079559 | AB25: 6.362804181 | AC25: 5.145380614 | AD25: 5.327783076 | AE25: 5.505718457 | AF25: 5.557135903 | AG25: 5.639432059 | AH25: 5.700591318
C26: Incremental EE Investment | D26: Millions $ | L26: =L24-L25 -> 2.33972441 | M26: =M24-M25 -> 2.988441089 | N26: 3.663379923 | O26: 4.259213134 | P26: 4.857158164 | Q26: 5.52831563 | R26: 5.847418219 | S26: 5.809041475 | T26: 5.52137367 | U26: 5.185362382 | V26: 5.002275074 | W26: 5.086693334 | X26: 5.499990581 | Y26: 5.910925246 | Z26: 6.410019995 | AA26: 6.871761146 | AB26: 7.391545223 | AC26: 7.924277973 | AD26: 8.427271239 | AE26: 8.949969523 | AF26: 9.483500807 | AG26: 10.02851757 | AH26: 10.61165085
A27: 1 | B27: on/off | C27: NCF Investment | D27: Millions $ | L27: 2 | M27: =L27*1.03 -> 2.06 | N27: =M27*1.03 -> 2.1218 | O27: 2.185454 | P27: 2.25101762 | Q27: 2.318548149 | R27: 2.388104593 | S27: 2.459747731 | T27: 2.533540163 | U27: 2.609546368 | V27: 2.687832759 | W27: 2.768467741 | X27: 2.851521774 | Y27: 2.937067427 | Z27: 3.02517945 | AA27: 3.115934833 | AB27: 3.209412878 | AC27: 3.305695265 | AD27: 3.404866122 | AE27: 3.507012106 | AF27: 3.612222469 | AG27: 3.720589143 | AH27: 3.832206818
L28: =[1]!WB(L24,">=",(L25+L27)*$A$27) -> >= | M28: =[1]!WB(M24,">=",(M25+M27)*$A$27) -> >= | N28: >= | O28: >= | P28: >= | Q28: >= | R28: >= | S28: >= | T28: >= | U28: >= | V28: >= | W28: >= | X28: >= | Y28: >= | Z28: >= | AA28: >= | AB28: >= | AC28: >= | AD28: >= | AE28: >= | AF28: >= | AG28: >= | AH28: >=
C31: Low Income (EE NEI) | D31: Millions $ | L31: =EE_Selection!K$2726 -> 0.6681521124 | M31: =EE_Selection!L$2726 -> 1.501633015 | N31: =EE_Selection!M$2726 -> 2.509416335 | O31: =EE_Selection!N$2726 -> 3.655685989 | P31: =EE_Selection!O$2726 -> 4.935883952 | Q31: =EE_Selection!P$2726 -> 6.395814851 | R31: =EE_Selection!Q$2726 -> 7.947113315 | S31: =EE_Selection!R$2726 -> 9.490481442 | T31: =EE_Selection!S$2726 -> 10.91895165 | U31: =EE_Selection!T$2726 -> 12.16706945 | V31: =EE_Selection!U$2726 -> 13.20060272 | W31: =EE_Selection!V$2726 -> 14.01165039 | X31: =EE_Selection!W$2726 -> 14.65412699 | Y31: =EE_Selection!X$2726 -> 15.17595643 | Z31: =EE_Selection!Y$2726 -> 15.63160556 | AA31: =EE_Selection!Z$2726 -> 16.05148501 | AB31: =EE_Selection!AA$2726 -> 16.4603705 | AC31: =EE_Selection!AB$2726 -> 16.87360394 | AD31: =EE_Selection!AC$2726 -> 17.29952625 | AE31: =EE_Selection!AD$2726 -> 17.73868152 | AF31: =EE_Selection!AE$2726 -> 18.18450829 | AG31: =EE_Selection!AF$2726 -> 18.64141918 | AH31: =EE_Selection!AG$2726 -> 19.10650157
C32: Low Income EE Market Value | D32: Millions $ | L32: =EE_Mrkt_Value!BZ$4 -> 13.00787229 | M32: =EE_Mrkt_Value!CA$4 -> 13.03243241 | N32: =EE_Mrkt_Value!CB$4 -> 11.83855555 | O32: =EE_Mrkt_Value!CC$4 -> 11.83918998 | P32: =EE_Mrkt_Value!CD$4 -> 11.10133235 | Q32: =EE_Mrkt_Value!CE$4 -> 11.53044353 | R32: =EE_Mrkt_Value!CF$4 -> 12.03997253 | S32: =EE_Mrkt_Value!CG$4 -> 13.57176103 | T32: =EE_Mrkt_Value!CH$4 -> 13.85137359 | U32: =EE_Mrkt_Value!CI$4 -> 14.29222182 | V32: =EE_Mrkt_Value!CJ$4 -> 14.84328964 | W32: =EE_Mrkt_Value!CK$4 -> 15.11403825 | X32: =EE_Mrkt_Value!CL$4 -> 15.75086765 | Y32: =EE_Mrkt_Value!CM$4 -> 17.07706966 | Z32: =EE_Mrkt_Value!CN$4 -> 18.07640173 | AA32: =EE_Mrkt_Value!CO$4 -> 18.75353224 | AB32: =EE_Mrkt_Value!CP$4 -> 19.51602404 | AC32: =EE_Mrkt_Value!CQ$4 -> 21.02007241 | AD32: =EE_Mrkt_Value!CR$4 -> 22.25914993 | AE32: =EE_Mrkt_Value!CS$4 -> 23.06986272 | AF32: =EE_Mrkt_Value!CT$4 -> 24.57989825 | AG32: =EE_Mrkt_Value!CU$4 -> 27.61245792 | AH32: =EE_Mrkt_Value!CV$4 -> 28.56355412
C33: Low Income Capacity Value | D33: Millions $ | L33: =(EE_Selection!DC$12*1000*G_A!Q$20)/1000000 -> 0 | M33: =(EE_Selection!DD$12*1000*G_A!R$20)/1000000 -> 0 | N33: =(EE_Selection!DE$12*1000*G_A!S$20)/1000000 -> 0 | O33: =(EE_Selection!DF$12*1000*G_A!T$20)/1000000 -> 0 | P33: =(EE_Selection!DG$12*1000*G_A!U$20)/1000000 -> 0.05319455464 | Q33: =(EE_Selection!DH$12*1000*G_A!V$20)/1000000 -> 0.07165728138 | R33: =(EE_Selection!DI$12*1000*G_A!W$20)/1000000 -> 0.09408864133 | S33: =(EE_Selection!DJ$12*1000*G_A!X$20)/1000000 -> 0.1219649356 | T33: =(EE_Selection!DK$12*1000*G_A!Y$20)/1000000 -> 0.1546785944 | U33: =(EE_Selection!DL$12*1000*G_A!Z$20)/1000000 -> 0.193805594 | V33: =(EE_Selection!DM$12*1000*G_A!AA$20)/1000000 -> 0.2373973876 | W33: =(EE_Selection!DN$12*1000*G_A!AB$20)/1000000 -> 0.2855305789 | X33: =(EE_Selection!DO$12*1000*G_A!AC$20)/1000000 -> 0.3371273306 | Y33: =(EE_Selection!DP$12*1000*G_A!AD$20)/1000000 -> 0.391964871 | Z33: =(EE_Selection!DQ$12*1000*G_A!AE$20)/1000000 -> 0.4446995455 | AA33: =(EE_Selection!DR$12*1000*G_A!AF$20)/1000000 -> 0.4973903673 | AB33: =(EE_Selection!DS$12*1000*G_A!AG$20)/1000000 -> 0.5512716731 | AC33: =(EE_Selection!DT$12*1000*G_A!AH$20)/1000000 -> 0.6061428795 | AD33: =(EE_Selection!DU$12*1000*G_A!AI$20)/1000000 -> 0.6576953537 | AE33: =(EE_Selection!DV$12*1000*G_A!AJ$20)/1000000 -> 0.712249179 | AF33: =(EE_Selection!DW$12*1000*G_A!AK$20)/1000000 -> 0.7666182773 | AG33: =(EE_Selection!DX$12*1000*G_A!AL$20)/1000000 -> 0.8248502188 | AH33: =(EE_Selection!DY$12*1000*G_A!AM$20)/1000000 -> 0.8768560082
C34: T&D | D34: Millions $ | L34: =(EE_Selection!DC$12*1000*G_A!$Q$18)/1000000 -> 0.001929662455 | M34: =(EE_Selection!DD$12*1000*G_A!$Q$18)/1000000 -> 0.004848250444 | N34: =(EE_Selection!DE$12*1000*G_A!$Q$18)/1000000 -> 0.008716079281 | O34: =(EE_Selection!DF$12*1000*G_A!$Q$18)/1000000 -> 0.0125979435 | P34: =(EE_Selection!DG$12*1000*G_A!$Q$18)/1000000 -> 0.01703864372 | Q34: =(EE_Selection!DH$12*1000*G_A!$Q$18)/1000000 -> 0.02250235647 | R34: =(EE_Selection!DI$12*1000*G_A!$Q$18)/1000000 -> 0.02896707864 | S34: =(EE_Selection!DJ$12*1000*G_A!$Q$18)/1000000 -> 0.03681309402 | T34: =(EE_Selection!DK$12*1000*G_A!$Q$18)/1000000 -> 0.04577173496 | U34: =(EE_Selection!DL$12*1000*G_A!$Q$18)/1000000 -> 0.05622549584 | V34: =(EE_Selection!DM$12*1000*G_A!$Q$18)/1000000 -> 0.06752160385 | W34: =(EE_Selection!DN$12*1000*G_A!$Q$18)/1000000 -> 0.0796194674 | X34: =(EE_Selection!DO$12*1000*G_A!$Q$18)/1000000 -> 0.09216381261 | Y34: =(EE_Selection!DP$12*1000*G_A!$Q$18)/1000000 -> 0.105054206 | Z34: =(EE_Selection!DQ$12*1000*G_A!$Q$18)/1000000 -> 0.116851102 | AA34: =(EE_Selection!DR$12*1000*G_A!$Q$18)/1000000 -> 0.1281336877 | AB34: =(EE_Selection!DS$12*1000*G_A!$Q$18)/1000000 -> 0.1392295631 | AC34: =(EE_Selection!DT$12*1000*G_A!$Q$18)/1000000 -> 0.1500861508 | AD34: =(EE_Selection!DU$12*1000*G_A!$Q$18)/1000000 -> 0.1596578269 | AE34: =(EE_Selection!DV$12*1000*G_A!$Q$18)/1000000 -> 0.1695107422 | AF34: =(EE_Selection!DW$12*1000*G_A!$Q$18)/1000000 -> 0.1788727837 | AG34: =(EE_Selection!DX$12*1000*G_A!$Q$18)/1000000 -> 0.188686148 | AH34: =(EE_Selection!DY$12*1000*G_A!$Q$18)/1000000 -> 0.1966495853
C35: Likely Named Community Resource Utility Values
C36: Resource Value | D36: Millions $ | L36: =Aurora_Res_Results!AC$477/1000 -> 0 | M36: =Aurora_Res_Results!AD$477/1000 -> 0 | N36: =Aurora_Res_Results!AE$477/1000 -> 0 | O36: =Aurora_Res_Results!AF$477/1000 -> 0 | P36: =Aurora_Res_Results!AG$477/1000 -> 0 | Q36: =Aurora_Res_Results!AH$477/1000 -> 0 | R36: =Aurora_Res_Results!AI$477/1000 -> 0 | S36: =Aurora_Res_Results!AJ$477/1000 -> 0 | T36: =Aurora_Res_Results!AK$477/1000 -> 0 | U36: =Aurora_Res_Results!AL$477/1000 -> 0 | V36: =Aurora_Res_Results!AM$477/1000 -> 0 | W36: =Aurora_Res_Results!AN$477/1000 -> 0 | X36: =Aurora_Res_Results!AO$477/1000 -> 0 | Y36: =Aurora_Res_Results!AP$477/1000 -> 0 | Z36: =Aurora_Res_Results!AQ$477/1000 -> 0 | AA36: =Aurora_Res_Results!AR$477/1000 -> 0 | AB36: =Aurora_Res_Results!AS$477/1000 -> 0 | AC36: =Aurora_Res_Results!AT$477/1000 -> 0 | AD36: =Aurora_Res_Results!AU$477/1000 -> 0 | AE36: =Aurora_Res_Results!AV$477/1000 -> 0 | AF36: =Aurora_Res_Results!AW$477/1000 -> 0 | AG36: =Aurora_Res_Results!AX$477/1000 -> 0 | AH36: =Aurora_Res_Results!AY$477/1000 -> 0
C37: Capacity Value | D37: Millions $ | L37: =Selection!D$265 -> 0 | M37: =Selection!E$265 -> 0 | N37: =Selection!F$265 -> 0 | O37: =Selection!G$265 -> 0 | P37: =Selection!H$265 -> 0 | Q37: =Selection!I$265 -> 0 | R37: =Selection!J$265 -> 0 | S37: =Selection!K$265 -> 0 | T37: =Selection!L$265 -> 0 | U37: =Selection!M$265 -> 0 | V37: =Selection!N$265 -> 0 | W37: =Selection!O$265 -> 0 | X37: =Selection!P$265 -> 0 | Y37: =Selection!Q$265 -> 0 | Z37: =Selection!R$265 -> 0 | AA37: =Selection!S$265 -> 0 | AB37: =Selection!T$265 -> 0 | AC37: =Selection!U$265 -> 0 | AD37: =Selection!V$265 -> 0 | AE37: =Selection!W$265 -> 0 | AF37: =Selection!X$265 -> 0 | AG37: =Selection!Y$265 -> 0 | AH37: =Selection!Z$265 -> 0
C38: NEI | D38: Millions $ | L38: =NEI!F$84 -> 0 | M38: =NEI!G$84 -> 0 | N38: =NEI!H$84 -> 0 | O38: =NEI!I$84 -> 0 | P38: =NEI!J$84 -> 0 | Q38: =NEI!K$84 -> 0 | R38: =NEI!L$84 -> 0 | S38: =NEI!M$84 -> 0 | T38: =NEI!N$84 -> 0 | U38: =NEI!O$84 -> 0 | V38: =NEI!P$84 -> 0 | W38: =NEI!Q$84 -> 0 | X38: =NEI!R$84 -> 0 | Y38: =NEI!S$84 -> 0 | Z38: =NEI!T$84 -> 0 | AA38: =NEI!U$84 -> 0 | AB38: =NEI!V$84 -> 0 | AC38: =NEI!W$84 -> 0 | AD38: =NEI!X$84 -> 0 | AE38: =NEI!Y$84 -> 0 | AF38: =NEI!Z$84 -> 0 | AG38: =NEI!AA$84 -> 0 | AH38: =NEI!AB$84 -> 0
C39: Likely Named Community Demand Response
C40: Energy Value ($) | D40: Millions $ | L40: =DR!C$122/1000000 -> 0 | M40: =DR!D$122/1000000 -> 0 | N40: =DR!E$122/1000000 -> 0.01319260642 | O40: =DR!F$122/1000000 -> 0.04289187826 | P40: =DR!G$122/1000000 -> 0.0969778179 | Q40: =DR!H$122/1000000 -> 0.1194742735 | R40: =DR!I$122/1000000 -> 0.1368888209 | S40: =DR!J$122/1000000 -> 0.1629836242 | T40: =DR!K$122/1000000 -> 0.1533232108 | U40: =DR!L$122/1000000 -> 0.1463120357 | V40: =DR!M$122/1000000 -> 0.155453209 | W40: =DR!N$122/1000000 -> 0.1557205986 | X40: =DR!O$122/1000000 -> 0.171135565 | Y40: =DR!P$122/1000000 -> 0.1770074936 | Z40: =DR!Q$122/1000000 -> 0.1806867596 | AA40: =DR!R$122/1000000 -> 0.194464348 | AB40: =DR!S$122/1000000 -> 0.1663851398 | AC40: =DR!T$122/1000000 -> 0.1800481208 | AD40: =DR!U$122/1000000 -> 0.1828647113 | AE40: =DR!V$122/1000000 -> 0.1969055843 | AF40: =DR!W$122/1000000 -> 0.2007705306 | AG40: =DR!X$122/1000000 -> 0.2284249451 | AH40: =DR!Y$122/1000000 -> 0.1823485247
C41: Capacity Value ($) | D41: Millions $ | L41: =DR!C$126/1000000 -> 0 | M41: =DR!D$126/1000000 -> 0 | N41: =DR!E$126/1000000 -> 0 | O41: =DR!F$126/1000000 -> 0 | P41: =DR!G$126/1000000 -> 0.1442003928 | Q41: =DR!H$126/1000000 -> 0.1904126664 | R41: =DR!I$126/1000000 -> 0.2174122428 | S41: =DR!J$126/1000000 -> 0.223581053 | T41: =DR!K$126/1000000 -> 0.2301109918 | U41: =DR!L$126/1000000 -> 0.2374055792 | V41: =DR!M$126/1000000 -> 0.2450398592 | W41: =DR!N$126/1000000 -> 0.2530398726 | X41: =DR!O$126/1000000 -> 0.2614348835 | Y41: =DR!P$126/1000000 -> 0.270257948 | Z41: =DR!Q$126/1000000 -> 0.2795465902 | AA41: =DR!R$126/1000000 -> 0.2893435944 | AB41: =DR!S$126/1000000 -> 0.2996979151 | AC41: =DR!T$126/1000000 -> 0.3106656927 | AD41: =DR!U$126/1000000 -> 0.3223113446 | AE41: =DR!V$126/1000000 -> 0.3347086689 | AF41: =DR!W$126/1000000 -> 0.3479418685 | AG41: =DR!X$126/1000000 -> 0.3621063572 | AH41: =DR!Y$126/1000000 -> 0.3773091806
C42: Investment ($) | D42: Millions $ | L42: =DR!C$127 -> 0 | M42: =DR!D$127 -> 0 | N42: =DR!E$127 -> 2.717541632 | O42: =DR!F$127 -> 0 | P42: =DR!G$127 -> 0 | Q42: =DR!H$127 -> 0 | R42: =DR!I$127 -> 0 | S42: =DR!J$127 -> 0 | T42: =DR!K$127 -> 0 | U42: =DR!L$127 -> 0 | V42: =DR!M$127 -> 0 | W42: =DR!N$127 -> 0 | X42: =DR!O$127 -> 0 | Y42: =DR!P$127 -> 0 | Z42: =DR!Q$127 -> 0 | AA42: =DR!R$127 -> 0 | AB42: =DR!S$127 -> 0 | AC42: =DR!T$127 -> 0 | AD42: =DR!U$127 -> 0 | AE42: =DR!V$127 -> 0 | AF42: =DR!W$127 -> 0 | AG42: =DR!X$127 -> 0 | AH42: =DR!Y$127 -> 0
A44: 6 | B44: NC Investments/Benefits | C44: Annual Investment | D44: Millions $ | L44: =((New_Resource_Annual_Cost!D$9+(L24*1000000)+L42))/1000000 -> 7.971364163 | M44: =((New_Resource_Annual_Cost!E$9+(M24*1000000)+M42))/1000000 -> 10.60479626 | N44: =((New_Resource_Annual_Cost!F$9+(N24*1000000)+N42))/1000000 -> 12.93408194 | O44: =((New_Resource_Annual_Cost!G$9+(O24*1000000)+O42))/1000000 -> 17.02041409 | P44: =((New_Resource_Annual_Cost!H$9+(P24*1000000)+P42))/1000000 -> 20.90439365 | Q44: =((New_Resource_Annual_Cost!I$9+(Q24*1000000)+Q42))/1000000 -> 25.24281109 | R44: =((New_Resource_Annual_Cost!J$9+(R24*1000000)+R42))/1000000 -> 28.08996547 | S44: =((New_Resource_Annual_Cost!K$9+(S24*1000000)+S42))/1000000 -> 29.01441806 | T44: =((New_Resource_Annual_Cost!L$9+(T24*1000000)+T42))/1000000 -> 28.16307524 | U44: =((New_Resource_Annual_Cost!M$9+(U24*1000000)+U42))/1000000 -> 26.0869287 | V44: =((New_Resource_Annual_Cost!N$9+(V24*1000000)+V42))/1000000 -> 23.55126189 | W44: =((New_Resource_Annual_Cost!O$9+(W24*1000000)+W42))/1000000 -> 21.14331109 | X44: =((New_Resource_Annual_Cost!P$9+(X24*1000000)+X42))/1000000 -> 19.40499182 | Y44: =((New_Resource_Annual_Cost!Q$9+(Y24*1000000)+Y42))/1000000 -> 17.91889403 | Z44: =((New_Resource_Annual_Cost!R$9+(Z24*1000000)+Z42))/1000000 -> 16.66677915 | AA44: =((New_Resource_Annual_Cost!S$9+(AA24*1000000)+AA42))/1000000 -> 15.01551163 | AB44: =((New_Resource_Annual_Cost!T$9+(AB24*1000000)+AB42))/1000000 -> 13.97987509 | AC44: =((New_Resource_Annual_Cost!U$9+(AC24*1000000)+AC42))/1000000 -> 13.30014584 | AD44: =((New_Resource_Annual_Cost!V$9+(AD24*1000000)+AD42))/1000000 -> 13.99061228 | AE44: =((New_Resource_Annual_Cost!W$9+(AE24*1000000)+AE42))/1000000 -> 14.69642822 | AF44: =((New_Resource_Annual_Cost!X$9+(AF24*1000000)+AF42))/1000000 -> 15.28667324 | AG44: =((New_Resource_Annual_Cost!Y$9+(AG24*1000000)+AG42))/1000000 -> 15.91939896 | AH44: =((New_Resource_Annual_Cost!Z$9+(AH24*1000000)+AH42))/1000000 -> 16.56922338
A45: 6 | B45: NC Investments/Benefits | C45: Annual Utility Benefits | D45: Millions $ | L45: =SUM(L32:L34,L40:L41,L36:L37) -> 13.00980195 | M45: =SUM(M32:M34,M40:M41,M36:M37) -> 13.03728066 | N45: 11.86046424 | O45: 11.8946798 | P45: 11.41274376 | Q45: 11.93449011 | R45: 12.51732931 | S45: 14.11710374 | T45: 14.43525812 | U45: 14.92597052 | V45: 15.5487017 | W45: 15.88794877 | X45: 16.61272924 | Y45: 18.02135418 | Z45: 19.09818573 | AA45: 19.86286424 | AB45: 20.67260833 | AC45: 22.26701525 | AD45: 23.58167916 | AE45: 24.4832369 | AF45: 26.07410171 | AG45: 29.21652559 | AH45: 30.19671742
A46: 6 | B46: NC Investments/Benefits | C46: Annual NEI Benefits | D46: Millions $ | L46: =L38+L31 -> 0.6681521124 | M46: =M38+M31 -> 1.501633015 | N46: 2.509416335 | O46: 3.655685989 | P46: 4.935883952 | Q46: 6.395814851 | R46: 7.947113315 | S46: 9.490481442 | T46: 10.91895165 | U46: 12.16706945 | V46: 13.20060272 | W46: 14.01165039 | X46: 14.65412699 | Y46: 15.17595643 | Z46: 15.63160556 | AA46: 16.05148501 | AB46: 16.4603705 | AC46: 16.87360394 | AD46: 17.29952625 | AE46: 17.73868152 | AF46: 18.18450829 | AG46: 18.64141918 | AH46: 19.10650157
A48: 7 | B48: Implied PRM | C48: Winter | D48: Percent | E48: 0.2835649547 | F48: 0.3277810827 | G48: 0.4495176849 | H48: 0.4163545568 | I48: 0.4618722877 | J48: 0.31 | K48: 0.116 | L48: =(SUM(System_LR!$C$19:$C$40,System_LR!$C$50:$C$99)-(System_LR!$C$13-SUM(System_LR!$C$100:$C$115)))/(System_LR!$C$13-SUM(System_LR!$C$100:$C$115)) -> 0.3358355118 | M48: =(SUM(System_LR!$O$19:$O$40,System_LR!$O$50:$O$99)-(System_LR!$O$13-SUM(System_LR!$O$100:$O$115)))/(System_LR!$O$13-SUM(System_LR!$O$100:$O$115)) -> 0.3861362499 | N48: =(SUM(System_LR!$AA$19:$AA$40,System_LR!$AA$50:$AA$99)-(System_LR!$AA$13-SUM(System_LR!$AA$100:$AA$115)))/(System_LR!$AA$13-SUM(System_LR!$AA$100:$AA$115)) -> 0.3801865663 | O48: =(SUM(System_LR!$AM$19:$AM$40,System_LR!$AM$50:$AM$99)-(System_LR!$AM$13-SUM(System_LR!$AM$100:$AM$115)))/(System_LR!$AM$13-SUM(System_LR!$AM$100:$AM$115)) -> 0.3388561952 | P48: =(SUM(System_LR!$AY$19:$AY$40,System_LR!$AY$50:$AY$99)-(System_LR!$AY$13-SUM(System_LR!$AY$100:$AY$115)))/(System_LR!$AY$13-SUM(System_LR!$AY$100:$AY$115)) -> 0.3318537898 | Q48: =(SUM(System_LR!$BK$19:$BK$40,System_LR!$BK$50:$BK$99)-(System_LR!$BK$13-SUM(System_LR!$BK$100:$BK$115)))/(System_LR!$BK$13-SUM(System_LR!$BK$100:$BK$115)) -> 0.3263109526 | R48: =(SUM(System_LR!$BW$19:$BW$40,System_LR!$BW$50:$BW$99)-(System_LR!$BW$13-SUM(System_LR!$BW$100:$BW$115)))/(System_LR!$BW$13-SUM(System_LR!$BW$100:$BW$115)) -> 0.3059070324 | S48: =(SUM(System_LR!$CI$19:$CI$40,System_LR!$CI$50:$CI$99)-(System_LR!$CI$13-SUM(System_LR!$CI$100:$CI$115)))/(System_LR!$CI$13-SUM(System_LR!$CI$100:$CI$115)) -> 0.3048998439 | T48: =(SUM(System_LR!$CU$19:$CU$40,System_LR!$CU$50:$CU$99)-(System_LR!$CU$13-SUM(System_LR!$CU$100:$CU$115)))/(System_LR!$CU$13-SUM(System_LR!$CU$100:$CU$115)) -> 0.2906166192 | U48: =(SUM(System_LR!$DG$19:$DG$40,System_LR!$DG$50:$DG$99)-(System_LR!$DG$13-SUM(System_LR!$DG$100:$DG$115)))/(System_LR!$DG$13-SUM(System_LR!$DG$100:$DG$115)) -> 0.3053939368 | V48: =(SUM(System_LR!$DS$19:$DS$40,System_LR!$DS$50:$DS$99)-(System_LR!$DS$13-SUM(System_LR!$DS$100:$DS$115)))/(System_LR!$DS$13-SUM(System_LR!$DS$100:$DS$115)) -> 0.2949019432 | W48: =(SUM(System_LR!$EE$19:$EE$40,System_LR!$EE$50:$EE$99)-(System_LR!$EE$13-SUM(System_LR!$EE$100:$EE$115)))/(System_LR!$EE$13-SUM(System_LR!$EE$100:$EE$115)) -> 0.2434582092 | X48: =(SUM(System_LR!$EQ$19:$EQ$40,System_LR!$EQ$50:$EQ$99)-(System_LR!$EQ$13-SUM(System_LR!$EQ$100:$EQ$115)))/(System_LR!$EQ$13-SUM(System_LR!$EQ$100:$EQ$115)) -> 0.2328398683 | Y48: =(SUM(System_LR!$FC$19:$FC$40,System_LR!$FC$50:$FC$99)-(System_LR!$FC$13-SUM(System_LR!$FC$100:$FC$115)))/(System_LR!$FC$13-SUM(System_LR!$FC$100:$FC$115)) -> 0.2433232764 | Z48: =(SUM(System_LR!$FO$19:$FO$40,System_LR!$FO$50:$FO$99)-(System_LR!$FO$13-SUM(System_LR!$FO$100:$FO$115)))/(System_LR!$FO$13-SUM(System_LR!$FO$100:$FO$115)) -> 0.2267407849 | AA48: =(SUM(System_LR!$GA$19:$GA$40,System_LR!$GA$50:$GA$99)-(System_LR!$GA$13-SUM(System_LR!$GA$100:$GA$115)))/(System_LR!$GA$13-SUM(System_LR!$GA$100:$GA$115)) -> 0.2558440161 | AB48: =(SUM(System_LR!$GM$19:$GM$40,System_LR!$GM$50:$GM$99)-(System_LR!$GM$13-SUM(System_LR!$GM$100:$GM$115)))/(System_LR!$GM$13-SUM(System_LR!$GM$100:$GM$115)) -> 0.2379660215 | AC48: =(SUM(System_LR!$GY$19:$GY$40,System_LR!$GY$50:$GY$99)-(System_LR!$GY$13-SUM(System_LR!$GY$100:$GY$115)))/(System_LR!$GY$13-SUM(System_LR!$GY$100:$GY$115)) -> 0.263486504 | AD48: =(SUM(System_LR!$HK$19:$HK$40,System_LR!$HK$50:$HK$99)-(System_LR!$HK$13-SUM(System_LR!$HK$100:$HK$115)))/(System_LR!$HK$13-SUM(System_LR!$HK$100:$HK$115)) -> 0.2394013017 | AE48: =(SUM(System_LR!$HW$19:$HW$40,System_LR!$HW$50:$HW$99)-(System_LR!$HW$13-SUM(System_LR!$HW$100:$HW$115)))/(System_LR!$HW$13-SUM(System_LR!$HW$100:$HW$115)) -> 0.2263153554 | AF48: =(SUM(System_LR!$II$19:$II$40,System_LR!$II$50:$II$99)-(System_LR!$II$13-SUM(System_LR!$II$100:$II$115)))/(System_LR!$II$13-SUM(System_LR!$II$100:$II$115)) -> 0.2285095994 | AG48: =(SUM(System_LR!$IU$19:$IU$40,System_LR!$IU$50:$IU$99)-(System_LR!$IU$13-SUM(System_LR!$IU$100:$IU$115)))/(System_LR!$IU$13-SUM(System_LR!$IU$100:$IU$115)) -> 0.2307658306 | AH48: =(SUM(System_LR!$JG$19:$JG$40,System_LR!$JG$50:$JG$99)-(System_LR!$JG$13-SUM(System_LR!$JG$100:$JG$115)))/(System_LR!$JG$13-SUM(System_LR!$JG$100:$JG$115)) -> 0.2242906563
A49: 7 | B49: Implied PRM | C49: Summer | D49: Percent | E49: 0.1751732829 | F49: 0.2337092732 | G49: 0.1730769231 | H49: 0.2699275362 | I49: 0.2504357931 | J49: 0.1 | K49: 0.15 | L49: =(SUM(System_LR!$J$19:$J$40,System_LR!$J$50:$J$99)-(System_LR!$J$13-SUM(System_LR!$J$100:$J$115)))/(System_LR!$J$13-SUM(System_LR!$J$100:$J$115)) -> 0.2603327661 | M49: =(SUM(System_LR!$V$19:$V$40,System_LR!$V$50:$V$99)-(System_LR!$V$13-SUM(System_LR!$V$100:$V$115)))/(System_LR!$V$13-SUM(System_LR!$V$100:$V$115)) -> 0.3031064015 | N49: =(SUM(System_LR!$AH$19:$AH$40,System_LR!$AH$50:$AH$99)-(System_LR!$AH$13-SUM(System_LR!$AH$100:$AH$115)))/(System_LR!$AH$13-SUM(System_LR!$AH$100:$AH$115)) -> 0.3381782602 | O49: =(SUM(System_LR!$AT$19:$AT$40,System_LR!$AT$50:$AT$99)-(System_LR!$AT$13-SUM(System_LR!$AT$100:$AT$115)))/(System_LR!$AT$13-SUM(System_LR!$AT$100:$AT$115)) -> 0.2842450378 | P49: =(SUM(System_LR!$BF$19:$BF$40,System_LR!$BF$50:$BF$99)-(System_LR!$BF$13-SUM(System_LR!$BF$100:$BF$115)))/(System_LR!$BF$13-SUM(System_LR!$BF$100:$BF$115)) -> 0.2876267037 | Q49: =(SUM(System_LR!$BR$19:$BR$40,System_LR!$BR$50:$BR$99)-(System_LR!$BR$13-SUM(System_LR!$BR$100:$BR$115)))/(System_LR!$BR$13-SUM(System_LR!$BR$100:$BR$115)) -> 0.2821659602 | R49: =(SUM(System_LR!$CD$19:$CD$40,System_LR!$CD$50:$CD$99)-(System_LR!$CD$13-SUM(System_LR!$CD$100:$CD$115)))/(System_LR!$CD$13-SUM(System_LR!$CD$100:$CD$115)) -> 0.2609483106 | S49: =(SUM(System_LR!$CP$19:$CP$40,System_LR!$CP$50:$CP$99)-(System_LR!$CP$13-SUM(System_LR!$CP$100:$CP$115)))/(System_LR!$CP$13-SUM(System_LR!$CP$100:$CP$115)) -> 0.2663635206 | T49: =(SUM(System_LR!$DB$19:$DB$40,System_LR!$DB$50:$DB$99)-(System_LR!$DB$13-SUM(System_LR!$DB$100:$DB$115)))/(System_LR!$DB$13-SUM(System_LR!$DB$100:$DB$115)) -> 0.2505902132 | U49: =(SUM(System_LR!$DN$19:$DN$40,System_LR!$DN$50:$DN$99)-(System_LR!$DN$13-SUM(System_LR!$DN$100:$DN$115)))/(System_LR!$DN$13-SUM(System_LR!$DN$100:$DN$115)) -> 0.2478477511 | V49: =(SUM(System_LR!$DZ$19:$DZ$40,System_LR!$DZ$50:$DZ$99)-(System_LR!$DZ$13-SUM(System_LR!$DZ$100:$DZ$115)))/(System_LR!$DZ$13-SUM(System_LR!$DZ$100:$DZ$115)) -> 0.229837658 | W49: =(SUM(System_LR!$EL$19:$EL$40,System_LR!$EL$50:$EL$99)-(System_LR!$EL$13-SUM(System_LR!$EL$100:$EL$115)))/(System_LR!$EL$13-SUM(System_LR!$EL$100:$EL$115)) -> 0.1813097977 | X49: =(SUM(System_LR!$EX$19:$EX$40,System_LR!$EX$50:$EX$99)-(System_LR!$EX$13-SUM(System_LR!$EX$100:$EX$115)))/(System_LR!$EX$13-SUM(System_LR!$EX$100:$EX$115)) -> 0.1699954628 | Y49: =(SUM(System_LR!$FJ$19:$FJ$40,System_LR!$FJ$50:$FJ$99)-(System_LR!$FJ$13-SUM(System_LR!$FJ$100:$FJ$115)))/(System_LR!$FJ$13-SUM(System_LR!$FJ$100:$FJ$115)) -> 0.1863147514 | Z49: =(SUM(System_LR!$FW$19:$FW$40,System_LR!$FW$50:$FW$99)-(System_LR!$FW$13-SUM(System_LR!$FW$100:$FW$115)))/(System_LR!$FW$13-SUM(System_LR!$FW$100:$FW$115)) -> 0.1781542493 | AA49: =(SUM(System_LR!$GH$19:$GH$40,System_LR!$GH$50:$GH$99)-(System_LR!$GH$13-SUM(System_LR!$GH$100:$GH$115)))/(System_LR!$GH$13-SUM(System_LR!$GH$100:$GH$115)) -> 0.1894026763 | AB49: =(SUM(System_LR!$GT$19:$GT$40,System_LR!$GT$50:$GT$99)-(System_LR!$GT$13-SUM(System_LR!$GT$100:$GT$115)))/(System_LR!$GT$13-SUM(System_LR!$GT$100:$GT$115)) -> 0.1696667169 | AC49: =(SUM(System_LR!HF$19:$HF$40,System_LR!$HF$50:$HF$99)-(System_LR!$HF$13-SUM(System_LR!$HF$100:$HF$115)))/(System_LR!$HF$13-SUM(System_LR!$HF$100:$HF$115)) -> 0.191645471 | AD49: =(SUM(System_LR!$HR$19:$HR$40,System_LR!$HR$50:$HR$99)-(System_LR!$HR$13-SUM(System_LR!$HR$100:$HR$115)))/(System_LR!$HR$13-SUM(System_LR!$HR$100:$HR$115)) -> 0.1724141142 | AE49: =(SUM(System_LR!$ID$19:$ID$40,System_LR!$ID$50:$ID$99)-(System_LR!$ID$13-SUM(System_LR!$ID$100:$ID$115)))/(System_LR!$ID$13-SUM(System_LR!$ID$100:$ID$115)) -> 0.157660611 | AF49: =(SUM(System_LR!$IP$19:$IP$40,System_LR!$IP$50:$IP$99)-(System_LR!$IP$13-SUM(System_LR!$IP$100:$IP$115)))/(System_LR!$IP$13-SUM(System_LR!$IP$100:$IP$115)) -> 0.1576446295 | AG49: =(SUM(System_LR!$JB$19:$JB$40,System_LR!$JB$50:$JB$99)-(System_LR!$JB$13-SUM(System_LR!$JB$100:$JB$115)))/(System_LR!$JB$13-SUM(System_LR!$JB$100:$JB$115)) -> 0.1607340229 | AH49: =(SUM(System_LR!$JN$19:$JN$40,System_LR!$JN$50:$JN$99)-(System_LR!$JN$13-SUM(System_LR!$JN$100:$JN$115)))/(System_LR!$JN$13-SUM(System_LR!$JN$100:$JN$115)) -> 0.1747821649
A51: 8 | B51: Gen vs Load | C51: Washington & Connected Generation | D51: Percent | E51: 0.7779313029 | F51: 0.7884532261 | G51: 0.8368033031 | H51: 0.8012220055 | I51: 0.7822590958 | J51: 0.826 | L51: =Res_MWh!JU$75 -> 0.9011466688 | M51: =Res_MWh!JV$75 -> 0.9177819527 | N51: =Res_MWh!JW$75 -> 0.9444241062 | O51: =Res_MWh!JX$75 -> 1.002388627 | P51: =Res_MWh!JY$75 -> 1.003824634 | Q51: =Res_MWh!JZ$75 -> 0.9718301526 | R51: =Res_MWh!KA$75 -> 0.9550343788 | S51: =Res_MWh!KB$75 -> 1.005977502 | T51: =Res_MWh!KC$75 -> 0.9969226323 | U51: =Res_MWh!KD$75 -> 0.9822522228 | V51: =Res_MWh!KE$75 -> 0.9643834702 | W51: =Res_MWh!KF$75 -> 0.9078736759 | X51: =Res_MWh!KG$75 -> 0.8992565234 | Y51: =Res_MWh!KH$75 -> 0.9054693923 | Z51: =Res_MWh!KI$75 -> 0.8920326235 | AA51: =Res_MWh!KJ$75 -> 0.8839309958 | AB51: =Res_MWh!KK$75 -> 0.8681250607 | AC51: =Res_MWh!KL$75 -> 0.8744221519 | AD51: =Res_MWh!KM$75 -> 0.7845887941 | AE51: =Res_MWh!KN$75 -> 0.7271854005 | AF51: =Res_MWh!KO$75 -> 0.6564387541 | AG51: =Res_MWh!KP$75 -> 0.6293040554 | AH51: =Res_MWh!KQ$75 -> 0.5020091636
A53: 9a | B53: WA In-State Emissions | C53: SO2 | D53: Metric Tonnes | E53: 4.071924087 | F53: 1.459642251 | G53: 1.661862259 | H53: 1.600498807 | I53: 1.4 | J53: 0.1937321 | L53: =SUM(Air_Emissions!AY$72:AY$74,Air_Emissions!AY$77)+(Air_Emissions!AY$119) -> 0.1153108291 | M53: =SUM(Air_Emissions!AZ$72:AZ$74,Air_Emissions!AZ$77)+(Air_Emissions!AZ$119) -> 0.1323234481 | N53: =SUM(Air_Emissions!BA$72:BA$74,Air_Emissions!BA$77)+(Air_Emissions!BA$119) -> 0.137110454 | O53: =SUM(Air_Emissions!BB$72:BB$74,Air_Emissions!BB$77)+(Air_Emissions!BB$119) -> 0.1419674591 | P53: =SUM(Air_Emissions!BC$72:BC$74,Air_Emissions!BC$77)+(Air_Emissions!BC$119) -> 0.1347165706 | Q53: =SUM(Air_Emissions!BD$72:BD$74,Air_Emissions!BD$77)+(Air_Emissions!BD$119) -> 0.1405747252 | R53: =SUM(Air_Emissions!BE$72:BE$74,Air_Emissions!BE$77)+(Air_Emissions!BE$119) -> 0.1319871805 | S53: =SUM(Air_Emissions!BF$72:BF$74,Air_Emissions!BF$77)+(Air_Emissions!BF$119) -> 0.1682287653 | T53: =SUM(Air_Emissions!BG$72:BG$74,Air_Emissions!BG$77)+(Air_Emissions!BG$119) -> 0.1543652694 | U53: =SUM(Air_Emissions!BH$72:BH$74,Air_Emissions!BH$77)+(Air_Emissions!BH$119) -> 0.1418008101 | V53: =SUM(Air_Emissions!BI$72:BI$74,Air_Emissions!BI$77)+(Air_Emissions!BI$119) -> 0.1425253117 | W53: =SUM(Air_Emissions!BJ$72:BJ$74,Air_Emissions!BJ$77)+(Air_Emissions!BJ$119) -> 0.1416526193 | X53: =SUM(Air_Emissions!BK$72:BK$74,Air_Emissions!BK$77)+(Air_Emissions!BK$119) -> 0.1469313003 | Y53: =SUM(Air_Emissions!BL$72:BL$74,Air_Emissions!BL$77)+(Air_Emissions!BL$119) -> 0.12720714 | Z53: =SUM(Air_Emissions!BM$72:BM$74,Air_Emissions!BM$77)+(Air_Emissions!BM$119) -> 0.1281237097 | AA53: =SUM(Air_Emissions!BN$72:BN$74,Air_Emissions!BN$77)+(Air_Emissions!BN$119) -> 0.1261015132 | AB53: =SUM(Air_Emissions!BO$72:BO$74,Air_Emissions!BO$77)+(Air_Emissions!BO$119) -> 0.126872597 | AC53: =SUM(Air_Emissions!BP$72:BP$74,Air_Emissions!BP$77)+(Air_Emissions!BP$119) -> 0.1324532842 | AD53: =SUM(Air_Emissions!BQ$72:BQ$74,Air_Emissions!BQ$77)+(Air_Emissions!BQ$119) -> 0 | AE53: =SUM(Air_Emissions!BR$72:BR$74,Air_Emissions!BR$77)+(Air_Emissions!BR$119) -> 0 | AF53: =SUM(Air_Emissions!BS$72:BS$74,Air_Emissions!BS$77)+(Air_Emissions!BS$119) -> 0 | AG53: =SUM(Air_Emissions!BT$72:BT$74,Air_Emissions!BT$77)+(Air_Emissions!BT$119) -> 0 | AH53: =SUM(Air_Emissions!BU$72:BU$74,Air_Emissions!BU$77)+(Air_Emissions!BU$119) -> 0
A54: 9b | B54: WA In-State Emissions | C54: HG | D54: Metric Tonnes | E54: 0.007386968711 | F54: 0.006860890544 | G54: 0.007549319523 | H54: 0.006822701466 | I54: 0.0066 | J54: 0.007192 | L54: =SUM(Air_Emissions!AY$136:AY$138,Air_Emissions!AY$141,Air_Emissions!AY$183) -> 0.007127050317 | M54: =SUM(Air_Emissions!AZ$136:AZ$138,Air_Emissions!AZ$141,Air_Emissions!AZ$183) -> 0.007223254469 | N54: =SUM(Air_Emissions!BA$136:BA$138,Air_Emissions!BA$141,Air_Emissions!BA$183) -> 0.006731401185 | O54: =SUM(Air_Emissions!BB$136:BB$138,Air_Emissions!BB$141,Air_Emissions!BB$183) -> 0.008420906781 | P54: =SUM(Air_Emissions!BC$136:BC$138,Air_Emissions!BC$141,Air_Emissions!BC$183) -> 0.007514586237 | Q54: =SUM(Air_Emissions!BD$136:BD$138,Air_Emissions!BD$141,Air_Emissions!BD$183) -> 0.007038190341 | R54: =SUM(Air_Emissions!BE$136:BE$138,Air_Emissions!BE$141,Air_Emissions!BE$183) -> 0.006732046274 | S54: =SUM(Air_Emissions!BF$136:BF$138,Air_Emissions!BF$141,Air_Emissions!BF$183) -> 0.007515154505 | T54: =SUM(Air_Emissions!BG$136:BG$138,Air_Emissions!BG$141,Air_Emissions!BG$183) -> 0.007013763109 | U54: =SUM(Air_Emissions!BH$136:BH$138,Air_Emissions!BH$141,Air_Emissions!BH$183) -> 0.006649111619 | V54: =SUM(Air_Emissions!BI$136:BI$138,Air_Emissions!BI$141,Air_Emissions!BI$183) -> 0.006599274404 | W54: =SUM(Air_Emissions!BJ$136:BJ$138,Air_Emissions!BJ$141,Air_Emissions!BJ$183) -> 0.006401662764 | X54: =SUM(Air_Emissions!BK$136:BK$138,Air_Emissions!BK$141,Air_Emissions!BK$183) -> 0.00646439937 | Y54: =SUM(Air_Emissions!BL$136:BL$138,Air_Emissions!BL$141,Air_Emissions!BL$183) -> 0.006349678021 | Z54: =SUM(Air_Emissions!BM$136:BM$138,Air_Emissions!BM$141,Air_Emissions!BM$183) -> 0.006349100451 | AA54: =SUM(Air_Emissions!BN$136:BN$138,Air_Emissions!BN$141,Air_Emissions!BN$183) -> 0.005984302685 | AB54: =SUM(Air_Emissions!BO$136:BO$138,Air_Emissions!BO$141,Air_Emissions!BO$183) -> 0.005936705416 | AC54: =SUM(Air_Emissions!BP$136:BP$138,Air_Emissions!BP$141,Air_Emissions!BP$183) -> 0.005908165881 | AD54: =SUM(Air_Emissions!BQ$136:BQ$138,Air_Emissions!BQ$141,Air_Emissions!BQ$183) -> 0.005804887089 | AE54: =SUM(Air_Emissions!BR$136:BR$138,Air_Emissions!BR$141,Air_Emissions!BR$183) -> 0.005900114361 | AF54: =SUM(Air_Emissions!BS$136:BS$138,Air_Emissions!BS$141,Air_Emissions!BS$183) -> 0.005838053981 | AG54: =SUM(Air_Emissions!BT$136:BT$138,Air_Emissions!BT$141,Air_Emissions!BT$183) -> 0.006170472268 | AH54: =SUM(Air_Emissions!BU$136:BU$138,Air_Emissions!BU$141,Air_Emissions!BU$183) -> 0.005967986386
A55: 9c | B55: WA In-State Emissions | C55: NOX | D55: Metric Tonnes | E55: 425.5538832 | F55: 379.2364612 | G55: 423.252971 | H55: 396.2186406 | I55: 365.1 | J55: 417.910368 | L55: =SUM(Air_Emissions!AY$8:AY$10,Air_Emissions!AY$10)+Air_Emissions!AY$50*0.5+Air_Emissions!AY$55 -> 409.8488942 | M55: =SUM(Air_Emissions!AZ$8:AZ$10,Air_Emissions!AZ$10)+Air_Emissions!AZ$50*0.5+Air_Emissions!AZ$55 -> 416.867846 | N55: =SUM(Air_Emissions!BA$8:BA$10,Air_Emissions!BA$10)+Air_Emissions!BA$50*0.5+Air_Emissions!BA$55 -> 389.7467227 | O55: =SUM(Air_Emissions!BB$8:BB$10,Air_Emissions!BB$10)+Air_Emissions!BB$50*0.5+Air_Emissions!BB$55 -> 343.3472355 | P55: =SUM(Air_Emissions!BC$8:BC$10,Air_Emissions!BC$10)+Air_Emissions!BC$50*0.5+Air_Emissions!BC$55 -> 307.0546633 | Q55: =SUM(Air_Emissions!BD$8:BD$10,Air_Emissions!BD$10)+Air_Emissions!BD$50*0.5+Air_Emissions!BD$55 -> 288.9517573 | R55: =SUM(Air_Emissions!BE$8:BE$10,Air_Emissions!BE$10)+Air_Emissions!BE$50*0.5+Air_Emissions!BE$55 -> 276.0834228 | S55: =SUM(Air_Emissions!BF$8:BF$10,Air_Emissions!BF$10)+Air_Emissions!BF$50*0.5+Air_Emissions!BF$55 -> 310.6236616 | T55: =SUM(Air_Emissions!BG$8:BG$10,Air_Emissions!BG$10)+Air_Emissions!BG$50*0.5+Air_Emissions!BG$55 -> 289.4801684 | U55: =SUM(Air_Emissions!BH$8:BH$10,Air_Emissions!BH$10)+Air_Emissions!BH$50*0.5+Air_Emissions!BH$55 -> 273.9731637 | V55: =SUM(Air_Emissions!BI$8:BI$10,Air_Emissions!BI$10)+Air_Emissions!BI$50*0.5+Air_Emissions!BI$55 -> 272.0651925 | W55: =SUM(Air_Emissions!BJ$8:BJ$10,Air_Emissions!BJ$10)+Air_Emissions!BJ$50*0.5+Air_Emissions!BJ$55 -> 264.257756 | X55: =SUM(Air_Emissions!BK$8:BK$10,Air_Emissions!BK$10)+Air_Emissions!BK$50*0.5+Air_Emissions!BK$55 -> 267.2640214 | Y55: =SUM(Air_Emissions!BL$8:BL$10,Air_Emissions!BL$10)+Air_Emissions!BL$50*0.5+Air_Emissions!BL$55 -> 262.6151181 | Z55: =SUM(Air_Emissions!BM$8:BM$10,Air_Emissions!BM$10)+Air_Emissions!BM$50*0.5+Air_Emissions!BM$55 -> 262.6975138 | AA55: =SUM(Air_Emissions!BN$8:BN$10,Air_Emissions!BN$10)+Air_Emissions!BN$50*0.5+Air_Emissions!BN$55 -> 248.1803619 | AB55: =SUM(Air_Emissions!BO$8:BO$10,Air_Emissions!BO$10)+Air_Emissions!BO$50*0.5+Air_Emissions!BO$55 -> 246.3988187 | AC55: =SUM(Air_Emissions!BP$8:BP$10,Air_Emissions!BP$10)+Air_Emissions!BP$50*0.5+Air_Emissions!BP$55 -> 245.8920608 | AD55: =SUM(Air_Emissions!BQ$8:BQ$10,Air_Emissions!BQ$10)+Air_Emissions!BQ$50*0.5+Air_Emissions!BQ$55 -> 227.5515739 | AE55: =SUM(Air_Emissions!BR$8:BR$10,Air_Emissions!BR$10)+Air_Emissions!BR$50*0.5+Air_Emissions!BR$55 -> 231.2844829 | AF55: =SUM(Air_Emissions!BS$8:BS$10,Air_Emissions!BS$10)+Air_Emissions!BS$50*0.5+Air_Emissions!BS$55 -> 228.8517161 | AG55: =SUM(Air_Emissions!BT$8:BT$10,Air_Emissions!BT$10)+Air_Emissions!BT$50*0.5+Air_Emissions!BT$55 -> 241.8825129 | AH55: =SUM(Air_Emissions!BU$8:BU$10,Air_Emissions!BU$10)+Air_Emissions!BU$50*0.5+Air_Emissions!BU$55 -> 233.9450663
A56: 9d | B56: WA In-State Emissions | C56: VOC | D56: Metric Tonnes | E56: 20.74909436 | F56: 33.14384554 | G56: 43.131884 | H56: 47.72872756 | I56: 39.54 | J56: 25.71929 | L56: =SUM(Air_Emissions!AY$200:AY$202,Air_Emissions!AY$205,Air_Emissions!AY$247) -> 25.24644901 | M56: =SUM(Air_Emissions!AZ$200:AZ$202,Air_Emissions!AZ$205,Air_Emissions!AZ$247) -> 25.64133336 | N56: =SUM(Air_Emissions!BA$200:BA$202,Air_Emissions!BA$205,Air_Emissions!BA$247) -> 23.94362786 | O56: =SUM(Air_Emissions!BB$200:BB$202,Air_Emissions!BB$205,Air_Emissions!BB$247) -> 21.04389865 | P56: =SUM(Air_Emissions!BC$200:BC$202,Air_Emissions!BC$205,Air_Emissions!BC$247) -> 18.80709841 | Q56: =SUM(Air_Emissions!BD$200:BD$202,Air_Emissions!BD$205,Air_Emissions!BD$247) -> 17.66519597 | R56: =SUM(Air_Emissions!BE$200:BE$202,Air_Emissions!BE$205,Air_Emissions!BE$247) -> 16.88814804 | S56: =SUM(Air_Emissions!BF$200:BF$202,Air_Emissions!BF$205,Air_Emissions!BF$247) -> 18.92577767 | T56: =SUM(Air_Emissions!BG$200:BG$202,Air_Emissions!BG$205,Air_Emissions!BG$247) -> 17.65386043 | U56: =SUM(Air_Emissions!BH$200:BH$202,Air_Emissions!BH$205,Air_Emissions!BH$247) -> 16.72013519 | V56: =SUM(Air_Emissions!BI$200:BI$202,Air_Emissions!BI$205,Air_Emissions!BI$247) -> 16.60106814 | W56: =SUM(Air_Emissions!BJ$200:BJ$202,Air_Emissions!BJ$205,Air_Emissions!BJ$247) -> 16.11584131 | X56: =SUM(Air_Emissions!BK$200:BK$202,Air_Emissions!BK$205,Air_Emissions!BK$247) -> 16.28739401 | Y56: =SUM(Air_Emissions!BL$200:BL$202,Air_Emissions!BL$205,Air_Emissions!BL$247) -> 15.93843936 | Z56: =SUM(Air_Emissions!BM$200:BM$202,Air_Emissions!BM$205,Air_Emissions!BM$247) -> 15.94023808 | AA56: =SUM(Air_Emissions!BN$200:BN$202,Air_Emissions!BN$205,Air_Emissions!BN$247) -> 15.04305385 | AB56: =SUM(Air_Emissions!BO$200:BO$202,Air_Emissions!BO$205,Air_Emissions!BO$247) -> 14.92961531 | AC56: =SUM(Air_Emissions!BP$200:BP$202,Air_Emissions!BP$205,Air_Emissions!BP$247) -> 14.87951124 | AD56: =SUM(Air_Emissions!BQ$200:BQ$202,Air_Emissions!BQ$205,Air_Emissions!BQ$247) -> 14.1639245 | AE56: =SUM(Air_Emissions!BR$200:BR$202,Air_Emissions!BR$205,Air_Emissions!BR$247) -> 14.39627904 | AF56: =SUM(Air_Emissions!BS$200:BS$202,Air_Emissions!BS$205,Air_Emissions!BS$247) -> 14.24485171 | AG56: =SUM(Air_Emissions!BT$200:BT$202,Air_Emissions!BT$205,Air_Emissions!BT$247) -> 15.05595233 | AH56: =SUM(Air_Emissions!BU$200:BU$202,Air_Emissions!BU$205,Air_Emissions!BU$247) -> 14.56188678
A58: 10a | B58: Avista GHG Emissions | C58: Direct Emissions | D58: Metric Tonnes | E58: 1.743807066 | F58: 1.711898434 | G58: 1.750764854 | H58: 1.99711764 | I58: 1.718986562 | J58: 1.902659934 | L58: ='Financial Summary'!E$105+'Financial Summary'!E$106+'Financial Summary'!E$107 -> 1.978961416 | M58: ='Financial Summary'!F$105+'Financial Summary'!F$106+'Financial Summary'!F$107 -> 2.009891618 | N58: ='Financial Summary'!G$105+'Financial Summary'!G$106+'Financial Summary'!G$107 -> 1.858771702 | O58: ='Financial Summary'!H$105+'Financial Summary'!H$106+'Financial Summary'!H$107 -> 0.9182481313 | P58: ='Financial Summary'!I$105+'Financial Summary'!I$106+'Financial Summary'!I$107 -> 0.9045227968 | Q58: ='Financial Summary'!J$105+'Financial Summary'!J$106+'Financial Summary'!J$107 -> 0.8451475652 | R58: ='Financial Summary'!K$105+'Financial Summary'!K$106+'Financial Summary'!K$107 -> 0.8331436548 | S58: ='Financial Summary'!L$105+'Financial Summary'!L$106+'Financial Summary'!L$107 -> 0.8202991993 | T58: ='Financial Summary'!M$105+'Financial Summary'!M$106+'Financial Summary'!M$107 -> 0.7869552583 | U58: ='Financial Summary'!N$105+'Financial Summary'!N$106+'Financial Summary'!N$107 -> 0.7204354324 | V58: ='Financial Summary'!O$105+'Financial Summary'!O$106+'Financial Summary'!O$107 -> 0.6568762003 | W58: ='Financial Summary'!P$105+'Financial Summary'!P$106+'Financial Summary'!P$107 -> 0.628076576 | X58: ='Financial Summary'!Q$105+'Financial Summary'!Q$106+'Financial Summary'!Q$107 -> 0.6052352522 | Y58: ='Financial Summary'!R$105+'Financial Summary'!R$106+'Financial Summary'!R$107 -> 0.6426659214 | Z58: ='Financial Summary'!S$105+'Financial Summary'!S$106+'Financial Summary'!S$107 -> 0.620602834 | AA58: ='Financial Summary'!T$105+'Financial Summary'!T$106+'Financial Summary'!T$107 -> 0.6357471307 | AB58: ='Financial Summary'!U$105+'Financial Summary'!U$106+'Financial Summary'!U$107 -> 0.5977796428 | AC58: ='Financial Summary'!V$105+'Financial Summary'!V$106+'Financial Summary'!V$107 -> 0.6803474621 | AD58: ='Financial Summary'!W$105+'Financial Summary'!W$106+'Financial Summary'!W$107 -> 0.6444108535 | AE58: ='Financial Summary'!X$105+'Financial Summary'!X$106+'Financial Summary'!X$107 -> 0.5568732765 | AF58: ='Financial Summary'!Y$105+'Financial Summary'!Y$106+'Financial Summary'!Y$107 -> 0.5514082208 | AG58: ='Financial Summary'!Z$105+'Financial Summary'!Z$106+'Financial Summary'!Z$107 -> 0.5972902925 | AH58: ='Financial Summary'!AA$105+'Financial Summary'!AA$106+'Financial Summary'!AA$107 -> 0.549558844
A59: 10a | B59: Avista GHG Emissions | C59: Net Emissions | D59: Metric Tonnes | E59: 1.778389544 | F59: 1.763175152 | G59: 1.731798133 | H59: 1.843452005 | I59: 1.556387854 | J59: 1.752892668 | L59: ='Financial Summary'!E$110 -> 1.73476064 | M59: ='Financial Summary'!F$110 -> 1.672635278 | N59: ='Financial Summary'!G$110 -> 1.563122031 | O59: ='Financial Summary'!H$110 -> 0.8314771926 | P59: ='Financial Summary'!I$110 -> 0.9727464431 | Q59: ='Financial Summary'!J$110 -> 0.9499291637 | R59: ='Financial Summary'!K$110 -> 0.9498634048 | S59: ='Financial Summary'!L$110 -> 0.7758195506 | T59: ='Financial Summary'!M$110 -> 0.7683155174 | U59: ='Financial Summary'!N$110 -> 0.6315811039 | V59: ='Financial Summary'!O$110 -> 0.5744867046 | W59: ='Financial Summary'!P$110 -> 0.5917116423 | X59: ='Financial Summary'!Q$110 -> 0.5776042018 | Y59: ='Financial Summary'!R$110 -> 0.5976172194 | Z59: ='Financial Summary'!S$110 -> 0.5987805074 | AA59: ='Financial Summary'!T$110 -> 0.602075257 | AB59: ='Financial Summary'!U$110 -> 0.5837693535 | AC59: ='Financial Summary'!V$110 -> 0.6588122098 | AD59: ='Financial Summary'!W$110 -> 0.6546483288 | AE59: ='Financial Summary'!X$110 -> 0.5228799378 | AF59: ='Financial Summary'!Y$110 -> 0.5769681296 | AG59: ='Financial Summary'!Z$110 -> 0.6309382132 | AH59: ='Financial Summary'!AA$110 -> 0.88722552
A61: 10b | B61: Regional GHG Emissions | C61: Large Sources | D61: Metric Tonnes | E61: 0.732788 | F61: 0.738091 | G61: 0.733167 | H61: 0.749901 | I61: =H61 -> 0.749901 | J61: 0.7307136 | L61: 0.7307136 | M61: 0.7307136 | N61: 0.7307136 | O61: 0.7307136 | P61: 0.7307136 | Q61: 0.7307136 | R61: 0.7307136 | S61: 0.7307136 | T61: 0.7307136 | U61: 0.7307136 | V61: 0.7307136 | W61: 0.7307136 | X61: 0.7307136 | Y61: 0.7307136 | Z61: 0.7307136 | AA61: 0.7307136 | AB61: 0.7307136 | AC61: 0.7307136 | AD61: 0.7307136 | AE61: 0.7307136 | AF61: 0.7307136 | AG61: 0.7307136 | AH61: 0.7307136
A62: 10b | B62: Regional GHG Emissions | C62: Electric Power Serving Washington | D62: Metric Tonnes | E62: =E59 -> 1.778389544 | F62: =F59 -> 1.763175152 | G62: =G59 -> 1.731798133 | H62: =H59 -> 1.843452005 | I62: =I59 -> 1.556387854 | J62: 1.752892668 | L62: =L59 -> 1.73476064 | M62: 1.672635278 | N62: 1.563122031 | O62: 0.8314771926 | P62: 0.9727464431 | Q62: 0.9499291637 | R62: 0.9498634048 | S62: 0.7758195506 | T62: 0.7683155174 | U62: 0.6315811039 | V62: 0.5744867046 | W62: 0.5917116423 | X62: 0.5776042018 | Y62: 0.5976172194 | Z62: 0.5987805074 | AA62: 0.602075257 | AB62: 0.5837693535 | AC62: 0.6588122098 | AD62: 0.6546483288 | AE62: 0.5228799378 | AF62: 0.5769681296 | AG62: 0.6309382132 | AH62: 0.88722552
A63: 10b | B63: Regional GHG Emissions | C63: Electric Power Serving Idaho | D63: Metric Tonnes | E63: 0.005029767506 | F63: 0.005154426859 | G63: 0.0060262103 | H63: 0.009026228782 | I63: 0.00332256 | J63: 0.004267113225 | L63: =SUM(Aurora_Res_Results!$BA$355:$BA$356,Aurora_Res_Results!$BA$359)/1000000 -> 0.007698345988 | M63: =SUM(Aurora_Res_Results!$BB$355:$BB$356,Aurora_Res_Results!$BB$359)/1000000 -> 0.008014608184 | N63: =SUM(Aurora_Res_Results!$BC$355:$BC$356,Aurora_Res_Results!$BC$359)/1000000 -> 0.008307608438 | O63: =SUM(Aurora_Res_Results!$BD$355:$BD$356,Aurora_Res_Results!$BD$359)/1000000 -> 0.008463747987 | P63: =SUM(Aurora_Res_Results!$BE$355:$BE$356,Aurora_Res_Results!$BE$359)/1000000 -> 0.007120660677 | Q63: =SUM(Aurora_Res_Results!$BF$355:$BF$356,Aurora_Res_Results!$BF$359)/1000000 -> 0.006274079466 | R63: =SUM(Aurora_Res_Results!$BG$355:$BG$356,Aurora_Res_Results!$BG$359)/1000000 -> 0.00684668904 | S63: =SUM(Aurora_Res_Results!$BH$355:$BH$356,Aurora_Res_Results!$BH$359)/1000000 -> 0.008422188594 | T63: =SUM(Aurora_Res_Results!$BI$355:$BI$356,Aurora_Res_Results!$BI$359)/1000000 -> 0.007877456745 | U63: =SUM(Aurora_Res_Results!$BJ$355:$BJ$356,Aurora_Res_Results!$BJ$359)/1000000 -> 0.007447945876 | V63: =SUM(Aurora_Res_Results!$BK$355:$BK$356,Aurora_Res_Results!$BK$359)/1000000 -> 0.007268703092 | W63: =SUM(Aurora_Res_Results!$BL$355:$BL$356,Aurora_Res_Results!$BL$359)/1000000 -> 0.006925520681 | X63: =SUM(Aurora_Res_Results!$BM$355:$BM$356,Aurora_Res_Results!$BM$359)/1000000 -> 0.006954345273 | Y63: =SUM(Aurora_Res_Results!$BN$355:$BN$356,Aurora_Res_Results!$BN$359)/1000000 -> 0.00696290683 | Z63: =SUM(Aurora_Res_Results!$BO$355:$BO$356,Aurora_Res_Results!$BO$359)/1000000 -> 0.006918794554 | AA63: =SUM(Aurora_Res_Results!$BP$355:$BP$356,Aurora_Res_Results!$BP$359)/1000000 -> 0.006680086124 | AB63: =SUM(Aurora_Res_Results!$BQ$355:$BQ$356,Aurora_Res_Results!$BQ$359)/1000000 -> 0.006502968476 | AC63: =SUM(Aurora_Res_Results!$BR$355:$BR$356,Aurora_Res_Results!$BR$359)/1000000 -> 0.007113223224 | AD63: =SUM(Aurora_Res_Results!$BS$355:$BS$356,Aurora_Res_Results!$BS$359)/1000000 -> 0 | AE63: =SUM(Aurora_Res_Results!$BT$355:$BT$356,Aurora_Res_Results!$BT$359)/1000000 -> 0 | AF63: =SUM(Aurora_Res_Results!$BU$355:$BU$356,Aurora_Res_Results!$BU$359)/1000000 -> 0 | AG63: =SUM(Aurora_Res_Results!$BV$355:$BV$356,Aurora_Res_Results!$BV$359)/1000000 -> 0 | AH63: =SUM(Aurora_Res_Results!$BW$355:$BW$356,Aurora_Res_Results!$BW$359)/1000000 -> 0
A64: 10b | B64: Regional GHG Emissions | C64: Waste Management | D64: Metric Tonnes | E64: 0.3253312286 | F64: 0.321752766 | G64: 0.3213853946 | H64: 0.3242199922 | I64: 0.3231361709 | J64: 0.3242292428 | L64: 0.3254232351 | M64: 0.3260267043 | N64: 0.3265853971 | O64: 0.3272936269 | P64: 0.3279572594 | Q64: 0.3286082519 | R64: 0.3292501647 | S64: 0.3298882451 | T64: 0.3304080678 | U64: 0.3309506507 | V64: 0.3314759165 | W64: 0.331972976 | X64: 0.3324429444 | Y64: 0.3329126377 | Z64: 0.3333610687 | AA64: 0.3337892487 | AB64: 0.334201888 | AC64: 0.3346054352 | AD64: 0.3346054291 | AE64: 0.3346054409 | AF64: 0.3346054425 | AG64: 0.3346054369 | AH64: 0.3346054373
A65: 10b | B65: Regional GHG Emissions | C65: Residential & Commerical Fuels | D65: Metric Tonnes | E65: 1.890978132 | F65: 2.026008888 | G65: 2.036057524 | H65: 2.174254307 | I65: 2.254440498 | J65: 2.25874598 | L65: 2.198625748 | M65: 2.208438115 | N65: 2.206780412 | O65: 2.210319244 | P65: 2.21354685 | Q65: 2.223193722 | R65: 2.217128468 | S65: 2.216736676 | T65: 2.220981867 | U65: 2.226147088 | V65: 2.224347905 | W65: 2.223695531 | X65: 2.227428496 | Y65: 2.240767269 | Z65: 2.240823203 | AA65: 2.23783953 | AB65: 2.23999256 | AC65: 2.244315002 | AD65: 2.241926839 | AE65: 2.242882104 | AF65: 2.243094385 | AG65: 2.254133007 | AH65: 2.252593968
A66: 10b | B66: Regional GHG Emissions | C66: Transportation | D66: Metric Tonnes | E66: 3.759390167 | F66: 3.711330166 | G66: 3.886804121 | H66: 3.950456799 | I66: 3.952453538 | J66: 4.021316018 | L66: 4.115596326 | M66: 4.162264967 | N66: 4.208039717 | O66: 4.254140002 | P66: 4.297213268 | Q66: 4.336924658 | R66: 4.371938148 | S66: 4.401685671 | T66: 4.412803565 | U66: 4.422055837 | V66: 4.428757865 | W66: 4.432580098 | X66: 4.433347553 | Y66: 4.431184035 | Z66: 4.425603075 | AA66: 4.416374218 | AB66: 4.403296621 | AC66: 4.386169369 | AD66: 4.359875521 | AE66: 4.329019832 | AF66: 4.293261401 | AG66: 4.252243416 | AH66: 4.205598963
A67: 10b | B67: Regional GHG Emissions | C67: Agriculture | D67: Metric Tonnes | E67: 2.015650455 | F67: 2.015650455 | G67: 1.896400796 | H67: 2.014335388 | I67: 2.107186495 | J67: 2.044679143 | L67: 2.015650455 | M67: 2.015650455 | N67: 2.015650455 | O67: 2.015650455 | P67: 2.015650455 | Q67: 2.015650455 | R67: 2.015650455 | S67: 2.015650455 | T67: 2.015650455 | U67: 2.015650455 | V67: 2.015650455 | W67: 2.015650455 | X67: 2.015650455 | Y67: 2.015650455 | Z67: 2.015650455 | AA67: 2.015650455 | AB67: 2.015650455 | AC67: 2.015650455 | AD67: 2.015650455 | AE67: 2.015650455 | AF67: 2.015650455 | AG67: 2.015650455 | AH67: 2.015650455
A68: 10b | B68: Regional GHG Emissions | C68: Total | D68: Metric Tonnes | E68: =SUM(E61:E67) -> 10.50755729 | F68: =SUM(F61:F67) -> 10.58116285 | G68: =SUM(G61:G67) -> 10.61163918 | H68: =SUM(H61:H67) -> 11.06564572 | I68: =SUM(I61:I67) -> 10.94682812 | J68: 11.13684377 | L68: =SUM(L61:L67) -> 11.12846835 | M68: =SUM(M61:M67) -> 11.12374373 | N68: 11.05919922 | O68: 10.37805787 | P68: 10.56494854 | Q68: 10.59129393 | R68: 10.62139093 | S68: 10.47891639 | T68: 10.48675053 | U68: 10.36454668 | V68: 10.31270115 | W68: 10.33324982 | X68: 10.3241416 | Y68: 10.35580812 | Z68: 10.3518507 | AA68: 10.3431224 | AB68: 10.31412745 | AC68: 10.37737929 | AD68: 10.33742017 | AE68: 10.17575137 | AF68: 10.19429341 | AG68: 10.21828413 | AH68: 10.42638794

Sheet Position Summary
A2: PRIOR TO RESOURCE ACQUISITION (Includes Renewables transfers)
B3: Washington | O3: Idaho | AB3: System | AO3: Check
A4: Capacity | B4: 1 | C4: 2 | D4: 3 | E4: 4 | F4: 5 | G4: 6 | H4: 7 | I4: 8 | J4: 9 | K4: 10 | L4: 11 | M4: 12 | O4: 1 | P4: 2 | Q4: 3 | R4: 4 | S4: 5 | T4: 6 | U4: 7 | V4: 8 | W4: 9 | X4: 10 | Y4: 11 | Z4: 12 | AB4: 1 | AC4: 2 | AD4: 3 | AE4: 4 | AF4: 5 | AG4: 6 | AH4: 7 | AI4: 8 | AJ4: 9 | AK4: 10 | AL4: 11 | AM4: 12 | AO4: 1 | AP4: 2 | AQ4: 3 | AR4: 4 | AS4: 5 | AT4: 6 | AU4: 7 | AV4: 8 | AW4: 9 | AX4: 10 | AY4: 11 | AZ4: 12
A5: 2023 | B5: =HLOOKUP($A5&"_"&IF(B$4<10,"0"&B$4,B$4),WA_LR!$C$3:$JR$49,45,FALSE) -> 134.7904718 | C5: =HLOOKUP($A5&"_"&IF(C$4<10,"0"&C$4,C$4),WA_LR!$C$3:$JR$49,45,FALSE) -> 220.6564671 | D5: =HLOOKUP($A5&"_"&IF(D$4<10,"0"&D$4,D$4),WA_LR!$C$3:$JR$49,45,FALSE) -> 347.0132449 | E5: =HLOOKUP($A5&"_"&IF(E$4<10,"0"&E$4,E$4),WA_LR!$C$3:$JR$49,45,FALSE) -> 482.3542744 | F5: =HLOOKUP($A5&"_"&IF(F$4<10,"0"&F$4,F$4),WA_LR!$C$3:$JR$49,45,FALSE) -> 314.3698084 | G5: =HLOOKUP($A5&"_"&IF(G$4<10,"0"&G$4,G$4),WA_LR!$C$3:$JR$49,45,FALSE) -> 289.1856851 | H5: =HLOOKUP($A5&"_"&IF(H$4<10,"0"&H$4,H$4),WA_LR!$C$3:$JR$49,45,FALSE) -> 164.3046452 | I5: =HLOOKUP($A5&"_"&IF(I$4<10,"0"&I$4,I$4),WA_LR!$C$3:$JR$49,45,FALSE) -> 123.3133985 | J5: =HLOOKUP($A5&"_"&IF(J$4<10,"0"&J$4,J$4),WA_LR!$C$3:$JR$49,45,FALSE) -> 164.753318 | K5: =HLOOKUP($A5&"_"&IF(K$4<10,"0"&K$4,K$4),WA_LR!$C$3:$JR$49,45,FALSE) -> 430.099622 | L5: =HLOOKUP($A5&"_"&IF(L$4<10,"0"&L$4,L$4),WA_LR!$C$3:$JR$49,45,FALSE) -> 306.7406944 | M5: =HLOOKUP($A5&"_"&IF(M$4<10,"0"&M$4,M$4),WA_LR!$C$3:$JR$49,45,FALSE) -> 179.2043852 | O5: =HLOOKUP($A5&"_"&IF(O$4<10,"0"&O$4,O$4),ID_LR!$C$3:$JR$49,45,FALSE) -> 55.24585259 | P5: =HLOOKUP($A5&"_"&IF(P$4<10,"0"&P$4,P$4),ID_LR!$C$3:$JR$49,45,FALSE) -> 118.5823855 | Q5: =HLOOKUP($A5&"_"&IF(Q$4<10,"0"&Q$4,Q$4),ID_LR!$C$3:$JR$49,45,FALSE) -> 175.4985179 | R5: =HLOOKUP($A5&"_"&IF(R$4<10,"0"&R$4,R$4),ID_LR!$C$3:$JR$49,45,FALSE) -> 233.8961791 | S5: =HLOOKUP($A5&"_"&IF(S$4<10,"0"&S$4,S$4),ID_LR!$C$3:$JR$49,45,FALSE) -> 159.9815564 | T5: =HLOOKUP($A5&"_"&IF(T$4<10,"0"&T$4,T$4),ID_LR!$C$3:$JR$49,45,FALSE) -> 159.6928839 | U5: =HLOOKUP($A5&"_"&IF(U$4<10,"0"&U$4,U$4),ID_LR!$C$3:$JR$49,45,FALSE) -> 90.77750932 | V5: =HLOOKUP($A5&"_"&IF(V$4<10,"0"&V$4,V$4),ID_LR!$C$3:$JR$49,45,FALSE) -> 87.04007926 | W5: =HLOOKUP($A5&"_"&IF(W$4<10,"0"&W$4,W$4),ID_LR!$C$3:$JR$49,45,FALSE) -> 113.4121121 | X5: =HLOOKUP($A5&"_"&IF(X$4<10,"0"&X$4,X$4),ID_LR!$C$3:$JR$49,45,FALSE) -> 238.276476 | Y5: =HLOOKUP($A5&"_"&IF(Y$4<10,"0"&Y$4,Y$4),ID_LR!$C$3:$JR$49,45,FALSE) -> 149.245726 | Z5: =HLOOKUP($A5&"_"&IF(Z$4<10,"0"&Z$4,Z$4),ID_LR!$C$3:$JR$49,45,FALSE) -> 72.79507001 | AB5: =HLOOKUP($A5&"_"&IF(AB$4<10,"0"&AB$4,AB$4),System_LR!$C$3:$JR$49,45,FALSE) -> 190.4763244 | AC5: =HLOOKUP($A5&"_"&IF(AC$4<10,"0"&AC$4,AC$4),System_LR!$C$3:$JR$49,45,FALSE) -> 339.6788526 | AD5: =HLOOKUP($A5&"_"&IF(AD$4<10,"0"&AD$4,AD$4),System_LR!$C$3:$JR$49,45,FALSE) -> 522.9517628 | AE5: =HLOOKUP($A5&"_"&IF(AE$4<10,"0"&AE$4,AE$4),System_LR!$C$3:$JR$49,45,FALSE) -> 716.6904535 | AF5: =HLOOKUP($A5&"_"&IF(AF$4<10,"0"&AF$4,AF$4),System_LR!$C$3:$JR$49,45,FALSE) -> 474.6113648 | AG5: =HLOOKUP($A5&"_"&IF(AG$4<10,"0"&AG$4,AG$4),System_LR!$C$3:$JR$49,45,FALSE) -> 449.138569 | AH5: =HLOOKUP($A5&"_"&IF(AH$4<10,"0"&AH$4,AH$4),System_LR!$C$3:$JR$49,45,FALSE) -> 255.3421545 | AI5: =HLOOKUP($A5&"_"&IF(AI$4<10,"0"&AI$4,AI$4),System_LR!$C$3:$JR$49,45,FALSE) -> 210.6134778 | AJ5: =HLOOKUP($A5&"_"&IF(AJ$4<10,"0"&AJ$4,AJ$4),System_LR!$C$3:$JR$49,45,FALSE) -> 278.4254301 | AK5: =HLOOKUP($A5&"_"&IF(AK$4<10,"0"&AK$4,AK$4),System_LR!$C$3:$JR$49,45,FALSE) -> 668.816098 | AL5: =HLOOKUP($A5&"_"&IF(AL$4<10,"0"&AL$4,AL$4),System_LR!$C$3:$JR$49,45,FALSE) -> 456.4264204 | AM5: =HLOOKUP($A5&"_"&IF(AM$4<10,"0"&AM$4,AM$4),System_LR!$C$3:$JR$49,45,FALSE) -> 252.4394552 | AO5: =B5+O5-AB5 -> -0.44 | AP5: =C5+P5-AC5 -> -0.44 | AQ5: =D5+Q5-AD5 -> -0.44 | AR5: =E5+R5-AE5 -> -0.44 | AS5: =F5+S5-AF5 -> -0.26 | AT5: =G5+T5-AG5 -> -0.26 | AU5: =H5+U5-AH5 -> -0.26 | AV5: =I5+V5-AI5 -> -0.26 | AW5: =J5+W5-AJ5 -> -0.26 | AX5: =K5+X5-AK5 -> -0.44 | AY5: =L5+Y5-AL5 -> -0.44 | AZ5: =M5+Z5-AM5 -> -0.44
A6: 2024 | B6: =HLOOKUP($A6&"_"&IF(B$4<10,"0"&B$4,B$4),WA_LR!$C$3:$JR$49,45,FALSE) -> 189.9951131 | C6: =HLOOKUP($A6&"_"&IF(C$4<10,"0"&C$4,C$4),WA_LR!$C$3:$JR$49,45,FALSE) -> 279.4280019 | D6: =HLOOKUP($A6&"_"&IF(D$4<10,"0"&D$4,D$4),WA_LR!$C$3:$JR$49,45,FALSE) -> 406.024907 | E6: =HLOOKUP($A6&"_"&IF(E$4<10,"0"&E$4,E$4),WA_LR!$C$3:$JR$49,45,FALSE) -> 533.6409869 | F6: =HLOOKUP($A6&"_"&IF(F$4<10,"0"&F$4,F$4),WA_LR!$C$3:$JR$49,45,FALSE) -> 362.9874602 | G6: =HLOOKUP($A6&"_"&IF(G$4<10,"0"&G$4,G$4),WA_LR!$C$3:$JR$49,45,FALSE) -> 340.7326583 | H6: =HLOOKUP($A6&"_"&IF(H$4<10,"0"&H$4,H$4),WA_LR!$C$3:$JR$49,45,FALSE) -> 210.5458775 | I6: =HLOOKUP($A6&"_"&IF(I$4<10,"0"&I$4,I$4),WA_LR!$C$3:$JR$49,45,FALSE) -> 169.7693865 | J6: =HLOOKUP($A6&"_"&IF(J$4<10,"0"&J$4,J$4),WA_LR!$C$3:$JR$49,45,FALSE) -> 203.18189 | K6: =HLOOKUP($A6&"_"&IF(K$4<10,"0"&K$4,K$4),WA_LR!$C$3:$JR$49,45,FALSE) -> 485.9207434 | L6: =HLOOKUP($A6&"_"&IF(L$4<10,"0"&L$4,L$4),WA_LR!$C$3:$JR$49,45,FALSE) -> 351.6013466 | M6: =HLOOKUP($A6&"_"&IF(M$4<10,"0"&M$4,M$4),WA_LR!$C$3:$JR$49,45,FALSE) -> 228.7714066 | O6: =HLOOKUP($A6&"_"&IF(O$4<10,"0"&O$4,O$4),ID_LR!$C$3:$JR$49,45,FALSE) -> 88.55975853 | P6: =HLOOKUP($A6&"_"&IF(P$4<10,"0"&P$4,P$4),ID_LR!$C$3:$JR$49,45,FALSE) -> 153.8365636 | Q6: =HLOOKUP($A6&"_"&IF(Q$4<10,"0"&Q$4,Q$4),ID_LR!$C$3:$JR$49,45,FALSE) -> 211.0402047 | R6: =HLOOKUP($A6&"_"&IF(R$4<10,"0"&R$4,R$4),ID_LR!$C$3:$JR$49,45,FALSE) -> 265.4693406 | S6: =HLOOKUP($A6&"_"&IF(S$4<10,"0"&S$4,S$4),ID_LR!$C$3:$JR$49,45,FALSE) -> 188.1857736 | T6: =HLOOKUP($A6&"_"&IF(T$4<10,"0"&T$4,T$4),ID_LR!$C$3:$JR$49,45,FALSE) -> 188.7494857 | U6: =HLOOKUP($A6&"_"&IF(U$4<10,"0"&U$4,U$4),ID_LR!$C$3:$JR$49,45,FALSE) -> 117.3263914 | V6: =HLOOKUP($A6&"_"&IF(V$4<10,"0"&V$4,V$4),ID_LR!$C$3:$JR$49,45,FALSE) -> 113.5515324 | W6: =HLOOKUP($A6&"_"&IF(W$4<10,"0"&W$4,W$4),ID_LR!$C$3:$JR$49,45,FALSE) -> 136.0281002 | X6: =HLOOKUP($A6&"_"&IF(X$4<10,"0"&X$4,X$4),ID_LR!$C$3:$JR$49,45,FALSE) -> 271.7177783 | Y6: =HLOOKUP($A6&"_"&IF(Y$4<10,"0"&Y$4,Y$4),ID_LR!$C$3:$JR$49,45,FALSE) -> 176.6833877 | Z6: =HLOOKUP($A6&"_"&IF(Z$4<10,"0"&Z$4,Z$4),ID_LR!$C$3:$JR$49,45,FALSE) -> 102.9861331 | AB6: =HLOOKUP($A6&"_"&IF(AB$4<10,"0"&AB$4,AB$4),System_LR!$C$3:$JR$49,45,FALSE) -> 278.9948716 | AC6: =HLOOKUP($A6&"_"&IF(AC$4<10,"0"&AC$4,AC$4),System_LR!$C$3:$JR$49,45,FALSE) -> 433.7045655 | AD6: =HLOOKUP($A6&"_"&IF(AD$4<10,"0"&AD$4,AD$4),System_LR!$C$3:$JR$49,45,FALSE) -> 617.5051117 | AE6: =HLOOKUP($A6&"_"&IF(AE$4<10,"0"&AE$4,AE$4),System_LR!$C$3:$JR$49,45,FALSE) -> 799.5503275 | AF6: =HLOOKUP($A6&"_"&IF(AF$4<10,"0"&AF$4,AF$4),System_LR!$C$3:$JR$49,45,FALSE) -> 551.4332338 | AG6: =HLOOKUP($A6&"_"&IF(AG$4<10,"0"&AG$4,AG$4),System_LR!$C$3:$JR$49,45,FALSE) -> 529.742144 | AH6: =HLOOKUP($A6&"_"&IF(AH$4<10,"0"&AH$4,AH$4),System_LR!$C$3:$JR$49,45,FALSE) -> 328.1322689 | AI6: =HLOOKUP($A6&"_"&IF(AI$4<10,"0"&AI$4,AI$4),System_LR!$C$3:$JR$49,45,FALSE) -> 283.5809189 | AJ6: =HLOOKUP($A6&"_"&IF(AJ$4<10,"0"&AJ$4,AJ$4),System_LR!$C$3:$JR$49,45,FALSE) -> 339.4699902 | AK6: =HLOOKUP($A6&"_"&IF(AK$4<10,"0"&AK$4,AK$4),System_LR!$C$3:$JR$49,45,FALSE) -> 758.0785217 | AL6: =HLOOKUP($A6&"_"&IF(AL$4<10,"0"&AL$4,AL$4),System_LR!$C$3:$JR$49,45,FALSE) -> 528.7247343 | AM6: =HLOOKUP($A6&"_"&IF(AM$4<10,"0"&AM$4,AM$4),System_LR!$C$3:$JR$49,45,FALSE) -> 332.1975397 | AO6: =B6+O6-AB6 -> -0.44 | AP6: -0.44 | AQ6: -0.44 | AR6: -0.44 | AS6: -0.26 | AT6: -0.26 | AU6: -0.26 | AV6: -0.26 | AW6: -0.26 | AX6: -0.44 | AY6: -0.44 | AZ6: -0.44
A7: 2025 | B7: =HLOOKUP($A7&"_"&IF(B$4<10,"0"&B$4,B$4),WA_LR!$C$3:$JR$49,45,FALSE) -> 182.0101164 | C7: =HLOOKUP($A7&"_"&IF(C$4<10,"0"&C$4,C$4),WA_LR!$C$3:$JR$49,45,FALSE) -> 271.4504366 | D7: =HLOOKUP($A7&"_"&IF(D$4<10,"0"&D$4,D$4),WA_LR!$C$3:$JR$49,45,FALSE) -> 401.2232106 | E7: =HLOOKUP($A7&"_"&IF(E$4<10,"0"&E$4,E$4),WA_LR!$C$3:$JR$49,45,FALSE) -> 562.9610962 | F7: =HLOOKUP($A7&"_"&IF(F$4<10,"0"&F$4,F$4),WA_LR!$C$3:$JR$49,45,FALSE) -> 410.8734515 | G7: =HLOOKUP($A7&"_"&IF(G$4<10,"0"&G$4,G$4),WA_LR!$C$3:$JR$49,45,FALSE) -> 391.4653949 | H7: =HLOOKUP($A7&"_"&IF(H$4<10,"0"&H$4,H$4),WA_LR!$C$3:$JR$49,45,FALSE) -> 257.9664483 | I7: =HLOOKUP($A7&"_"&IF(I$4<10,"0"&I$4,I$4),WA_LR!$C$3:$JR$49,45,FALSE) -> 208.5010822 | J7: =HLOOKUP($A7&"_"&IF(J$4<10,"0"&J$4,J$4),WA_LR!$C$3:$JR$49,45,FALSE) -> 231.9114263 | K7: =HLOOKUP($A7&"_"&IF(K$4<10,"0"&K$4,K$4),WA_LR!$C$3:$JR$49,45,FALSE) -> 497.7252373 | L7: =HLOOKUP($A7&"_"&IF(L$4<10,"0"&L$4,L$4),WA_LR!$C$3:$JR$49,45,FALSE) -> 341.6893242 | M7: =HLOOKUP($A7&"_"&IF(M$4<10,"0"&M$4,M$4),WA_LR!$C$3:$JR$49,45,FALSE) -> 219.6747823 | O7: =HLOOKUP($A7&"_"&IF(O$4<10,"0"&O$4,O$4),ID_LR!$C$3:$JR$49,45,FALSE) -> 86.92049625 | P7: =HLOOKUP($A7&"_"&IF(P$4<10,"0"&P$4,P$4),ID_LR!$C$3:$JR$49,45,FALSE) -> 152.1107973 | Q7: =HLOOKUP($A7&"_"&IF(Q$4<10,"0"&Q$4,Q$4),ID_LR!$C$3:$JR$49,45,FALSE) -> 211.5174532 | R7: =HLOOKUP($A7&"_"&IF(R$4<10,"0"&R$4,R$4),ID_LR!$C$3:$JR$49,45,FALSE) -> 285.2030124 | S7: =HLOOKUP($A7&"_"&IF(S$4<10,"0"&S$4,S$4),ID_LR!$C$3:$JR$49,45,FALSE) -> 216.1792332 | T7: =HLOOKUP($A7&"_"&IF(T$4<10,"0"&T$4,T$4),ID_LR!$C$3:$JR$49,45,FALSE) -> 217.5328564 | U7: =HLOOKUP($A7&"_"&IF(U$4<10,"0"&U$4,U$4),ID_LR!$C$3:$JR$49,45,FALSE) -> 144.623176 | V7: =HLOOKUP($A7&"_"&IF(V$4<10,"0"&V$4,V$4),ID_LR!$C$3:$JR$49,45,FALSE) -> 136.1186143 | W7: =HLOOKUP($A7&"_"&IF(W$4<10,"0"&W$4,W$4),ID_LR!$C$3:$JR$49,45,FALSE) -> 152.9657196 | X7: =HLOOKUP($A7&"_"&IF(X$4<10,"0"&X$4,X$4),ID_LR!$C$3:$JR$49,45,FALSE) -> 281.0417681 | Y7: =HLOOKUP($A7&"_"&IF(Y$4<10,"0"&Y$4,Y$4),ID_LR!$C$3:$JR$49,45,FALSE) -> 173.9165897 | Z7: =HLOOKUP($A7&"_"&IF(Z$4<10,"0"&Z$4,Z$4),ID_LR!$C$3:$JR$49,45,FALSE) -> 100.7087715 | AB7: =HLOOKUP($A7&"_"&IF(AB$4<10,"0"&AB$4,AB$4),System_LR!$C$3:$JR$49,45,FALSE) -> 269.3706126 | AC7: =HLOOKUP($A7&"_"&IF(AC$4<10,"0"&AC$4,AC$4),System_LR!$C$3:$JR$49,45,FALSE) -> 424.0012339 | AD7: =HLOOKUP($A7&"_"&IF(AD$4<10,"0"&AD$4,AD$4),System_LR!$C$3:$JR$49,45,FALSE) -> 613.1806639 | AE7: =HLOOKUP($A7&"_"&IF(AE$4<10,"0"&AE$4,AE$4),System_LR!$C$3:$JR$49,45,FALSE) -> 848.6041085 | AF7: =HLOOKUP($A7&"_"&IF(AF$4<10,"0"&AF$4,AF$4),System_LR!$C$3:$JR$49,45,FALSE) -> 627.3126847 | AG7: =HLOOKUP($A7&"_"&IF(AG$4<10,"0"&AG$4,AG$4),System_LR!$C$3:$JR$49,45,FALSE) -> 609.2582513 | AH7: =HLOOKUP($A7&"_"&IF(AH$4<10,"0"&AH$4,AH$4),System_LR!$C$3:$JR$49,45,FALSE) -> 402.8496243 | AI7: =HLOOKUP($A7&"_"&IF(AI$4<10,"0"&AI$4,AI$4),System_LR!$C$3:$JR$49,45,FALSE) -> 344.8796964 | AJ7: =HLOOKUP($A7&"_"&IF(AJ$4<10,"0"&AJ$4,AJ$4),System_LR!$C$3:$JR$49,45,FALSE) -> 385.1371458 | AK7: =HLOOKUP($A7&"_"&IF(AK$4<10,"0"&AK$4,AK$4),System_LR!$C$3:$JR$49,45,FALSE) -> 779.2070054 | AL7: =HLOOKUP($A7&"_"&IF(AL$4<10,"0"&AL$4,AL$4),System_LR!$C$3:$JR$49,45,FALSE) -> 516.0459139 | AM7: =HLOOKUP($A7&"_"&IF(AM$4<10,"0"&AM$4,AM$4),System_LR!$C$3:$JR$49,45,FALSE) -> 320.8235538 | AO7: -0.44 | AP7: -0.44 | AQ7: -0.44 | AR7: =E7+R7-AE7 -> -0.44 | AS7: -0.26 | AT7: -0.26 | AU7: -0.26 | AV7: -0.26 | AW7: -0.26 | AX7: -0.44 | AY7: -0.44 | AZ7: -0.44
A8: 2026 | B8: =HLOOKUP($A8&"_"&IF(B$4<10,"0"&B$4,B$4),WA_LR!$C$3:$JR$49,45,FALSE) -> 130.9020602 | C8: =HLOOKUP($A8&"_"&IF(C$4<10,"0"&C$4,C$4),WA_LR!$C$3:$JR$49,45,FALSE) -> 219.7659724 | D8: =HLOOKUP($A8&"_"&IF(D$4<10,"0"&D$4,D$4),WA_LR!$C$3:$JR$49,45,FALSE) -> 350.3164031 | E8: =HLOOKUP($A8&"_"&IF(E$4<10,"0"&E$4,E$4),WA_LR!$C$3:$JR$49,45,FALSE) -> 512.0590475 | F8: =HLOOKUP($A8&"_"&IF(F$4<10,"0"&F$4,F$4),WA_LR!$C$3:$JR$49,45,FALSE) -> 362.8089019 | G8: =HLOOKUP($A8&"_"&IF(G$4<10,"0"&G$4,G$4),WA_LR!$C$3:$JR$49,45,FALSE) -> 344.2666012 | H8: =HLOOKUP($A8&"_"&IF(H$4<10,"0"&H$4,H$4),WA_LR!$C$3:$JR$49,45,FALSE) -> 207.7069248 | I8: =HLOOKUP($A8&"_"&IF(I$4<10,"0"&I$4,I$4),WA_LR!$C$3:$JR$49,45,FALSE) -> 152.0971357 | J8: =HLOOKUP($A8&"_"&IF(J$4<10,"0"&J$4,J$4),WA_LR!$C$3:$JR$49,45,FALSE) -> 174.5670151 | K8: =HLOOKUP($A8&"_"&IF(K$4<10,"0"&K$4,K$4),WA_LR!$C$3:$JR$49,45,FALSE) -> 445.5495791 | L8: =HLOOKUP($A8&"_"&IF(L$4<10,"0"&L$4,L$4),WA_LR!$C$3:$JR$49,45,FALSE) -> 282.3547237 | M8: =HLOOKUP($A8&"_"&IF(M$4<10,"0"&M$4,M$4),WA_LR!$C$3:$JR$49,45,FALSE) -> 164.5310227 | O8: =HLOOKUP($A8&"_"&IF(O$4<10,"0"&O$4,O$4),ID_LR!$C$3:$JR$49,45,FALSE) -> 64.22495139 | P8: =HLOOKUP($A8&"_"&IF(P$4<10,"0"&P$4,P$4),ID_LR!$C$3:$JR$49,45,FALSE) -> 128.8848119 | Q8: =HLOOKUP($A8&"_"&IF(Q$4<10,"0"&Q$4,Q$4),ID_LR!$C$3:$JR$49,45,FALSE) -> 188.8657571 | R8: =HLOOKUP($A8&"_"&IF(R$4<10,"0"&R$4,R$4),ID_LR!$C$3:$JR$49,45,FALSE) -> 260.7345073 | S8: =HLOOKUP($A8&"_"&IF(S$4<10,"0"&S$4,S$4),ID_LR!$C$3:$JR$49,45,FALSE) -> 186.9054154 | T8: =HLOOKUP($A8&"_"&IF(T$4<10,"0"&T$4,T$4),ID_LR!$C$3:$JR$49,45,FALSE) -> 186.8661507 | U8: =HLOOKUP($A8&"_"&IF(U$4<10,"0"&U$4,U$4),ID_LR!$C$3:$JR$49,45,FALSE) -> 111.3274016 | V8: =HLOOKUP($A8&"_"&IF(V$4<10,"0"&V$4,V$4),ID_LR!$C$3:$JR$49,45,FALSE) -> 100.2251924 | W8: =HLOOKUP($A8&"_"&IF(W$4<10,"0"&W$4,W$4),ID_LR!$C$3:$JR$49,45,FALSE) -> 117.8767385 | X8: =HLOOKUP($A8&"_"&IF(X$4<10,"0"&X$4,X$4),ID_LR!$C$3:$JR$49,45,FALSE) -> 257.3104914 | Y8: =HLOOKUP($A8&"_"&IF(Y$4<10,"0"&Y$4,Y$4),ID_LR!$C$3:$JR$49,45,FALSE) -> 148.4760757 | Z8: =HLOOKUP($A8&"_"&IF(Z$4<10,"0"&Z$4,Z$4),ID_LR!$C$3:$JR$49,45,FALSE) -> 77.43248162 | AB8: =HLOOKUP($A8&"_"&IF(AB$4<10,"0"&AB$4,AB$4),System_LR!$C$3:$JR$49,45,FALSE) -> 195.5670116 | AC8: =HLOOKUP($A8&"_"&IF(AC$4<10,"0"&AC$4,AC$4),System_LR!$C$3:$JR$49,45,FALSE) -> 349.0907843 | AD8: =HLOOKUP($A8&"_"&IF(AD$4<10,"0"&AD$4,AD$4),System_LR!$C$3:$JR$49,45,FALSE) -> 539.6221602 | AE8: =HLOOKUP($A8&"_"&IF(AE$4<10,"0"&AE$4,AE$4),System_LR!$C$3:$JR$49,45,FALSE) -> 773.2335548 | AF8: =HLOOKUP($A8&"_"&IF(AF$4<10,"0"&AF$4,AF$4),System_LR!$C$3:$JR$49,45,FALSE) -> 549.9743173 | AG8: =HLOOKUP($A8&"_"&IF(AG$4<10,"0"&AG$4,AG$4),System_LR!$C$3:$JR$49,45,FALSE) -> 531.3927519 | AH8: =HLOOKUP($A8&"_"&IF(AH$4<10,"0"&AH$4,AH$4),System_LR!$C$3:$JR$49,45,FALSE) -> 319.2943263 | AI8: =HLOOKUP($A8&"_"&IF(AI$4<10,"0"&AI$4,AI$4),System_LR!$C$3:$JR$49,45,FALSE) -> 252.5823281 | AJ8: =HLOOKUP($A8&"_"&IF(AJ$4<10,"0"&AJ$4,AJ$4),System_LR!$C$3:$JR$49,45,FALSE) -> 292.7037536 | AK8: =HLOOKUP($A8&"_"&IF(AK$4<10,"0"&AK$4,AK$4),System_LR!$C$3:$JR$49,45,FALSE) -> 703.3000704 | AL8: =HLOOKUP($A8&"_"&IF(AL$4<10,"0"&AL$4,AL$4),System_LR!$C$3:$JR$49,45,FALSE) -> 431.2707994 | AM8: =HLOOKUP($A8&"_"&IF(AM$4<10,"0"&AM$4,AM$4),System_LR!$C$3:$JR$49,45,FALSE) -> 242.4035043 | AO8: -0.44 | AP8: -0.44 | AQ8: -0.44 | AR8: -0.44 | AS8: -0.26 | AT8: -0.26 | AU8: -0.26 | AV8: -0.26 | AW8: -0.26 | AX8: -0.44 | AY8: -0.44 | AZ8: -0.44
A9: 2027 | B9: =HLOOKUP($A9&"_"&IF(B$4<10,"0"&B$4,B$4),WA_LR!$C$3:$JR$49,45,FALSE) -> 121.4557057 | C9: =HLOOKUP($A9&"_"&IF(C$4<10,"0"&C$4,C$4),WA_LR!$C$3:$JR$49,45,FALSE) -> 211.2362903 | D9: =HLOOKUP($A9&"_"&IF(D$4<10,"0"&D$4,D$4),WA_LR!$C$3:$JR$49,45,FALSE) -> 343.9018601 | E9: =HLOOKUP($A9&"_"&IF(E$4<10,"0"&E$4,E$4),WA_LR!$C$3:$JR$49,45,FALSE) -> 513.854336 | F9: =HLOOKUP($A9&"_"&IF(F$4<10,"0"&F$4,F$4),WA_LR!$C$3:$JR$49,45,FALSE) -> 367.5040469 | G9: =HLOOKUP($A9&"_"&IF(G$4<10,"0"&G$4,G$4),WA_LR!$C$3:$JR$49,45,FALSE) -> 353.1893637 | H9: =HLOOKUP($A9&"_"&IF(H$4<10,"0"&H$4,H$4),WA_LR!$C$3:$JR$49,45,FALSE) -> 217.610248 | I9: =HLOOKUP($A9&"_"&IF(I$4<10,"0"&I$4,I$4),WA_LR!$C$3:$JR$49,45,FALSE) -> 157.1046041 | J9: =HLOOKUP($A9&"_"&IF(J$4<10,"0"&J$4,J$4),WA_LR!$C$3:$JR$49,45,FALSE) -> 177.613368 | K9: =HLOOKUP($A9&"_"&IF(K$4<10,"0"&K$4,K$4),WA_LR!$C$3:$JR$49,45,FALSE) -> 441.8864226 | L9: =HLOOKUP($A9&"_"&IF(L$4<10,"0"&L$4,L$4),WA_LR!$C$3:$JR$49,45,FALSE) -> 272.6923978 | M9: =HLOOKUP($A9&"_"&IF(M$4<10,"0"&M$4,M$4),WA_LR!$C$3:$JR$49,45,FALSE) -> 155.8459342 | O9: =HLOOKUP($A9&"_"&IF(O$4<10,"0"&O$4,O$4),ID_LR!$C$3:$JR$49,45,FALSE) -> 60.51807971 | P9: =HLOOKUP($A9&"_"&IF(P$4<10,"0"&P$4,P$4),ID_LR!$C$3:$JR$49,45,FALSE) -> 125.9112224 | Q9: =HLOOKUP($A9&"_"&IF(Q$4<10,"0"&Q$4,Q$4),ID_LR!$C$3:$JR$49,45,FALSE) -> 187.56119 | R9: =HLOOKUP($A9&"_"&IF(R$4<10,"0"&R$4,R$4),ID_LR!$C$3:$JR$49,45,FALSE) -> 263.9789681 | S9: =HLOOKUP($A9&"_"&IF(S$4<10,"0"&S$4,S$4),ID_LR!$C$3:$JR$49,45,FALSE) -> 188.6796907 | T9: =HLOOKUP($A9&"_"&IF(T$4<10,"0"&T$4,T$4),ID_LR!$C$3:$JR$49,45,FALSE) -> 189.9455176 | U9: =HLOOKUP($A9&"_"&IF(U$4<10,"0"&U$4,U$4),ID_LR!$C$3:$JR$49,45,FALSE) -> 114.6777732 | V9: =HLOOKUP($A9&"_"&IF(V$4<10,"0"&V$4,V$4),ID_LR!$C$3:$JR$49,45,FALSE) -> 100.9486119 | W9: =HLOOKUP($A9&"_"&IF(W$4<10,"0"&W$4,W$4),ID_LR!$C$3:$JR$49,45,FALSE) -> 117.8880738 | X9: =HLOOKUP($A9&"_"&IF(X$4<10,"0"&X$4,X$4),ID_LR!$C$3:$JR$49,45,FALSE) -> 257.3767463 | Y9: =HLOOKUP($A9&"_"&IF(Y$4<10,"0"&Y$4,Y$4),ID_LR!$C$3:$JR$49,45,FALSE) -> 145.3745062 | Z9: =HLOOKUP($A9&"_"&IF(Z$4<10,"0"&Z$4,Z$4),ID_LR!$C$3:$JR$49,45,FALSE) -> 74.5147455 | AB9: =HLOOKUP($A9&"_"&IF(AB$4<10,"0"&AB$4,AB$4),System_LR!$C$3:$JR$49,45,FALSE) -> 182.4137855 | AC9: =HLOOKUP($A9&"_"&IF(AC$4<10,"0"&AC$4,AC$4),System_LR!$C$3:$JR$49,45,FALSE) -> 337.5875127 | AD9: =HLOOKUP($A9&"_"&IF(AD$4<10,"0"&AD$4,AD$4),System_LR!$C$3:$JR$49,45,FALSE) -> 531.9030501 | AE9: =HLOOKUP($A9&"_"&IF(AE$4<10,"0"&AE$4,AE$4),System_LR!$C$3:$JR$49,45,FALSE) -> 778.2733041 | AF9: =HLOOKUP($A9&"_"&IF(AF$4<10,"0"&AF$4,AF$4),System_LR!$C$3:$JR$49,45,FALSE) -> 556.4437375 | AG9: =HLOOKUP($A9&"_"&IF(AG$4<10,"0"&AG$4,AG$4),System_LR!$C$3:$JR$49,45,FALSE) -> 543.3948813 | AH9: =HLOOKUP($A9&"_"&IF(AH$4<10,"0"&AH$4,AH$4),System_LR!$C$3:$JR$49,45,FALSE) -> 332.5480212 | AI9: =HLOOKUP($A9&"_"&IF(AI$4<10,"0"&AI$4,AI$4),System_LR!$C$3:$JR$49,45,FALSE) -> 258.3132159 | AJ9: =HLOOKUP($A9&"_"&IF(AJ$4<10,"0"&AJ$4,AJ$4),System_LR!$C$3:$JR$49,45,FALSE) -> 295.7614418 | AK9: =HLOOKUP($A9&"_"&IF(AK$4<10,"0"&AK$4,AK$4),System_LR!$C$3:$JR$49,45,FALSE) -> 699.7031689 | AL9: =HLOOKUP($A9&"_"&IF(AL$4<10,"0"&AL$4,AL$4),System_LR!$C$3:$JR$49,45,FALSE) -> 418.506904 | AM9: =HLOOKUP($A9&"_"&IF(AM$4<10,"0"&AM$4,AM$4),System_LR!$C$3:$JR$49,45,FALSE) -> 230.8006797 | AO9: -0.44 | AP9: -0.44 | AQ9: -0.44 | AR9: -0.44 | AS9: -0.26 | AT9: -0.26 | AU9: -0.26 | AV9: -0.26 | AW9: -0.26 | AX9: -0.44 | AY9: -0.44 | AZ9: -0.44
A10: 2028 | B10: =HLOOKUP($A10&"_"&IF(B$4<10,"0"&B$4,B$4),WA_LR!$C$3:$JR$49,45,FALSE) -> 114.3555708 | C10: =HLOOKUP($A10&"_"&IF(C$4<10,"0"&C$4,C$4),WA_LR!$C$3:$JR$49,45,FALSE) -> 200.8735558 | D10: =HLOOKUP($A10&"_"&IF(D$4<10,"0"&D$4,D$4),WA_LR!$C$3:$JR$49,45,FALSE) -> 331.5245836 | E10: =HLOOKUP($A10&"_"&IF(E$4<10,"0"&E$4,E$4),WA_LR!$C$3:$JR$49,45,FALSE) -> 503.085208 | F10: =HLOOKUP($A10&"_"&IF(F$4<10,"0"&F$4,F$4),WA_LR!$C$3:$JR$49,45,FALSE) -> 358.2367179 | G10: =HLOOKUP($A10&"_"&IF(G$4<10,"0"&G$4,G$4),WA_LR!$C$3:$JR$49,45,FALSE) -> 354.926914 | H10: =HLOOKUP($A10&"_"&IF(H$4<10,"0"&H$4,H$4),WA_LR!$C$3:$JR$49,45,FALSE) -> 209.7252675 | I10: =HLOOKUP($A10&"_"&IF(I$4<10,"0"&I$4,I$4),WA_LR!$C$3:$JR$49,45,FALSE) -> 152.7645796 | J10: =HLOOKUP($A10&"_"&IF(J$4<10,"0"&J$4,J$4),WA_LR!$C$3:$JR$49,45,FALSE) -> 166.7094629 | K10: =HLOOKUP($A10&"_"&IF(K$4<10,"0"&K$4,K$4),WA_LR!$C$3:$JR$49,45,FALSE) -> 418.3982805 | L10: =HLOOKUP($A10&"_"&IF(L$4<10,"0"&L$4,L$4),WA_LR!$C$3:$JR$49,45,FALSE) -> 248.5859324 | M10: =HLOOKUP($A10&"_"&IF(M$4<10,"0"&M$4,M$4),WA_LR!$C$3:$JR$49,45,FALSE) -> 134.3240192 | O10: =HLOOKUP($A10&"_"&IF(O$4<10,"0"&O$4,O$4),ID_LR!$C$3:$JR$49,45,FALSE) -> 58.05871658 | P10: =HLOOKUP($A10&"_"&IF(P$4<10,"0"&P$4,P$4),ID_LR!$C$3:$JR$49,45,FALSE) -> 122.4834671 | Q10: =HLOOKUP($A10&"_"&IF(Q$4<10,"0"&Q$4,Q$4),ID_LR!$C$3:$JR$49,45,FALSE) -> 183.260486 | R10: =HLOOKUP($A10&"_"&IF(R$4<10,"0"&R$4,R$4),ID_LR!$C$3:$JR$49,45,FALSE) -> 260.4877641 | S10: =HLOOKUP($A10&"_"&IF(S$4<10,"0"&S$4,S$4),ID_LR!$C$3:$JR$49,45,FALSE) -> 182.8929043 | T10: =HLOOKUP($A10&"_"&IF(T$4<10,"0"&T$4,T$4),ID_LR!$C$3:$JR$49,45,FALSE) -> 188.9099987 | U10: =HLOOKUP($A10&"_"&IF(U$4<10,"0"&U$4,U$4),ID_LR!$C$3:$JR$49,45,FALSE) -> 108.5082524 | V10: =HLOOKUP($A10&"_"&IF(V$4<10,"0"&V$4,V$4),ID_LR!$C$3:$JR$49,45,FALSE) -> 96.45371057 | W10: =HLOOKUP($A10&"_"&IF(W$4<10,"0"&W$4,W$4),ID_LR!$C$3:$JR$49,45,FALSE) -> 110.4861951 | X10: =HLOOKUP($A10&"_"&IF(X$4<10,"0"&X$4,X$4),ID_LR!$C$3:$JR$49,45,FALSE) -> 246.7663418 | Y10: =HLOOKUP($A10&"_"&IF(Y$4<10,"0"&Y$4,Y$4),ID_LR!$C$3:$JR$49,45,FALSE) -> 134.5747788 | Z10: =HLOOKUP($A10&"_"&IF(Z$4<10,"0"&Z$4,Z$4),ID_LR!$C$3:$JR$49,45,FALSE) -> 64.80033601 | AB10: =HLOOKUP($A10&"_"&IF(AB$4<10,"0"&AB$4,AB$4),System_LR!$C$3:$JR$49,45,FALSE) -> 172.8542873 | AC10: =HLOOKUP($A10&"_"&IF(AC$4<10,"0"&AC$4,AC$4),System_LR!$C$3:$JR$49,45,FALSE) -> 323.7970229 | AD10: =HLOOKUP($A10&"_"&IF(AD$4<10,"0"&AD$4,AD$4),System_LR!$C$3:$JR$49,45,FALSE) -> 515.2250696 | AE10: =HLOOKUP($A10&"_"&IF(AE$4<10,"0"&AE$4,AE$4),System_LR!$C$3:$JR$49,45,FALSE) -> 764.0129721 | AF10: =HLOOKUP($A10&"_"&IF(AF$4<10,"0"&AF$4,AF$4),System_LR!$C$3:$JR$49,45,FALSE) -> 541.3896222 | AG10: =HLOOKUP($A10&"_"&IF(AG$4<10,"0"&AG$4,AG$4),System_LR!$C$3:$JR$49,45,FALSE) -> 544.0969127 | AH10: =HLOOKUP($A10&"_"&IF(AH$4<10,"0"&AH$4,AH$4),System_LR!$C$3:$JR$49,45,FALSE) -> 318.4935199 | AI10: =HLOOKUP($A10&"_"&IF(AI$4<10,"0"&AI$4,AI$4),System_LR!$C$3:$JR$49,45,FALSE) -> 249.4782902 | AJ10: =HLOOKUP($A10&"_"&IF(AJ$4<10,"0"&AJ$4,AJ$4),System_LR!$C$3:$JR$49,45,FALSE) -> 277.4556581 | AK10: =HLOOKUP($A10&"_"&IF(AK$4<10,"0"&AK$4,AK$4),System_LR!$C$3:$JR$49,45,FALSE) -> 665.6046222 | AL10: =HLOOKUP($A10&"_"&IF(AL$4<10,"0"&AL$4,AL$4),System_LR!$C$3:$JR$49,45,FALSE) -> 383.6007111 | AM10: =HLOOKUP($A10&"_"&IF(AM$4<10,"0"&AM$4,AM$4),System_LR!$C$3:$JR$49,45,FALSE) -> 199.5643552 | AO10: -0.44 | AP10: -0.44 | AQ10: -0.44 | AR10: -0.44 | AS10: -0.26 | AT10: -0.26 | AU10: -0.26 | AV10: -0.26 | AW10: -0.26 | AX10: -0.44 | AY10: -0.44 | AZ10: -0.44
A11: 2029 | B11: =HLOOKUP($A11&"_"&IF(B$4<10,"0"&B$4,B$4),WA_LR!$C$3:$JR$49,45,FALSE) -> 90.92649203 | C11: =HLOOKUP($A11&"_"&IF(C$4<10,"0"&C$4,C$4),WA_LR!$C$3:$JR$49,45,FALSE) -> 178.1909806 | D11: =HLOOKUP($A11&"_"&IF(D$4<10,"0"&D$4,D$4),WA_LR!$C$3:$JR$49,45,FALSE) -> 306.2392095 | E11: =HLOOKUP($A11&"_"&IF(E$4<10,"0"&E$4,E$4),WA_LR!$C$3:$JR$49,45,FALSE) -> 477.3433946 | F11: =HLOOKUP($A11&"_"&IF(F$4<10,"0"&F$4,F$4),WA_LR!$C$3:$JR$49,45,FALSE) -> 333.915575 | G11: =HLOOKUP($A11&"_"&IF(G$4<10,"0"&G$4,G$4),WA_LR!$C$3:$JR$49,45,FALSE) -> 329.3812637 | H11: =HLOOKUP($A11&"_"&IF(H$4<10,"0"&H$4,H$4),WA_LR!$C$3:$JR$49,45,FALSE) -> 184.4340803 | I11: =HLOOKUP($A11&"_"&IF(I$4<10,"0"&I$4,I$4),WA_LR!$C$3:$JR$49,45,FALSE) -> 131.4599588 | J11: =HLOOKUP($A11&"_"&IF(J$4<10,"0"&J$4,J$4),WA_LR!$C$3:$JR$49,45,FALSE) -> 145.5794832 | K11: =HLOOKUP($A11&"_"&IF(K$4<10,"0"&K$4,K$4),WA_LR!$C$3:$JR$49,45,FALSE) -> 406.7987313 | L11: =HLOOKUP($A11&"_"&IF(L$4<10,"0"&L$4,L$4),WA_LR!$C$3:$JR$49,45,FALSE) -> 235.9934611 | M11: =HLOOKUP($A11&"_"&IF(M$4<10,"0"&M$4,M$4),WA_LR!$C$3:$JR$49,45,FALSE) -> 121.4356386 | O11: =HLOOKUP($A11&"_"&IF(O$4<10,"0"&O$4,O$4),ID_LR!$C$3:$JR$49,45,FALSE) -> 46.94331888 | P11: =HLOOKUP($A11&"_"&IF(P$4<10,"0"&P$4,P$4),ID_LR!$C$3:$JR$49,45,FALSE) -> 111.7633887 | Q11: =HLOOKUP($A11&"_"&IF(Q$4<10,"0"&Q$4,Q$4),ID_LR!$C$3:$JR$49,45,FALSE) -> 171.9102221 | R11: =HLOOKUP($A11&"_"&IF(R$4<10,"0"&R$4,R$4),ID_LR!$C$3:$JR$49,45,FALSE) -> 248.8049597 | S11: =HLOOKUP($A11&"_"&IF(S$4<10,"0"&S$4,S$4),ID_LR!$C$3:$JR$49,45,FALSE) -> 168.8082283 | T11: =HLOOKUP($A11&"_"&IF(T$4<10,"0"&T$4,T$4),ID_LR!$C$3:$JR$49,45,FALSE) -> 173.3839472 | U11: =HLOOKUP($A11&"_"&IF(U$4<10,"0"&U$4,U$4),ID_LR!$C$3:$JR$49,45,FALSE) -> 92.80112578 | V11: =HLOOKUP($A11&"_"&IF(V$4<10,"0"&V$4,V$4),ID_LR!$C$3:$JR$49,45,FALSE) -> 82.70225087 | W11: =HLOOKUP($A11&"_"&IF(W$4<10,"0"&W$4,W$4),ID_LR!$C$3:$JR$49,45,FALSE) -> 97.28789601 | X11: =HLOOKUP($A11&"_"&IF(X$4<10,"0"&X$4,X$4),ID_LR!$C$3:$JR$49,45,FALSE) -> 242.8400928 | Y11: =HLOOKUP($A11&"_"&IF(Y$4<10,"0"&Y$4,Y$4),ID_LR!$C$3:$JR$49,45,FALSE) -> 130.2595053 | Z11: =HLOOKUP($A11&"_"&IF(Z$4<10,"0"&Z$4,Z$4),ID_LR!$C$3:$JR$49,45,FALSE) -> 59.97651728 | AB11: =HLOOKUP($A11&"_"&IF(AB$4<10,"0"&AB$4,AB$4),System_LR!$C$3:$JR$49,45,FALSE) -> 138.3098109 | AC11: =HLOOKUP($A11&"_"&IF(AC$4<10,"0"&AC$4,AC$4),System_LR!$C$3:$JR$49,45,FALSE) -> 290.3943693 | AD11: =HLOOKUP($A11&"_"&IF(AD$4<10,"0"&AD$4,AD$4),System_LR!$C$3:$JR$49,45,FALSE) -> 478.5894316 | AE11: =HLOOKUP($A11&"_"&IF(AE$4<10,"0"&AE$4,AE$4),System_LR!$C$3:$JR$49,45,FALSE) -> 726.5883543 | AF11: =HLOOKUP($A11&"_"&IF(AF$4<10,"0"&AF$4,AF$4),System_LR!$C$3:$JR$49,45,FALSE) -> 502.9838032 | AG11: =HLOOKUP($A11&"_"&IF(AG$4<10,"0"&AG$4,AG$4),System_LR!$C$3:$JR$49,45,FALSE) -> 503.0252109 | AH11: =HLOOKUP($A11&"_"&IF(AH$4<10,"0"&AH$4,AH$4),System_LR!$C$3:$JR$49,45,FALSE) -> 277.4952061 | AI11: =HLOOKUP($A11&"_"&IF(AI$4<10,"0"&AI$4,AI$4),System_LR!$C$3:$JR$49,45,FALSE) -> 214.4222096 | AJ11: =HLOOKUP($A11&"_"&IF(AJ$4<10,"0"&AJ$4,AJ$4),System_LR!$C$3:$JR$49,45,FALSE) -> 243.1273792 | AK11: =HLOOKUP($A11&"_"&IF(AK$4<10,"0"&AK$4,AK$4),System_LR!$C$3:$JR$49,45,FALSE) -> 650.0788241 | AL11: =HLOOKUP($A11&"_"&IF(AL$4<10,"0"&AL$4,AL$4),System_LR!$C$3:$JR$49,45,FALSE) -> 366.6929664 | AM11: =HLOOKUP($A11&"_"&IF(AM$4<10,"0"&AM$4,AM$4),System_LR!$C$3:$JR$49,45,FALSE) -> 181.8521559 | AO11: -0.44 | AP11: -0.44 | AQ11: -0.44 | AR11: -0.44 | AS11: -0.26 | AT11: -0.26 | AU11: -0.26 | AV11: -0.26 | AW11: -0.26 | AX11: -0.44 | AY11: -0.44 | AZ11: -0.44
A12: 2030 | B12: =HLOOKUP($A12&"_"&IF(B$4<10,"0"&B$4,B$4),WA_LR!$C$3:$JR$49,45,FALSE) -> 80.23833843 | C12: =HLOOKUP($A12&"_"&IF(C$4<10,"0"&C$4,C$4),WA_LR!$C$3:$JR$49,45,FALSE) -> 166.3822598 | D12: =HLOOKUP($A12&"_"&IF(D$4<10,"0"&D$4,D$4),WA_LR!$C$3:$JR$49,45,FALSE) -> 293.9225016 | E12: =HLOOKUP($A12&"_"&IF(E$4<10,"0"&E$4,E$4),WA_LR!$C$3:$JR$49,45,FALSE) -> 465.1472619 | F12: =HLOOKUP($A12&"_"&IF(F$4<10,"0"&F$4,F$4),WA_LR!$C$3:$JR$49,45,FALSE) -> 323.1433401 | G12: =HLOOKUP($A12&"_"&IF(G$4<10,"0"&G$4,G$4),WA_LR!$C$3:$JR$49,45,FALSE) -> 319.0179709 | H12: =HLOOKUP($A12&"_"&IF(H$4<10,"0"&H$4,H$4),WA_LR!$C$3:$JR$49,45,FALSE) -> 174.1348139 | I12: =HLOOKUP($A12&"_"&IF(I$4<10,"0"&I$4,I$4),WA_LR!$C$3:$JR$49,45,FALSE) -> 119.3011942 | J12: =HLOOKUP($A12&"_"&IF(J$4<10,"0"&J$4,J$4),WA_LR!$C$3:$JR$49,45,FALSE) -> 127.5233694 | K12: =HLOOKUP($A12&"_"&IF(K$4<10,"0"&K$4,K$4),WA_LR!$C$3:$JR$49,45,FALSE) -> 394.6859888 | L12: =HLOOKUP($A12&"_"&IF(L$4<10,"0"&L$4,L$4),WA_LR!$C$3:$JR$49,45,FALSE) -> 223.4211929 | M12: =HLOOKUP($A12&"_"&IF(M$4<10,"0"&M$4,M$4),WA_LR!$C$3:$JR$49,45,FALSE) -> 108.1615118 | O12: =HLOOKUP($A12&"_"&IF(O$4<10,"0"&O$4,O$4),ID_LR!$C$3:$JR$49,45,FALSE) -> 42.80123633 | P12: =HLOOKUP($A12&"_"&IF(P$4<10,"0"&P$4,P$4),ID_LR!$C$3:$JR$49,45,FALSE) -> 107.3241438 | Q12: =HLOOKUP($A12&"_"&IF(Q$4<10,"0"&Q$4,Q$4),ID_LR!$C$3:$JR$49,45,FALSE) -> 167.7292495 | R12: =HLOOKUP($A12&"_"&IF(R$4<10,"0"&R$4,R$4),ID_LR!$C$3:$JR$49,45,FALSE) -> 244.6689601 | S12: =HLOOKUP($A12&"_"&IF(S$4<10,"0"&S$4,S$4),ID_LR!$C$3:$JR$49,45,FALSE) -> 162.216119 | T12: =HLOOKUP($A12&"_"&IF(T$4<10,"0"&T$4,T$4),ID_LR!$C$3:$JR$49,45,FALSE) -> 166.1800617 | U12: =HLOOKUP($A12&"_"&IF(U$4<10,"0"&U$4,U$4),ID_LR!$C$3:$JR$49,45,FALSE) -> 85.31288545 | V12: =HLOOKUP($A12&"_"&IF(V$4<10,"0"&V$4,V$4),ID_LR!$C$3:$JR$49,45,FALSE) -> 74.22353627 | W12: =HLOOKUP($A12&"_"&IF(W$4<10,"0"&W$4,W$4),ID_LR!$C$3:$JR$49,45,FALSE) -> 86.28146902 | X12: =HLOOKUP($A12&"_"&IF(X$4<10,"0"&X$4,X$4),ID_LR!$C$3:$JR$49,45,FALSE) -> 238.7199835 | Y12: =HLOOKUP($A12&"_"&IF(Y$4<10,"0"&Y$4,Y$4),ID_LR!$C$3:$JR$49,45,FALSE) -> 125.9824936 | Z12: =HLOOKUP($A12&"_"&IF(Z$4<10,"0"&Z$4,Z$4),ID_LR!$C$3:$JR$49,45,FALSE) -> 54.94408361 | AB12: =HLOOKUP($A12&"_"&IF(AB$4<10,"0"&AB$4,AB$4),System_LR!$C$3:$JR$49,45,FALSE) -> 123.4795748 | AC12: =HLOOKUP($A12&"_"&IF(AC$4<10,"0"&AC$4,AC$4),System_LR!$C$3:$JR$49,45,FALSE) -> 274.1464036 | AD12: =HLOOKUP($A12&"_"&IF(AD$4<10,"0"&AD$4,AD$4),System_LR!$C$3:$JR$49,45,FALSE) -> 462.0917511 | AE12: =HLOOKUP($A12&"_"&IF(AE$4<10,"0"&AE$4,AE$4),System_LR!$C$3:$JR$49,45,FALSE) -> 710.2562221 | AF12: =HLOOKUP($A12&"_"&IF(AF$4<10,"0"&AF$4,AF$4),System_LR!$C$3:$JR$49,45,FALSE) -> 485.6194591 | AG12: =HLOOKUP($A12&"_"&IF(AG$4<10,"0"&AG$4,AG$4),System_LR!$C$3:$JR$49,45,FALSE) -> 485.4580327 | AH12: =HLOOKUP($A12&"_"&IF(AH$4<10,"0"&AH$4,AH$4),System_LR!$C$3:$JR$49,45,FALSE) -> 259.7076993 | AI12: =HLOOKUP($A12&"_"&IF(AI$4<10,"0"&AI$4,AI$4),System_LR!$C$3:$JR$49,45,FALSE) -> 193.7847305 | AJ12: =HLOOKUP($A12&"_"&IF(AJ$4<10,"0"&AJ$4,AJ$4),System_LR!$C$3:$JR$49,45,FALSE) -> 214.0648384 | AK12: =HLOOKUP($A12&"_"&IF(AK$4<10,"0"&AK$4,AK$4),System_LR!$C$3:$JR$49,45,FALSE) -> 633.8459724 | AL12: =HLOOKUP($A12&"_"&IF(AL$4<10,"0"&AL$4,AL$4),System_LR!$C$3:$JR$49,45,FALSE) -> 349.8436866 | AM12: =HLOOKUP($A12&"_"&IF(AM$4<10,"0"&AM$4,AM$4),System_LR!$C$3:$JR$49,45,FALSE) -> 163.5455954 | AO12: -0.44 | AP12: -0.44 | AQ12: -0.44 | AR12: -0.44 | AS12: -0.26 | AT12: -0.26 | AU12: -0.26 | AV12: -0.26 | AW12: -0.26 | AX12: -0.44 | AY12: -0.44 | AZ12: -0.44
A13: 2031 | B13: =HLOOKUP($A13&"_"&IF(B$4<10,"0"&B$4,B$4),WA_LR!$C$3:$JR$49,45,FALSE) -> 63.41196601 | C13: =HLOOKUP($A13&"_"&IF(C$4<10,"0"&C$4,C$4),WA_LR!$C$3:$JR$49,45,FALSE) -> 150.0495359 | D13: =HLOOKUP($A13&"_"&IF(D$4<10,"0"&D$4,D$4),WA_LR!$C$3:$JR$49,45,FALSE) -> 280.3645956 | E13: =HLOOKUP($A13&"_"&IF(E$4<10,"0"&E$4,E$4),WA_LR!$C$3:$JR$49,45,FALSE) -> 451.936554 | F13: =HLOOKUP($A13&"_"&IF(F$4<10,"0"&F$4,F$4),WA_LR!$C$3:$JR$49,45,FALSE) -> 310.0659971 | G13: =HLOOKUP($A13&"_"&IF(G$4<10,"0"&G$4,G$4),WA_LR!$C$3:$JR$49,45,FALSE) -> 306.6158128 | H13: =HLOOKUP($A13&"_"&IF(H$4<10,"0"&H$4,H$4),WA_LR!$C$3:$JR$49,45,FALSE) -> 160.9568222 | I13: =HLOOKUP($A13&"_"&IF(I$4<10,"0"&I$4,I$4),WA_LR!$C$3:$JR$49,45,FALSE) -> 104.578173 | J13: =HLOOKUP($A13&"_"&IF(J$4<10,"0"&J$4,J$4),WA_LR!$C$3:$JR$49,45,FALSE) -> 120.3002978 | K13: =HLOOKUP($A13&"_"&IF(K$4<10,"0"&K$4,K$4),WA_LR!$C$3:$JR$49,45,FALSE) -> 378.9798788 | L13: =HLOOKUP($A13&"_"&IF(L$4<10,"0"&L$4,L$4),WA_LR!$C$3:$JR$49,45,FALSE) -> 209.1489223 | M13: =HLOOKUP($A13&"_"&IF(M$4<10,"0"&M$4,M$4),WA_LR!$C$3:$JR$49,45,FALSE) -> 93.46859887 | O13: =HLOOKUP($A13&"_"&IF(O$4<10,"0"&O$4,O$4),ID_LR!$C$3:$JR$49,45,FALSE) -> 36.01950604 | P13: =HLOOKUP($A13&"_"&IF(P$4<10,"0"&P$4,P$4),ID_LR!$C$3:$JR$49,45,FALSE) -> 101.1044957 | Q13: =HLOOKUP($A13&"_"&IF(Q$4<10,"0"&Q$4,Q$4),ID_LR!$C$3:$JR$49,45,FALSE) -> 163.5361322 | R13: =HLOOKUP($A13&"_"&IF(R$4<10,"0"&R$4,R$4),ID_LR!$C$3:$JR$49,45,FALSE) -> 240.6563521 | S13: =HLOOKUP($A13&"_"&IF(S$4<10,"0"&S$4,S$4),ID_LR!$C$3:$JR$49,45,FALSE) -> 155.0057097 | T13: =HLOOKUP($A13&"_"&IF(T$4<10,"0"&T$4,T$4),ID_LR!$C$3:$JR$49,45,FALSE) -> 158.5339972 | U13: =HLOOKUP($A13&"_"&IF(U$4<10,"0"&U$4,U$4),ID_LR!$C$3:$JR$49,45,FALSE) -> 76.93958792 | V13: =HLOOKUP($A13&"_"&IF(V$4<10,"0"&V$4,V$4),ID_LR!$C$3:$JR$49,45,FALSE) -> 64.98461849 | W13: =HLOOKUP($A13&"_"&IF(W$4<10,"0"&W$4,W$4),ID_LR!$C$3:$JR$49,45,FALSE) -> 81.05819196 | X13: =HLOOKUP($A13&"_"&IF(X$4<10,"0"&X$4,X$4),ID_LR!$C$3:$JR$49,45,FALSE) -> 233.293911 | Y13: =HLOOKUP($A13&"_"&IF(Y$4<10,"0"&Y$4,Y$4),ID_LR!$C$3:$JR$49,45,FALSE) -> 121.4844838 | Z13: =HLOOKUP($A13&"_"&IF(Z$4<10,"0"&Z$4,Z$4),ID_LR!$C$3:$JR$49,45,FALSE) -> 49.82931717 | AB13: =HLOOKUP($A13&"_"&IF(AB$4<10,"0"&AB$4,AB$4),System_LR!$C$3:$JR$49,45,FALSE) -> 99.87147206 | AC13: =HLOOKUP($A13&"_"&IF(AC$4<10,"0"&AC$4,AC$4),System_LR!$C$3:$JR$49,45,FALSE) -> 251.5940316 | AD13: =HLOOKUP($A13&"_"&IF(AD$4<10,"0"&AD$4,AD$4),System_LR!$C$3:$JR$49,45,FALSE) -> 444.3407278 | AE13: =HLOOKUP($A13&"_"&IF(AE$4<10,"0"&AE$4,AE$4),System_LR!$C$3:$JR$49,45,FALSE) -> 693.032906 | AF13: =HLOOKUP($A13&"_"&IF(AF$4<10,"0"&AF$4,AF$4),System_LR!$C$3:$JR$49,45,FALSE) -> 465.3317068 | AG13: =HLOOKUP($A13&"_"&IF(AG$4<10,"0"&AG$4,AG$4),System_LR!$C$3:$JR$49,45,FALSE) -> 465.40981 | AH13: =HLOOKUP($A13&"_"&IF(AH$4<10,"0"&AH$4,AH$4),System_LR!$C$3:$JR$49,45,FALSE) -> 238.1564101 | AI13: =HLOOKUP($A13&"_"&IF(AI$4<10,"0"&AI$4,AI$4),System_LR!$C$3:$JR$49,45,FALSE) -> 169.8227915 | AJ13: =HLOOKUP($A13&"_"&IF(AJ$4<10,"0"&AJ$4,AJ$4),System_LR!$C$3:$JR$49,45,FALSE) -> 201.6184897 | AK13: =HLOOKUP($A13&"_"&IF(AK$4<10,"0"&AK$4,AK$4),System_LR!$C$3:$JR$49,45,FALSE) -> 612.7137898 | AL13: =HLOOKUP($A13&"_"&IF(AL$4<10,"0"&AL$4,AL$4),System_LR!$C$3:$JR$49,45,FALSE) -> 331.0734061 | AM13: =HLOOKUP($A13&"_"&IF(AM$4<10,"0"&AM$4,AM$4),System_LR!$C$3:$JR$49,45,FALSE) -> 143.737916 | AO13: -0.44 | AP13: -0.44 | AQ13: -0.44 | AR13: -0.44 | AS13: -0.26 | AT13: -0.26 | AU13: -0.26 | AV13: -0.26 | AW13: -0.26 | AX13: -0.44 | AY13: -0.44 | AZ13: -0.44
A14: 2032 | B14: =HLOOKUP($A14&"_"&IF(B$4<10,"0"&B$4,B$4),WA_LR!$C$3:$JR$49,45,FALSE) -> 47.40176989 | C14: =HLOOKUP($A14&"_"&IF(C$4<10,"0"&C$4,C$4),WA_LR!$C$3:$JR$49,45,FALSE) -> 135.1881982 | D14: =HLOOKUP($A14&"_"&IF(D$4<10,"0"&D$4,D$4),WA_LR!$C$3:$JR$49,45,FALSE) -> 263.8185035 | E14: =HLOOKUP($A14&"_"&IF(E$4<10,"0"&E$4,E$4),WA_LR!$C$3:$JR$49,45,FALSE) -> 435.5097891 | F14: =HLOOKUP($A14&"_"&IF(F$4<10,"0"&F$4,F$4),WA_LR!$C$3:$JR$49,45,FALSE) -> 297.6680555 | G14: =HLOOKUP($A14&"_"&IF(G$4<10,"0"&G$4,G$4),WA_LR!$C$3:$JR$49,45,FALSE) -> 282.9859666 | H14: =HLOOKUP($A14&"_"&IF(H$4<10,"0"&H$4,H$4),WA_LR!$C$3:$JR$49,45,FALSE) -> 147.7038419 | I14: =HLOOKUP($A14&"_"&IF(I$4<10,"0"&I$4,I$4),WA_LR!$C$3:$JR$49,45,FALSE) -> 88.93717235 | J14: =HLOOKUP($A14&"_"&IF(J$4<10,"0"&J$4,J$4),WA_LR!$C$3:$JR$49,45,FALSE) -> 104.2669301 | K14: =HLOOKUP($A14&"_"&IF(K$4<10,"0"&K$4,K$4),WA_LR!$C$3:$JR$49,45,FALSE) -> 361.8455918 | L14: =HLOOKUP($A14&"_"&IF(L$4<10,"0"&L$4,L$4),WA_LR!$C$3:$JR$49,45,FALSE) -> 191.9897774 | M14: =HLOOKUP($A14&"_"&IF(M$4<10,"0"&M$4,M$4),WA_LR!$C$3:$JR$49,45,FALSE) -> 76.77053507 | O14: =HLOOKUP($A14&"_"&IF(O$4<10,"0"&O$4,O$4),ID_LR!$C$3:$JR$49,45,FALSE) -> 29.77792731 | P14: =HLOOKUP($A14&"_"&IF(P$4<10,"0"&P$4,P$4),ID_LR!$C$3:$JR$49,45,FALSE) -> 96.41441206 | Q14: =HLOOKUP($A14&"_"&IF(Q$4<10,"0"&Q$4,Q$4),ID_LR!$C$3:$JR$49,45,FALSE) -> 157.8647173 | R14: =HLOOKUP($A14&"_"&IF(R$4<10,"0"&R$4,R$4),ID_LR!$C$3:$JR$49,45,FALSE) -> 234.9811475 | S14: =HLOOKUP($A14&"_"&IF(S$4<10,"0"&S$4,S$4),ID_LR!$C$3:$JR$49,45,FALSE) -> 148.1349548 | T14: =HLOOKUP($A14&"_"&IF(T$4<10,"0"&T$4,T$4),ID_LR!$C$3:$JR$49,45,FALSE) -> 144.976886 | U14: =HLOOKUP($A14&"_"&IF(U$4<10,"0"&U$4,U$4),ID_LR!$C$3:$JR$49,45,FALSE) -> 68.45856347 | V14: =HLOOKUP($A14&"_"&IF(V$4<10,"0"&V$4,V$4),ID_LR!$C$3:$JR$49,45,FALSE) -> 55.21410673 | W14: =HLOOKUP($A14&"_"&IF(W$4<10,"0"&W$4,W$4),ID_LR!$C$3:$JR$49,45,FALSE) -> 71.4463895 | X14: =HLOOKUP($A14&"_"&IF(X$4<10,"0"&X$4,X$4),ID_LR!$C$3:$JR$49,45,FALSE) -> 227.2373611 | Y14: =HLOOKUP($A14&"_"&IF(Y$4<10,"0"&Y$4,Y$4),ID_LR!$C$3:$JR$49,45,FALSE) -> 115.5721058 | Z14: =HLOOKUP($A14&"_"&IF(Z$4<10,"0"&Z$4,Z$4),ID_LR!$C$3:$JR$49,45,FALSE) -> 43.74651113 | AB14: =HLOOKUP($A14&"_"&IF(AB$4<10,"0"&AB$4,AB$4),System_LR!$C$3:$JR$49,45,FALSE) -> 77.6196972 | AC14: =HLOOKUP($A14&"_"&IF(AC$4<10,"0"&AC$4,AC$4),System_LR!$C$3:$JR$49,45,FALSE) -> 232.0426103 | AD14: =HLOOKUP($A14&"_"&IF(AD$4<10,"0"&AD$4,AD$4),System_LR!$C$3:$JR$49,45,FALSE) -> 422.1232208 | AE14: =HLOOKUP($A14&"_"&IF(AE$4<10,"0"&AE$4,AE$4),System_LR!$C$3:$JR$49,45,FALSE) -> 670.9309366 | AF14: =HLOOKUP($A14&"_"&IF(AF$4<10,"0"&AF$4,AF$4),System_LR!$C$3:$JR$49,45,FALSE) -> 446.0630103 | AG14: =HLOOKUP($A14&"_"&IF(AG$4<10,"0"&AG$4,AG$4),System_LR!$C$3:$JR$49,45,FALSE) -> 428.2228526 | AH14: =HLOOKUP($A14&"_"&IF(AH$4<10,"0"&AH$4,AH$4),System_LR!$C$3:$JR$49,45,FALSE) -> 216.4224054 | AI14: =HLOOKUP($A14&"_"&IF(AI$4<10,"0"&AI$4,AI$4),System_LR!$C$3:$JR$49,45,FALSE) -> 144.4112791 | AJ14: =HLOOKUP($A14&"_"&IF(AJ$4<10,"0"&AJ$4,AJ$4),System_LR!$C$3:$JR$49,45,FALSE) -> 175.9733196 | AK14: =HLOOKUP($A14&"_"&IF(AK$4<10,"0"&AK$4,AK$4),System_LR!$C$3:$JR$49,45,FALSE) -> 589.5229528 | AL14: =HLOOKUP($A14&"_"&IF(AL$4<10,"0"&AL$4,AL$4),System_LR!$C$3:$JR$49,45,FALSE) -> 308.0018832 | AM14: =HLOOKUP($A14&"_"&IF(AM$4<10,"0"&AM$4,AM$4),System_LR!$C$3:$JR$49,45,FALSE) -> 120.9570462 | AO14: -0.44 | AP14: -0.44 | AQ14: -0.44 | AR14: -0.44 | AS14: -0.26 | AT14: -0.26 | AU14: -0.26 | AV14: -0.26 | AW14: -0.26 | AX14: -0.44 | AY14: -0.44 | AZ14: -0.44
A15: 2033 | B15: =HLOOKUP($A15&"_"&IF(B$4<10,"0"&B$4,B$4),WA_LR!$C$3:$JR$49,45,FALSE) -> 33.79682469 | C15: =HLOOKUP($A15&"_"&IF(C$4<10,"0"&C$4,C$4),WA_LR!$C$3:$JR$49,45,FALSE) -> 119.7018114 | D15: =HLOOKUP($A15&"_"&IF(D$4<10,"0"&D$4,D$4),WA_LR!$C$3:$JR$49,45,FALSE) -> 247.1752049 | E15: =HLOOKUP($A15&"_"&IF(E$4<10,"0"&E$4,E$4),WA_LR!$C$3:$JR$49,45,FALSE) -> 417.9314244 | F15: =HLOOKUP($A15&"_"&IF(F$4<10,"0"&F$4,F$4),WA_LR!$C$3:$JR$49,45,FALSE) -> 282.2269944 | G15: =HLOOKUP($A15&"_"&IF(G$4<10,"0"&G$4,G$4),WA_LR!$C$3:$JR$49,45,FALSE) -> 270.5190857 | H15: =HLOOKUP($A15&"_"&IF(H$4<10,"0"&H$4,H$4),WA_LR!$C$3:$JR$49,45,FALSE) -> 131.3293822 | I15: =HLOOKUP($A15&"_"&IF(I$4<10,"0"&I$4,I$4),WA_LR!$C$3:$JR$49,45,FALSE) -> 70.19016093 | J15: =HLOOKUP($A15&"_"&IF(J$4<10,"0"&J$4,J$4),WA_LR!$C$3:$JR$49,45,FALSE) -> 92.83983505 | K15: =HLOOKUP($A15&"_"&IF(K$4<10,"0"&K$4,K$4),WA_LR!$C$3:$JR$49,45,FALSE) -> 345.2729489 | L15: =HLOOKUP($A15&"_"&IF(L$4<10,"0"&L$4,L$4),WA_LR!$C$3:$JR$49,45,FALSE) -> 173.0903931 | M15: =HLOOKUP($A15&"_"&IF(M$4<10,"0"&M$4,M$4),WA_LR!$C$3:$JR$49,45,FALSE) -> 58.34519245 | O15: =HLOOKUP($A15&"_"&IF(O$4<10,"0"&O$4,O$4),ID_LR!$C$3:$JR$49,45,FALSE) -> 24.79104909 | P15: =HLOOKUP($A15&"_"&IF(P$4<10,"0"&P$4,P$4),ID_LR!$C$3:$JR$49,45,FALSE) -> 90.02933477 | Q15: =HLOOKUP($A15&"_"&IF(Q$4<10,"0"&Q$4,Q$4),ID_LR!$C$3:$JR$49,45,FALSE) -> 151.7754878 | R15: =HLOOKUP($A15&"_"&IF(R$4<10,"0"&R$4,R$4),ID_LR!$C$3:$JR$49,45,FALSE) -> 228.6432877 | S15: =HLOOKUP($A15&"_"&IF(S$4<10,"0"&S$4,S$4),ID_LR!$C$3:$JR$49,45,FALSE) -> 139.537572 | T15: =HLOOKUP($A15&"_"&IF(T$4<10,"0"&T$4,T$4),ID_LR!$C$3:$JR$49,45,FALSE) -> 137.0298787 | U15: =HLOOKUP($A15&"_"&IF(U$4<10,"0"&U$4,U$4),ID_LR!$C$3:$JR$49,45,FALSE) -> 58.17111953 | V15: =HLOOKUP($A15&"_"&IF(V$4<10,"0"&V$4,V$4),ID_LR!$C$3:$JR$49,45,FALSE) -> 43.69743952 | W15: =HLOOKUP($A15&"_"&IF(W$4<10,"0"&W$4,W$4),ID_LR!$C$3:$JR$49,45,FALSE) -> 64.05643064 | X15: =HLOOKUP($A15&"_"&IF(X$4<10,"0"&X$4,X$4),ID_LR!$C$3:$JR$49,45,FALSE) -> 221.4414029 | Y15: =HLOOKUP($A15&"_"&IF(Y$4<10,"0"&Y$4,Y$4),ID_LR!$C$3:$JR$49,45,FALSE) -> 108.7088252 | Z15: =HLOOKUP($A15&"_"&IF(Z$4<10,"0"&Z$4,Z$4),ID_LR!$C$3:$JR$49,45,FALSE) -> 36.68526706 | AB15: =HLOOKUP($A15&"_"&IF(AB$4<10,"0"&AB$4,AB$4),System_LR!$C$3:$JR$49,45,FALSE) -> 59.02787378 | AC15: =HLOOKUP($A15&"_"&IF(AC$4<10,"0"&AC$4,AC$4),System_LR!$C$3:$JR$49,45,FALSE) -> 210.1711462 | AD15: =HLOOKUP($A15&"_"&IF(AD$4<10,"0"&AD$4,AD$4),System_LR!$C$3:$JR$49,45,FALSE) -> 399.3906927 | AE15: =HLOOKUP($A15&"_"&IF(AE$4<10,"0"&AE$4,AE$4),System_LR!$C$3:$JR$49,45,FALSE) -> 647.0147121 | AF15: =HLOOKUP($A15&"_"&IF(AF$4<10,"0"&AF$4,AF$4),System_LR!$C$3:$JR$49,45,FALSE) -> 422.0245664 | AG15: =HLOOKUP($A15&"_"&IF(AG$4<10,"0"&AG$4,AG$4),System_LR!$C$3:$JR$49,45,FALSE) -> 407.8089644 | AH15: =HLOOKUP($A15&"_"&IF(AH$4<10,"0"&AH$4,AH$4),System_LR!$C$3:$JR$49,45,FALSE) -> 189.7605017 | AI15: =HLOOKUP($A15&"_"&IF(AI$4<10,"0"&AI$4,AI$4),System_LR!$C$3:$JR$49,45,FALSE) -> 114.1476004 | AJ15: =HLOOKUP($A15&"_"&IF(AJ$4<10,"0"&AJ$4,AJ$4),System_LR!$C$3:$JR$49,45,FALSE) -> 157.1562657 | AK15: =HLOOKUP($A15&"_"&IF(AK$4<10,"0"&AK$4,AK$4),System_LR!$C$3:$JR$49,45,FALSE) -> 567.1543518 | AL15: =HLOOKUP($A15&"_"&IF(AL$4<10,"0"&AL$4,AL$4),System_LR!$C$3:$JR$49,45,FALSE) -> 282.2392183 | AM15: =HLOOKUP($A15&"_"&IF(AM$4<10,"0"&AM$4,AM$4),System_LR!$C$3:$JR$49,45,FALSE) -> 95.47045951 | AO15: -0.44 | AP15: -0.44 | AQ15: -0.44 | AR15: -0.44 | AS15: -0.26 | AT15: -0.26 | AU15: -0.26 | AV15: -0.26 | AW15: -0.26 | AX15: -0.44 | AY15: -0.44 | AZ15: -0.44
A16: 2034 | B16: =HLOOKUP($A16&"_"&IF(B$4<10,"0"&B$4,B$4),WA_LR!$C$3:$JR$49,45,FALSE) -> -27.80393449 | C16: =HLOOKUP($A16&"_"&IF(C$4<10,"0"&C$4,C$4),WA_LR!$C$3:$JR$49,45,FALSE) -> 55.72337285 | D16: =HLOOKUP($A16&"_"&IF(D$4<10,"0"&D$4,D$4),WA_LR!$C$3:$JR$49,45,FALSE) -> 183.0312224 | E16: =HLOOKUP($A16&"_"&IF(E$4<10,"0"&E$4,E$4),WA_LR!$C$3:$JR$49,45,FALSE) -> 357.8014863 | F16: =HLOOKUP($A16&"_"&IF(F$4<10,"0"&F$4,F$4),WA_LR!$C$3:$JR$49,45,FALSE) -> 225.2423829 | G16: =HLOOKUP($A16&"_"&IF(G$4<10,"0"&G$4,G$4),WA_LR!$C$3:$JR$49,45,FALSE) -> 207.9538913 | H16: =HLOOKUP($A16&"_"&IF(H$4<10,"0"&H$4,H$4),WA_LR!$C$3:$JR$49,45,FALSE) -> 78.60555518 | I16: =HLOOKUP($A16&"_"&IF(I$4<10,"0"&I$4,I$4),WA_LR!$C$3:$JR$49,45,FALSE) -> 15.31901507 | J16: =HLOOKUP($A16&"_"&IF(J$4<10,"0"&J$4,J$4),WA_LR!$C$3:$JR$49,45,FALSE) -> 35.45037468 | K16: =HLOOKUP($A16&"_"&IF(K$4<10,"0"&K$4,K$4),WA_LR!$C$3:$JR$49,45,FALSE) -> 281.9512625 | L16: =HLOOKUP($A16&"_"&IF(L$4<10,"0"&L$4,L$4),WA_LR!$C$3:$JR$49,45,FALSE) -> 117.5392069 | M16: =HLOOKUP($A16&"_"&IF(M$4<10,"0"&M$4,M$4),WA_LR!$C$3:$JR$49,45,FALSE) -> -2.374599411 | O16: =HLOOKUP($A16&"_"&IF(O$4<10,"0"&O$4,O$4),ID_LR!$C$3:$JR$49,45,FALSE) -> -6.621078208 | P16: =HLOOKUP($A16&"_"&IF(P$4<10,"0"&P$4,P$4),ID_LR!$C$3:$JR$49,45,FALSE) -> 57.64466974 | Q16: =HLOOKUP($A16&"_"&IF(Q$4<10,"0"&Q$4,Q$4),ID_LR!$C$3:$JR$49,45,FALSE) -> 119.8395906 | R16: =HLOOKUP($A16&"_"&IF(R$4<10,"0"&R$4,R$4),ID_LR!$C$3:$JR$49,45,FALSE) -> 198.835155 | S16: =HLOOKUP($A16&"_"&IF(S$4<10,"0"&S$4,S$4),ID_LR!$C$3:$JR$49,45,FALSE) -> 107.9655378 | T16: =HLOOKUP($A16&"_"&IF(T$4<10,"0"&T$4,T$4),ID_LR!$C$3:$JR$49,45,FALSE) -> 101.6276532 | U16: =HLOOKUP($A16&"_"&IF(U$4<10,"0"&U$4,U$4),ID_LR!$C$3:$JR$49,45,FALSE) -> 27.67335407 | V16: =HLOOKUP($A16&"_"&IF(V$4<10,"0"&V$4,V$4),ID_LR!$C$3:$JR$49,45,FALSE) -> 12.03531472 | W16: =HLOOKUP($A16&"_"&IF(W$4<10,"0"&W$4,W$4),ID_LR!$C$3:$JR$49,45,FALSE) -> 31.51149821 | X16: =HLOOKUP($A16&"_"&IF(X$4<10,"0"&X$4,X$4),ID_LR!$C$3:$JR$49,45,FALSE) -> 189.9191148 | Y16: =HLOOKUP($A16&"_"&IF(Y$4<10,"0"&Y$4,Y$4),ID_LR!$C$3:$JR$49,45,FALSE) -> 81.63421355 | Z16: =HLOOKUP($A16&"_"&IF(Z$4<10,"0"&Z$4,Z$4),ID_LR!$C$3:$JR$49,45,FALSE) -> 6.293362058 | AB16: =HLOOKUP($A16&"_"&IF(AB$4<10,"0"&AB$4,AB$4),System_LR!$C$3:$JR$49,45,FALSE) -> -33.9850127 | AC16: =HLOOKUP($A16&"_"&IF(AC$4<10,"0"&AC$4,AC$4),System_LR!$C$3:$JR$49,45,FALSE) -> 113.8080426 | AD16: =HLOOKUP($A16&"_"&IF(AD$4<10,"0"&AD$4,AD$4),System_LR!$C$3:$JR$49,45,FALSE) -> 303.3108131 | AE16: =HLOOKUP($A16&"_"&IF(AE$4<10,"0"&AE$4,AE$4),System_LR!$C$3:$JR$49,45,FALSE) -> 557.0766413 | AF16: =HLOOKUP($A16&"_"&IF(AF$4<10,"0"&AF$4,AF$4),System_LR!$C$3:$JR$49,45,FALSE) -> 333.4679207 | AG16: =HLOOKUP($A16&"_"&IF(AG$4<10,"0"&AG$4,AG$4),System_LR!$C$3:$JR$49,45,FALSE) -> 309.8415445 | AH16: =HLOOKUP($A16&"_"&IF(AH$4<10,"0"&AH$4,AH$4),System_LR!$C$3:$JR$49,45,FALSE) -> 106.5389093 | AI16: =HLOOKUP($A16&"_"&IF(AI$4<10,"0"&AI$4,AI$4),System_LR!$C$3:$JR$49,45,FALSE) -> 27.61432979 | AJ16: =HLOOKUP($A16&"_"&IF(AJ$4<10,"0"&AJ$4,AJ$4),System_LR!$C$3:$JR$49,45,FALSE) -> 67.22187289 | AK16: =HLOOKUP($A16&"_"&IF(AK$4<10,"0"&AK$4,AK$4),System_LR!$C$3:$JR$49,45,FALSE) -> 472.3103773 | AL16: =HLOOKUP($A16&"_"&IF(AL$4<10,"0"&AL$4,AL$4),System_LR!$C$3:$JR$49,45,FALSE) -> 199.6134204 | AM16: =HLOOKUP($A16&"_"&IF(AM$4<10,"0"&AM$4,AM$4),System_LR!$C$3:$JR$49,45,FALSE) -> 4.358762647 | AO16: -0.44 | AP16: -0.44 | AQ16: -0.44 | AR16: -0.44 | AS16: -0.26 | AT16: -0.26 | AU16: -0.26 | AV16: -0.26 | AW16: -0.26 | AX16: -0.44 | AY16: -0.44 | AZ16: -0.44
A17: 2035 | B17: =HLOOKUP($A17&"_"&IF(B$4<10,"0"&B$4,B$4),WA_LR!$C$3:$JR$49,45,FALSE) -> -44.81335771 | C17: =HLOOKUP($A17&"_"&IF(C$4<10,"0"&C$4,C$4),WA_LR!$C$3:$JR$49,45,FALSE) -> 35.47581493 | D17: =HLOOKUP($A17&"_"&IF(D$4<10,"0"&D$4,D$4),WA_LR!$C$3:$JR$49,45,FALSE) -> 161.9838583 | E17: =HLOOKUP($A17&"_"&IF(E$4<10,"0"&E$4,E$4),WA_LR!$C$3:$JR$49,45,FALSE) -> 338.3982858 | F17: =HLOOKUP($A17&"_"&IF(F$4<10,"0"&F$4,F$4),WA_LR!$C$3:$JR$49,45,FALSE) -> 206.5066758 | G17: =HLOOKUP($A17&"_"&IF(G$4<10,"0"&G$4,G$4),WA_LR!$C$3:$JR$49,45,FALSE) -> 202.6708199 | H17: =HLOOKUP($A17&"_"&IF(H$4<10,"0"&H$4,H$4),WA_LR!$C$3:$JR$49,45,FALSE) -> 62.87234856 | I17: =HLOOKUP($A17&"_"&IF(I$4<10,"0"&I$4,I$4),WA_LR!$C$3:$JR$49,45,FALSE) -> 0.9154489843 | J17: =HLOOKUP($A17&"_"&IF(J$4<10,"0"&J$4,J$4),WA_LR!$C$3:$JR$49,45,FALSE) -> 16.79030281 | K17: =HLOOKUP($A17&"_"&IF(K$4<10,"0"&K$4,K$4),WA_LR!$C$3:$JR$49,45,FALSE) -> 262.9543826 | L17: =HLOOKUP($A17&"_"&IF(L$4<10,"0"&L$4,L$4),WA_LR!$C$3:$JR$49,45,FALSE) -> 99.34524024 | M17: =HLOOKUP($A17&"_"&IF(M$4<10,"0"&M$4,M$4),WA_LR!$C$3:$JR$49,45,FALSE) -> -22.52224831 | O17: =HLOOKUP($A17&"_"&IF(O$4<10,"0"&O$4,O$4),ID_LR!$C$3:$JR$49,45,FALSE) -> -13.32300277 | P17: =HLOOKUP($A17&"_"&IF(P$4<10,"0"&P$4,P$4),ID_LR!$C$3:$JR$49,45,FALSE) -> 49.49110718 | Q17: =HLOOKUP($A17&"_"&IF(Q$4<10,"0"&Q$4,Q$4),ID_LR!$C$3:$JR$49,45,FALSE) -> 111.8317211 | R17: =HLOOKUP($A17&"_"&IF(R$4<10,"0"&R$4,R$4),ID_LR!$C$3:$JR$49,45,FALSE) -> 191.6251805 | S17: =HLOOKUP($A17&"_"&IF(S$4<10,"0"&S$4,S$4),ID_LR!$C$3:$JR$49,45,FALSE) -> 97.60351177 | T17: =HLOOKUP($A17&"_"&IF(T$4<10,"0"&T$4,T$4),ID_LR!$C$3:$JR$49,45,FALSE) -> 97.4304362 | U17: =HLOOKUP($A17&"_"&IF(U$4<10,"0"&U$4,U$4),ID_LR!$C$3:$JR$49,45,FALSE) -> 17.6686357 | V17: =HLOOKUP($A17&"_"&IF(V$4<10,"0"&V$4,V$4),ID_LR!$C$3:$JR$49,45,FALSE) -> 2.69728024 | W17: =HLOOKUP($A17&"_"&IF(W$4<10,"0"&W$4,W$4),ID_LR!$C$3:$JR$49,45,FALSE) -> 20.39084775 | X17: =HLOOKUP($A17&"_"&IF(X$4<10,"0"&X$4,X$4),ID_LR!$C$3:$JR$49,45,FALSE) -> 183.0024496 | Y17: =HLOOKUP($A17&"_"&IF(Y$4<10,"0"&Y$4,Y$4),ID_LR!$C$3:$JR$49,45,FALSE) -> 75.31938759 | Z17: =HLOOKUP($A17&"_"&IF(Z$4<10,"0"&Z$4,Z$4),ID_LR!$C$3:$JR$49,45,FALSE) -> -1.578838656 | AB17: =HLOOKUP($A17&"_"&IF(AB$4<10,"0"&AB$4,AB$4),System_LR!$C$3:$JR$49,45,FALSE) -> -57.69636048 | AC17: =HLOOKUP($A17&"_"&IF(AC$4<10,"0"&AC$4,AC$4),System_LR!$C$3:$JR$49,45,FALSE) -> 85.40692211 | AD17: =HLOOKUP($A17&"_"&IF(AD$4<10,"0"&AD$4,AD$4),System_LR!$C$3:$JR$49,45,FALSE) -> 274.2555794 | AE17: =HLOOKUP($A17&"_"&IF(AE$4<10,"0"&AE$4,AE$4),System_LR!$C$3:$JR$49,45,FALSE) -> 530.4634663 | AF17: =HLOOKUP($A17&"_"&IF(AF$4<10,"0"&AF$4,AF$4),System_LR!$C$3:$JR$49,45,FALSE) -> 304.3701876 | AG17: =HLOOKUP($A17&"_"&IF(AG$4<10,"0"&AG$4,AG$4),System_LR!$C$3:$JR$49,45,FALSE) -> 300.3612561 | AH17: =HLOOKUP($A17&"_"&IF(AH$4<10,"0"&AH$4,AH$4),System_LR!$C$3:$JR$49,45,FALSE) -> 80.80098426 | AI17: =HLOOKUP($A17&"_"&IF(AI$4<10,"0"&AI$4,AI$4),System_LR!$C$3:$JR$49,45,FALSE) -> 3.872729225 | AJ17: =HLOOKUP($A17&"_"&IF(AJ$4<10,"0"&AJ$4,AJ$4),System_LR!$C$3:$JR$49,45,FALSE) -> 37.44115056 | AK17: =HLOOKUP($A17&"_"&IF(AK$4<10,"0"&AK$4,AK$4),System_LR!$C$3:$JR$49,45,FALSE) -> 446.3968323 | AL17: =HLOOKUP($A17&"_"&IF(AL$4<10,"0"&AL$4,AL$4),System_LR!$C$3:$JR$49,45,FALSE) -> 175.1046278 | AM17: =HLOOKUP($A17&"_"&IF(AM$4<10,"0"&AM$4,AM$4),System_LR!$C$3:$JR$49,45,FALSE) -> -23.66108697 | AO17: -0.44 | AP17: -0.44 | AQ17: -0.44 | AR17: -0.44 | AS17: -0.26 | AT17: -0.26 | AU17: -0.26 | AV17: -0.26 | AW17: -0.26 | AX17: -0.44 | AY17: -0.44 | AZ17: -0.44
A18: 2036 | B18: =HLOOKUP($A18&"_"&IF(B$4<10,"0"&B$4,B$4),WA_LR!$C$3:$JR$49,45,FALSE) -> -105.0673738 | C18: =HLOOKUP($A18&"_"&IF(C$4<10,"0"&C$4,C$4),WA_LR!$C$3:$JR$49,45,FALSE) -> -25.77219508 | D18: =HLOOKUP($A18&"_"&IF(D$4<10,"0"&D$4,D$4),WA_LR!$C$3:$JR$49,45,FALSE) -> 101.751424 | E18: =HLOOKUP($A18&"_"&IF(E$4<10,"0"&E$4,E$4),WA_LR!$C$3:$JR$49,45,FALSE) -> 276.4582608 | F18: =HLOOKUP($A18&"_"&IF(F$4<10,"0"&F$4,F$4),WA_LR!$C$3:$JR$49,45,FALSE) -> 164.9846667 | G18: =HLOOKUP($A18&"_"&IF(G$4<10,"0"&G$4,G$4),WA_LR!$C$3:$JR$49,45,FALSE) -> 160.9392724 | H18: =HLOOKUP($A18&"_"&IF(H$4<10,"0"&H$4,H$4),WA_LR!$C$3:$JR$49,45,FALSE) -> 21.2821969 | I18: =HLOOKUP($A18&"_"&IF(I$4<10,"0"&I$4,I$4),WA_LR!$C$3:$JR$49,45,FALSE) -> -40.39218871 | J18: =HLOOKUP($A18&"_"&IF(J$4<10,"0"&J$4,J$4),WA_LR!$C$3:$JR$49,45,FALSE) -> -32.68497277 | K18: =HLOOKUP($A18&"_"&IF(K$4<10,"0"&K$4,K$4),WA_LR!$C$3:$JR$49,45,FALSE) -> 201.3132501 | L18: =HLOOKUP($A18&"_"&IF(L$4<10,"0"&L$4,L$4),WA_LR!$C$3:$JR$49,45,FALSE) -> 37.07519888 | M18: =HLOOKUP($A18&"_"&IF(M$4<10,"0"&M$4,M$4),WA_LR!$C$3:$JR$49,45,FALSE) -> -85.628736 | O18: =HLOOKUP($A18&"_"&IF(O$4<10,"0"&O$4,O$4),ID_LR!$C$3:$JR$49,45,FALSE) -> -43.81443064 | P18: =HLOOKUP($A18&"_"&IF(P$4<10,"0"&P$4,P$4),ID_LR!$C$3:$JR$49,45,FALSE) -> 19.90678154 | Q18: =HLOOKUP($A18&"_"&IF(Q$4<10,"0"&Q$4,Q$4),ID_LR!$C$3:$JR$49,45,FALSE) -> 82.25215823 | R18: =HLOOKUP($A18&"_"&IF(R$4<10,"0"&R$4,R$4),ID_LR!$C$3:$JR$49,45,FALSE) -> 161.0153194 | S18: =HLOOKUP($A18&"_"&IF(S$4<10,"0"&S$4,S$4),ID_LR!$C$3:$JR$49,45,FALSE) -> 74.67522303 | T18: =HLOOKUP($A18&"_"&IF(T$4<10,"0"&T$4,T$4),ID_LR!$C$3:$JR$49,45,FALSE) -> 73.48832391 | U18: =HLOOKUP($A18&"_"&IF(U$4<10,"0"&U$4,U$4),ID_LR!$C$3:$JR$49,45,FALSE) -> -6.56276145 | V18: =HLOOKUP($A18&"_"&IF(V$4<10,"0"&V$4,V$4),ID_LR!$C$3:$JR$49,45,FALSE) -> -21.36946485 | W18: =HLOOKUP($A18&"_"&IF(W$4<10,"0"&W$4,W$4),ID_LR!$C$3:$JR$49,45,FALSE) -> -7.508326964 | X18: =HLOOKUP($A18&"_"&IF(X$4<10,"0"&X$4,X$4),ID_LR!$C$3:$JR$49,45,FALSE) -> 152.6608844 | Y18: =HLOOKUP($A18&"_"&IF(Y$4<10,"0"&Y$4,Y$4),ID_LR!$C$3:$JR$49,45,FALSE) -> 44.7990844 | Z18: =HLOOKUP($A18&"_"&IF(Z$4<10,"0"&Z$4,Z$4),ID_LR!$C$3:$JR$49,45,FALSE) -> -33.08773652 | AB18: =HLOOKUP($A18&"_"&IF(AB$4<10,"0"&AB$4,AB$4),System_LR!$C$3:$JR$49,45,FALSE) -> -148.4418044 | AC18: =HLOOKUP($A18&"_"&IF(AC$4<10,"0"&AC$4,AC$4),System_LR!$C$3:$JR$49,45,FALSE) -> -5.425413545 | AD18: =HLOOKUP($A18&"_"&IF(AD$4<10,"0"&AD$4,AD$4),System_LR!$C$3:$JR$49,45,FALSE) -> 184.4435823 | AE18: =HLOOKUP($A18&"_"&IF(AE$4<10,"0"&AE$4,AE$4),System_LR!$C$3:$JR$49,45,FALSE) -> 437.9135803 | AF18: =HLOOKUP($A18&"_"&IF(AF$4<10,"0"&AF$4,AF$4),System_LR!$C$3:$JR$49,45,FALSE) -> 239.9198897 | AG18: =HLOOKUP($A18&"_"&IF(AG$4<10,"0"&AG$4,AG$4),System_LR!$C$3:$JR$49,45,FALSE) -> 234.6875963 | AH18: =HLOOKUP($A18&"_"&IF(AH$4<10,"0"&AH$4,AH$4),System_LR!$C$3:$JR$49,45,FALSE) -> 14.97943545 | AI18: =HLOOKUP($A18&"_"&IF(AI$4<10,"0"&AI$4,AI$4),System_LR!$C$3:$JR$49,45,FALSE) -> -61.50165356 | AJ18: =HLOOKUP($A18&"_"&IF(AJ$4<10,"0"&AJ$4,AJ$4),System_LR!$C$3:$JR$49,45,FALSE) -> -39.93329973 | AK18: =HLOOKUP($A18&"_"&IF(AK$4<10,"0"&AK$4,AK$4),System_LR!$C$3:$JR$49,45,FALSE) -> 354.4141345 | AL18: =HLOOKUP($A18&"_"&IF(AL$4<10,"0"&AL$4,AL$4),System_LR!$C$3:$JR$49,45,FALSE) -> 82.31428328 | AM18: =HLOOKUP($A18&"_"&IF(AM$4<10,"0"&AM$4,AM$4),System_LR!$C$3:$JR$49,45,FALSE) -> -118.2764725 | AO18: -0.44 | AP18: -0.44 | AQ18: -0.44 | AR18: -0.44 | AS18: -0.26 | AT18: -0.26 | AU18: -0.26 | AV18: -0.26 | AW18: -0.26 | AX18: -0.44 | AY18: -0.44 | AZ18: -0.44
A19: 2037 | B19: =HLOOKUP($A19&"_"&IF(B$4<10,"0"&B$4,B$4),WA_LR!$C$3:$JR$49,45,FALSE) -> -126.3323468 | C19: =HLOOKUP($A19&"_"&IF(C$4<10,"0"&C$4,C$4),WA_LR!$C$3:$JR$49,45,FALSE) -> -48.68833826 | D19: =HLOOKUP($A19&"_"&IF(D$4<10,"0"&D$4,D$4),WA_LR!$C$3:$JR$49,45,FALSE) -> 79.93313067 | E19: =HLOOKUP($A19&"_"&IF(E$4<10,"0"&E$4,E$4),WA_LR!$C$3:$JR$49,45,FALSE) -> 253.6227434 | F19: =HLOOKUP($A19&"_"&IF(F$4<10,"0"&F$4,F$4),WA_LR!$C$3:$JR$49,45,FALSE) -> 144.7243859 | G19: =HLOOKUP($A19&"_"&IF(G$4<10,"0"&G$4,G$4),WA_LR!$C$3:$JR$49,45,FALSE) -> 146.8622106 | H19: =HLOOKUP($A19&"_"&IF(H$4<10,"0"&H$4,H$4),WA_LR!$C$3:$JR$49,45,FALSE) -> 3.356293076 | I19: =HLOOKUP($A19&"_"&IF(I$4<10,"0"&I$4,I$4),WA_LR!$C$3:$JR$49,45,FALSE) -> -60.42111955 | J19: =HLOOKUP($A19&"_"&IF(J$4<10,"0"&J$4,J$4),WA_LR!$C$3:$JR$49,45,FALSE) -> -49.66530488 | K19: =HLOOKUP($A19&"_"&IF(K$4<10,"0"&K$4,K$4),WA_LR!$C$3:$JR$49,45,FALSE) -> 180.0065635 | L19: =HLOOKUP($A19&"_"&IF(L$4<10,"0"&L$4,L$4),WA_LR!$C$3:$JR$49,45,FALSE) -> 15.83988723 | M19: =HLOOKUP($A19&"_"&IF(M$4<10,"0"&M$4,M$4),WA_LR!$C$3:$JR$49,45,FALSE) -> -105.9739087 | O19: =HLOOKUP($A19&"_"&IF(O$4<10,"0"&O$4,O$4),ID_LR!$C$3:$JR$49,45,FALSE) -> -52.63986006 | P19: =HLOOKUP($A19&"_"&IF(P$4<10,"0"&P$4,P$4),ID_LR!$C$3:$JR$49,45,FALSE) -> 9.321493898 | Q19: =HLOOKUP($A19&"_"&IF(Q$4<10,"0"&Q$4,Q$4),ID_LR!$C$3:$JR$49,45,FALSE) -> 74.05372171 | R19: =HLOOKUP($A19&"_"&IF(R$4<10,"0"&R$4,R$4),ID_LR!$C$3:$JR$49,45,FALSE) -> 152.0918975 | S19: =HLOOKUP($A19&"_"&IF(S$4<10,"0"&S$4,S$4),ID_LR!$C$3:$JR$49,45,FALSE) -> 63.49071187 | T19: =HLOOKUP($A19&"_"&IF(T$4<10,"0"&T$4,T$4),ID_LR!$C$3:$JR$49,45,FALSE) -> 64.67536561 | U19: =HLOOKUP($A19&"_"&IF(U$4<10,"0"&U$4,U$4),ID_LR!$C$3:$JR$49,45,FALSE) -> -17.81100263 | V19: =HLOOKUP($A19&"_"&IF(V$4<10,"0"&V$4,V$4),ID_LR!$C$3:$JR$49,45,FALSE) -> -33.67861123 | W19: =HLOOKUP($A19&"_"&IF(W$4<10,"0"&W$4,W$4),ID_LR!$C$3:$JR$49,45,FALSE) -> -17.79130623 | X19: =HLOOKUP($A19&"_"&IF(X$4<10,"0"&X$4,X$4),ID_LR!$C$3:$JR$49,45,FALSE) -> 144.7383494 | Y19: =HLOOKUP($A19&"_"&IF(Y$4<10,"0"&Y$4,Y$4),ID_LR!$C$3:$JR$49,45,FALSE) -> 37.10117714 | Z19: =HLOOKUP($A19&"_"&IF(Z$4<10,"0"&Z$4,Z$4),ID_LR!$C$3:$JR$49,45,FALSE) -> -40.83138797 | AB19: =HLOOKUP($A19&"_"&IF(AB$4<10,"0"&AB$4,AB$4),System_LR!$C$3:$JR$49,45,FALSE) -> -178.5322069 | AC19: =HLOOKUP($A19&"_"&IF(AC$4<10,"0"&AC$4,AC$4),System_LR!$C$3:$JR$49,45,FALSE) -> -38.92684436 | AD19: =HLOOKUP($A19&"_"&IF(AD$4<10,"0"&AD$4,AD$4),System_LR!$C$3:$JR$49,45,FALSE) -> 154.4268524 | AE19: =HLOOKUP($A19&"_"&IF(AE$4<10,"0"&AE$4,AE$4),System_LR!$C$3:$JR$49,45,FALSE) -> 406.1546409 | AF19: =HLOOKUP($A19&"_"&IF(AF$4<10,"0"&AF$4,AF$4),System_LR!$C$3:$JR$49,45,FALSE) -> 208.4750978 | AG19: =HLOOKUP($A19&"_"&IF(AG$4<10,"0"&AG$4,AG$4),System_LR!$C$3:$JR$49,45,FALSE) -> 211.7975762 | AH19: =HLOOKUP($A19&"_"&IF(AH$4<10,"0"&AH$4,AH$4),System_LR!$C$3:$JR$49,45,FALSE) -> -14.19470955 | AI19: =HLOOKUP($A19&"_"&IF(AI$4<10,"0"&AI$4,AI$4),System_LR!$C$3:$JR$49,45,FALSE) -> -93.83973079 | AJ19: =HLOOKUP($A19&"_"&IF(AJ$4<10,"0"&AJ$4,AJ$4),System_LR!$C$3:$JR$49,45,FALSE) -> -67.19661111 | AK19: =HLOOKUP($A19&"_"&IF(AK$4<10,"0"&AK$4,AK$4),System_LR!$C$3:$JR$49,45,FALSE) -> 325.1849129 | AL19: =HLOOKUP($A19&"_"&IF(AL$4<10,"0"&AL$4,AL$4),System_LR!$C$3:$JR$49,45,FALSE) -> 53.38106437 | AM19: =HLOOKUP($A19&"_"&IF(AM$4<10,"0"&AM$4,AM$4),System_LR!$C$3:$JR$49,45,FALSE) -> -146.3652967 | AO19: -0.44 | AP19: -0.44 | AQ19: -0.44 | AR19: -0.44 | AS19: -0.26 | AT19: -0.26 | AU19: -0.26 | AV19: -0.26 | AW19: -0.26 | AX19: -0.44 | AY19: -0.44 | AZ19: -0.44
A20: 2038 | B20: =HLOOKUP($A20&"_"&IF(B$4<10,"0"&B$4,B$4),WA_LR!$C$3:$JR$49,45,FALSE) -> -148.6855987 | C20: =HLOOKUP($A20&"_"&IF(C$4<10,"0"&C$4,C$4),WA_LR!$C$3:$JR$49,45,FALSE) -> -70.65573582 | D20: =HLOOKUP($A20&"_"&IF(D$4<10,"0"&D$4,D$4),WA_LR!$C$3:$JR$49,45,FALSE) -> 56.24518573 | E20: =HLOOKUP($A20&"_"&IF(E$4<10,"0"&E$4,E$4),WA_LR!$C$3:$JR$49,45,FALSE) -> 227.8774563 | F20: =HLOOKUP($A20&"_"&IF(F$4<10,"0"&F$4,F$4),WA_LR!$C$3:$JR$49,45,FALSE) -> 119.2304664 | G20: =HLOOKUP($A20&"_"&IF(G$4<10,"0"&G$4,G$4),WA_LR!$C$3:$JR$49,45,FALSE) -> 120.1486939 | H20: =HLOOKUP($A20&"_"&IF(H$4<10,"0"&H$4,H$4),WA_LR!$C$3:$JR$49,45,FALSE) -> -24.68298525 | I20: =HLOOKUP($A20&"_"&IF(I$4<10,"0"&I$4,I$4),WA_LR!$C$3:$JR$49,45,FALSE) -> -83.58134811 | J20: =HLOOKUP($A20&"_"&IF(J$4<10,"0"&J$4,J$4),WA_LR!$C$3:$JR$49,45,FALSE) -> -76.68472765 | K20: =HLOOKUP($A20&"_"&IF(K$4<10,"0"&K$4,K$4),WA_LR!$C$3:$JR$49,45,FALSE) -> 154.8095841 | L20: =HLOOKUP($A20&"_"&IF(L$4<10,"0"&L$4,L$4),WA_LR!$C$3:$JR$49,45,FALSE) -> -9.331560618 | M20: =HLOOKUP($A20&"_"&IF(M$4<10,"0"&M$4,M$4),WA_LR!$C$3:$JR$49,45,FALSE) -> -129.5950092 | O20: =HLOOKUP($A20&"_"&IF(O$4<10,"0"&O$4,O$4),ID_LR!$C$3:$JR$49,45,FALSE) -> -61.61426008 | P20: =HLOOKUP($A20&"_"&IF(P$4<10,"0"&P$4,P$4),ID_LR!$C$3:$JR$49,45,FALSE) -> 0.3146588293 | Q20: =HLOOKUP($A20&"_"&IF(Q$4<10,"0"&Q$4,Q$4),ID_LR!$C$3:$JR$49,45,FALSE) -> 65.51207794 | R20: =HLOOKUP($A20&"_"&IF(R$4<10,"0"&R$4,R$4),ID_LR!$C$3:$JR$49,45,FALSE) -> 143.2906275 | S20: =HLOOKUP($A20&"_"&IF(S$4<10,"0"&S$4,S$4),ID_LR!$C$3:$JR$49,45,FALSE) -> 51.59576879 | T20: =HLOOKUP($A20&"_"&IF(T$4<10,"0"&T$4,T$4),ID_LR!$C$3:$JR$49,45,FALSE) -> 51.52023418 | U20: =HLOOKUP($A20&"_"&IF(U$4<10,"0"&U$4,U$4),ID_LR!$C$3:$JR$49,45,FALSE) -> -31.39037337 | V20: =HLOOKUP($A20&"_"&IF(V$4<10,"0"&V$4,V$4),ID_LR!$C$3:$JR$49,45,FALSE) -> -45.19201304 | W20: =HLOOKUP($A20&"_"&IF(W$4<10,"0"&W$4,W$4),ID_LR!$C$3:$JR$49,45,FALSE) -> -32.00647343 | X20: =HLOOKUP($A20&"_"&IF(X$4<10,"0"&X$4,X$4),ID_LR!$C$3:$JR$49,45,FALSE) -> 135.914809 | Y20: =HLOOKUP($A20&"_"&IF(Y$4<10,"0"&Y$4,Y$4),ID_LR!$C$3:$JR$49,45,FALSE) -> 27.62749949 | Z20: =HLOOKUP($A20&"_"&IF(Z$4<10,"0"&Z$4,Z$4),ID_LR!$C$3:$JR$49,45,FALSE) -> -49.92232481 | AB20: =HLOOKUP($A20&"_"&IF(AB$4<10,"0"&AB$4,AB$4),System_LR!$C$3:$JR$49,45,FALSE) -> -209.8598587 | AC20: =HLOOKUP($A20&"_"&IF(AC$4<10,"0"&AC$4,AC$4),System_LR!$C$3:$JR$49,45,FALSE) -> -69.901077 | AD20: =HLOOKUP($A20&"_"&IF(AD$4<10,"0"&AD$4,AD$4),System_LR!$C$3:$JR$49,45,FALSE) -> 122.1972637 | AE20: =HLOOKUP($A20&"_"&IF(AE$4<10,"0"&AE$4,AE$4),System_LR!$C$3:$JR$49,45,FALSE) -> 371.6080839 | AF20: =HLOOKUP($A20&"_"&IF(AF$4<10,"0"&AF$4,AF$4),System_LR!$C$3:$JR$49,45,FALSE) -> 171.0862352 | AG20: =HLOOKUP($A20&"_"&IF(AG$4<10,"0"&AG$4,AG$4),System_LR!$C$3:$JR$49,45,FALSE) -> 171.9289281 | AH20: =HLOOKUP($A20&"_"&IF(AH$4<10,"0"&AH$4,AH$4),System_LR!$C$3:$JR$49,45,FALSE) -> -55.81335862 | AI20: =HLOOKUP($A20&"_"&IF(AI$4<10,"0"&AI$4,AI$4),System_LR!$C$3:$JR$49,45,FALSE) -> -128.5133611 | AJ20: =HLOOKUP($A20&"_"&IF(AJ$4<10,"0"&AJ$4,AJ$4),System_LR!$C$3:$JR$49,45,FALSE) -> -108.4312011 | AK20: =HLOOKUP($A20&"_"&IF(AK$4<10,"0"&AK$4,AK$4),System_LR!$C$3:$JR$49,45,FALSE) -> 291.1643931 | AL20: =HLOOKUP($A20&"_"&IF(AL$4<10,"0"&AL$4,AL$4),System_LR!$C$3:$JR$49,45,FALSE) -> 18.73593887 | AM20: =HLOOKUP($A20&"_"&IF(AM$4<10,"0"&AM$4,AM$4),System_LR!$C$3:$JR$49,45,FALSE) -> -179.077334 | AO20: -0.44 | AP20: -0.44 | AQ20: -0.44 | AR20: -0.44 | AS20: -0.26 | AT20: -0.26 | AU20: -0.26 | AV20: -0.26 | AW20: -0.26 | AX20: -0.44 | AY20: -0.44 | AZ20: -0.44
A21: 2039 | B21: =HLOOKUP($A21&"_"&IF(B$4<10,"0"&B$4,B$4),WA_LR!$C$3:$JR$49,45,FALSE) -> -172.1839184 | C21: =HLOOKUP($A21&"_"&IF(C$4<10,"0"&C$4,C$4),WA_LR!$C$3:$JR$49,45,FALSE) -> -94.09855303 | D21: =HLOOKUP($A21&"_"&IF(D$4<10,"0"&D$4,D$4),WA_LR!$C$3:$JR$49,45,FALSE) -> 31.06505386 | E21: =HLOOKUP($A21&"_"&IF(E$4<10,"0"&E$4,E$4),WA_LR!$C$3:$JR$49,45,FALSE) -> 203.9865802 | F21: =HLOOKUP($A21&"_"&IF(F$4<10,"0"&F$4,F$4),WA_LR!$C$3:$JR$49,45,FALSE) -> 97.24707268 | G21: =HLOOKUP($A21&"_"&IF(G$4<10,"0"&G$4,G$4),WA_LR!$C$3:$JR$49,45,FALSE) -> 105.6124878 | H21: =HLOOKUP($A21&"_"&IF(H$4<10,"0"&H$4,H$4),WA_LR!$C$3:$JR$49,45,FALSE) -> -48.18444879 | I21: =HLOOKUP($A21&"_"&IF(I$4<10,"0"&I$4,I$4),WA_LR!$C$3:$JR$49,45,FALSE) -> -106.1247543 | J21: =HLOOKUP($A21&"_"&IF(J$4<10,"0"&J$4,J$4),WA_LR!$C$3:$JR$49,45,FALSE) -> -95.04692164 | K21: =HLOOKUP($A21&"_"&IF(K$4<10,"0"&K$4,K$4),WA_LR!$C$3:$JR$49,45,FALSE) -> 129.8090591 | L21: =HLOOKUP($A21&"_"&IF(L$4<10,"0"&L$4,L$4),WA_LR!$C$3:$JR$49,45,FALSE) -> -34.74867984 | M21: =HLOOKUP($A21&"_"&IF(M$4<10,"0"&M$4,M$4),WA_LR!$C$3:$JR$49,45,FALSE) -> -153.855145 | O21: =HLOOKUP($A21&"_"&IF(O$4<10,"0"&O$4,O$4),ID_LR!$C$3:$JR$49,45,FALSE) -> -71.29230504 | P21: =HLOOKUP($A21&"_"&IF(P$4<10,"0"&P$4,P$4),ID_LR!$C$3:$JR$49,45,FALSE) -> -9.104171908 | Q21: =HLOOKUP($A21&"_"&IF(Q$4<10,"0"&Q$4,Q$4),ID_LR!$C$3:$JR$49,45,FALSE) -> 55.87485335 | R21: =HLOOKUP($A21&"_"&IF(R$4<10,"0"&R$4,R$4),ID_LR!$C$3:$JR$49,45,FALSE) -> 134.145391 | S21: =HLOOKUP($A21&"_"&IF(S$4<10,"0"&S$4,S$4),ID_LR!$C$3:$JR$49,45,FALSE) -> 39.65015838 | T21: =HLOOKUP($A21&"_"&IF(T$4<10,"0"&T$4,T$4),ID_LR!$C$3:$JR$49,45,FALSE) -> 42.63383592 | U21: =HLOOKUP($A21&"_"&IF(U$4<10,"0"&U$4,U$4),ID_LR!$C$3:$JR$49,45,FALSE) -> -45.55862056 | V21: =HLOOKUP($A21&"_"&IF(V$4<10,"0"&V$4,V$4),ID_LR!$C$3:$JR$49,45,FALSE) -> -58.71329992 | W21: =HLOOKUP($A21&"_"&IF(W$4<10,"0"&W$4,W$4),ID_LR!$C$3:$JR$49,45,FALSE) -> -42.85290128 | X21: =HLOOKUP($A21&"_"&IF(X$4<10,"0"&X$4,X$4),ID_LR!$C$3:$JR$49,45,FALSE) -> 126.4050831 | Y21: =HLOOKUP($A21&"_"&IF(Y$4<10,"0"&Y$4,Y$4),ID_LR!$C$3:$JR$49,45,FALSE) -> 18.08393917 | Z21: =HLOOKUP($A21&"_"&IF(Z$4<10,"0"&Z$4,Z$4),ID_LR!$C$3:$JR$49,45,FALSE) -> -59.41679827 | AB21: =HLOOKUP($A21&"_"&IF(AB$4<10,"0"&AB$4,AB$4),System_LR!$C$3:$JR$49,45,FALSE) -> -243.0362234 | AC21: =HLOOKUP($A21&"_"&IF(AC$4<10,"0"&AC$4,AC$4),System_LR!$C$3:$JR$49,45,FALSE) -> -102.7627249 | AD21: =HLOOKUP($A21&"_"&IF(AD$4<10,"0"&AD$4,AD$4),System_LR!$C$3:$JR$49,45,FALSE) -> 87.37990722 | AE21: =HLOOKUP($A21&"_"&IF(AE$4<10,"0"&AE$4,AE$4),System_LR!$C$3:$JR$49,45,FALSE) -> 338.5719712 | AF21: =HLOOKUP($A21&"_"&IF(AF$4<10,"0"&AF$4,AF$4),System_LR!$C$3:$JR$49,45,FALSE) -> 137.1572311 | AG21: =HLOOKUP($A21&"_"&IF(AG$4<10,"0"&AG$4,AG$4),System_LR!$C$3:$JR$49,45,FALSE) -> 148.5063237 | AH21: =HLOOKUP($A21&"_"&IF(AH$4<10,"0"&AH$4,AH$4),System_LR!$C$3:$JR$49,45,FALSE) -> -93.48306935 | AI21: =HLOOKUP($A21&"_"&IF(AI$4<10,"0"&AI$4,AI$4),System_LR!$C$3:$JR$49,45,FALSE) -> -164.5780542 | AJ21: =HLOOKUP($A21&"_"&IF(AJ$4<10,"0"&AJ$4,AJ$4),System_LR!$C$3:$JR$49,45,FALSE) -> -137.6398229 | AK21: =HLOOKUP($A21&"_"&IF(AK$4<10,"0"&AK$4,AK$4),System_LR!$C$3:$JR$49,45,FALSE) -> 256.6541422 | AL21: =HLOOKUP($A21&"_"&IF(AL$4<10,"0"&AL$4,AL$4),System_LR!$C$3:$JR$49,45,FALSE) -> -16.22474066 | AM21: =HLOOKUP($A21&"_"&IF(AM$4<10,"0"&AM$4,AM$4),System_LR!$C$3:$JR$49,45,FALSE) -> -212.8319433 | AO21: -0.44 | AP21: -0.44 | AQ21: -0.44 | AR21: -0.44 | AS21: -0.26 | AT21: -0.26 | AU21: -0.26 | AV21: -0.26 | AW21: -0.26 | AX21: -0.44 | AY21: -0.44 | AZ21: -0.44
A22: 2040 | B22: =HLOOKUP($A22&"_"&IF(B$4<10,"0"&B$4,B$4),WA_LR!$C$3:$JR$49,45,FALSE) -> -198.1673934 | C22: =HLOOKUP($A22&"_"&IF(C$4<10,"0"&C$4,C$4),WA_LR!$C$3:$JR$49,45,FALSE) -> -120.487405 | D22: =HLOOKUP($A22&"_"&IF(D$4<10,"0"&D$4,D$4),WA_LR!$C$3:$JR$49,45,FALSE) -> 4.825644914 | E22: =HLOOKUP($A22&"_"&IF(E$4<10,"0"&E$4,E$4),WA_LR!$C$3:$JR$49,45,FALSE) -> 177.9272529 | F22: =HLOOKUP($A22&"_"&IF(F$4<10,"0"&F$4,F$4),WA_LR!$C$3:$JR$49,45,FALSE) -> 73.45517882 | G22: =HLOOKUP($A22&"_"&IF(G$4<10,"0"&G$4,G$4),WA_LR!$C$3:$JR$49,45,FALSE) -> 85.88858163 | H22: =HLOOKUP($A22&"_"&IF(H$4<10,"0"&H$4,H$4),WA_LR!$C$3:$JR$49,45,FALSE) -> -66.98235055 | I22: =HLOOKUP($A22&"_"&IF(I$4<10,"0"&I$4,I$4),WA_LR!$C$3:$JR$49,45,FALSE) -> -126.3578677 | J22: =HLOOKUP($A22&"_"&IF(J$4<10,"0"&J$4,J$4),WA_LR!$C$3:$JR$49,45,FALSE) -> -114.7102733 | K22: =HLOOKUP($A22&"_"&IF(K$4<10,"0"&K$4,K$4),WA_LR!$C$3:$JR$49,45,FALSE) -> 103.5884078 | L22: =HLOOKUP($A22&"_"&IF(L$4<10,"0"&L$4,L$4),WA_LR!$C$3:$JR$49,45,FALSE) -> -61.49541888 | M22: =HLOOKUP($A22&"_"&IF(M$4<10,"0"&M$4,M$4),WA_LR!$C$3:$JR$49,45,FALSE) -> -178.1649107 | O22: =HLOOKUP($A22&"_"&IF(O$4<10,"0"&O$4,O$4),ID_LR!$C$3:$JR$49,45,FALSE) -> -82.13651637 | P22: =HLOOKUP($A22&"_"&IF(P$4<10,"0"&P$4,P$4),ID_LR!$C$3:$JR$49,45,FALSE) -> -18.12180072 | Q22: =HLOOKUP($A22&"_"&IF(Q$4<10,"0"&Q$4,Q$4),ID_LR!$C$3:$JR$49,45,FALSE) -> 45.89435014 | R22: =HLOOKUP($A22&"_"&IF(R$4<10,"0"&R$4,R$4),ID_LR!$C$3:$JR$49,45,FALSE) -> 124.0164304 | S22: =HLOOKUP($A22&"_"&IF(S$4<10,"0"&S$4,S$4),ID_LR!$C$3:$JR$49,45,FALSE) -> 26.81803152 | T22: =HLOOKUP($A22&"_"&IF(T$4<10,"0"&T$4,T$4),ID_LR!$C$3:$JR$49,45,FALSE) -> 31.06183507 | U22: =HLOOKUP($A22&"_"&IF(U$4<10,"0"&U$4,U$4),ID_LR!$C$3:$JR$49,45,FALSE) -> -57.08900366 | V22: =HLOOKUP($A22&"_"&IF(V$4<10,"0"&V$4,V$4),ID_LR!$C$3:$JR$49,45,FALSE) -> -70.9344705 | W22: =HLOOKUP($A22&"_"&IF(W$4<10,"0"&W$4,W$4),ID_LR!$C$3:$JR$49,45,FALSE) -> -54.28965918 | X22: =HLOOKUP($A22&"_"&IF(X$4<10,"0"&X$4,X$4),ID_LR!$C$3:$JR$49,45,FALSE) -> 116.4703357 | Y22: =HLOOKUP($A22&"_"&IF(Y$4<10,"0"&Y$4,Y$4),ID_LR!$C$3:$JR$49,45,FALSE) -> 8.073008477 | Z22: =HLOOKUP($A22&"_"&IF(Z$4<10,"0"&Z$4,Z$4),ID_LR!$C$3:$JR$49,45,FALSE) -> -68.67773584 | AB22: =HLOOKUP($A22&"_"&IF(AB$4<10,"0"&AB$4,AB$4),System_LR!$C$3:$JR$49,45,FALSE) -> -279.8639098 | AC22: =HLOOKUP($A22&"_"&IF(AC$4<10,"0"&AC$4,AC$4),System_LR!$C$3:$JR$49,45,FALSE) -> -138.1692057 | AD22: =HLOOKUP($A22&"_"&IF(AD$4<10,"0"&AD$4,AD$4),System_LR!$C$3:$JR$49,45,FALSE) -> 51.15999506 | AE22: =HLOOKUP($A22&"_"&IF(AE$4<10,"0"&AE$4,AE$4),System_LR!$C$3:$JR$49,45,FALSE) -> 302.3836833 | AF22: =HLOOKUP($A22&"_"&IF(AF$4<10,"0"&AF$4,AF$4),System_LR!$C$3:$JR$49,45,FALSE) -> 100.5332103 | AG22: =HLOOKUP($A22&"_"&IF(AG$4<10,"0"&AG$4,AG$4),System_LR!$C$3:$JR$49,45,FALSE) -> 117.2104167 | AH22: =HLOOKUP($A22&"_"&IF(AH$4<10,"0"&AH$4,AH$4),System_LR!$C$3:$JR$49,45,FALSE) -> -123.8113542 | AI22: =HLOOKUP($A22&"_"&IF(AI$4<10,"0"&AI$4,AI$4),System_LR!$C$3:$JR$49,45,FALSE) -> -197.0323382 | AJ22: =HLOOKUP($A22&"_"&IF(AJ$4<10,"0"&AJ$4,AJ$4),System_LR!$C$3:$JR$49,45,FALSE) -> -168.7399325 | AK22: =HLOOKUP($A22&"_"&IF(AK$4<10,"0"&AK$4,AK$4),System_LR!$C$3:$JR$49,45,FALSE) -> 220.4987434 | AL22: =HLOOKUP($A22&"_"&IF(AL$4<10,"0"&AL$4,AL$4),System_LR!$C$3:$JR$49,45,FALSE) -> -52.9824104 | AM22: =HLOOKUP($A22&"_"&IF(AM$4<10,"0"&AM$4,AM$4),System_LR!$C$3:$JR$49,45,FALSE) -> -246.4026465 | AO22: -0.44 | AP22: -0.44 | AQ22: -0.44 | AR22: -0.44 | AS22: -0.26 | AT22: -0.26 | AU22: -0.26 | AV22: -0.26 | AW22: -0.26 | AX22: -0.44 | AY22: -0.44 | AZ22: -0.44
A23: 2041 | B23: =HLOOKUP($A23&"_"&IF(B$4<10,"0"&B$4,B$4),WA_LR!$C$3:$JR$49,45,FALSE) -> -270.0147378 | C23: =HLOOKUP($A23&"_"&IF(C$4<10,"0"&C$4,C$4),WA_LR!$C$3:$JR$49,45,FALSE) -> -190.180463 | D23: =HLOOKUP($A23&"_"&IF(D$4<10,"0"&D$4,D$4),WA_LR!$C$3:$JR$49,45,FALSE) -> -64.99788958 | E23: =HLOOKUP($A23&"_"&IF(E$4<10,"0"&E$4,E$4),WA_LR!$C$3:$JR$49,45,FALSE) -> 105.5384497 | F23: =HLOOKUP($A23&"_"&IF(F$4<10,"0"&F$4,F$4),WA_LR!$C$3:$JR$49,45,FALSE) -> 6.664925439 | G23: =HLOOKUP($A23&"_"&IF(G$4<10,"0"&G$4,G$4),WA_LR!$C$3:$JR$49,45,FALSE) -> 35.64490752 | H23: =HLOOKUP($A23&"_"&IF(H$4<10,"0"&H$4,H$4),WA_LR!$C$3:$JR$49,45,FALSE) -> -130.5356189 | I23: =HLOOKUP($A23&"_"&IF(I$4<10,"0"&I$4,I$4),WA_LR!$C$3:$JR$49,45,FALSE) -> -188.5619309 | J23: =HLOOKUP($A23&"_"&IF(J$4<10,"0"&J$4,J$4),WA_LR!$C$3:$JR$49,45,FALSE) -> -179.8356656 | K23: =HLOOKUP($A23&"_"&IF(K$4<10,"0"&K$4,K$4),WA_LR!$C$3:$JR$49,45,FALSE) -> 30.97438979 | L23: =HLOOKUP($A23&"_"&IF(L$4<10,"0"&L$4,L$4),WA_LR!$C$3:$JR$49,45,FALSE) -> -137.5478984 | M23: =HLOOKUP($A23&"_"&IF(M$4<10,"0"&M$4,M$4),WA_LR!$C$3:$JR$49,45,FALSE) -> -251.7172856 | O23: =HLOOKUP($A23&"_"&IF(O$4<10,"0"&O$4,O$4),ID_LR!$C$3:$JR$49,45,FALSE) -> -118.0743337 | P23: =HLOOKUP($A23&"_"&IF(P$4<10,"0"&P$4,P$4),ID_LR!$C$3:$JR$49,45,FALSE) -> -54.41403852 | Q23: =HLOOKUP($A23&"_"&IF(Q$4<10,"0"&Q$4,Q$4),ID_LR!$C$3:$JR$49,45,FALSE) -> 12.14418633 | R23: =HLOOKUP($A23&"_"&IF(R$4<10,"0"&R$4,R$4),ID_LR!$C$3:$JR$49,45,FALSE) -> 88.52760536 | S23: =HLOOKUP($A23&"_"&IF(S$4<10,"0"&S$4,S$4),ID_LR!$C$3:$JR$49,45,FALSE) -> -9.945139347 | T23: =HLOOKUP($A23&"_"&IF(T$4<10,"0"&T$4,T$4),ID_LR!$C$3:$JR$49,45,FALSE) -> 2.646954654 | U23: =HLOOKUP($A23&"_"&IF(U$4<10,"0"&U$4,U$4),ID_LR!$C$3:$JR$49,45,FALSE) -> -93.29127356 | V23: =HLOOKUP($A23&"_"&IF(V$4<10,"0"&V$4,V$4),ID_LR!$C$3:$JR$49,45,FALSE) -> -106.2080993 | W23: =HLOOKUP($A23&"_"&IF(W$4<10,"0"&W$4,W$4),ID_LR!$C$3:$JR$49,45,FALSE) -> -90.62152452 | X23: =HLOOKUP($A23&"_"&IF(X$4<10,"0"&X$4,X$4),ID_LR!$C$3:$JR$49,45,FALSE) -> 81.22416282 | Y23: =HLOOKUP($A23&"_"&IF(Y$4<10,"0"&Y$4,Y$4),ID_LR!$C$3:$JR$49,45,FALSE) -> -28.84706051 | Z23: =HLOOKUP($A23&"_"&IF(Z$4<10,"0"&Z$4,Z$4),ID_LR!$C$3:$JR$49,45,FALSE) -> -104.8852734 | AB23: =HLOOKUP($A23&"_"&IF(AB$4<10,"0"&AB$4,AB$4),System_LR!$C$3:$JR$49,45,FALSE) -> -387.6490715 | AC23: =HLOOKUP($A23&"_"&IF(AC$4<10,"0"&AC$4,AC$4),System_LR!$C$3:$JR$49,45,FALSE) -> -244.1545016 | AD23: =HLOOKUP($A23&"_"&IF(AD$4<10,"0"&AD$4,AD$4),System_LR!$C$3:$JR$49,45,FALSE) -> -52.41370325 | AE23: =HLOOKUP($A23&"_"&IF(AE$4<10,"0"&AE$4,AE$4),System_LR!$C$3:$JR$49,45,FALSE) -> 194.5060551 | AF23: =HLOOKUP($A23&"_"&IF(AF$4<10,"0"&AF$4,AF$4),System_LR!$C$3:$JR$49,45,FALSE) -> -3.020213908 | AG23: =HLOOKUP($A23&"_"&IF(AG$4<10,"0"&AG$4,AG$4),System_LR!$C$3:$JR$49,45,FALSE) -> 38.55186217 | AH23: =HLOOKUP($A23&"_"&IF(AH$4<10,"0"&AH$4,AH$4),System_LR!$C$3:$JR$49,45,FALSE) -> -223.5668925 | AI23: =HLOOKUP($A23&"_"&IF(AI$4<10,"0"&AI$4,AI$4),System_LR!$C$3:$JR$49,45,FALSE) -> -294.5100302 | AJ23: =HLOOKUP($A23&"_"&IF(AJ$4<10,"0"&AJ$4,AJ$4),System_LR!$C$3:$JR$49,45,FALSE) -> -270.1971901 | AK23: =HLOOKUP($A23&"_"&IF(AK$4<10,"0"&AK$4,AK$4),System_LR!$C$3:$JR$49,45,FALSE) -> 112.6385526 | AL23: =HLOOKUP($A23&"_"&IF(AL$4<10,"0"&AL$4,AL$4),System_LR!$C$3:$JR$49,45,FALSE) -> -165.9549589 | AM23: =HLOOKUP($A23&"_"&IF(AM$4<10,"0"&AM$4,AM$4),System_LR!$C$3:$JR$49,45,FALSE) -> -356.162559 | AO23: -0.44 | AP23: -0.44 | AQ23: -0.44 | AR23: -0.44 | AS23: -0.26 | AT23: -0.26 | AU23: -0.26 | AV23: -0.26 | AW23: -0.26 | AX23: -0.44 | AY23: -0.44 | AZ23: -0.44
A24: 2042 | B24: =HLOOKUP($A24&"_"&IF(B$4<10,"0"&B$4,B$4),WA_LR!$C$3:$JR$49,45,FALSE) -> -482.1897661 | C24: =HLOOKUP($A24&"_"&IF(C$4<10,"0"&C$4,C$4),WA_LR!$C$3:$JR$49,45,FALSE) -> -402.0194943 | D24: =HLOOKUP($A24&"_"&IF(D$4<10,"0"&D$4,D$4),WA_LR!$C$3:$JR$49,45,FALSE) -> -277.9892653 | E24: =HLOOKUP($A24&"_"&IF(E$4<10,"0"&E$4,E$4),WA_LR!$C$3:$JR$49,45,FALSE) -> -94.73763996 | F24: =HLOOKUP($A24&"_"&IF(F$4<10,"0"&F$4,F$4),WA_LR!$C$3:$JR$49,45,FALSE) -> -178.7388899 | G24: =HLOOKUP($A24&"_"&IF(G$4<10,"0"&G$4,G$4),WA_LR!$C$3:$JR$49,45,FALSE) -> -142.3876126 | H24: =HLOOKUP($A24&"_"&IF(H$4<10,"0"&H$4,H$4),WA_LR!$C$3:$JR$49,45,FALSE) -> -311.8884544 | I24: =HLOOKUP($A24&"_"&IF(I$4<10,"0"&I$4,I$4),WA_LR!$C$3:$JR$49,45,FALSE) -> -375.8776801 | J24: =HLOOKUP($A24&"_"&IF(J$4<10,"0"&J$4,J$4),WA_LR!$C$3:$JR$49,45,FALSE) -> -368.1488048 | K24: =HLOOKUP($A24&"_"&IF(K$4<10,"0"&K$4,K$4),WA_LR!$C$3:$JR$49,45,FALSE) -> -181.884056 | L24: =HLOOKUP($A24&"_"&IF(L$4<10,"0"&L$4,L$4),WA_LR!$C$3:$JR$49,45,FALSE) -> -351.2381674 | M24: =HLOOKUP($A24&"_"&IF(M$4<10,"0"&M$4,M$4),WA_LR!$C$3:$JR$49,45,FALSE) -> -464.3823711 | O24: =HLOOKUP($A24&"_"&IF(O$4<10,"0"&O$4,O$4),ID_LR!$C$3:$JR$49,45,FALSE) -> -231.224388 | P24: =HLOOKUP($A24&"_"&IF(P$4<10,"0"&P$4,P$4),ID_LR!$C$3:$JR$49,45,FALSE) -> -167.1430311 | Q24: =HLOOKUP($A24&"_"&IF(Q$4<10,"0"&Q$4,Q$4),ID_LR!$C$3:$JR$49,45,FALSE) -> -100.3922557 | R24: =HLOOKUP($A24&"_"&IF(R$4<10,"0"&R$4,R$4),ID_LR!$C$3:$JR$49,45,FALSE) -> -17.33086552 | S24: =HLOOKUP($A24&"_"&IF(S$4<10,"0"&S$4,S$4),ID_LR!$C$3:$JR$49,45,FALSE) -> -111.7881326 | T24: =HLOOKUP($A24&"_"&IF(T$4<10,"0"&T$4,T$4),ID_LR!$C$3:$JR$49,45,FALSE) -> -96.08200816 | U24: =HLOOKUP($A24&"_"&IF(U$4<10,"0"&U$4,U$4),ID_LR!$C$3:$JR$49,45,FALSE) -> -194.4114284 | V24: =HLOOKUP($A24&"_"&IF(V$4<10,"0"&V$4,V$4),ID_LR!$C$3:$JR$49,45,FALSE) -> -210.4086836 | W24: =HLOOKUP($A24&"_"&IF(W$4<10,"0"&W$4,W$4),ID_LR!$C$3:$JR$49,45,FALSE) -> -194.8237924 | X24: =HLOOKUP($A24&"_"&IF(X$4<10,"0"&X$4,X$4),ID_LR!$C$3:$JR$49,45,FALSE) -> -31.17192072 | Y24: =HLOOKUP($A24&"_"&IF(Y$4<10,"0"&Y$4,Y$4),ID_LR!$C$3:$JR$49,45,FALSE) -> -141.4558651 | Z24: =HLOOKUP($A24&"_"&IF(Z$4<10,"0"&Z$4,Z$4),ID_LR!$C$3:$JR$49,45,FALSE) -> -217.6133115 | AB24: =HLOOKUP($A24&"_"&IF(AB$4<10,"0"&AB$4,AB$4),System_LR!$C$3:$JR$49,45,FALSE) -> -712.9741541 | AC24: =HLOOKUP($A24&"_"&IF(AC$4<10,"0"&AC$4,AC$4),System_LR!$C$3:$JR$49,45,FALSE) -> -568.7225254 | AD24: =HLOOKUP($A24&"_"&IF(AD$4<10,"0"&AD$4,AD$4),System_LR!$C$3:$JR$49,45,FALSE) -> -377.941521 | AE24: =HLOOKUP($A24&"_"&IF(AE$4<10,"0"&AE$4,AE$4),System_LR!$C$3:$JR$49,45,FALSE) -> -111.6285055 | AF24: =HLOOKUP($A24&"_"&IF(AF$4<10,"0"&AF$4,AF$4),System_LR!$C$3:$JR$49,45,FALSE) -> -290.2670225 | AG24: =HLOOKUP($A24&"_"&IF(AG$4<10,"0"&AG$4,AG$4),System_LR!$C$3:$JR$49,45,FALSE) -> -238.2096208 | AH24: =HLOOKUP($A24&"_"&IF(AH$4<10,"0"&AH$4,AH$4),System_LR!$C$3:$JR$49,45,FALSE) -> -506.0398828 | AI24: =HLOOKUP($A24&"_"&IF(AI$4<10,"0"&AI$4,AI$4),System_LR!$C$3:$JR$49,45,FALSE) -> -586.0263637 | AJ24: =HLOOKUP($A24&"_"&IF(AJ$4<10,"0"&AJ$4,AJ$4),System_LR!$C$3:$JR$49,45,FALSE) -> -562.7125972 | AK24: =HLOOKUP($A24&"_"&IF(AK$4<10,"0"&AK$4,AK$4),System_LR!$C$3:$JR$49,45,FALSE) -> -212.6159767 | AL24: =HLOOKUP($A24&"_"&IF(AL$4<10,"0"&AL$4,AL$4),System_LR!$C$3:$JR$49,45,FALSE) -> -492.2540324 | AM24: =HLOOKUP($A24&"_"&IF(AM$4<10,"0"&AM$4,AM$4),System_LR!$C$3:$JR$49,45,FALSE) -> -681.5556825 | AO24: -0.44 | AP24: -0.44 | AQ24: -0.44 | AR24: -0.44 | AS24: -0.26 | AT24: -0.26 | AU24: -0.26 | AV24: -0.26 | AW24: -0.26 | AX24: -0.44 | AY24: -0.44 | AZ24: -0.44
A25: 2043 | B25: =HLOOKUP($A25&"_"&IF(B$4<10,"0"&B$4,B$4),WA_LR!$C$3:$JR$49,45,FALSE) -> -523.9060243 | C25: =HLOOKUP($A25&"_"&IF(C$4<10,"0"&C$4,C$4),WA_LR!$C$3:$JR$49,45,FALSE) -> -446.7917999 | D25: =HLOOKUP($A25&"_"&IF(D$4<10,"0"&D$4,D$4),WA_LR!$C$3:$JR$49,45,FALSE) -> -323.448322 | E25: =HLOOKUP($A25&"_"&IF(E$4<10,"0"&E$4,E$4),WA_LR!$C$3:$JR$49,45,FALSE) -> -138.5803835 | F25: =HLOOKUP($A25&"_"&IF(F$4<10,"0"&F$4,F$4),WA_LR!$C$3:$JR$49,45,FALSE) -> -217.0793843 | G25: =HLOOKUP($A25&"_"&IF(G$4<10,"0"&G$4,G$4),WA_LR!$C$3:$JR$49,45,FALSE) -> -173.056303 | H25: =HLOOKUP($A25&"_"&IF(H$4<10,"0"&H$4,H$4),WA_LR!$C$3:$JR$49,45,FALSE) -> -344.5055665 | I25: =HLOOKUP($A25&"_"&IF(I$4<10,"0"&I$4,I$4),WA_LR!$C$3:$JR$49,45,FALSE) -> -416.853847 | J25: =HLOOKUP($A25&"_"&IF(J$4<10,"0"&J$4,J$4),WA_LR!$C$3:$JR$49,45,FALSE) -> -409.2550034 | K25: =HLOOKUP($A25&"_"&IF(K$4<10,"0"&K$4,K$4),WA_LR!$C$3:$JR$49,45,FALSE) -> -226.3337539 | L25: =HLOOKUP($A25&"_"&IF(L$4<10,"0"&L$4,L$4),WA_LR!$C$3:$JR$49,45,FALSE) -> -390.9702373 | M25: =HLOOKUP($A25&"_"&IF(M$4<10,"0"&M$4,M$4),WA_LR!$C$3:$JR$49,45,FALSE) -> -505.3471674 | O25: =HLOOKUP($A25&"_"&IF(O$4<10,"0"&O$4,O$4),ID_LR!$C$3:$JR$49,45,FALSE) -> -249.7366548 | P25: =HLOOKUP($A25&"_"&IF(P$4<10,"0"&P$4,P$4),ID_LR!$C$3:$JR$49,45,FALSE) -> -187.096062 | Q25: =HLOOKUP($A25&"_"&IF(Q$4<10,"0"&Q$4,Q$4),ID_LR!$C$3:$JR$49,45,FALSE) -> -119.851547 | R25: =HLOOKUP($A25&"_"&IF(R$4<10,"0"&R$4,R$4),ID_LR!$C$3:$JR$49,45,FALSE) -> -36.3008435 | S25: =HLOOKUP($A25&"_"&IF(S$4<10,"0"&S$4,S$4),ID_LR!$C$3:$JR$49,45,FALSE) -> -132.0727617 | T25: =HLOOKUP($A25&"_"&IF(T$4<10,"0"&T$4,T$4),ID_LR!$C$3:$JR$49,45,FALSE) -> -113.0447154 | U25: =HLOOKUP($A25&"_"&IF(U$4<10,"0"&U$4,U$4),ID_LR!$C$3:$JR$49,45,FALSE) -> -213.0567226 | V25: =HLOOKUP($A25&"_"&IF(V$4<10,"0"&V$4,V$4),ID_LR!$C$3:$JR$49,45,FALSE) -> -233.4535203 | W25: =HLOOKUP($A25&"_"&IF(W$4<10,"0"&W$4,W$4),ID_LR!$C$3:$JR$49,45,FALSE) -> -217.3727295 | X25: =HLOOKUP($A25&"_"&IF(X$4<10,"0"&X$4,X$4),ID_LR!$C$3:$JR$49,45,FALSE) -> -49.99399441 | Y25: =HLOOKUP($A25&"_"&IF(Y$4<10,"0"&Y$4,Y$4),ID_LR!$C$3:$JR$49,45,FALSE) -> -157.3794812 | Z25: =HLOOKUP($A25&"_"&IF(Z$4<10,"0"&Z$4,Z$4),ID_LR!$C$3:$JR$49,45,FALSE) -> -234.9389933 | AB25: =HLOOKUP($A25&"_"&IF(AB$4<10,"0"&AB$4,AB$4),System_LR!$C$3:$JR$49,45,FALSE) -> -773.2026791 | AC25: =HLOOKUP($A25&"_"&IF(AC$4<10,"0"&AC$4,AC$4),System_LR!$C$3:$JR$49,45,FALSE) -> -633.4478619 | AD25: =HLOOKUP($A25&"_"&IF(AD$4<10,"0"&AD$4,AD$4),System_LR!$C$3:$JR$49,45,FALSE) -> -442.8598689 | AE25: =HLOOKUP($A25&"_"&IF(AE$4<10,"0"&AE$4,AE$4),System_LR!$C$3:$JR$49,45,FALSE) -> -174.441227 | AF25: =HLOOKUP($A25&"_"&IF(AF$4<10,"0"&AF$4,AF$4),System_LR!$C$3:$JR$49,45,FALSE) -> -348.8921459 | AG25: =HLOOKUP($A25&"_"&IF(AG$4<10,"0"&AG$4,AG$4),System_LR!$C$3:$JR$49,45,FALSE) -> -285.8410184 | AH25: =HLOOKUP($A25&"_"&IF(AH$4<10,"0"&AH$4,AH$4),System_LR!$C$3:$JR$49,45,FALSE) -> -557.3022892 | AI25: =HLOOKUP($A25&"_"&IF(AI$4<10,"0"&AI$4,AI$4),System_LR!$C$3:$JR$49,45,FALSE) -> -650.0473673 | AJ25: =HLOOKUP($A25&"_"&IF(AJ$4<10,"0"&AJ$4,AJ$4),System_LR!$C$3:$JR$49,45,FALSE) -> -626.3677329 | AK25: =HLOOKUP($A25&"_"&IF(AK$4<10,"0"&AK$4,AK$4),System_LR!$C$3:$JR$49,45,FALSE) -> -275.8877483 | AL25: =HLOOKUP($A25&"_"&IF(AL$4<10,"0"&AL$4,AL$4),System_LR!$C$3:$JR$49,45,FALSE) -> -547.9097184 | AM25: =HLOOKUP($A25&"_"&IF(AM$4<10,"0"&AM$4,AM$4),System_LR!$C$3:$JR$49,45,FALSE) -> -739.8461607 | AO25: -0.44 | AP25: -0.44 | AQ25: -0.44 | AR25: -0.44 | AS25: -0.26 | AT25: -0.26 | AU25: -0.26 | AV25: -0.26 | AW25: -0.26 | AX25: -0.44 | AY25: -0.44 | AZ25: -0.44
A26: 2044 | B26: =HLOOKUP($A26&"_"&IF(B$4<10,"0"&B$4,B$4),WA_LR!$C$3:$JR$49,45,FALSE) -> -560.5655836 | C26: =HLOOKUP($A26&"_"&IF(C$4<10,"0"&C$4,C$4),WA_LR!$C$3:$JR$49,45,FALSE) -> -483.921289 | D26: =HLOOKUP($A26&"_"&IF(D$4<10,"0"&D$4,D$4),WA_LR!$C$3:$JR$49,45,FALSE) -> -362.0596674 | E26: =HLOOKUP($A26&"_"&IF(E$4<10,"0"&E$4,E$4),WA_LR!$C$3:$JR$49,45,FALSE) -> -174.3108769 | F26: =HLOOKUP($A26&"_"&IF(F$4<10,"0"&F$4,F$4),WA_LR!$C$3:$JR$49,45,FALSE) -> -249.693753 | G26: =HLOOKUP($A26&"_"&IF(G$4<10,"0"&G$4,G$4),WA_LR!$C$3:$JR$49,45,FALSE) -> -209.9321656 | H26: =HLOOKUP($A26&"_"&IF(H$4<10,"0"&H$4,H$4),WA_LR!$C$3:$JR$49,45,FALSE) -> -373.605673 | I26: =HLOOKUP($A26&"_"&IF(I$4<10,"0"&I$4,I$4),WA_LR!$C$3:$JR$49,45,FALSE) -> -448.5479121 | J26: =HLOOKUP($A26&"_"&IF(J$4<10,"0"&J$4,J$4),WA_LR!$C$3:$JR$49,45,FALSE) -> -441.1484699 | K26: =HLOOKUP($A26&"_"&IF(K$4<10,"0"&K$4,K$4),WA_LR!$C$3:$JR$49,45,FALSE) -> -264.1244292 | L26: =HLOOKUP($A26&"_"&IF(L$4<10,"0"&L$4,L$4),WA_LR!$C$3:$JR$49,45,FALSE) -> -428.9969188 | M26: =HLOOKUP($A26&"_"&IF(M$4<10,"0"&M$4,M$4),WA_LR!$C$3:$JR$49,45,FALSE) -> -538.1078983 | O26: =HLOOKUP($A26&"_"&IF(O$4<10,"0"&O$4,O$4),ID_LR!$C$3:$JR$49,45,FALSE) -> -265.1086719 | P26: =HLOOKUP($A26&"_"&IF(P$4<10,"0"&P$4,P$4),ID_LR!$C$3:$JR$49,45,FALSE) -> -199.7745058 | Q26: =HLOOKUP($A26&"_"&IF(Q$4<10,"0"&Q$4,Q$4),ID_LR!$C$3:$JR$49,45,FALSE) -> -135.1647325 | R26: =HLOOKUP($A26&"_"&IF(R$4<10,"0"&R$4,R$4),ID_LR!$C$3:$JR$49,45,FALSE) -> -50.42748049 | S26: =HLOOKUP($A26&"_"&IF(S$4<10,"0"&S$4,S$4),ID_LR!$C$3:$JR$49,45,FALSE) -> -148.9951105 | T26: =HLOOKUP($A26&"_"&IF(T$4<10,"0"&T$4,T$4),ID_LR!$C$3:$JR$49,45,FALSE) -> -133.2761219 | U26: =HLOOKUP($A26&"_"&IF(U$4<10,"0"&U$4,U$4),ID_LR!$C$3:$JR$49,45,FALSE) -> -229.600716 | V26: =HLOOKUP($A26&"_"&IF(V$4<10,"0"&V$4,V$4),ID_LR!$C$3:$JR$49,45,FALSE) -> -251.2346644 | W26: =HLOOKUP($A26&"_"&IF(W$4<10,"0"&W$4,W$4),ID_LR!$C$3:$JR$49,45,FALSE) -> -234.6844898 | X26: =HLOOKUP($A26&"_"&IF(X$4<10,"0"&X$4,X$4),ID_LR!$C$3:$JR$49,45,FALSE) -> -64.71726482 | Y26: =HLOOKUP($A26&"_"&IF(Y$4<10,"0"&Y$4,Y$4),ID_LR!$C$3:$JR$49,45,FALSE) -> -171.9461362 | Z26: =HLOOKUP($A26&"_"&IF(Z$4<10,"0"&Z$4,Z$4),ID_LR!$C$3:$JR$49,45,FALSE) -> -248.1292914 | AB26: =HLOOKUP($A26&"_"&IF(AB$4<10,"0"&AB$4,AB$4),System_LR!$C$3:$JR$49,45,FALSE) -> -825.2342555 | AC26: =HLOOKUP($A26&"_"&IF(AC$4<10,"0"&AC$4,AC$4),System_LR!$C$3:$JR$49,45,FALSE) -> -683.2557947 | AD26: =HLOOKUP($A26&"_"&IF(AD$4<10,"0"&AD$4,AD$4),System_LR!$C$3:$JR$49,45,FALSE) -> -496.7843999 | AE26: =HLOOKUP($A26&"_"&IF(AE$4<10,"0"&AE$4,AE$4),System_LR!$C$3:$JR$49,45,FALSE) -> -224.2983574 | AF26: =HLOOKUP($A26&"_"&IF(AF$4<10,"0"&AF$4,AF$4),System_LR!$C$3:$JR$49,45,FALSE) -> -398.4288635 | AG26: =HLOOKUP($A26&"_"&IF(AG$4<10,"0"&AG$4,AG$4),System_LR!$C$3:$JR$49,45,FALSE) -> -342.9482874 | AH26: =HLOOKUP($A26&"_"&IF(AH$4<10,"0"&AH$4,AH$4),System_LR!$C$3:$JR$49,45,FALSE) -> -602.946389 | AI26: =HLOOKUP($A26&"_"&IF(AI$4<10,"0"&AI$4,AI$4),System_LR!$C$3:$JR$49,45,FALSE) -> -699.5225764 | AJ26: =HLOOKUP($A26&"_"&IF(AJ$4<10,"0"&AJ$4,AJ$4),System_LR!$C$3:$JR$49,45,FALSE) -> -675.5729597 | AK26: =HLOOKUP($A26&"_"&IF(AK$4<10,"0"&AK$4,AK$4),System_LR!$C$3:$JR$49,45,FALSE) -> -328.401694 | AL26: =HLOOKUP($A26&"_"&IF(AL$4<10,"0"&AL$4,AL$4),System_LR!$C$3:$JR$49,45,FALSE) -> -600.503055 | AM26: =HLOOKUP($A26&"_"&IF(AM$4<10,"0"&AM$4,AM$4),System_LR!$C$3:$JR$49,45,FALSE) -> -785.7971897 | AO26: -0.44 | AP26: -0.44 | AQ26: -0.44 | AR26: -0.44 | AS26: -0.26 | AT26: -0.26 | AU26: -0.26 | AV26: -0.26 | AW26: -0.26 | AX26: -0.44 | AY26: -0.44 | AZ26: -0.44
A27: 2045 | B27: =HLOOKUP($A27&"_"&IF(B$4<10,"0"&B$4,B$4),WA_LR!$C$3:$JR$49,45,FALSE) -> -710.8381529 | C27: =HLOOKUP($A27&"_"&IF(C$4<10,"0"&C$4,C$4),WA_LR!$C$3:$JR$49,45,FALSE) -> -635.5170352 | D27: =HLOOKUP($A27&"_"&IF(D$4<10,"0"&D$4,D$4),WA_LR!$C$3:$JR$49,45,FALSE) -> -515.0052551 | E27: =HLOOKUP($A27&"_"&IF(E$4<10,"0"&E$4,E$4),WA_LR!$C$3:$JR$49,45,FALSE) -> -326.0409916 | F27: =HLOOKUP($A27&"_"&IF(F$4<10,"0"&F$4,F$4),WA_LR!$C$3:$JR$49,45,FALSE) -> -367.899358 | G27: =HLOOKUP($A27&"_"&IF(G$4<10,"0"&G$4,G$4),WA_LR!$C$3:$JR$49,45,FALSE) -> -327.9769101 | H27: =HLOOKUP($A27&"_"&IF(H$4<10,"0"&H$4,H$4),WA_LR!$C$3:$JR$49,45,FALSE) -> -489.4117664 | I27: =HLOOKUP($A27&"_"&IF(I$4<10,"0"&I$4,I$4),WA_LR!$C$3:$JR$49,45,FALSE) -> -565.9880467 | J27: =HLOOKUP($A27&"_"&IF(J$4<10,"0"&J$4,J$4),WA_LR!$C$3:$JR$49,45,FALSE) -> -564.071185 | K27: =HLOOKUP($A27&"_"&IF(K$4<10,"0"&K$4,K$4),WA_LR!$C$3:$JR$49,45,FALSE) -> -417.3777291 | L27: =HLOOKUP($A27&"_"&IF(L$4<10,"0"&L$4,L$4),WA_LR!$C$3:$JR$49,45,FALSE) -> -582.1873031 | M27: =HLOOKUP($A27&"_"&IF(M$4<10,"0"&M$4,M$4),WA_LR!$C$3:$JR$49,45,FALSE) -> -692.3049391 | O27: =HLOOKUP($A27&"_"&IF(O$4<10,"0"&O$4,O$4),ID_LR!$C$3:$JR$49,45,FALSE) -> -342.6470415 | P27: =HLOOKUP($A27&"_"&IF(P$4<10,"0"&P$4,P$4),ID_LR!$C$3:$JR$49,45,FALSE) -> -280.6120723 | Q27: =HLOOKUP($A27&"_"&IF(Q$4<10,"0"&Q$4,Q$4),ID_LR!$C$3:$JR$49,45,FALSE) -> -213.0523659 | R27: =HLOOKUP($A27&"_"&IF(R$4<10,"0"&R$4,R$4),ID_LR!$C$3:$JR$49,45,FALSE) -> -128.1978311 | S27: =HLOOKUP($A27&"_"&IF(S$4<10,"0"&S$4,S$4),ID_LR!$C$3:$JR$49,45,FALSE) -> -212.9193424 | T27: =HLOOKUP($A27&"_"&IF(T$4<10,"0"&T$4,T$4),ID_LR!$C$3:$JR$49,45,FALSE) -> -198.1286665 | U27: =HLOOKUP($A27&"_"&IF(U$4<10,"0"&U$4,U$4),ID_LR!$C$3:$JR$49,45,FALSE) -> -293.8672798 | V27: =HLOOKUP($A27&"_"&IF(V$4<10,"0"&V$4,V$4),ID_LR!$C$3:$JR$49,45,FALSE) -> -316.13326 | W27: =HLOOKUP($A27&"_"&IF(W$4<10,"0"&W$4,W$4),ID_LR!$C$3:$JR$49,45,FALSE) -> -301.989848 | X27: =HLOOKUP($A27&"_"&IF(X$4<10,"0"&X$4,X$4),ID_LR!$C$3:$JR$49,45,FALSE) -> -142.6593893 | Y27: =HLOOKUP($A27&"_"&IF(Y$4<10,"0"&Y$4,Y$4),ID_LR!$C$3:$JR$49,45,FALSE) -> -249.5000331 | Z27: =HLOOKUP($A27&"_"&IF(Z$4<10,"0"&Z$4,Z$4),ID_LR!$C$3:$JR$49,45,FALSE) -> -327.1444954 | AB27: =HLOOKUP($A27&"_"&IF(AB$4<10,"0"&AB$4,AB$4),System_LR!$C$3:$JR$49,45,FALSE) -> -1053.045194 | AC27: =HLOOKUP($A27&"_"&IF(AC$4<10,"0"&AC$4,AC$4),System_LR!$C$3:$JR$49,45,FALSE) -> -915.6891076 | AD27: =HLOOKUP($A27&"_"&IF(AD$4<10,"0"&AD$4,AD$4),System_LR!$C$3:$JR$49,45,FALSE) -> -727.617621 | AE27: =HLOOKUP($A27&"_"&IF(AE$4<10,"0"&AE$4,AE$4),System_LR!$C$3:$JR$49,45,FALSE) -> -453.7988226 | AF27: =HLOOKUP($A27&"_"&IF(AF$4<10,"0"&AF$4,AF$4),System_LR!$C$3:$JR$49,45,FALSE) -> -580.5587004 | AG27: =HLOOKUP($A27&"_"&IF(AG$4<10,"0"&AG$4,AG$4),System_LR!$C$3:$JR$49,45,FALSE) -> -525.8455767 | AH27: =HLOOKUP($A27&"_"&IF(AH$4<10,"0"&AH$4,AH$4),System_LR!$C$3:$JR$49,45,FALSE) -> -783.0190461 | AI27: =HLOOKUP($A27&"_"&IF(AI$4<10,"0"&AI$4,AI$4),System_LR!$C$3:$JR$49,45,FALSE) -> -881.8613067 | AJ27: =HLOOKUP($A27&"_"&IF(AJ$4<10,"0"&AJ$4,AJ$4),System_LR!$C$3:$JR$49,45,FALSE) -> -865.8010331 | AK27: =HLOOKUP($A27&"_"&IF(AK$4<10,"0"&AK$4,AK$4),System_LR!$C$3:$JR$49,45,FALSE) -> -559.5971184 | AL27: =HLOOKUP($A27&"_"&IF(AL$4<10,"0"&AL$4,AL$4),System_LR!$C$3:$JR$49,45,FALSE) -> -831.2473362 | AM27: =HLOOKUP($A27&"_"&IF(AM$4<10,"0"&AM$4,AM$4),System_LR!$C$3:$JR$49,45,FALSE) -> -1019.009435 | AO27: -0.44 | AP27: -0.44 | AQ27: -0.44 | AR27: -0.44 | AS27: -0.26 | AT27: -0.26 | AU27: -0.26 | AV27: -0.26 | AW27: -0.26 | AX27: -0.44 | AY27: -0.44 | AZ27: -0.44
A30: Energy | B30: 1 | C30: 2 | D30: 3 | E30: 4 | F30: 5 | G30: 6 | H30: 7 | I30: 8 | J30: 9 | K30: 10 | L30: 11 | M30: 12 | O30: 1 | P30: 2 | Q30: 3 | R30: 4 | S30: 5 | T30: 6 | U30: 7 | V30: 8 | W30: 9 | X30: 10 | Y30: 11 | Z30: 12 | AB30: 1 | AC30: 2 | AD30: 3 | AE30: 4 | AF30: 5 | AG30: 6 | AH30: 7 | AI30: 8 | AJ30: 9 | AK30: 10 | AL30: 11 | AM30: 12 | AO30: 1 | AP30: 2 | AQ30: 3 | AR30: 4 | AS30: 5 | AT30: 6 | AU30: 7 | AV30: 8 | AW30: 9 | AX30: 10 | AY30: 11 | AZ30: 12
A31: 2023 | B31: =HLOOKUP($A31&"_"&IF(B$4<10,"0"&B$4,B$4),WA_LR!$C$133:$JR$175,41,FALSE) -> 131.1619677 | C31: =HLOOKUP($A31&"_"&IF(C$4<10,"0"&C$4,C$4),WA_LR!$C$133:$JR$175,41,FALSE) -> 126.2931737 | D31: =HLOOKUP($A31&"_"&IF(D$4<10,"0"&D$4,D$4),WA_LR!$C$133:$JR$175,41,FALSE) -> 228.7129775 | E31: =HLOOKUP($A31&"_"&IF(E$4<10,"0"&E$4,E$4),WA_LR!$C$133:$JR$175,41,FALSE) -> 291.3483204 | F31: =HLOOKUP($A31&"_"&IF(F$4<10,"0"&F$4,F$4),WA_LR!$C$133:$JR$175,41,FALSE) -> 367.1906169 | G31: =HLOOKUP($A31&"_"&IF(G$4<10,"0"&G$4,G$4),WA_LR!$C$133:$JR$175,41,FALSE) -> 397.8934249 | H31: =HLOOKUP($A31&"_"&IF(H$4<10,"0"&H$4,H$4),WA_LR!$C$133:$JR$175,41,FALSE) -> 197.4623271 | I31: =HLOOKUP($A31&"_"&IF(I$4<10,"0"&I$4,I$4),WA_LR!$C$133:$JR$175,41,FALSE) -> 114.3303808 | J31: =HLOOKUP($A31&"_"&IF(J$4<10,"0"&J$4,J$4),WA_LR!$C$133:$JR$175,41,FALSE) -> 176.925455 | K31: =HLOOKUP($A31&"_"&IF(K$4<10,"0"&K$4,K$4),WA_LR!$C$133:$JR$175,41,FALSE) -> 199.1174861 | L31: =HLOOKUP($A31&"_"&IF(L$4<10,"0"&L$4,L$4),WA_LR!$C$133:$JR$175,41,FALSE) -> 168.0556381 | M31: =HLOOKUP($A31&"_"&IF(M$4<10,"0"&M$4,M$4),WA_LR!$C$133:$JR$175,41,FALSE) -> 185.4024579 | O31: =HLOOKUP($A31&"_"&IF(O$4<10,"0"&O$4,O$4),ID_LR!$C$133:$JR$175,41,FALSE) -> 66.73098746 | P31: =HLOOKUP($A31&"_"&IF(P$4<10,"0"&P$4,P$4),ID_LR!$C$133:$JR$175,41,FALSE) -> 76.21406188 | Q31: =HLOOKUP($A31&"_"&IF(Q$4<10,"0"&Q$4,Q$4),ID_LR!$C$133:$JR$175,41,FALSE) -> 121.2795564 | R31: =HLOOKUP($A31&"_"&IF(R$4<10,"0"&R$4,R$4),ID_LR!$C$133:$JR$175,41,FALSE) -> 148.9780719 | S31: =HLOOKUP($A31&"_"&IF(S$4<10,"0"&S$4,S$4),ID_LR!$C$133:$JR$175,41,FALSE) -> 193.3731624 | T31: =HLOOKUP($A31&"_"&IF(T$4<10,"0"&T$4,T$4),ID_LR!$C$133:$JR$175,41,FALSE) -> 220.1206446 | U31: =HLOOKUP($A31&"_"&IF(U$4<10,"0"&U$4,U$4),ID_LR!$C$133:$JR$175,41,FALSE) -> 108.6802808 | V31: =HLOOKUP($A31&"_"&IF(V$4<10,"0"&V$4,V$4),ID_LR!$C$133:$JR$175,41,FALSE) -> 72.98081307 | W31: =HLOOKUP($A31&"_"&IF(W$4<10,"0"&W$4,W$4),ID_LR!$C$133:$JR$175,41,FALSE) -> 107.8748411 | X31: =HLOOKUP($A31&"_"&IF(X$4<10,"0"&X$4,X$4),ID_LR!$C$133:$JR$175,41,FALSE) -> 116.5669929 | Y31: =HLOOKUP($A31&"_"&IF(Y$4<10,"0"&Y$4,Y$4),ID_LR!$C$133:$JR$175,41,FALSE) -> 89.20601647 | Z31: =HLOOKUP($A31&"_"&IF(Z$4<10,"0"&Z$4,Z$4),ID_LR!$C$133:$JR$175,41,FALSE) -> 93.5855409 | AB31: =HLOOKUP($A31&"_"&IF(AB$4<10,"0"&AB$4,AB$4),System_LR!$C$132:$JR$174,41,FALSE) -> 197.8929552 | AC31: =HLOOKUP($A31&"_"&IF(AC$4<10,"0"&AC$4,AC$4),System_LR!$C$132:$JR$174,41,FALSE) -> 202.5072356 | AD31: =HLOOKUP($A31&"_"&IF(AD$4<10,"0"&AD$4,AD$4),System_LR!$C$132:$JR$174,41,FALSE) -> 349.9925339 | AE31: =HLOOKUP($A31&"_"&IF(AE$4<10,"0"&AE$4,AE$4),System_LR!$C$132:$JR$174,41,FALSE) -> 440.3263923 | AF31: =HLOOKUP($A31&"_"&IF(AF$4<10,"0"&AF$4,AF$4),System_LR!$C$132:$JR$174,41,FALSE) -> 560.5637792 | AG31: =HLOOKUP($A31&"_"&IF(AG$4<10,"0"&AG$4,AG$4),System_LR!$C$132:$JR$174,41,FALSE) -> 618.0140695 | AH31: =HLOOKUP($A31&"_"&IF(AH$4<10,"0"&AH$4,AH$4),System_LR!$C$132:$JR$174,41,FALSE) -> 306.1426079 | AI31: =HLOOKUP($A31&"_"&IF(AI$4<10,"0"&AI$4,AI$4),System_LR!$C$132:$JR$174,41,FALSE) -> 187.3111939 | AJ31: =HLOOKUP($A31&"_"&IF(AJ$4<10,"0"&AJ$4,AJ$4),System_LR!$C$132:$JR$174,41,FALSE) -> 284.8002961 | AK31: =HLOOKUP($A31&"_"&IF(AK$4<10,"0"&AK$4,AK$4),System_LR!$C$132:$JR$174,41,FALSE) -> 315.684479 | AL31: =HLOOKUP($A31&"_"&IF(AL$4<10,"0"&AL$4,AL$4),System_LR!$C$132:$JR$174,41,FALSE) -> 257.2616545 | AM31: =HLOOKUP($A31&"_"&IF(AM$4<10,"0"&AM$4,AM$4),System_LR!$C$132:$JR$174,41,FALSE) -> 278.9879988 | AO31: =B31+O31-AB31 -> 5.684341886e-13 | AP31: =C31+P31-AC31 -> 4.547473509e-13 | AQ31: =D31+Q31-AD31 -> 6.821210263e-13 | AR31: =E31+R31-AE31 -> 0 | AS31: =F31+S31-AF31 -> 0 | AT31: =G31+T31-AG31 -> 0 | AU31: =H31+U31-AH31 -> 0 | AV31: =I31+V31-AI31 -> 3.410605132e-13 | AW31: =J31+W31-AJ31 -> 0 | AX31: =K31+X31-AK31 -> 5.684341886e-13 | AY31: =L31+Y31-AL31 -> 6.252776075e-13 | AZ31: =M31+Z31-AM31 -> 0
... 35 more rows

Sheet Financial Summary
A1: Key Financial & Other Results
B2: Nominal Dollars (Millions)
A4: 0.0651 | B4: Discount Rate
A5: 0.0286282296 | B5: WA Misc Adder
A6: 0.000525708 | B6: ID Misc Adder
E7: Washington- Direct | AC7: Idaho- Direct | BA7: System/Shared Data
B8: Time | E8: 2023 | F8: 2024 | G8: 2025 | H8: 2026 | I8: 2027 | J8: 2028 | K8: 2029 | L8: 2030 | M8: 2031 | N8: 2032 | O8: 2033 | P8: 2034 | Q8: 2035 | R8: 2036 | S8: 2037 | T8: 2038 | U8: 2039 | V8: 2040 | W8: 2041 | X8: 2042 | Y8: 2043 | Z8: 2044 | AA8: 2045 | AC8: 2023 | AD8: 2024 | AE8: 2025 | AF8: 2026 | AG8: 2027 | AH8: 2028 | AI8: 2029 | AJ8: 2030 | AK8: 2031 | AL8: 2032 | AM8: 2033 | AN8: 2034 | AO8: 2035 | AP8: 2036 | AQ8: 2037 | AR8: 2038 | AS8: 2039 | AT8: 2040 | AU8: 2041 | AV8: 2042 | AW8: 2043 | AX8: 2044 | AY8: 2045 | BA8: 2023 | BB8: 2024 | BC8: 2025 | BD8: 2026 | BE8: 2027 | BF8: 2028 | BG8: 2029 | BH8: 2030 | BI8: 2031 | BJ8: 2032 | BK8: 2033 | BL8: 2034 | BM8: 2035 | BN8: 2036 | BO8: 2037 | BP8: 2038 | BQ8: 2039 | BR8: 2040 | BS8: 2041 | BT8: 2042 | BU8: 2043 | BV8: 2044 | BW8: 2045
B9: Retail Sales (GWh) | E9: =SUM('Clean Goals'!D10:O10)/1000 -> 5738.700727 | F9: =SUM('Clean Goals'!P10:AA10)/1000 -> 5789.824874 | G9: =SUM('Clean Goals'!AB10:AM10)/1000 -> 5824.796615 | H9: =SUM('Clean Goals'!AN10:AY10)/1000 -> 5793.670939 | I9: =SUM('Clean Goals'!AZ10:BK10)/1000 -> 5832.020098 | J9: =SUM('Clean Goals'!BL10:BW10)/1000 -> 5872.196075 | K9: =SUM('Clean Goals'!BX10:CI10)/1000 -> 5908.558518 | L9: =SUM('Clean Goals'!CJ10:CU10)/1000 -> 5944.143124 | M9: =SUM('Clean Goals'!CV10:DG10)/1000 -> 5990.817645 | N9: =SUM('Clean Goals'!DH10:DS10)/1000 -> 6042.136732 | O9: =SUM('Clean Goals'!DT10:EE10)/1000 -> 6088.564402 | P9: =SUM('Clean Goals'!EF10:EQ10)/1000 -> 6139.674713 | Q9: =SUM('Clean Goals'!ER10:FC10)/1000 -> 6192.585921 | R9: =SUM('Clean Goals'!FD10:FO10)/1000 -> 6250.774131 | S9: =SUM('Clean Goals'!FP10:GA10)/1000 -> 6305.009877 | T9: =SUM('Clean Goals'!GB10:GM10)/1000 -> 6365.121646 | U9: =SUM('Clean Goals'!GN10:GY10)/1000 -> 6428.466331 | V9: =SUM('Clean Goals'!GZ10:HK10)/1000 -> 6498.876196 | W9: =SUM('Clean Goals'!HL10:HW10)/1000 -> 6567.124043 | X9: =SUM('Clean Goals'!HX10:II10)/1000 -> 6643.618954 | Y9: =SUM('Clean Goals'!IJ10:IU10)/1000 -> 6725.807415 | Z9: =SUM('Clean Goals'!IV10:JG10)/1000 -> 6817.965579 | AA9: =SUM('Clean Goals'!JH10:JS10)/1000 -> 6911.15447 | AC9: =SUM('Clean Goals'!D111:O111)/1000 -> 3475.027268 | AD9: =SUM('Clean Goals'!P111:AA111)/1000 -> 3486.474013 | AE9: =SUM('Clean Goals'!AB111:AM111)/1000 -> 3498.691234 | AF9: =SUM('Clean Goals'!AN111:AY111)/1000 -> 3474.038374 | AG9: =SUM('Clean Goals'!AZ111:BK111)/1000 -> 3494.482957 | AH9: =SUM('Clean Goals'!BL111:BW111)/1000 -> 3513.350861 | AI9: =SUM('Clean Goals'!BX111:CI111)/1000 -> 3534.421608 | AJ9: =SUM('Clean Goals'!CJ111:CU111)/1000 -> 3553.684443 | AK9: =SUM('Clean Goals'!CV111:DG111)/1000 -> 3577.011333 | AL9: =SUM('Clean Goals'!DH111:DS111)/1000 -> 3600.760329 | AM9: =SUM('Clean Goals'!DT111:EE111)/1000 -> 3626.697518 | AN9: =SUM('Clean Goals'!EF111:EQ111)/1000 -> 3653.463918 | AO9: =SUM('Clean Goals'!ER111:FC111)/1000 -> 3681.434698 | AP9: =SUM('Clean Goals'!FD111:FO111)/1000 -> 3710.381112 | AQ9: =SUM('Clean Goals'!FP111:GA111)/1000 -> 3741.689892 | AR9: =SUM('Clean Goals'!GB111:GM111)/1000 -> 3774.353804 | AS9: =SUM('Clean Goals'!GN111:GY111)/1000 -> 3808.660499 | AT9: =SUM('Clean Goals'!GZ111:HK111)/1000 -> 3844.872778 | AU9: =SUM('Clean Goals'!HL111:HW111)/1000 -> 3884.100192 | AV9: =SUM('Clean Goals'!HX111:II111)/1000 -> 3925.634642 | AW9: =SUM('Clean Goals'!IJ111:IU111)/1000 -> 3969.941514 | AX9: =SUM('Clean Goals'!IV111:JG111)/1000 -> 4017.952848 | AY9: =SUM('Clean Goals'!JH111:JS111)/1000 -> 4070.427423 | BA9: =E9+AC9 -> 9213.727995 | BB9: 9276.298887 | BC9: 9323.487849 | BD9: 9267.709314 | BE9: 9326.503056 | BF9: 9385.546936 | BG9: 9442.980126 | BH9: 9497.827567 | BI9: 9567.828978 | BJ9: 9642.897061 | BK9: 9715.26192 | BL9: 9793.13863 | BM9: 9874.020619 | BN9: 9961.155244 | BO9: 10046.69977 | BP9: 10139.47545 | BQ9: 10237.12683 | BR9: 10343.74897 | BS9: 10451.22423 | BT9: 10569.2536 | BU9: 10695.74893 | BV9: 10835.91843 | BW9: 10981.58189
B10: Idaho Industrial Generation (GWh) | AC10: 385.8538046 | AD10: 387.76029 | AE10: 391.0558867 | AF10: 392.3589545 | AG10: 391.2769415 | AH10: 389.5533175 | AI10: 387.4083685 | AJ10: 391.261638 | AK10: 391.2301276 | AL10: 391.9428468 | AM10: 390.4102853 | AN10: 389.470685 | AO10: 391.3325645 | AP10: 392.2145713 | AQ10: 391.7119414 | AR10: 391.1708773 | AS10: 391.7423547 | AT10: 393.0679268 | AU10: 391.9381091 | AV10: 391.5688216 | AW10: 391.6233111 | AX10: 392.9899506 | AY10: 391.7903539
A11: Aurora | B11: Load Cost at Market Prices (No EE) | E11: =AVERAGE(Risk!B621:B920) -> 363.0285835 | F11: =AVERAGE(Risk!C621:C920) -> 340.2849963 | G11: =AVERAGE(Risk!D621:D920) -> 301.5132612 | H11: =AVERAGE(Risk!E621:E920) -> 293.0054019 | I11: =AVERAGE(Risk!F621:F920) -> 268.336358 | J11: =AVERAGE(Risk!G621:G920) -> 271.9372459 | K11: =AVERAGE(Risk!H621:H920) -> 278.6202243 | L11: =AVERAGE(Risk!I621:I920) -> 309.1632731 | M11: =AVERAGE(Risk!J621:J920) -> 307.8506294 | N11: =AVERAGE(Risk!K621:K920) -> 309.5962739 | O11: =AVERAGE(Risk!L621:L920) -> 316.0472168 | P11: =AVERAGE(Risk!M621:M920) -> 314.3424678 | Q11: =AVERAGE(Risk!N621:N920) -> 320.039356 | R11: =AVERAGE(Risk!O621:O920) -> 342.1664153 | S11: =AVERAGE(Risk!P621:P920) -> 352.9067991 | T11: =AVERAGE(Risk!Q621:Q920) -> 359.289632 | U11: =AVERAGE(Risk!R621:R920) -> 367.4772552 | V11: =AVERAGE(Risk!S621:S920) -> 387.3511303 | W11: =AVERAGE(Risk!T621:T920) -> 402.6965472 | X11: =AVERAGE(Risk!U621:U920) -> 413.4391543 | Y11: =AVERAGE(Risk!V621:V920) -> 433.4144084 | Z11: =AVERAGE(Risk!W621:W920) -> 478.711184 | AA11: =AVERAGE(Risk!X621:X920) -> 492.2575353 | AC11: =AVERAGE(Risk!Z621:Z920) -> 219.8293072 | AD11: =AVERAGE(Risk!AA621:AA920) -> 204.9105177 | AE11: =AVERAGE(Risk!AB621:AB920) -> 181.1057859 | AF11: =AVERAGE(Risk!AC621:AC920) -> 175.539966 | AG11: =AVERAGE(Risk!AD621:AD920) -> 160.6462321 | AH11: =AVERAGE(Risk!AE621:AE920) -> 162.5656544 | AI11: =AVERAGE(Risk!AF621:AF920) -> 166.5307251 | AJ11: =AVERAGE(Risk!AG621:AG920) -> 184.6847181 | AK11: =AVERAGE(Risk!AH621:AH920) -> 183.670965 | AL11: =AVERAGE(Risk!AI621:AI920) -> 184.3665214 | AM11: =AVERAGE(Risk!AJ621:AJ920) -> 188.1222324 | AN11: =AVERAGE(Risk!AK621:AK920) -> 186.9244966 | AO11: =AVERAGE(Risk!AL621:AL920) -> 190.1357099 | AP11: =AVERAGE(Risk!AM621:AM920) -> 202.9791981 | AQ11: =AVERAGE(Risk!AN621:AN920) -> 209.304391 | AR11: =AVERAGE(Risk!AO621:AO920) -> 212.9246695 | AS11: =AVERAGE(Risk!AP621:AP920) -> 217.5951942 | AT11: =AVERAGE(Risk!AQ621:AQ920) -> 229.040901 | AU11: =AVERAGE(Risk!AR621:AR920) -> 238.046485 | AV11: =AVERAGE(Risk!AS621:AS920) -> 244.1701907 | AW11: =AVERAGE(Risk!AT621:AT920) -> 255.6975811 | AX11: =AVERAGE(Risk!AU621:AU920) -> 281.9794184 | AY11: =AVERAGE(Risk!AV621:AV920) -> 289.7882219
B13: Energy Efficiency
B14: Optimization Cost | E14: =EE_Selection!BG4 -> 0.7777035264 | F14: =EE_Selection!BH4 -> 1.766828553 | G14: =EE_Selection!BI4 -> 2.758870326 | H14: =EE_Selection!BJ4 -> 4.038393689 | I14: =EE_Selection!BK4 -> 5.544175222 | J14: =EE_Selection!BL4 -> 7.310664483 | K14: =EE_Selection!BM4 -> 9.255973781 | L14: =EE_Selection!BN4 -> 11.18072757 | M14: =EE_Selection!BO4 -> 13.08694589 | N14: =EE_Selection!BP4 -> 14.82739694 | O14: =EE_Selection!BQ4 -> 16.3538812 | P14: =EE_Selection!BR4 -> 17.60929461 | Q14: =EE_Selection!BS4 -> 18.63854314 | R14: =EE_Selection!BT4 -> 19.49556629 | S14: =EE_Selection!BU4 -> 20.2468097 | T14: =EE_Selection!BV4 -> 20.87699626 | U14: =EE_Selection!BW4 -> 21.478497 | V14: =EE_Selection!BX4 -> 22.04864022 | W14: =EE_Selection!BY4 -> 22.61079698 | X14: =EE_Selection!BZ4 -> 23.1718237 | Y14: =EE_Selection!CA4 -> 23.74620628 | Z14: =EE_Selection!CB4 -> 24.34630359 | AA14: =EE_Selection!CC4 -> 24.98776763 | AC14: =EE_Selection!CE5 -> 0.07847704011 | AD14: =EE_Selection!CF5 -> 0.1736127718 | AE14: =EE_Selection!CG5 -> 0.2458624673 | AF14: =EE_Selection!CH5 -> 0.3472452685 | AG14: =EE_Selection!CI5 -> 0.4635212919 | AH14: =EE_Selection!CJ5 -> 0.5962546384 | AI14: =EE_Selection!CK5 -> 0.7415104083 | AJ14: =EE_Selection!CL5 -> 0.861257828 | AK14: =EE_Selection!CM5 -> 1.0068203 | AL14: =EE_Selection!CN5 -> 1.151112132 | AM14: =EE_Selection!CO5 -> 1.272171944 | AN14: =EE_Selection!CP5 -> 1.385549204 | AO14: =EE_Selection!CQ5 -> 1.492927007 | AP14: =EE_Selection!CR5 -> 1.596602103 | AQ14: =EE_Selection!CS5 -> 1.694938719 | AR14: =EE_Selection!CT5 -> 1.780089507 | AS14: =EE_Selection!CU5 -> 1.863485303 | AT14: =EE_Selection!CV5 -> 1.938834746 | AU14: =EE_Selection!CW5 -> 2.010348339 | AV14: =EE_Selection!CX5 -> 2.078866766 | AW14: =EE_Selection!CY5 -> 2.139719624 | AX14: =EE_Selection!CZ5 -> 2.201575927 | AY14: =EE_Selection!DA5 -> 2.263079843
B15: Market Value | E15: =-EE_Mrkt_Value!AD4 -> -1.271519804 | F15: =-EE_Mrkt_Value!AE4 -> -2.550627458 | G15: =-EE_Mrkt_Value!AF4 -> -3.60567809 | H15: =-EE_Mrkt_Value!AG4 -> -4.857602502 | I15: =-EE_Mrkt_Value!AH4 -> -5.801693731 | J15: =-EE_Mrkt_Value!AI4 -> -7.340441513 | K15: =-EE_Mrkt_Value!AJ4 -> -9.015586091 | L15: =-EE_Mrkt_Value!AK4 -> -11.52882083 | M15: =-EE_Mrkt_Value!AL4 -> -13.05557339 | N15: =-EE_Mrkt_Value!AM4 -> -14.53803835 | O15: =-EE_Mrkt_Value!AN4 -> -16.00446408 | P15: =-EE_Mrkt_Value!AO4 -> -16.96379701 | Q15: =-EE_Mrkt_Value!AP4 -> -18.13026755 | R15: =-EE_Mrkt_Value!AQ4 -> -20.1746608 | S15: =-EE_Mrkt_Value!AR4 -> -21.27580698 | T15: =-EE_Mrkt_Value!AS4 -> -22.09227431 | U15: =-EE_Mrkt_Value!AT4 -> -22.87252752 | V15: =-EE_Mrkt_Value!AU4 -> -24.33138077 | W15: =-EE_Mrkt_Value!AV4 -> -25.27604095 | X15: =-EE_Mrkt_Value!AW4 -> -26.01175357 | Y15: =-EE_Mrkt_Value!AX4 -> -27.18187408 | Z15: =-EE_Mrkt_Value!AY4 -> -29.85311889 | AA15: =-EE_Mrkt_Value!AZ4 -> -30.3540668 | AC15: =-EE_Mrkt_Value!BB4 -> -0.4794902554 | AD15: =-EE_Mrkt_Value!BC4 -> -0.9634742163 | AE15: =-EE_Mrkt_Value!BD4 -> -1.347848884 | AF15: =-EE_Mrkt_Value!BE4 -> -1.796455856 | AG15: =-EE_Mrkt_Value!BF4 -> -2.10291731 | AH15: =-EE_Mrkt_Value!BG4 -> -2.625426089 | AI15: =-EE_Mrkt_Value!BH4 -> -3.182768768 | AJ15: =-EE_Mrkt_Value!BI4 -> -4.063835821 | AK15: =-EE_Mrkt_Value!BJ4 -> -4.55059151 | AL15: =-EE_Mrkt_Value!BK4 -> -5.026955945 | AM15: =-EE_Mrkt_Value!BL4 -> -5.496553702 | AN15: =-EE_Mrkt_Value!BM4 -> -5.810704853 | AO15: =-EE_Mrkt_Value!BN4 -> -6.216093047 | AP15: =-EE_Mrkt_Value!BO4 -> -6.94608005 | AQ15: =-EE_Mrkt_Value!BP4 -> -7.383285503 | AR15: =-EE_Mrkt_Value!BQ4 -> -7.670713697 | AS15: =-EE_Mrkt_Value!BR4 -> -7.97883641 | AT15: =-EE_Mrkt_Value!BS4 -> -8.540994347 | AU15: =-EE_Mrkt_Value!BT4 -> -8.949300846 | AV15: =-EE_Mrkt_Value!BU4 -> -9.239331103 | AW15: =-EE_Mrkt_Value!BV4 -> -9.632399766 | AX15: =-EE_Mrkt_Value!BW4 -> -10.64636213 | AY15: =-EE_Mrkt_Value!BX4 -> -10.81204491
B16: T&D Adjustment | E16: =-(G_A!Q$18*EE_Selection!DC$4*1000)/1000000 -> -0.03787732157 | F16: =-(G_A!R$18*EE_Selection!DD$4*1000)/1000000 -> -0.0851739422 | G16: =-(G_A!S$18*EE_Selection!DE$4*1000)/1000000 -> -0.1385382655 | H16: =-(G_A!T$18*EE_Selection!DF$4*1000)/1000000 -> -0.2014719278 | I16: =-(G_A!U$18*EE_Selection!DG$4*1000)/1000000 -> -0.2688463011 | J16: =-(G_A!V$18*EE_Selection!DH$4*1000)/1000000 -> -0.3404720074 | K16: =-(G_A!W$18*EE_Selection!DI$4*1000)/1000000 -> -0.4123814081 | L16: =-(G_A!X$18*EE_Selection!DJ$4*1000)/1000000 -> -0.4809725526 | M16: =-(G_A!Y$18*EE_Selection!DK$4*1000)/1000000 -> -0.5594085972 | N16: =-(G_A!Z$18*EE_Selection!DL$4*1000)/1000000 -> -0.6421225402 | O16: =-(G_A!AA$18*EE_Selection!DM$4*1000)/1000000 -> -0.7217111929 | P16: =-(G_A!AB$18*EE_Selection!DN$4*1000)/1000000 -> -0.8032019396 | Q16: =-(G_A!AC$18*EE_Selection!DO$4*1000)/1000000 -> -0.8832316122 | R16: =-(G_A!AD$18*EE_Selection!DP$4*1000)/1000000 -> -0.9642234824 | S16: =-(G_A!AE$18*EE_Selection!DQ$4*1000)/1000000 -> -1.037015583 | T16: =-(G_A!AF$18*EE_Selection!DR$4*1000)/1000000 -> -1.102112346 | U16: =-(G_A!AG$18*EE_Selection!DS$4*1000)/1000000 -> -1.164439532 | V16: =-(G_A!AH$18*EE_Selection!DT$4*1000)/1000000 -> -1.22700107 | W16: =-(G_A!AI$18*EE_Selection!DU$4*1000)/1000000 -> -1.282469456 | X16: =-(G_A!AJ$18*EE_Selection!DV$4*1000)/1000000 -> -1.339758765 | Y16: =-(G_A!AK$18*EE_Selection!DW$4*1000)/1000000 -> -1.374595615 | Z16: =-(G_A!AL$18*EE_Selection!DX$4*1000)/1000000 -> -1.414671897 | AA16: =-(G_A!AM$18*EE_Selection!DY$4*1000)/1000000 -> -1.436844122 | AC16: =-(G_A!Q$18*EE_Selection!DC$5*1000)/1000000 -> -0.01686189471 | AD16: =-(G_A!R$18*EE_Selection!DD$5*1000)/1000000 -> -0.0375846599 | AE16: =-(G_A!S$18*EE_Selection!DE$5*1000)/1000000 -> -0.06149315413 | AF16: =-(G_A!T$18*EE_Selection!DF$5*1000)/1000000 -> -0.08930255321 | AG16: =-(G_A!U$18*EE_Selection!DG$5*1000)/1000000 -> -0.1192071876 | AH16: =-(G_A!V$18*EE_Selection!DH$5*1000)/1000000 -> -0.1508450128 | AI16: =-(G_A!W$18*EE_Selection!DI$5*1000)/1000000 -> -0.1822800502 | AJ16: =-(G_A!X$18*EE_Selection!DJ$5*1000)/1000000 -> -0.2131576746 | AK16: =-(G_A!Y$18*EE_Selection!DK$5*1000)/1000000 -> -0.2468748038 | AL16: =-(G_A!Z$18*EE_Selection!DL$5*1000)/1000000 -> -0.2820490531 | AM16: =-(G_A!AA$18*EE_Selection!DM$5*1000)/1000000 -> -0.3152833513 | AN16: =-(G_A!AB$18*EE_Selection!DN$5*1000)/1000000 -> -0.3492531708 | AO16: =-(G_A!AC$18*EE_Selection!DO$5*1000)/1000000 -> -0.3823124733 | AP16: =-(G_A!AD$18*EE_Selection!DP$5*1000)/1000000 -> -0.4156394247 | AQ16: =-(G_A!AE$18*EE_Selection!DQ$5*1000)/1000000 -> -0.4454783207 | AR16: =-(G_A!AF$18*EE_Selection!DR$5*1000)/1000000 -> -0.4718597339 | AS16: =-(G_A!AG$18*EE_Selection!DS$5*1000)/1000000 -> -0.4972186379 | AT16: =-(G_A!AH$18*EE_Selection!DT$5*1000)/1000000 -> -0.5227205472 | AU16: =-(G_A!AI$18*EE_Selection!DU$5*1000)/1000000 -> -0.5446748816 | AV16: =-(G_A!AJ$18*EE_Selection!DV$5*1000)/1000000 -> -0.567865077 | AW16: =-(G_A!AK$18*EE_Selection!DW$5*1000)/1000000 -> -0.5806892805 | AX16: =-(G_A!AL$18*EE_Selection!DX$5*1000)/1000000 -> -0.5950733004 | AY16: =-(G_A!AM$18*EE_Selection!DY$5*1000)/1000000 -> -0.6038229205
B17: Non-Energy Impacts | E17: =-SUMPRODUCT(EE_Selection!$EY$21:$EY$1509,EE_Selection!K$21:K$1509)*G_A!Q$10/100 -> -0.8942521055 | F17: =-SUMPRODUCT(EE_Selection!$EY$21:$EY$1509,EE_Selection!L$21:L$1509)*G_A!R$10/100 -> -2.004367393 | G17: =-SUMPRODUCT(EE_Selection!$EY$21:$EY$1509,EE_Selection!M$21:M$1509)*G_A!S$10/100 -> -3.324903044 | H17: =-SUMPRODUCT(EE_Selection!$EY$21:$EY$1509,EE_Selection!N$21:N$1509)*G_A!T$10/100 -> -4.845897984 | I17: =-SUMPRODUCT(EE_Selection!$EY$21:$EY$1509,EE_Selection!O$21:O$1509)*G_A!U$10/100 -> -6.544959512 | J17: =-SUMPRODUCT(EE_Selection!$EY$21:$EY$1509,EE_Selection!P$21:P$1509)*G_A!V$10/100 -> -8.467175065 | K17: =-SUMPRODUCT(EE_Selection!$EY$21:$EY$1509,EE_Selection!Q$21:Q$1509)*G_A!W$10/100 -> -10.5151301 | L17: =-SUMPRODUCT(EE_Selection!$EY$21:$EY$1509,EE_Selection!R$21:R$1509)*G_A!X$10/100 -> -12.53447015 | M17: =-SUMPRODUCT(EE_Selection!$EY$21:$EY$1509,EE_Selection!S$21:S$1509)*G_A!Y$10/100 -> -14.51171246 | N17: =-SUMPRODUCT(EE_Selection!$EY$21:$EY$1509,EE_Selection!T$21:T$1509)*G_A!Z$10/100 -> -16.32184305 | O17: =-SUMPRODUCT(EE_Selection!$EY$21:$EY$1509,EE_Selection!U$21:U$1509)*G_A!AA$10/100 -> -17.92031062 | P17: =-SUMPRODUCT(EE_Selection!$EY$21:$EY$1509,EE_Selection!V$21:V$1509)*G_A!AB$10/100 -> -19.29227709 | Q17: =-SUMPRODUCT(EE_Selection!$EY$21:$EY$1509,EE_Selection!W$21:W$1509)*G_A!AC$10/100 -> -20.49304579 | R17: =-SUMPRODUCT(EE_Selection!$EY$21:$EY$1509,EE_Selection!X$21:X$1509)*G_A!AD$10/100 -> -21.57450646 | S17: =-SUMPRODUCT(EE_Selection!$EY$21:$EY$1509,EE_Selection!Y$21:Y$1509)*G_A!AE$10/100 -> -22.59453866 | T17: =-SUMPRODUCT(EE_Selection!$EY$21:$EY$1509,EE_Selection!Z$21:Z$1509)*G_A!AF$10/100 -> -23.53580199 | U17: =-SUMPRODUCT(EE_Selection!$EY$21:$EY$1509,EE_Selection!AA$21:AA$1509)*G_A!AG$10/100 -> -24.47146925 | V17: =-SUMPRODUCT(EE_Selection!$EY$21:$EY$1509,EE_Selection!AB$21:AB$1509)*G_A!AH$10/100 -> -25.41556385 | W17: =-SUMPRODUCT(EE_Selection!$EY$21:$EY$1509,EE_Selection!AC$21:AC$1509)*G_A!AI$10/100 -> -26.39192881 | X17: =-SUMPRODUCT(EE_Selection!$EY$21:$EY$1509,EE_Selection!AD$21:AD$1509)*G_A!AJ$10/100 -> -27.39595637 | Y17: =-SUMPRODUCT(EE_Selection!$EY$21:$EY$1509,EE_Selection!AE$21:AE$1509)*G_A!AK$10/100 -> -28.25056322 | Z17: =-SUMPRODUCT(EE_Selection!$EY$21:$EY$1509,EE_Selection!AF$21:AF$1509)*G_A!AL$10/100 -> -29.12631301 | AA17: =-SUMPRODUCT(EE_Selection!$EY$21:$EY$1509,EE_Selection!AG$21:AG$1509)*G_A!AM$10/100 -> -29.96997317 | AC17: 0 | AD17: 0 | AE17: 0 | AF17: 0 | AG17: 0 | AH17: 0 | AI17: 0 | AJ17: 0 | AK17: 0 | AL17: 0 | AM17: 0 | AN17: 0 | AO17: 0 | AP17: 0 | AQ17: 0 | AR17: 0 | AS17: 0 | AT17: 0 | AU17: 0 | AV17: 0 | AW17: 0 | AX17: 0 | AY17: 0
B18: Power Act Energy/T&D- 10% Adder | E18: =SUM(E15:E16)*0.1 -> -0.1309397125 | F18: -0.26358014 | G18: -0.3744216356 | H18: -0.505907443 | I18: -0.6070540032 | J18: -0.768091352 | K18: -0.9427967499 | L18: -1.200979338 | M18: -1.361498199 | N18: -1.518016089 | O18: -1.672617527 | P18: -1.776699895 | Q18: -1.901349916 | R18: -2.113888428 | S18: -2.231282256 | T18: -2.319438665 | U18: -2.403696705 | V18: -2.555838184 | W18: -2.65585104 | X18: -2.735151233 | Y18: -2.85564697 | Z18: -3.126779079 | AA18: =SUM(AA15:AA16)*0.1 -> -3.179091093 | AC18: 0 | AD18: 0 | AE18: 0 | AF18: 0 | AG18: 0 | AH18: 0 | AI18: 0 | AJ18: 0 | AK18: 0 | AL18: 0 | AM18: 0 | AN18: 0 | AO18: 0 | AP18: 0 | AQ18: 0 | AR18: 0 | AS18: 0 | AT18: 0 | AU18: 0 | AV18: 0 | AW18: 0 | AX18: 0 | AY18: 0
B19: Capacity Power Act- 10% Adder | E19: =EE_Selection!DC$4*0.1*-G_A!Q20/1000 -> 0 | F19: =EE_Selection!DD$4*0.1*-G_A!R20/1000 -> 0 | G19: =EE_Selection!DE$4*0.1*-G_A!S20/1000 -> 0 | H19: =EE_Selection!DF$4*0.1*-G_A!T20/1000 -> 0 | I19: =EE_Selection!DG$4*0.1*-G_A!U20/1000 -> -0.08393367155 | J19: =EE_Selection!DH$4*0.1*-G_A!V20/1000 -> -0.1084210823 | K19: =EE_Selection!DI$4*0.1*-G_A!W20/1000 -> -0.1339465636 | L19: =EE_Selection!DJ$4*0.1*-G_A!X20/1000 -> -0.1593503289 | M19: =EE_Selection!DK$4*0.1*-G_A!Y20/1000 -> -0.1890435999 | N19: =EE_Selection!DL$4*0.1*-G_A!Z20/1000 -> -0.2213354252 | O19: =EE_Selection!DM$4*0.1*-G_A!AA20/1000 -> -0.2537444937 | P19: =EE_Selection!DN$4*0.1*-G_A!AB20/1000 -> -0.2880435178 | Q19: =EE_Selection!DO$4*0.1*-G_A!AC20/1000 -> -0.3230785568 | R19: =EE_Selection!DP$4*0.1*-G_A!AD20/1000 -> -0.3597587828 | S19: =EE_Selection!DQ$4*0.1*-G_A!AE20/1000 -> -0.3946564051 | T19: =EE_Selection!DR$4*0.1*-G_A!AF20/1000 -> -0.4278188463 | U19: =EE_Selection!DS$4*0.1*-G_A!AG20/1000 -> -0.461053324 | V19: =EE_Selection!DT$4*0.1*-G_A!AH20/1000 -> -0.4955406999 | W19: =EE_Selection!DU$4*0.1*-G_A!AI20/1000 -> -0.5283011918 | X19: =EE_Selection!DV$4*0.1*-G_A!AJ20/1000 -> -0.5629390021 | Y19: =EE_Selection!DW$4*0.1*-G_A!AK20/1000 -> -0.5891282625 | Z19: =EE_Selection!DX$4*0.1*-G_A!AL20/1000 -> -0.6184303597 | AA19: =EE_Selection!DY$4*0.1*-G_A!AM20/1000 -> -0.6406855115 | AC19: 0 | AD19: 0 | AE19: 0 | AF19: 0 | AG19: 0 | AH19: 0 | AI19: 0 | AJ19: 0 | AK19: 0 | AL19: 0 | AM19: 0 | AN19: 0 | AO19: 0 | AP19: 0 | AQ19: 0 | AR19: 0 | AS19: 0 | AT19: 0 | AU19: 0 | AV19: 0 | AW19: 0 | AX19: 0 | AY19: 0
B20: Energy Savings from DR Power Act Adder | E20: =-DR!C119/1000000 -> 0 | F20: =-DR!D119/1000000 -> 0 | G20: =-DR!E119/1000000 -> -0.02617580639 | H20: =-DR!F119/1000000 -> -0.08510293305 | I20: =-DR!G119/1000000 -> -0.1924163054 | J20: =-DR!H119/1000000 -> -0.23705213 | K20: =-DR!I119/1000000 -> -0.2716048034 | L20: =-DR!J119/1000000 -> -0.3233802067 | M20: =-DR!K119/1000000 -> -0.3042127198 | N20: =-DR!L119/1000000 -> -0.2903016581 | O20: =-DR!M119/1000000 -> -0.3084389067 | P20: =-DR!N119/1000000 -> -0.3089694416 | Q20: =-DR!O119/1000000 -> -0.3395546925 | R20: =-DR!P119/1000000 -> -0.3512053445 | S20: =-DR!Q119/1000000 -> -0.3585054754 | T20: =-DR!R119/1000000 -> -0.3858419603 | U20: =-DR!S119/1000000 -> -0.3301292456 | V20: =-DR!T119/1000000 -> -0.3572383349 | W20: =-DR!U119/1000000 -> -0.3628268081 | X20: =-DR!V119/1000000 -> -0.3906856832 | Y20: =-DR!W119/1000000 -> -0.3983542274 | Z20: =-DR!X119/1000000 -> -0.4532240973 | AA20: =-DR!Y119/1000000 -> -0.3618026284 | AC20: =DR!AB119/1000000 -> 0 | AD20: =DR!AC119/1000000 -> 0 | AE20: =DR!AD119/1000000 -> 0 | AF20: =DR!AE119/1000000 -> 0 | AG20: =DR!AF119/1000000 -> 0 | AH20: =DR!AG119/1000000 -> 0 | AI20: =DR!AH119/1000000 -> 0 | AJ20: =DR!AI119/1000000 -> 0 | AK20: =DR!AJ119/1000000 -> 0.01457359409 | AL20: =DR!AK119/1000000 -> 0.0458982077 | AM20: =DR!AL119/1000000 -> 0.1144282464 | AN20: =DR!AM119/1000000 -> 0.1472395871 | AO20: =DR!AN119/1000000 -> 0.1765507132 | AP20: =DR!AO119/1000000 -> 0.1822113661 | AQ20: =DR!AP119/1000000 -> 0.1875239037 | AR20: =DR!AQ119/1000000 -> 0.2023467467 | AS20: =DR!AR119/1000000 -> 0.1707372326 | AT20: =DR!AS119/1000000 -> 0.1872077735 | AU20: =DR!AT119/1000000 -> 0.1887688813 | AV20: =DR!AU119/1000000 -> 0.2019036156 | AW20: =DR!AV119/1000000 -> 0.2058178306 | AX20: =DR!AW119/1000000 -> 0.2367611802 | AY20: =DR!AX119/1000000 -> 0.1863852397
B22: Existing/Committed Thermal Plant Capital Recovery
B23: Coyote Springs 2 | E23: =BA23*G_A!Q$9 -> 10.50248668 | F23: =BB23*G_A!R$9 -> 10.10531712 | G23: =BC23*G_A!S$9 -> 9.728413023 | H23: =BD23*G_A!T$9 -> 9.36357926 | I23: =BE23*G_A!U$9 -> 9.003665223 | J23: =BF23*G_A!V$9 -> 8.646034918 | K23: =BG23*G_A!W$9 -> 8.29135669 | L23: =BH23*G_A!X$9 -> 7.937870384 | M23: =BI23*G_A!Y$9 -> 7.587471964 | N23: =BJ23*G_A!Z$9 -> 7.23997575 | O23: =BK23*G_A!AA$9 -> 6.892479535 | P23: =BL23*G_A!AB$9 -> 6.54498332 | Q23: =BM23*G_A!AC$9 -> 6.197487105 | R23: =BN23*G_A!AD$9 -> 5.84999089 | S23: =BO23*G_A!AE$9 -> 5.502494676 | T23: =BP23*G_A!AF$9 -> 5.154139652 | U23: =BQ23*G_A!AG$9 -> 4.422900899 | V23: =BR23*G_A!AH$9 -> 0.01455210206 | W23: =BS23*G_A!AI$9 -> 0.00873125181 | X23: =BT23*G_A!AJ$9 -> 0.002910413341 | Y23: =BU23*G_A!AK$9 -> 0 | Z23: =BV23*G_A!AL$9 -> 0 | AA23: =BW23*G_A!AM$9 -> 0 | AC23: =BA23*(1-G_A!Q$9) -> 5.805722449 | AD23: =BB23*(1-G_A!R$9) -> 5.586169092 | AE23: =BC23*(1-G_A!S$9) -> 5.377818379 | AF23: =BD23*(1-G_A!T$9) -> 5.176140088 | AG23: =BE23*(1-G_A!U$9) -> 4.977181397 | AH23: =BF23*(1-G_A!V$9) -> 4.779485141 | AI23: =BG23*(1-G_A!W$9) -> 4.583420779 | AJ23: =BH23*(1-G_A!X$9) -> 4.388015305 | AK23: =BI23*(1-G_A!Y$9) -> 4.1943168 | AL23: =BJ23*(1-G_A!Z$9) -> 4.002222619 | AM23: =BK23*(1-G_A!AA$9) -> 3.810128439 | AN23: =BL23*(1-G_A!AB$9) -> 3.618034258 | AO23: =BM23*(1-G_A!AC$9) -> 3.425940077 | AP23: =BN23*(1-G_A!AD$9) -> 3.233845896 | AQ23: =BO23*(1-G_A!AE$9) -> 3.041751715 | AR23: =BP23*(1-G_A!AF$9) -> 2.849182789 | AS23: =BQ23*(1-G_A!AG$9) -> 2.44495764 | AT23: =BR23*(1-G_A!AH$9) -> 0.008044329713 | AU23: =BS23*(1-G_A!AI$9) -> 0.004826592616 | AV23: =BT23*(1-G_A!AJ$9) -> 0.001608862033 | AW23: =BU23*(1-G_A!AK$9) -> 0 | AX23: =BV23*(1-G_A!AL$9) -> 0 | AY23: =BW23*(1-G_A!AM$9) -> 0 | BA23: 16.30820913 | BB23: 15.69148621 | BC23: 15.1062314 | BD23: 14.53971935 | BE23: 13.98084662 | BF23: 13.42552006 | BG23: 12.87477747 | BH23: 12.32588569 | BI23: 11.78178876 | BJ23: 11.24219837 | BK23: 10.70260797 | BL23: 10.16301758 | BM23: 9.623427182 | BN23: 9.083836786 | BO23: 8.544246391 | BP23: 8.003322441 | BQ23: 6.867858539 | BR23: 0.02259643178 | BS23: 0.01355784443 | BT23: 0.004519275375 | BU23: 0 | BV23: 0 | BW23: 0
B24: Colstrip 3 | E24: 6.000054634 | F24: 5.607486538 | G24: 5.215953325 | H24: 0.1271562719 | I24: 0.1122001538 | J24: 0.09872719079 | K24: 0.08632776326 | L24: 0.07432529992 | M24: 0.06551486563 | N24: 0.05981791124 | O24: 0.05412095686 | P24: 0.04842400247 | Q24: 0.04272704808 | R24: 0.0370300937 | S24: 0.03133313931 | T24: 0.02563618493 | U24: 0.01993923054 | V24: 0.01424227616 | W24: 0.008545321771 | X24: 0.002848422289 | Y24: 0 | Z24: 0 | AA24: 0 | AC24: 2.929392457 | AD24: 2.754183034 | AE24: 2.579511238 | AF24: 2.405350833 | AG24: 2.080024027 | AH24: 0.05130470171 | AI24: 0.04484374332 | AJ24: 0.03858948936 | AK24: 0.03400436673 | AL24: 0.03104746058 | AM24: 0.02809055444 | AN24: 0.0251336483 | AO24: 0.02217674215 | AP24: 0.01921983601 | AQ24: 0.01626292986 | AR24: 0.01330602372 | AS24: 0.01034911757 | AT24: 0.007392211431 | AU24: 0.004435305286 | AV24: 0.001478426107 | AW24: 0 | AX24: 0 | AY24: 0 | BA24: =E24+AC24 -> 8.929447091 | BB24: =F24+AD24 -> 8.361669572 | BC24: 7.795464564 | BD24: 2.532507105 | BE24: 2.192224181 | BF24: 0.1500318925 | BG24: 0.1311715066 | BH24: 0.1129147893 | BI24: 0.09951923236 | BJ24: 0.09086537183 | BK24: 0.0822115113 | BL24: 0.07355765077 | BM24: 0.06490379024 | BN24: 0.05624992971 | BO24: 0.04759606918 | BP24: 0.03894220865 | BQ24: 0.03028834812 | BR24: 0.02163448759 | BS24: 0.01298062706 | BT24: 0.004326848396 | BU24: 0 | BV24: 0 | BW24: 0
B25: Colstrip 4 | E25: 6.806596975 | F25: 6.366853385 | G25: 5.928163255 | H25: 0.1092644801 | I25: 0.09758228939 | J25: 0.0866667398 | K25: 0.07639341001 | L25: 0.06678921206 | M25: 0.05955620276 | N25: 0.05437739456 | O25: 0.04919858637 | P25: 0.04401977817 | Q25: 0.03884096997 | R25: 0.03366216177 | S25: 0.02848335358 | T25: 0.02330454538 | U25: 0.01812573718 | V25: 0.01294692899 | W25: 0.007768120789 | X25: 0.002589358345 | Y25: 0 | Z25: 0 | AA25: 0 | AC25: 2.85615854 | AD25: 2.68001376 | AE25: 2.504416008 | AF25: 2.329400592 | AG25: 0.851277382 | AH25: 0.04498500378 | AI25: 0.03964000844 | AJ25: 0.0346435083 | AK25: 0.03088497869 | AL25: 0.02819932212 | AM25: 0.02551366555 | AN25: 0.02282800897 | AO25: 0.0201423524 | AP25: 0.01745669582 | AQ25: 0.01477103925 | AR25: 0.01208538268 | AS25: 0.009399726102 | AT25: 0.006714069528 | AU25: 0.004028412954 | AV25: 0.001342792334 | AW25: 0 | AX25: 0 | AY25: 0 | BA25: =E25+AC25 -> 9.662755515 | BB25: 9.046867145 | BC25: 8.432579263 | BD25: 2.438665072 | BE25: 0.9488596714 | BF25: 0.1316517436 | BG25: 0.1160334184 | BH25: 0.1014327204 | BI25: 0.09044118146 | BJ25: 0.08257671668 | BK25: 0.07471225191 | BL25: 0.06684778714 | BM25: 0.05898332237 | BN25: 0.0511188576 | BO25: 0.04325439283 | BP25: 0.03538992806 | BQ25: 0.02752546329 | BR25: 0.01966099851 | BS25: 0.01179653374 | BT25: 0.003932150679 | BU25: 0 | BV25: 0 | BW25: 0
B26: Kettle Falls | E26: =BA26*G_A!Q$9 -> 5.833478203 | F26: =BB26*G_A!R$9 -> 5.6339439 | G26: =BC26*G_A!S$9 -> 5.43661629 | H26: =BD26*G_A!T$9 -> 5.241394991 | I26: =BE26*G_A!U$9 -> 5.047988353 | J26: =BF26*G_A!V$9 -> 4.856324049 | K26: =BG26*G_A!W$9 -> 4.664717489 | L26: =BH26*G_A!X$9 -> 4.465002229 | M26: =BI26*G_A!Y$9 -> 4.260300411 | N26: =BJ26*G_A!Z$9 -> 4.057851946 | O26: =BK26*G_A!AA$9 -> 3.855403482 | P26: =BL26*G_A!AB$9 -> 3.652955018 | Q26: =BM26*G_A!AC$9 -> 3.450506553 | R26: =BN26*G_A!AD$9 -> 3.248058089 | S26: =BO26*G_A!AE$9 -> 3.045609625 | T26: =BP26*G_A!AF$9 -> 2.84316116 | U26: =BQ26*G_A!AG$9 -> 2.640712696 | V26: =BR26*G_A!AH$9 -> 2.438264232 | W26: =BS26*G_A!AI$9 -> 0.5057245198 | X26: =BT26*G_A!AJ$9 -> 0.009137704919 | Y26: =BU26*G_A!AK$9 -> 0 | Z26: =BV26*G_A!AL$9 -> 0 | AA26: =BW26*G_A!AM$9 -> 0 | AC26: =BA26*(1-G_A!Q$9) -> 3.224717764 | AD26: =BB26*(1-G_A!R$9) -> 3.114416193 | AE26: =BC26*(1-G_A!S$9) -> 3.005334471 | AF26: =BD26*(1-G_A!T$9) -> 2.897417107 | AG26: =BE26*(1-G_A!U$9) -> 2.790502878 | AH26: =BF26*(1-G_A!V$9) -> 2.684551804 | AI26: =BG26*(1-G_A!W$9) -> 2.578632649 | AJ26: =BH26*(1-G_A!X$9) -> 2.468231046 | AK26: =BI26*(1-G_A!Y$9) -> 2.355072898 | AL26: =BJ26*(1-G_A!Z$9) -> 2.243160393 | AM26: =BK26*(1-G_A!AA$9) -> 2.131247887 | AN26: =BL26*(1-G_A!AB$9) -> 2.019335382 | AO26: =BM26*(1-G_A!AC$9) -> 1.907422877 | AP26: =BN26*(1-G_A!AD$9) -> 1.795510372 | AQ26: =BO26*(1-G_A!AE$9) -> 1.683597867 | AR26: =BP26*(1-G_A!AF$9) -> 1.571685362 | AS26: =BQ26*(1-G_A!AG$9) -> 1.459772857 | AT26: =BR26*(1-G_A!AH$9) -> 1.347860352 | AU26: =BS26*(1-G_A!AI$9) -> 0.2795620016 | AV26: =BT26*(1-G_A!AJ$9) -> 0.005051277874 | AW26: =BU26*(1-G_A!AK$9) -> 0 | AX26: =BV26*(1-G_A!AL$9) -> 0 | AY26: =BW26*(1-G_A!AM$9) -> 0 | BA26: 9.058195967 | BB26: 8.748360093 | BC26: 8.441950761 | BD26: 8.138812098 | BE26: 7.838491231 | BF26: 7.540875853 | BG26: 7.243350138 | BH26: 6.933233274 | BI26: 6.615373308 | BJ26: 6.301012339 | BK26: 5.986651369 | BL26: 5.6722904 | BM26: 5.35792943 | BN26: 5.043568461 | BO26: 4.729207492 | BP26: 4.414846522 | BQ26: 4.100485553 | BR26: 3.786124583 | BS26: 0.7852865214 | BT26: 0.01418898279 | BU26: 0 | BV26: 0 | BW26: 0
B27: Kettle Falls CT | E27: =BA27*G_A!Q$9 -> 0.3703716046 | F27: =BB27*G_A!R$9 -> 0.3522105282 | G27: =BC27*G_A!S$9 -> 0.3340655279 | H27: =BD27*G_A!T$9 -> 0.3159208223 | I27: =BE27*G_A!U$9 -> 0.2977764585 | J27: =BF27*G_A!V$9 -> 0.2794549004 | K27: =BG27*G_A!W$9 -> 0.2602378769 | L27: =BH27*G_A!X$9 -> 0.1295434083 | M27: =BI27*G_A!Y$9 -> 0.001096790483 | N27: =BJ27*G_A!Z$9 -> 0.0005602254714 | O27: =BK27*G_A!AA$9 -> 0.0001458639353 | P27: =BL27*G_A!AB$9 -> 0 | Q27: =BM27*G_A!AC$9 -> 0 | R27: =BN27*G_A!AD$9 -> 0 | S27: =BO27*G_A!AE$9 -> 0 | T27: =BP27*G_A!AF$9 -> 0 | U27: =BQ27*G_A!AG$9 -> 0 | V27: =BR27*G_A!AH$9 -> 0 | W27: =BS27*G_A!AI$9 -> 0 | X27: =BT27*G_A!AJ$9 -> 0 | Y27: =BU27*G_A!AK$9 -> 0 | Z27: =BV27*G_A!AL$9 -> 0 | AA27: =BW27*G_A!AM$9 -> 0 | AC27: =BA27*(1-G_A!Q$9) -> 0.2047395826 | AD27: =BB27*(1-G_A!R$9) -> 0.1947002299 | AE27: =BC27*(1-G_A!S$9) -> 0.1846697639 | AF27: =BD27*(1-G_A!T$9) -> 0.1746394608 | AG27: =BE27*(1-G_A!U$9) -> 0.1646093466 | AH27: =BF27*(1-G_A!V$9) -> 0.1544812804 | AI27: =BG27*(1-G_A!W$9) -> 0.1438582052 | AJ27: =BH27*(1-G_A!X$9) -> 0.0716109524 | AK27: =BI27*(1-G_A!Y$9) -> 0.0006063003292 | AL27: =BJ27*(1-G_A!Z$9) -> 0.0003096898569 | AM27: =BK27*(1-G_A!AA$9) -> 8.063285862e-05 | AN27: =BL27*(1-G_A!AB$9) -> 0 | AO27: =BM27*(1-G_A!AC$9) -> 0 | AP27: =BN27*(1-G_A!AD$9) -> 0 | AQ27: =BO27*(1-G_A!AE$9) -> 0 | AR27: =BP27*(1-G_A!AF$9) -> 0 | AS27: =BQ27*(1-G_A!AG$9) -> 0 | AT27: =BR27*(1-G_A!AH$9) -> 0 | AU27: =BS27*(1-G_A!AI$9) -> 0 | AV27: =BT27*(1-G_A!AJ$9) -> 0 | AW27: =BU27*(1-G_A!AK$9) -> 0 | AX27: =BV27*(1-G_A!AL$9) -> 0 | AY27: =BW27*(1-G_A!AM$9) -> 0 | BA27: 0.5751111872 | BB27: 0.546910758 | BC27: 0.5187352918 | BD27: 0.4905602831 | BE27: 0.4623858051 | BF27: 0.4339361808 | BG27: 0.4040960822 | BH27: 0.2011543607 | BI27: 0.001703090812 | BJ27: 0.0008699153283 | BK27: 0.0002264967939 | BL27: 0 | BM27: 0 | BN27: 0 | BO27: 0 | BP27: 0 | BQ27: 0 | BR27: 0 | BS27: 0 | BT27: 0 | BU27: 0 | BV27: 0 | BW27: 0
B28: Boulder Park | E28: =BA28*G_A!Q$9 -> 1.264039418 | F28: =BB28*G_A!R$9 -> 1.219820624 | G28: =BC28*G_A!S$9 -> 1.176010269 | H28: =BD28*G_A!T$9 -> 1.132409305 | I28: =BE28*G_A!U$9 -> 1.088857601 | J28: =BF28*G_A!V$9 -> 1.045326923 | K28: =BG28*G_A!W$9 -> 1.001801567 | L28: =BH28*G_A!X$9 -> 0.9582761042 | M28: =BI28*G_A!Y$9 -> 0.9149576514 | N28: =BJ28*G_A!Z$9 -> 0.8718463736 | O28: =BK28*G_A!AA$9 -> 0.8287350957 | P28: =BL28*G_A!AB$9 -> 0.7856238179 | Q28: =BM28*G_A!AC$9 -> 0.74251254 | R28: =BN28*G_A!AD$9 -> 0.6994012622 | S28: =BO28*G_A!AE$9 -> 0.6562899843 | T28: =BP28*G_A!AF$9 -> 0.6124664092 | U28: =BQ28*G_A!AG$9 -> 0.1435895195 | V28: =BR28*G_A!AH$9 -> 0.0004373914432 | W28: =BS28*G_A!AI$9 -> 0.0002624395803 | X28: =BT28*G_A!AJ$9 -> 8.748182445e-05 | Y28: =BU28*G_A!AK$9 -> 0 | Z28: =BV28*G_A!AL$9 -> 0 | AA28: =BW28*G_A!AM$9 -> 0 | AC28: =BA28*(1-G_A!Q$9) -> 0.6987547091 | AD28: =BB28*(1-G_A!R$9) -> 0.6743107797 | AE28: =BC28*(1-G_A!S$9) -> 0.6500926334 | AF28: =BD28*(1-G_A!T$9) -> 0.6259902372 | AG28: =BE28*(1-G_A!U$9) -> 0.6019150715 | AH28: =BF28*(1-G_A!V$9) -> 0.577851529 | AI28: =BG28*(1-G_A!W$9) -> 0.5537909282 | AJ28: =BH28*(1-G_A!X$9) -> 0.5297302688 | AK28: =BI28*(1-G_A!Y$9) -> 0.5057840433 | AL28: =BJ28*(1-G_A!Z$9) -> 0.4819523432 | AM28: =BK28*(1-G_A!AA$9) -> 0.458120643 | AN28: =BL28*(1-G_A!AB$9) -> 0.4342889428 | AO28: =BM28*(1-G_A!AC$9) -> 0.4104572426 | AP28: =BN28*(1-G_A!AD$9) -> 0.3866255424 | AQ28: =BO28*(1-G_A!AE$9) -> 0.3627938423 | AR28: =BP28*(1-G_A!AF$9) -> 0.3385683877 | AS28: =BQ28*(1-G_A!AG$9) -> 0.07937557288 | AT28: =BR28*(1-G_A!AH$9) -> 0.0002417878164 | AU28: =BS28*(1-G_A!AI$9) -> 0.000145075296 | AV28: =BT28*(1-G_A!AJ$9) -> 4.835951787e-05 | AW28: =BU28*(1-G_A!AK$9) -> 0 | AX28: =BV28*(1-G_A!AL$9) -> 0 | AY28: =BW28*(1-G_A!AM$9) -> 0 | BA28: 1.962794127 | BB28: 1.894131404 | BC28: 1.826102903 | BD28: 1.758399543 | BE28: 1.690772673 | BF28: 1.623178452 | BG28: 1.555592495 | BH28: 1.488006373 | BI28: 1.420741695 | BJ28: 1.353798717 | BK28: 1.286855739 | BL28: 1.219912761 | BM28: 1.152969783 | BN28: 1.086026805 | BO28: 1.019083827 | BP28: 0.9510347968 | BQ28: 0.2229650924 | BR28: 0.0006791792597 | BS28: 0.0004075148763 | BT28: 0.0001358413423 | BU28: 0 | BV28: 0 | BW28: 0
B29: Rathdrum | E29: =BA29*G_A!Q$9 -> 2.974350817 | F29: =BB29*G_A!R$9 -> 2.844597812 | G29: =BC29*G_A!S$9 -> 2.715002329 | H29: =BD29*G_A!T$9 -> 2.585461327 | I29: =BE29*G_A!U$9 -> 2.456052951 | J29: =BF29*G_A!V$9 -> 2.327038076 | K29: =BG29*G_A!W$9 -> 2.198288915 | L29: =BH29*G_A!X$9 -> 2.069539736 | M29: =BI29*G_A!Y$9 -> 1.940790558 | N29: =BJ29*G_A!Z$9 -> 1.752165854 | O29: =BK29*G_A!AA$9 -> 0 | P29: =BL29*G_A!AB$9 -> 0 | Q29: =BM29*G_A!AC$9 -> 0 | R29: =BN29*G_A!AD$9 -> 0 | S29: =BO29*G_A!AE$9 -> 0 | T29: =BP29*G_A!AF$9 -> 0 | U29: =BQ29*G_A!AG$9 -> 0 | V29: =BR29*G_A!AH$9 -> 0 | W29: =BS29*G_A!AI$9 -> 0 | X29: =BT29*G_A!AJ$9 -> 0 | Y29: =BU29*G_A!AK$9 -> 0 | Z29: =BV29*G_A!AL$9 -> 0 | AA29: =BW29*G_A!AM$9 -> 0 | AC29: =BA29*(1-G_A!Q$9) -> 1.644206352 | AD29: =BB29*(1-G_A!R$9) -> 1.572479536 | AE29: =BC29*(1-G_A!S$9) -> 1.500839797 | AF29: =BD29*(1-G_A!T$9) -> 1.429230175 | AG29: =BE29*(1-G_A!U$9) -> 1.357693867 | AH29: =BF29*(1-G_A!V$9) -> 1.286375085 | AI29: =BG29*(1-G_A!W$9) -> 1.215203189 | AJ29: =BH29*(1-G_A!X$9) -> 1.144031283 | AK29: =BI29*(1-G_A!Y$9) -> 1.072859377 | AL29: =BJ29*(1-G_A!Z$9) -> 0.9685885779 | AM29: =BK29*(1-G_A!AA$9) -> 0 | AN29: =BL29*(1-G_A!AB$9) -> 0 | AO29: =BM29*(1-G_A!AC$9) -> 0 | AP29: =BN29*(1-G_A!AD$9) -> 0 | AQ29: =BO29*(1-G_A!AE$9) -> 0 | AR29: =BP29*(1-G_A!AF$9) -> 0 | AS29: =BQ29*(1-G_A!AG$9) -> 0 | AT29: =BR29*(1-G_A!AH$9) -> 0 | AU29: =BS29*(1-G_A!AI$9) -> 0 | AV29: =BT29*(1-G_A!AJ$9) -> 0 | AW29: =BU29*(1-G_A!AK$9) -> 0 | AX29: =BV29*(1-G_A!AL$9) -> 0 | AY29: =BW29*(1-G_A!AM$9) -> 0 | BA29: 4.618557169 | BB29: 4.417077348 | BC29: 4.215842126 | BD29: 4.014691502 | BE29: 3.813746819 | BF29: 3.613413161 | BG29: 3.413492104 | BH29: 3.213571019 | BI29: 3.013649935 | BJ29: 2.720754432 | BK29: 0 | BL29: 0 | BM29: 0 | BN29: 0 | BO29: 0 | BP29: 0 | BQ29: 0 | BR29: 0 | BS29: 0 | BT29: 0 | BU29: 0 | BV29: 0 | BW29: 0
B30: Northeast | E30: =BA30*G_A!Q$9 -> 0 | F30: =BB30*G_A!R$9 -> 0 | G30: =BC30*G_A!S$9 -> 0 | H30: =BD30*G_A!T$9 -> 0 | I30: =BE30*G_A!U$9 -> 0 | J30: =BF30*G_A!V$9 -> 0 | K30: =BG30*G_A!W$9 -> 0 | L30: =BH30*G_A!X$9 -> 0 | M30: =BI30*G_A!Y$9 -> 0 | N30: =BJ30*G_A!Z$9 -> 0 | O30: =BK30*G_A!AA$9 -> 0 | P30: =BL30*G_A!AB$9 -> 0 | Q30: =BM30*G_A!AC$9 -> 0 | R30: =BN30*G_A!AD$9 -> 0 | S30: =BO30*G_A!AE$9 -> 0 | T30: =BP30*G_A!AF$9 -> 0 | U30: =BQ30*G_A!AG$9 -> 0 | V30: =BR30*G_A!AH$9 -> 0 | W30: =BS30*G_A!AI$9 -> 0 | X30: =BT30*G_A!AJ$9 -> 0 | Y30: =BU30*G_A!AK$9 -> 0 | Z30: =BV30*G_A!AL$9 -> 0 | AA30: =BW30*G_A!AM$9 -> 0 | AC30: =BA30*(1-G_A!Q$9) -> 0 | AD30: =BB30*(1-G_A!R$9) -> 0 | AE30: =BC30*(1-G_A!S$9) -> 0 | AF30: =BD30*(1-G_A!T$9) -> 0 | AG30: =BE30*(1-G_A!U$9) -> 0 | AH30: =BF30*(1-G_A!V$9) -> 0 | AI30: =BG30*(1-G_A!W$9) -> 0 | AJ30: =BH30*(1-G_A!X$9) -> 0 | AK30: =BI30*(1-G_A!Y$9) -> 0 | AL30: =BJ30*(1-G_A!Z$9) -> 0 | AM30: =BK30*(1-G_A!AA$9) -> 0 | AN30: =BL30*(1-G_A!AB$9) -> 0 | AO30: =BM30*(1-G_A!AC$9) -> 0 | AP30: =BN30*(1-G_A!AD$9) -> 0 | AQ30: =BO30*(1-G_A!AE$9) -> 0 | AR30: =BP30*(1-G_A!AF$9) -> 0 | AS30: =BQ30*(1-G_A!AG$9) -> 0 | AT30: =BR30*(1-G_A!AH$9) -> 0 | AU30: =BS30*(1-G_A!AI$9) -> 0 | AV30: =BT30*(1-G_A!AJ$9) -> 0 | AW30: =BU30*(1-G_A!AK$9) -> 0 | AX30: =BV30*(1-G_A!AL$9) -> 0 | AY30: =BW30*(1-G_A!AM$9) -> 0 | BA30: 0 | BB30: 0 | BC30: 0 | BD30: 0 | BE30: 0 | BF30: 0 | BG30: 0 | BH30: 0 | BI30: 0 | BJ30: 0 | BK30: 0 | BL30: 0 | BM30: 0 | BN30: 0 | BO30: 0 | BP30: 0 | BQ30: 0 | BR30: 0 | BS30: 0 | BT30: 0 | BU30: 0 | BV30: 0 | BW30: 0
... 32 more rows

Sheet Clean Goals
JU1: WA Gen | JV1: =SUM(JV19:JV21,JV24:JV30) -> 449.9185284 | JW1: 461.8042139 | JX1: 496.7266063 | JY1: 567.5653674 | JZ1: 572.5273697 | KA1: 570.8968399 | KB1: 567.2980584 | KC1: 568.7074401 | KD1: 573.1998441 | KE1: 576.4797732 | KF1: 578.871549 | KG1: 545.4839148 | KH1: 546.5679002 | KI1: 547.9709877 | KJ1: 547.7129779 | KK1: 541.6358273 | KL1: 540.5650514 | KM1: 539.5918926 | KN1: 507.5870395 | KO1: 506.044033 | KP1: 480.1078102 | KQ1: 481.5629855 | KR1: 481.1924355
B2: Monthly Hours (excludes DST) | D2: 744 | E2: 672 | F2: 744 | G2: 720 | H2: 744 | I2: 720 | J2: 744 | K2: 744 | L2: 720 | M2: 744 | N2: 720 | O2: 744 | P2: =D2 -> 744 | Q2: 696 | R2: =F2 -> 744 | S2: 720 | T2: 744 | U2: 720 | V2: 744 | W2: 744 | X2: 720 | Y2: 744 | Z2: 720 | AA2: 744 | AB2: 744 | AC2: 696 | AD2: 744 | AE2: 720 | AF2: 744 | AG2: 720 | AH2: 744 | AI2: 744 | AJ2: 720 | AK2: 744 | AL2: 720 | AM2: 744 | AN2: 744 | AO2: 696 | AP2: 744 | AQ2: 720 | AR2: 744 | AS2: 720 | AT2: 744 | AU2: 744 | AV2: 720 | AW2: 744 | AX2: 720 | AY2: 744 | AZ2: 744 | BA2: 696 | BB2: 744 | BC2: 720 | BD2: 744 | BE2: 720 | BF2: 744 | BG2: 744 | BH2: 720 | BI2: 744 | BJ2: 720 | BK2: 744 | BL2: 744 | BM2: 696 | BN2: 744 | BO2: 720 | BP2: 744 | BQ2: 720 | BR2: 744 | BS2: 744 | BT2: 720 | BU2: 744 | BV2: 720 | BW2: 744 | BX2: 744 | BY2: 696 | BZ2: 744 | CA2: 720 | CB2: 744 | CC2: =BQ2 -> 720 | CD2: 744 | CE2: 744 | CF2: 720 | CG2: 744 | CH2: 720 | CI2: 744 | CJ2: 744 | CK2: 696 | CL2: 744 | CM2: 720 | CN2: 744 | CO2: 720 | CP2: 744 | CQ2: 744 | CR2: 720 | CS2: 744 | CT2: 720 | CU2: 744 | CV2: 744 | CW2: 696 | CX2: 744 | CY2: 720 | CZ2: 744 | DA2: 720 | DB2: 744 | DC2: 744 | DD2: 720 | DE2: 744 | DF2: 720 | DG2: 744 | DH2: 744 | DI2: 696 | DJ2: 744 | DK2: 720 | DL2: 744 | DM2: 720 | DN2: 744 | DO2: 744 | DP2: 720 | DQ2: 744 | DR2: 720 | DS2: 744 | DT2: 744 | DU2: 696 | DV2: 744 | DW2: 720 | DX2: 744 | DY2: 720 | DZ2: 744 | EA2: 744 | EB2: 720 | EC2: 744 | ED2: 720 | EE2: 744 | EF2: 744 | EG2: 696 | EH2: 744 | EI2: 720 | EJ2: 744 | EK2: 720 | EL2: 744 | EM2: 744 | EN2: 720 | EO2: =EC2 -> 744 | EP2: 720 | EQ2: 744 | ER2: 744 | ES2: 696 | ET2: 744 | EU2: 720 | EV2: 744 | EW2: 720 | EX2: 744 | EY2: 744 | EZ2: 720 | FA2: 744 | FB2: 720 | FC2: 744 | FD2: 744 | FE2: 696 | FF2: 744 | FG2: 720 | FH2: 744 | FI2: 720 | FJ2: 744 | FK2: 744 | FL2: 720 | FM2: 744 | FN2: 720 | FO2: 744 | FP2: 744 | FQ2: 696 | FR2: 744 | FS2: 720 | FT2: 744 | FU2: 720 | FV2: 744 | FW2: 744 | FX2: 720 | FY2: 744 | FZ2: 720 | GA2: 744 | GB2: 744 | GC2: 696 | GD2: 744 | GE2: 720 | GF2: 744 | GG2: 720 | GH2: 744 | GI2: 744 | GJ2: 720 | GK2: 744 | GL2: 720 | GM2: 744 | GN2: 744 | GO2: 696 | GP2: 744 | GQ2: 720 | GR2: 744 | GS2: 720 | GT2: 744 | GU2: 744 | GV2: 720 | GW2: 744 | GX2: 720 | GY2: 744 | GZ2: 744 | HA2: 696 | HB2: =GP2 -> 744 | HC2: 720 | HD2: 744 | HE2: 720 | HF2: 744 | HG2: 744 | HH2: 720 | HI2: 744 | HJ2: 720 | HK2: 744 | HL2: 744 | HM2: 696 | HN2: 744 | HO2: 720 | HP2: 744 | HQ2: 720 | HR2: 744 | HS2: 744 | HT2: 720 | HU2: 744 | HV2: 720 | HW2: 744 | HX2: 744 | HY2: 696 | HZ2: 744 | IA2: 720 | IB2: 744 | IC2: 720 | ID2: 744 | IE2: 744 | IF2: 720 | IG2: 744 | IH2: 720 | II2: 744 | IJ2: 744 | IK2: 696 | IL2: 744 | IM2: 720 | IN2: 744 | IO2: 720 | IP2: 744 | IQ2: 744 | IR2: 720 | IS2: 744 | IT2: 720 | IU2: 744 | IV2: 744 | IW2: 696 | IX2: 744 | IY2: 720 | IZ2: 744 | JA2: 720 | JB2: 744 | JC2: 744 | JD2: 720 | JE2: 744 | JF2: 720 | JG2: 744 | JH2: 744 | JI2: 696 | JJ2: 744 | JK2: 720 | JL2: 744 | JM2: =JA2 -> 720 | JN2: 744 | JO2: 744 | JP2: 720 | JQ2: 744 | JR2: 720 | JS2: 744 | JU2: WA New Clean | JV2: =SUM(JV41:JV62) -> 0 | JW2: 0 | JX2: 0 | JY2: 0 | JZ2: 0 | KA2: 0 | KB2: 0 | KC2: 59.66646377 | KD2: 61.348909 | KE2: 142.1318453 | KF2: 138.1589053 | KG2: 141.5105361 | KH2: 140.0846663 | KI2: 140.3948574 | KJ2: 140.175263 | KK2: 140.4021828 | KL2: 141.0427055 | KM2: 142.199022 | KN2: 141.3275486 | KO2: 140.7148193 | KP2: 140.1535531 | KQ2: 141.472512 | KR2: 142.152757
B3: PT Ratio | D3: =G_A!$Q$9 -> 0.644 | E3: =G_A!$Q$9 -> 0.644 | F3: =G_A!$Q$9 -> 0.644 | G3: =G_A!$Q$9 -> 0.644 | H3: =G_A!$Q$9 -> 0.644 | I3: =G_A!$Q$9 -> 0.644 | J3: =G_A!$Q$9 -> 0.644 | K3: =G_A!$Q$9 -> 0.644 | L3: =G_A!$Q$9 -> 0.644 | M3: =G_A!$Q$9 -> 0.644 | N3: =G_A!$Q$9 -> 0.644 | O3: =G_A!$Q$9 -> 0.644 | P3: =G_A!$R$9 -> 0.644 | Q3: =G_A!$R$9 -> 0.644 | R3: =G_A!$R$9 -> 0.644 | S3: =G_A!$R$9 -> 0.644 | T3: =G_A!$R$9 -> 0.644 | U3: =G_A!$R$9 -> 0.644 | V3: =G_A!$R$9 -> 0.644 | W3: =G_A!$R$9 -> 0.644 | X3: =G_A!$R$9 -> 0.644 | Y3: =G_A!$R$9 -> 0.644 | Z3: =G_A!$R$9 -> 0.644 | AA3: =G_A!$R$9 -> 0.644 | AB3: =G_A!$S$9 -> 0.644 | AC3: =G_A!$S$9 -> 0.644 | AD3: =G_A!$S$9 -> 0.644 | AE3: =G_A!$S$9 -> 0.644 | AF3: =G_A!$S$9 -> 0.644 | AG3: =G_A!$S$9 -> 0.644 | AH3: =G_A!$S$9 -> 0.644 | AI3: =G_A!$S$9 -> 0.644 | AJ3: =G_A!$S$9 -> 0.644 | AK3: =G_A!$S$9 -> 0.644 | AL3: =G_A!$S$9 -> 0.644 | AM3: =G_A!$S$9 -> 0.644 | AN3: =G_A!$T$9 -> 0.644 | AO3: =G_A!$T$9 -> 0.644 | AP3: =G_A!$T$9 -> 0.644 | AQ3: =G_A!$T$9 -> 0.644 | AR3: =G_A!$T$9 -> 0.644 | AS3: =G_A!$T$9 -> 0.644 | AT3: =G_A!$T$9 -> 0.644 | AU3: =G_A!$T$9 -> 0.644 | AV3: =G_A!$T$9 -> 0.644 | AW3: =G_A!$T$9 -> 0.644 | AX3: =G_A!$T$9 -> 0.644 | AY3: =G_A!$T$9 -> 0.644 | AZ3: =G_A!$U$9 -> 0.644 | BA3: =G_A!$U$9 -> 0.644 | BB3: =G_A!$U$9 -> 0.644 | BC3: =G_A!$U$9 -> 0.644 | BD3: =G_A!$U$9 -> 0.644 | BE3: =G_A!$U$9 -> 0.644 | BF3: =G_A!$U$9 -> 0.644 | BG3: =G_A!$U$9 -> 0.644 | BH3: =G_A!$U$9 -> 0.644 | BI3: =G_A!$U$9 -> 0.644 | BJ3: =G_A!$U$9 -> 0.644 | BK3: =G_A!$U$9 -> 0.644 | BL3: =G_A!$V$9 -> 0.644 | BM3: =G_A!$V$9 -> 0.644 | BN3: =G_A!$V$9 -> 0.644 | BO3: =G_A!$V$9 -> 0.644 | BP3: =G_A!$V$9 -> 0.644 | BQ3: =G_A!$V$9 -> 0.644 | BR3: =G_A!$V$9 -> 0.644 | BS3: =G_A!$V$9 -> 0.644 | BT3: =G_A!$V$9 -> 0.644 | BU3: =G_A!$V$9 -> 0.644 | BV3: =G_A!$V$9 -> 0.644 | BW3: =G_A!$V$9 -> 0.644 | BX3: =G_A!$W$9 -> 0.644 | BY3: =G_A!$W$9 -> 0.644 | BZ3: =G_A!$W$9 -> 0.644 | CA3: =G_A!$W$9 -> 0.644 | CB3: =G_A!$W$9 -> 0.644 | CC3: =G_A!$W$9 -> 0.644 | CD3: =G_A!$W$9 -> 0.644 | CE3: =G_A!$W$9 -> 0.644 | CF3: =G_A!$W$9 -> 0.644 | CG3: =G_A!$W$9 -> 0.644 | CH3: =G_A!$W$9 -> 0.644 | CI3: =G_A!$W$9 -> 0.644 | CJ3: =G_A!$X$9 -> 0.644 | CK3: =G_A!$X$9 -> 0.644 | CL3: =G_A!$X$9 -> 0.644 | CM3: =G_A!$X$9 -> 0.644 | CN3: =G_A!$X$9 -> 0.644 | CO3: =G_A!$X$9 -> 0.644 | CP3: =G_A!$X$9 -> 0.644 | CQ3: =G_A!$X$9 -> 0.644 | CR3: =G_A!$X$9 -> 0.644 | CS3: =G_A!$X$9 -> 0.644 | CT3: =G_A!$X$9 -> 0.644 | CU3: =G_A!$X$9 -> 0.644 | CV3: =G_A!$Y$9 -> 0.644 | CW3: =G_A!$Y$9 -> 0.644 | CX3: =G_A!$Y$9 -> 0.644 | CY3: =G_A!$Y$9 -> 0.644 | CZ3: =G_A!$Y$9 -> 0.644 | DA3: =G_A!$Y$9 -> 0.644 | DB3: =G_A!$Y$9 -> 0.644 | DC3: =G_A!$Y$9 -> 0.644 | DD3: =G_A!$Y$9 -> 0.644 | DE3: =G_A!$Y$9 -> 0.644 | DF3: =G_A!$Y$9 -> 0.644 | DG3: =G_A!$Y$9 -> 0.644 | DH3: =G_A!$Z$9 -> 0.644 | DI3: =G_A!$Z$9 -> 0.644 | DJ3: =G_A!$Z$9 -> 0.644 | DK3: =G_A!$Z$9 -> 0.644 | DL3: =G_A!$Z$9 -> 0.644 | DM3: =G_A!$Z$9 -> 0.644 | DN3: =G_A!$Z$9 -> 0.644 | DO3: =G_A!$Z$9 -> 0.644 | DP3: =G_A!$Z$9 -> 0.644 | DQ3: =G_A!$Z$9 -> 0.644 | DR3: =G_A!$Z$9 -> 0.644 | DS3: =G_A!$Z$9 -> 0.644 | DT3: =G_A!$AA$9 -> 0.644 | DU3: =G_A!$AA$9 -> 0.644 | DV3: =G_A!$AA$9 -> 0.644 | DW3: =G_A!$AA$9 -> 0.644 | DX3: =G_A!$AA$9 -> 0.644 | DY3: =G_A!$AA$9 -> 0.644 | DZ3: =G_A!$AA$9 -> 0.644 | EA3: =G_A!$AA$9 -> 0.644 | EB3: =G_A!$AA$9 -> 0.644 | EC3: =G_A!$AA$9 -> 0.644 | ED3: =G_A!$AA$9 -> 0.644 | EE3: =G_A!$AA$9 -> 0.644 | EF3: =G_A!$AB$9 -> 0.644 | EG3: =G_A!$AB$9 -> 0.644 | EH3: =G_A!$AB$9 -> 0.644 | EI3: =G_A!$AB$9 -> 0.644 | EJ3: =G_A!$AB$9 -> 0.644 | EK3: =G_A!$AB$9 -> 0.644 | EL3: =G_A!$AB$9 -> 0.644 | EM3: =G_A!$AB$9 -> 0.644 | EN3: =G_A!$AB$9 -> 0.644 | EO3: =G_A!$AB$9 -> 0.644 | EP3: =G_A!$AB$9 -> 0.644 | EQ3: =G_A!$AB$9 -> 0.644 | ER3: =G_A!$AC$9 -> 0.644 | ES3: =G_A!$AC$9 -> 0.644 | ET3: =G_A!$AC$9 -> 0.644 | EU3: =G_A!$AC$9 -> 0.644 | EV3: =G_A!$AC$9 -> 0.644 | EW3: =G_A!$AC$9 -> 0.644 | EX3: =G_A!$AC$9 -> 0.644 | EY3: =G_A!$AC$9 -> 0.644 | EZ3: =G_A!$AC$9 -> 0.644 | FA3: =G_A!$AC$9 -> 0.644 | FB3: =G_A!$AC$9 -> 0.644 | FC3: =G_A!$AC$9 -> 0.644 | FD3: =G_A!$AD$9 -> 0.644 | FE3: =G_A!$AD$9 -> 0.644 | FF3: =G_A!$AD$9 -> 0.644 | FG3: =G_A!$AD$9 -> 0.644 | FH3: =G_A!$AD$9 -> 0.644 | FI3: =G_A!$AD$9 -> 0.644 | FJ3: =G_A!$AD$9 -> 0.644 | FK3: =G_A!$AD$9 -> 0.644 | FL3: =G_A!$AD$9 -> 0.644 | FM3: =G_A!$AD$9 -> 0.644 | FN3: =G_A!$AD$9 -> 0.644 | FO3: =G_A!$AD$9 -> 0.644 | FP3: =G_A!$AE$9 -> 0.644 | FQ3: =G_A!$AE$9 -> 0.644 | FR3: =G_A!$AE$9 -> 0.644 | FS3: =G_A!$AE$9 -> 0.644 | FT3: =G_A!$AE$9 -> 0.644 | FU3: =G_A!$AE$9 -> 0.644 | FV3: =G_A!$AE$9 -> 0.644 | FW3: =G_A!$AE$9 -> 0.644 | FX3: =G_A!$AE$9 -> 0.644 | FY3: =G_A!$AE$9 -> 0.644 | FZ3: =G_A!$AE$9 -> 0.644 | GA3: =G_A!$AE$9 -> 0.644 | GB3: =G_A!$AF$9 -> 0.644 | GC3: =G_A!$AF$9 -> 0.644 | GD3: =G_A!$AF$9 -> 0.644 | GE3: =G_A!$AF$9 -> 0.644 | GF3: =G_A!$AF$9 -> 0.644 | GG3: =G_A!$AF$9 -> 0.644 | GH3: =G_A!$AF$9 -> 0.644 | GI3: =G_A!$AF$9 -> 0.644 | GJ3: =G_A!$AF$9 -> 0.644 | GK3: =G_A!$AF$9 -> 0.644 | GL3: =G_A!$AF$9 -> 0.644 | GM3: =G_A!$AF$9 -> 0.644 | GN3: =G_A!$AG$9 -> 0.644 | GO3: =G_A!$AG$9 -> 0.644 | GP3: =G_A!$AG$9 -> 0.644 | GQ3: =G_A!$AG$9 -> 0.644 | GR3: =G_A!$AG$9 -> 0.644 | GS3: =G_A!$AG$9 -> 0.644 | GT3: =G_A!$AG$9 -> 0.644 | GU3: =G_A!$AG$9 -> 0.644 | GV3: =G_A!$AG$9 -> 0.644 | GW3: =G_A!$AG$9 -> 0.644 | GX3: =G_A!$AG$9 -> 0.644 | GY3: =G_A!$AG$9 -> 0.644 | GZ3: =G_A!$AH$9 -> 0.644 | HA3: =G_A!$AH$9 -> 0.644 | HB3: =G_A!$AH$9 -> 0.644 | HC3: =G_A!$AH$9 -> 0.644 | HD3: =G_A!$AH$9 -> 0.644 | HE3: =G_A!$AH$9 -> 0.644 | HF3: =G_A!$AH$9 -> 0.644 | HG3: =G_A!$AH$9 -> 0.644 | HH3: =G_A!$AH$9 -> 0.644 | HI3: =G_A!$AH$9 -> 0.644 | HJ3: =G_A!$AH$9 -> 0.644 | HK3: =G_A!$AH$9 -> 0.644 | HL3: =G_A!$AI$9 -> 0.644 | HM3: =G_A!$AI$9 -> 0.644 | HN3: =G_A!$AI$9 -> 0.644 | HO3: =G_A!$AI$9 -> 0.644 | HP3: =G_A!$AI$9 -> 0.644 | HQ3: =G_A!$AI$9 -> 0.644 | HR3: =G_A!$AI$9 -> 0.644 | HS3: =G_A!$AI$9 -> 0.644 | HT3: =G_A!$AI$9 -> 0.644 | HU3: =G_A!$AI$9 -> 0.644 | HV3: =G_A!$AI$9 -> 0.644 | HW3: =G_A!$AI$9 -> 0.644 | HX3: =G_A!$AJ$9 -> 0.644 | HY3: =G_A!$AJ$9 -> 0.644 | HZ3: =G_A!$AJ$9 -> 0.644 | IA3: =G_A!$AJ$9 -> 0.644 | IB3: =G_A!$AJ$9 -> 0.644 | IC3: =G_A!$AJ$9 -> 0.644 | ID3: =G_A!$AJ$9 -> 0.644 | IE3: =G_A!$AJ$9 -> 0.644 | IF3: =G_A!$AJ$9 -> 0.644 | IG3: =G_A!$AJ$9 -> 0.644 | IH3: =G_A!$AJ$9 -> 0.644 | II3: =G_A!$AJ$9 -> 0.644 | IJ3: =G_A!$AK$9 -> 0.644 | IK3: =G_A!$AK$9 -> 0.644 | IL3: =G_A!$AK$9 -> 0.644 | IM3: =G_A!$AK$9 -> 0.644 | IN3: =G_A!$AK$9 -> 0.644 | IO3: =G_A!$AK$9 -> 0.644 | IP3: =G_A!$AK$9 -> 0.644 | IQ3: =G_A!$AK$9 -> 0.644 | IR3: =G_A!$AK$9 -> 0.644 | IS3: =G_A!$AK$9 -> 0.644 | IT3: =G_A!$AK$9 -> 0.644 | IU3: =G_A!$AK$9 -> 0.644 | IV3: =G_A!$AL$9 -> 0.644 | IW3: =G_A!$AL$9 -> 0.644 | IX3: =G_A!$AL$9 -> 0.644 | IY3: =G_A!$AL$9 -> 0.644 | IZ3: =G_A!$AL$9 -> 0.644 | JA3: =G_A!$AL$9 -> 0.644 | JB3: =G_A!$AL$9 -> 0.644 | JC3: =G_A!$AL$9 -> 0.644 | JD3: =G_A!$AL$9 -> 0.644 | JE3: =G_A!$AL$9 -> 0.644 | JF3: =G_A!$AL$9 -> 0.644 | JG3: =G_A!$AL$9 -> 0.644 | JH3: =G_A!$AM$9 -> 0.644 | JI3: =G_A!$AM$9 -> 0.644 | JJ3: =G_A!$AM$9 -> 0.644 | JK3: =G_A!$AM$9 -> 0.644 | JL3: =G_A!$AM$9 -> 0.644 | JM3: =G_A!$AM$9 -> 0.644 | JN3: =G_A!$AM$9 -> 0.644 | JO3: =G_A!$AM$9 -> 0.644 | JP3: =G_A!$AM$9 -> 0.644 | JQ3: =G_A!$AM$9 -> 0.644 | JR3: =G_A!$AM$9 -> 0.644 | JS3: =G_A!$AM$9 -> 0.644 | JU3: Renewable Transfers | JV3: =SUM(JV32:JV37) -> 0 | JW3: =SUM(JW32:JW37) -> 0 | JX3: 0 | JY3: 0 | JZ3: 0 | KA3: 0 | KB3: 0 | KC3: =SUM(KC32:KC37) -> 0 | KD3: 0 | KE3: 0 | KF3: 0 | KG3: 0 | KH3: 0 | KI3: 0 | KJ3: 0 | KK3: 0 | KL3: 0 | KM3: 0 | KN3: 0 | KO3: 0 | KP3: 0 | KQ3: 0 | KR3: 0
B4: Compliance Period | D4: 2023 | E4: 2023 | F4: 2023 | G4: 2023 | H4: 2023 | I4: 2023 | J4: 2023 | K4: 2023 | L4: 2023 | M4: 2023 | N4: 2023 | O4: 2023 | P4: =D4+1 -> 2024 | Q4: 2024 | R4: 2024 | S4: 2024 | T4: 2024 | U4: 2024 | V4: 2024 | W4: 2024 | X4: 2024 | Y4: 2024 | Z4: =N4+1 -> 2024 | AA4: 2024 | AB4: 2025 | AC4: 2025 | AD4: 2025 | AE4: 2025 | AF4: 2025 | AG4: 2025 | AH4: 2025 | AI4: 2025 | AJ4: =X4+1 -> 2025 | AK4: 2025 | AL4: 2025 | AM4: 2025 | AN4: 2026 | AO4: 2026 | AP4: 2026 | AQ4: 2026 | AR4: 2026 | AS4: 2026 | AT4: =AH4+1 -> 2026 | AU4: 2026 | AV4: 2026 | AW4: 2026 | AX4: 2026 | AY4: 2026 | AZ4: 2027 | BA4: 2027 | BB4: 2027 | BC4: 2027 | BD4: =AR4+1 -> 2027 | BE4: 2027 | BF4: 2027 | BG4: 2027 | BH4: 2027 | BI4: 2027 | BJ4: 2027 | BK4: 2027 | BL4: 2028 | BM4: 2028 | BN4: =BB4+1 -> 2028 | BO4: 2028 | BP4: 2028 | BQ4: 2028 | BR4: 2028 | BS4: 2028 | BT4: 2028 | BU4: 2028 | BV4: 2028 | BW4: 2028 | BX4: =BL4+1 -> 2029 | BY4: 2029 | BZ4: 2029 | CA4: 2029 | CB4: 2029 | CC4: 2029 | CD4: 2029 | CE4: 2029 | CF4: 2029 | CG4: 2029 | CH4: =BV4+1 -> 2029 | CI4: 2029 | CJ4: 2030-2033 | CK4: 2030-2033 | CL4: 2030-2033 | CM4: 2030-2033 | CN4: 2030-2033 | CO4: 2030-2033 | CP4: 2030-2033 | CQ4: 2030-2033 | CR4: 2030-2033 | CS4: 2030-2033 | CT4: 2030-2033 | CU4: 2030-2033 | CV4: 2030-2033 | CW4: 2030-2033 | CX4: 2030-2033 | CY4: 2030-2033 | CZ4: 2030-2033 | DA4: 2030-2033 | DB4: 2030-2033 | DC4: 2030-2033 | DD4: 2030-2033 | DE4: 2030-2033 | DF4: 2030-2033 | DG4: 2030-2033 | DH4: 2030-2033 | DI4: 2030-2033 | DJ4: 2030-2033 | DK4: 2030-2033 | DL4: 2030-2033 | DM4: 2030-2033 | DN4: 2030-2033 | DO4: 2030-2033 | DP4: 2030-2033 | DQ4: 2030-2033 | DR4: 2030-2033 | DS4: 2030-2033 | DT4: 2030-2033 | DU4: 2030-2033 | DV4: 2030-2033 | DW4: 2030-2033 | DX4: 2030-2033 | DY4: 2030-2033 | DZ4: 2030-2033 | EA4: 2030-2033 | EB4: 2030-2033 | EC4: 2030-2033 | ED4: 2030-2033 | EE4: 2030-2033 | EF4: 2034-2037 | EG4: 2034-2037 | EH4: 2034-2037 | EI4: 2034-2037 | EJ4: 2034-2037 | EK4: 2034-2037 | EL4: 2034-2037 | EM4: 2034-2037 | EN4: 2034-2037 | EO4: 2034-2037 | EP4: 2034-2037 | EQ4: 2034-2037 | ER4: 2034-2037 | ES4: 2034-2037 | ET4: 2034-2037 | EU4: 2034-2037 | EV4: 2034-2037 | EW4: 2034-2037 | EX4: 2034-2037 | EY4: 2034-2037 | EZ4: 2034-2037 | FA4: 2034-2037 | FB4: 2034-2037 | FC4: 2034-2037 | FD4: 2034-2037 | FE4: 2034-2037 | FF4: 2034-2037 | FG4: 2034-2037 | FH4: 2034-2037 | FI4: 2034-2037 | FJ4: 2034-2037 | FK4: 2034-2037 | FL4: 2034-2037 | FM4: 2034-2037 | FN4: 2034-2037 | FO4: 2034-2037 | FP4: 2034-2037 | FQ4: 2034-2037 | FR4: 2034-2037 | FS4: 2034-2037 | FT4: 2034-2037 | FU4: 2034-2037 | FV4: 2034-2037 | FW4: 2034-2037 | FX4: 2034-2037 | FY4: 2034-2037 | FZ4: 2034-2037 | GA4: 2034-2037 | GB4: 2038-2041 | GC4: 2038-2041 | GD4: 2038-2041 | GE4: 2038-2041 | GF4: 2038-2041 | GG4: 2038-2041 | GH4: 2038-2041 | GI4: 2038-2041 | GJ4: 2038-2041 | GK4: 2038-2041 | GL4: 2038-2041 | GM4: 2038-2041 | GN4: 2038-2041 | GO4: 2038-2041 | GP4: 2038-2041 | GQ4: 2038-2041 | GR4: 2038-2041 | GS4: 2038-2041 | GT4: 2038-2041 | GU4: 2038-2041 | GV4: 2038-2041 | GW4: 2038-2041 | GX4: 2038-2041 | GY4: 2038-2041 | GZ4: 2038-2041 | HA4: 2038-2041 | HB4: 2038-2041 | HC4: 2038-2041 | HD4: 2038-2041 | HE4: 2038-2041 | HF4: 2038-2041 | HG4: 2038-2041 | HH4: 2038-2041 | HI4: 2038-2041 | HJ4: 2038-2041 | HK4: 2038-2041 | HL4: 2038-2041 | HM4: 2038-2041 | HN4: 2038-2041 | HO4: 2038-2041 | HP4: 2038-2041 | HQ4: 2038-2041 | HR4: 2038-2041 | HS4: 2038-2041 | HT4: 2038-2041 | HU4: 2038-2041 | HV4: 2038-2041 | HW4: 2038-2041 | HX4: 2042-2044 | HY4: 2042-2044 | HZ4: 2042-2044 | IA4: 2042-2044 | IB4: 2042-2044 | IC4: 2042-2044 | ID4: 2042-2044 | IE4: 2042-2044 | IF4: 2042-2044 | IG4: 2042-2044 | IH4: 2042-2044 | II4: 2042-2044 | IJ4: 2042-2044 | IK4: 2042-2044 | IL4: 2042-2044 | IM4: 2042-2044 | IN4: 2042-2044 | IO4: 2042-2044 | IP4: 2042-2044 | IQ4: 2042-2044 | IR4: 2042-2044 | IS4: 2042-2044 | IT4: 2042-2044 | IU4: 2042-2044 | IV4: 2042-2044 | IW4: 2042-2044 | IX4: 2042-2044 | IY4: 2042-2044 | IZ4: 2042-2044 | JA4: 2042-2044 | JB4: 2042-2044 | JC4: 2042-2044 | JD4: 2042-2044 | JE4: 2042-2044 | JF4: 2042-2044 | JG4: 2042-2044 | JH4: 2045 | JI4: 2045 | JJ4: 2045 | JK4: 2045 | JL4: 2045 | JM4: 2045 | JN4: 2045 | JO4: 2045 | JP4: 2045 | JQ4: 2045 | JR4: 2045 | JS4: 2045 | JU4: Avail Trans. (Excl. Hydro) | JV4: =SUM(JV127:JV130,JV132:JV133)-JV3 -> 46.53753189 | JW4: =SUM(JW127:JW130,JW132:JW133)-JW3 -> 64.99516073 | JX4: 78.99149144 | JY4: 107.9196921 | JZ4: 119.1321513 | KA4: 117.3067951 | KB4: 117.5270431 | KC4: 119.9721208 | KD4: 119.0122645 | KE4: 118.4961122 | KF4: =SUM(KF127:KF130,KF132:KF133)-KF3 -> 119.0978356 | KG4: 106.4371972 | KH4: 106.4819602 | KI4: 106.2771872 | KJ4: 106.4641822 | KK4: 105.7227218 | KL4: 105.6047054 | KM4: 105.4503024 | KN4: 86.43809402 | KO4: 86.48284114 | KP4: 73.3077255 | KQ4: 73.88267424 | KR4: 73.57203317
B5: Year | D5: 2023 | E5: 2023 | F5: 2023 | G5: 2023 | H5: 2023 | I5: 2023 | J5: 2023 | K5: 2023 | L5: 2023 | M5: 2023 | N5: 2023 | O5: 2023 | P5: 2024 | Q5: 2024 | R5: 2024 | S5: 2024 | T5: 2024 | U5: 2024 | V5: 2024 | W5: 2024 | X5: 2024 | Y5: 2024 | Z5: 2024 | AA5: 2024 | AB5: 2025 | AC5: 2025 | AD5: 2025 | AE5: 2025 | AF5: 2025 | AG5: 2025 | AH5: 2025 | AI5: 2025 | AJ5: 2025 | AK5: 2025 | AL5: 2025 | AM5: 2025 | AN5: 2026 | AO5: 2026 | AP5: 2026 | AQ5: 2026 | AR5: 2026 | AS5: 2026 | AT5: 2026 | AU5: 2026 | AV5: 2026 | AW5: 2026 | AX5: 2026 | AY5: 2026 | AZ5: 2027 | BA5: 2027 | BB5: 2027 | BC5: 2027 | BD5: 2027 | BE5: 2027 | BF5: 2027 | BG5: 2027 | BH5: 2027 | BI5: 2027 | BJ5: 2027 | BK5: 2027 | BL5: 2028 | BM5: 2028 | BN5: 2028 | BO5: 2028 | BP5: 2028 | BQ5: 2028 | BR5: 2028 | BS5: 2028 | BT5: 2028 | BU5: 2028 | BV5: 2028 | BW5: 2028 | BX5: 2029 | BY5: 2029 | BZ5: 2029 | CA5: 2029 | CB5: 2029 | CC5: 2029 | CD5: 2029 | CE5: 2029 | CF5: 2029 | CG5: 2029 | CH5: 2029 | CI5: 2029 | CJ5: =BX5+1 -> 2030 | CK5: 2030 | CL5: 2030 | CM5: 2030 | CN5: 2030 | CO5: 2030 | CP5: 2030 | CQ5: 2030 | CR5: 2030 | CS5: 2030 | CT5: 2030 | CU5: 2030 | CV5: 2031 | CW5: 2031 | CX5: 2031 | CY5: 2031 | CZ5: 2031 | DA5: 2031 | DB5: 2031 | DC5: 2031 | DD5: 2031 | DE5: 2031 | DF5: 2031 | DG5: 2031 | DH5: 2032 | DI5: 2032 | DJ5: 2032 | DK5: 2032 | DL5: 2032 | DM5: 2032 | DN5: 2032 | DO5: 2032 | DP5: =DD5+1 -> 2032 | DQ5: 2032 | DR5: 2032 | DS5: 2032 | DT5: 2033 | DU5: 2033 | DV5: 2033 | DW5: 2033 | DX5: 2033 | DY5: 2033 | DZ5: 2033 | EA5: 2033 | EB5: 2033 | EC5: 2033 | ED5: 2033 | EE5: 2033 | EF5: 2034 | EG5: 2034 | EH5: 2034 | EI5: 2034 | EJ5: 2034 | EK5: 2034 | EL5: 2034 | EM5: 2034 | EN5: 2034 | EO5: 2034 | EP5: 2034 | EQ5: 2034 | ER5: 2035 | ES5: 2035 | ET5: 2035 | EU5: 2035 | EV5: =EJ5+1 -> 2035 | EW5: 2035 | EX5: 2035 | EY5: 2035 | EZ5: 2035 | FA5: 2035 | FB5: 2035 | FC5: 2035 | FD5: 2036 | FE5: 2036 | FF5: 2036 | FG5: 2036 | FH5: 2036 | FI5: 2036 | FJ5: 2036 | FK5: 2036 | FL5: 2036 | FM5: 2036 | FN5: 2036 | FO5: 2036 | FP5: 2037 | FQ5: 2037 | FR5: 2037 | FS5: 2037 | FT5: 2037 | FU5: 2037 | FV5: 2037 | FW5: 2037 | FX5: 2037 | FY5: 2037 | FZ5: 2037 | GA5: 2037 | GB5: =FP5+1 -> 2038 | GC5: 2038 | GD5: 2038 | GE5: 2038 | GF5: 2038 | GG5: 2038 | GH5: 2038 | GI5: 2038 | GJ5: 2038 | GK5: 2038 | GL5: 2038 | GM5: 2038 | GN5: 2039 | GO5: 2039 | GP5: 2039 | GQ5: 2039 | GR5: 2039 | GS5: 2039 | GT5: 2039 | GU5: 2039 | GV5: 2039 | GW5: 2039 | GX5: 2039 | GY5: 2039 | GZ5: 2040 | HA5: 2040 | HB5: 2040 | HC5: 2040 | HD5: 2040 | HE5: 2040 | HF5: 2040 | HG5: 2040 | HH5: =GV5+1 -> 2040 | HI5: 2040 | HJ5: 2040 | HK5: 2040 | HL5: 2041 | HM5: 2041 | HN5: 2041 | HO5: 2041 | HP5: 2041 | HQ5: 2041 | HR5: 2041 | HS5: 2041 | HT5: 2041 | HU5: 2041 | HV5: 2041 | HW5: 2041 | HX5: 2042 | HY5: 2042 | HZ5: 2042 | IA5: 2042 | IB5: 2042 | IC5: 2042 | ID5: 2042 | IE5: 2042 | IF5: 2042 | IG5: 2042 | IH5: 2042 | II5: 2042 | IJ5: 2043 | IK5: 2043 | IL5: 2043 | IM5: 2043 | IN5: =IB5+1 -> 2043 | IO5: 2043 | IP5: 2043 | IQ5: 2043 | IR5: 2043 | IS5: 2043 | IT5: 2043 | IU5: 2043 | IV5: 2044 | IW5: 2044 | IX5: 2044 | IY5: 2044 | IZ5: 2044 | JA5: 2044 | JB5: 2044 | JC5: 2044 | JD5: 2044 | JE5: 2044 | JF5: 2044 | JG5: 2044 | JH5: 2045 | JI5: 2045 | JJ5: 2045 | JK5: 2045 | JL5: 2045 | JM5: 2045 | JN5: 2045 | JO5: 2045 | JP5: 2045 | JQ5: 2045 | JR5: 2045 | JS5: 2045 | JV5: 2023 | JW5: 2024 | JX5: 2025 | JY5: 2026 | JZ5: 2027 | KA5: 2028 | KB5: 2029 | KC5: 2030 | KD5: 2031 | KE5: 2032 | KF5: 2033 | KG5: 2034 | KH5: 2035 | KI5: 2036 | KJ5: 2037 | KK5: 2038 | KL5: 2039 | KM5: 2040 | KN5: 2041 | KO5: 2042 | KP5: 2043 | KQ5: 2044 | KR5: 2045
B6: Month | D6: 1 | E6: 2 | F6: 3 | G6: 4 | H6: 5 | I6: 6 | J6: 7 | K6: 8 | L6: 9 | M6: 10 | N6: 11 | O6: 12 | P6: =D6 -> 1 | Q6: 2 | R6: 3 | S6: 4 | T6: 5 | U6: 6 | V6: 7 | W6: 8 | X6: 9 | Y6: 10 | Z6: 11 | AA6: 12 | AB6: 1 | AC6: 2 | AD6: 3 | AE6: 4 | AF6: 5 | AG6: 6 | AH6: 7 | AI6: 8 | AJ6: 9 | AK6: 10 | AL6: 11 | AM6: 12 | AN6: 1 | AO6: 2 | AP6: 3 | AQ6: 4 | AR6: 5 | AS6: 6 | AT6: 7 | AU6: 8 | AV6: 9 | AW6: 10 | AX6: 11 | AY6: 12 | AZ6: 1 | BA6: 2 | BB6: 3 | BC6: 4 | BD6: 5 | BE6: 6 | BF6: 7 | BG6: 8 | BH6: 9 | BI6: 10 | BJ6: 11 | BK6: 12 | BL6: 1 | BM6: 2 | BN6: 3 | BO6: 4 | BP6: 5 | BQ6: 6 | BR6: 7 | BS6: 8 | BT6: 9 | BU6: 10 | BV6: 11 | BW6: 12 | BX6: 1 | BY6: 2 | BZ6: 3 | CA6: 4 | CB6: =BP6 -> 5 | CC6: 6 | CD6: 7 | CE6: 8 | CF6: 9 | CG6: 10 | CH6: 11 | CI6: 12 | CJ6: 1 | CK6: 2 | CL6: 3 | CM6: 4 | CN6: 5 | CO6: 6 | CP6: 7 | CQ6: 8 | CR6: 9 | CS6: 10 | CT6: 11 | CU6: 12 | CV6: 1 | CW6: 2 | CX6: 3 | CY6: 4 | CZ6: 5 | DA6: 6 | DB6: 7 | DC6: 8 | DD6: 9 | DE6: 10 | DF6: 11 | DG6: 12 | DH6: 1 | DI6: 2 | DJ6: 3 | DK6: 4 | DL6: 5 | DM6: 6 | DN6: 7 | DO6: 8 | DP6: 9 | DQ6: 10 | DR6: 11 | DS6: 12 | DT6: 1 | DU6: 2 | DV6: 3 | DW6: 4 | DX6: 5 | DY6: 6 | DZ6: 7 | EA6: 8 | EB6: 9 | EC6: 10 | ED6: 11 | EE6: 12 | EF6: 1 | EG6: 2 | EH6: 3 | EI6: 4 | EJ6: 5 | EK6: 6 | EL6: 7 | EM6: 8 | EN6: =EB6 -> 9 | EO6: 10 | EP6: 11 | EQ6: 12 | ER6: 1 | ES6: 2 | ET6: 3 | EU6: 4 | EV6: 5 | EW6: 6 | EX6: 7 | EY6: 8 | EZ6: 9 | FA6: 10 | FB6: 11 | FC6: 12 | FD6: 1 | FE6: 2 | FF6: 3 | FG6: 4 | FH6: 5 | FI6: 6 | FJ6: 7 | FK6: 8 | FL6: 9 | FM6: 10 | FN6: 11 | FO6: 12 | FP6: 1 | FQ6: 2 | FR6: 3 | FS6: 4 | FT6: 5 | FU6: 6 | FV6: 7 | FW6: 8 | FX6: 9 | FY6: 10 | FZ6: 11 | GA6: 12 | GB6: 1 | GC6: 2 | GD6: 3 | GE6: 4 | GF6: 5 | GG6: 6 | GH6: 7 | GI6: 8 | GJ6: 9 | GK6: 10 | GL6: 11 | GM6: 12 | GN6: 1 | GO6: 2 | GP6: 3 | GQ6: 4 | GR6: 5 | GS6: 6 | GT6: 7 | GU6: 8 | GV6: 9 | GW6: 10 | GX6: 11 | GY6: 12 | GZ6: =GN6 -> 1 | HA6: 2 | HB6: 3 | HC6: 4 | HD6: 5 | HE6: 6 | HF6: 7 | HG6: 8 | HH6: 9 | HI6: 10 | HJ6: 11 | HK6: 12 | HL6: 1 | HM6: 2 | HN6: 3 | HO6: 4 | HP6: 5 | HQ6: 6 | HR6: 7 | HS6: 8 | HT6: 9 | HU6: 10 | HV6: 11 | HW6: 12 | HX6: 1 | HY6: 2 | HZ6: 3 | IA6: 4 | IB6: 5 | IC6: 6 | ID6: 7 | IE6: 8 | IF6: 9 | IG6: 10 | IH6: 11 | II6: 12 | IJ6: 1 | IK6: 2 | IL6: 3 | IM6: 4 | IN6: 5 | IO6: 6 | IP6: 7 | IQ6: 8 | IR6: 9 | IS6: 10 | IT6: 11 | IU6: 12 | IV6: 1 | IW6: 2 | IX6: 3 | IY6: 4 | IZ6: 5 | JA6: 6 | JB6: 7 | JC6: 8 | JD6: 9 | JE6: 10 | JF6: 11 | JG6: 12 | JH6: 1 | JI6: 2 | JJ6: 3 | JK6: 4 | JL6: =IZ6 -> 5 | JM6: 6 | JN6: 7 | JO6: 8 | JP6: 9 | JQ6: 10 | JR6: 11 | JS6: 12
B7: Primary Compliance | D7: =$D$100 -> 0.475 | E7: =$D$100 -> 0.475 | F7: 0.475 | G7: 0.475 | H7: 0.475 | I7: 0.475 | J7: 0.475 | K7: 0.475 | L7: 0.475 | M7: 0.475 | N7: 0.475 | O7: 0.475 | P7: =$E$100 -> 0.55 | Q7: =$E$100 -> 0.55 | R7: 0.55 | S7: 0.55 | T7: 0.55 | U7: 0.55 | V7: 0.55 | W7: 0.55 | X7: 0.55 | Y7: 0.55 | Z7: 0.55 | AA7: 0.55 | AB7: =$F$100 -> 0.625 | AC7: =$F$100 -> 0.625 | AD7: 0.625 | AE7: 0.625 | AF7: 0.625 | AG7: 0.625 | AH7: 0.625 | AI7: 0.625 | AJ7: 0.625 | AK7: 0.625 | AL7: 0.625 | AM7: 0.625 | AN7: =$G$100 -> 0.66 | AO7: =$G$100 -> 0.66 | AP7: 0.66 | AQ7: 0.66 | AR7: 0.66 | AS7: 0.66 | AT7: 0.66 | AU7: 0.66 | AV7: 0.66 | AW7: 0.66 | AX7: 0.66 | AY7: 0.66 | AZ7: =$H$100 -> 0.695 | BA7: =$H$100 -> 0.695 | BB7: 0.695 | BC7: 0.695 | BD7: 0.695 | BE7: 0.695 | BF7: 0.695 | BG7: 0.695 | BH7: 0.695 | BI7: 0.695 | BJ7: 0.695 | BK7: 0.695 | BL7: =$I$100 -> 0.73 | BM7: =$I$100 -> 0.73 | BN7: 0.73 | BO7: 0.73 | BP7: 0.73 | BQ7: 0.73 | BR7: 0.73 | BS7: 0.73 | BT7: 0.73 | BU7: 0.73 | BV7: 0.73 | BW7: 0.73 | BX7: =$J$100 -> 0.765 | BY7: =$J$100 -> 0.765 | BZ7: 0.765 | CA7: 0.765 | CB7: 0.765 | CC7: 0.765 | CD7: 0.765 | CE7: 0.765 | CF7: 0.765 | CG7: 0.765 | CH7: 0.765 | CI7: 0.765 | CJ7: =$K$100 -> 0.8 | CK7: =$K$100 -> 0.8 | CL7: 0.8 | CM7: 0.8 | CN7: 0.8 | CO7: 0.8 | CP7: 0.8 | CQ7: 0.8 | CR7: 0.8 | CS7: 0.8 | CT7: 0.8 | CU7: 0.8 | CV7: 0.8 | CW7: 0.8 | CX7: 0.8 | CY7: 0.8 | CZ7: 0.8 | DA7: 0.8 | DB7: 0.8 | DC7: 0.8 | DD7: 0.8 | DE7: 0.8 | DF7: 0.8 | DG7: 0.8 | DH7: 0.8 | DI7: 0.8 | DJ7: 0.8 | DK7: 0.8 | DL7: 0.8 | DM7: 0.8 | DN7: 0.8 | DO7: 0.8 | DP7: 0.8 | DQ7: 0.8 | DR7: 0.8 | DS7: 0.8 | DT7: 0.8 | DU7: 0.8 | DV7: 0.8 | DW7: 0.8 | DX7: 0.8 | DY7: 0.8 | DZ7: 0.8 | EA7: 0.8 | EB7: 0.8 | EC7: 0.8 | ED7: 0.8 | EE7: 0.8 | EF7: =$L$100 -> 0.85 | EG7: =$L$100 -> 0.85 | EH7: 0.85 | EI7: 0.85 | EJ7: 0.85 | EK7: 0.85 | EL7: 0.85 | EM7: 0.85 | EN7: 0.85 | EO7: 0.85 | EP7: 0.85 | EQ7: 0.85 | ER7: 0.85 | ES7: 0.85 | ET7: 0.85 | EU7: 0.85 | EV7: 0.85 | EW7: 0.85 | EX7: 0.85 | EY7: 0.85 | EZ7: 0.85 | FA7: 0.85 | FB7: 0.85 | FC7: 0.85 | FD7: 0.85 | FE7: 0.85 | FF7: 0.85 | FG7: 0.85 | FH7: 0.85 | FI7: 0.85 | FJ7: 0.85 | FK7: 0.85 | FL7: 0.85 | FM7: 0.85 | FN7: 0.85 | FO7: 0.85 | FP7: 0.85 | FQ7: 0.85 | FR7: 0.85 | FS7: 0.85 | FT7: 0.85 | FU7: 0.85 | FV7: 0.85 | FW7: 0.85 | FX7: 0.85 | FY7: 0.85 | FZ7: 0.85 | GA7: 0.85 | GB7: =$M$100 -> 0.9 | GC7: =$M$100 -> 0.9 | GD7: 0.9 | GE7: 0.9 | GF7: 0.9 | GG7: 0.9 | GH7: 0.9 | GI7: 0.9 | GJ7: 0.9 | GK7: 0.9 | GL7: 0.9 | GM7: 0.9 | GN7: 0.9 | GO7: 0.9 | GP7: 0.9 | GQ7: 0.9 | GR7: 0.9 | GS7: 0.9 | GT7: 0.9 | GU7: 0.9 | GV7: 0.9 | GW7: 0.9 | GX7: 0.9 | GY7: 0.9 | GZ7: 0.9 | HA7: 0.9 | HB7: 0.9 | HC7: 0.9 | HD7: 0.9 | HE7: 0.9 | HF7: 0.9 | HG7: 0.9 | HH7: 0.9 | HI7: 0.9 | HJ7: 0.9 | HK7: 0.9 | HL7: 0.9 | HM7: 0.9 | HN7: 0.9 | HO7: 0.9 | HP7: 0.9 | HQ7: 0.9 | HR7: 0.9 | HS7: 0.9 | HT7: 0.9 | HU7: 0.9 | HV7: 0.9 | HW7: 0.9 | HX7: =$N$100 -> 0.95 | HY7: =$N$100 -> 0.95 | HZ7: 0.95 | IA7: 0.95 | IB7: 0.95 | IC7: 0.95 | ID7: 0.95 | IE7: 0.95 | IF7: 0.95 | IG7: 0.95 | IH7: 0.95 | II7: 0.95 | IJ7: 0.95 | IK7: 0.95 | IL7: 0.95 | IM7: 0.95 | IN7: 0.95 | IO7: 0.95 | IP7: 0.95 | IQ7: 0.95 | IR7: 0.95 | IS7: 0.95 | IT7: 0.95 | IU7: 0.95 | IV7: 0.95 | IW7: 0.95 | IX7: 0.95 | IY7: 0.95 | IZ7: 0.95 | JA7: 0.95 | JB7: 0.95 | JC7: 0.95 | JD7: 0.95 | JE7: 0.95 | JF7: 0.95 | JG7: 0.95 | JH7: =$O$100 -> 1 | JI7: =$O$100 -> 1 | JJ7: 1 | JK7: 1 | JL7: 1 | JM7: 1 | JN7: 1 | JO7: 1 | JP7: 1 | JQ7: 1 | JR7: 1 | JS7: 1 | JU7: Hydro Transfers | JV7: =JV38 -> 0 | JW7: =JW38 -> 0 | JX7: 0 | JY7: 0 | JZ7: 0 | KA7: 0 | KB7: 0 | KC7: 0 | KD7: 0 | KE7: 0 | KF7: 0 | KG7: 0 | KH7: 0 | KI7: 0 | KJ7: 0 | KK7: 0 | KL7: 0 | KM7: 0 | KN7: 0 | KO7: 0 | KP7: 0 | KQ7: 0 | KR7: 0
B8: Alternative Compliance | D8: 0 | E8: 0 | F8: 0 | G8: 0 | H8: 0 | I8: 0 | J8: 0 | K8: 0 | L8: 0 | M8: 0 | N8: 0 | O8: 0 | P8: 0 | Q8: 0 | R8: 0 | S8: 0 | T8: 0 | U8: 0 | V8: 0 | W8: 0 | X8: 0 | Y8: 0 | Z8: 0 | AA8: 0 | AB8: 0 | AC8: 0 | AD8: 0 | AE8: 0 | AF8: 0 | AG8: 0 | AH8: 0 | AI8: 0 | AJ8: 0 | AK8: 0 | AL8: 0 | AM8: 0 | AN8: 0 | AO8: 0 | AP8: 0 | AQ8: 0 | AR8: 0 | AS8: 0 | AT8: 0 | AU8: 0 | AV8: 0 | AW8: 0 | AX8: 0 | AY8: 0 | AZ8: 0 | BA8: 0 | BB8: 0 | BC8: 0 | BD8: 0 | BE8: 0 | BF8: 0 | BG8: 0 | BH8: 0 | BI8: 0 | BJ8: 0 | BK8: 0 | BL8: 0 | BM8: 0 | BN8: 0 | BO8: 0 | BP8: 0 | BQ8: 0 | BR8: 0 | BS8: 0 | BT8: 0 | BU8: 0 | BV8: 0 | BW8: 0 | BX8: 0 | BY8: 0 | BZ8: 0 | CA8: 0 | CB8: 0 | CC8: 0 | CD8: 0 | CE8: 0 | CF8: 0 | CG8: 0 | CH8: 0 | CI8: 0 | CJ8: 0.2 | CK8: 0.2 | CL8: 0.2 | CM8: 0.2 | CN8: 0.2 | CO8: 0.2 | CP8: 0.2 | CQ8: 0.2 | CR8: 0.2 | CS8: 0.2 | CT8: 0.2 | CU8: 0.2 | CV8: 0.2 | CW8: 0.2 | CX8: 0.2 | CY8: 0.2 | CZ8: 0.2 | DA8: 0.2 | DB8: 0.2 | DC8: 0.2 | DD8: 0.2 | DE8: 0.2 | DF8: 0.2 | DG8: 0.2 | DH8: 0.2 | DI8: 0.2 | DJ8: 0.2 | DK8: 0.2 | DL8: 0.2 | DM8: 0.2 | DN8: 0.2 | DO8: 0.2 | DP8: 0.2 | DQ8: 0.2 | DR8: 0.2 | DS8: 0.2 | DT8: 0.2 | DU8: 0.2 | DV8: 0.2 | DW8: 0.2 | DX8: 0.2 | DY8: 0.2 | DZ8: 0.2 | EA8: 0.2 | EB8: 0.2 | EC8: 0.2 | ED8: 0.2 | EE8: 0.2 | EF8: 0.15 | EG8: 0.15 | EH8: 0.15 | EI8: 0.15 | EJ8: 0.15 | EK8: 0.15 | EL8: 0.15 | EM8: 0.15 | EN8: 0.15 | EO8: 0.15 | EP8: 0.15 | EQ8: 0.15 | ER8: 0.15 | ES8: 0.15 | ET8: 0.15 | EU8: 0.15 | EV8: 0.15 | EW8: 0.15 | EX8: 0.15 | EY8: 0.15 | EZ8: 0.15 | FA8: 0.15 | FB8: 0.15 | FC8: 0.15 | FD8: 0.15 | FE8: 0.15 | FF8: 0.15 | FG8: 0.15 | FH8: 0.15 | FI8: 0.15 | FJ8: 0.15 | FK8: 0.15 | FL8: 0.15 | FM8: 0.15 | FN8: 0.15 | FO8: 0.15 | FP8: 0.15 | FQ8: 0.15 | FR8: 0.15 | FS8: 0.15 | FT8: 0.15 | FU8: 0.15 | FV8: 0.15 | FW8: 0.15 | FX8: 0.15 | FY8: 0.15 | FZ8: 0.15 | GA8: 0.15 | GB8: 0.1 | GC8: 0.1 | GD8: 0.1 | GE8: 0.1 | GF8: 0.1 | GG8: 0.1 | GH8: 0.1 | GI8: 0.1 | GJ8: 0.1 | GK8: 0.1 | GL8: 0.1 | GM8: 0.1 | GN8: 0.1 | GO8: 0.1 | GP8: 0.1 | GQ8: 0.1 | GR8: 0.1 | GS8: 0.1 | GT8: 0.1 | GU8: 0.1 | GV8: 0.1 | GW8: 0.1 | GX8: 0.1 | GY8: 0.1 | GZ8: 0.1 | HA8: 0.1 | HB8: 0.1 | HC8: 0.1 | HD8: 0.1 | HE8: 0.1 | HF8: 0.1 | HG8: 0.1 | HH8: 0.1 | HI8: 0.1 | HJ8: 0.1 | HK8: 0.1 | HL8: 0.1 | HM8: 0.1 | HN8: 0.1 | HO8: 0.1 | HP8: 0.1 | HQ8: 0.1 | HR8: 0.1 | HS8: 0.1 | HT8: 0.1 | HU8: 0.1 | HV8: 0.1 | HW8: 0.1 | HX8: 0.05 | HY8: 0.05 | HZ8: 0.05 | IA8: 0.05 | IB8: 0.05 | IC8: 0.05 | ID8: 0.05 | IE8: 0.05 | IF8: 0.05 | IG8: 0.05 | IH8: 0.05 | II8: 0.05 | IJ8: 0.05 | IK8: 0.05 | IL8: 0.05 | IM8: 0.05 | IN8: 0.05 | IO8: 0.05 | IP8: 0.05 | IQ8: 0.05 | IR8: 0.05 | IS8: 0.05 | IT8: 0.05 | IU8: 0.05 | IV8: 0.05 | IW8: 0.05 | IX8: 0.05 | IY8: 0.05 | IZ8: 0.05 | JA8: 0.05 | JB8: 0.05 | JC8: 0.05 | JD8: 0.05 | JE8: 0.05 | JF8: 0.05 | JG8: 0.05 | JH8: 0 | JI8: 0 | JJ8: 0 | JK8: 0 | JL8: 0 | JM8: 0 | JN8: 0 | JO8: 0 | JP8: 0 | JQ8: 0 | JR8: 0 | JS8: 0
A9: WASHINGTON
A10: Retail Load | B10: Retail Sales (adjusted as a % of Load) | D10: =WA_LR!C$141*WA_LR!C$2*(1-G_A!$Q$26) -> 548908.8632 | E10: =WA_LR!D$141*WA_LR!D$2*(1-G_A!$Q$26) -> 498182.6033 | F10: =WA_LR!E$141*WA_LR!E$2*(1-G_A!$Q$26) -> 482254.823 | G10: =WA_LR!F$141*WA_LR!F$2*(1-G_A!$Q$26) -> 433324.4246 | H10: =WA_LR!G$141*WA_LR!G$2*(1-G_A!$Q$26) -> 428103.4529 | I10: =WA_LR!H$141*WA_LR!H$2*(1-G_A!$Q$26) -> 439247.5029 | J10: =WA_LR!I$141*WA_LR!I$2*(1-G_A!$Q$26) -> 487526.0501 | K10: =WA_LR!J$141*WA_LR!J$2*(1-G_A!$Q$26) -> 490499.7294 | L10: =WA_LR!K$141*WA_LR!K$2*(1-G_A!$Q$26) -> 426207.3979 | M10: =WA_LR!L$141*WA_LR!L$2*(1-G_A!$Q$26) -> 456153.0099 | N10: =WA_LR!M$141*WA_LR!M$2*(1-G_A!$Q$26) -> 493199.7311 | O10: =WA_LR!N$141*WA_LR!N$2*(1-G_A!$Q$26) -> 555093.1385 | P10: =WA_LR!O$141*WA_LR!O$2*(1-G_A!$R$26) -> 550748.5161 | Q10: =WA_LR!P$141*WA_LR!P$2*(1-G_A!$R$26) -> 522728.347 | R10: =WA_LR!Q$141*WA_LR!Q$2*(1-G_A!$R$26) -> 484266.1647 | S10: =WA_LR!R$141*WA_LR!R$2*(1-G_A!$R$26) -> 435525.5964 | T10: =WA_LR!S$141*WA_LR!S$2*(1-G_A!$R$26) -> 430649.1267 | U10: =WA_LR!T$141*WA_LR!T$2*(1-G_A!$R$26) -> 441871.7877 | V10: =WA_LR!U$141*WA_LR!U$2*(1-G_A!$R$26) -> 490531.6606 | W10: =WA_LR!V$141*WA_LR!V$2*(1-G_A!$R$26) -> 493518.825 | X10: =WA_LR!W$141*WA_LR!W$2*(1-G_A!$R$26) -> 428714.9362 | Y10: =WA_LR!X$141*WA_LR!X$2*(1-G_A!$R$26) -> 458725.594 | Z10: =WA_LR!Y$141*WA_LR!Y$2*(1-G_A!$R$26) -> 495654.4153 | AA10: =WA_LR!Z$141*WA_LR!Z$2*(1-G_A!$R$26) -> 556889.9041 | AB10: =WA_LR!AA$141*WA_LR!AA$2*(1-G_A!$S$26) -> 555318.643 | AC10: =WA_LR!AB$141*WA_LR!AB$2*(1-G_A!$S$26) -> 504331.2213 | AD10: =WA_LR!AC$141*WA_LR!AC$2*(1-G_A!$S$26) -> 488656.6176 | AE10: =WA_LR!AD$141*WA_LR!AD$2*(1-G_A!$S$26) -> 439887.178 | AF10: =WA_LR!AE$141*WA_LR!AE$2*(1-G_A!$S$26) -> 435301.3851 | AG10: =WA_LR!AF$141*WA_LR!AF$2*(1-G_A!$S$26) -> 446758.6258 | AH10: =WA_LR!AG$141*WA_LR!AG$2*(1-G_A!$S$26) -> 496032.9267 | AI10: =WA_LR!AH$141*WA_LR!AH$2*(1-G_A!$S$26) -> 499044.2738 | AJ10: =WA_LR!AI$141*WA_LR!AI$2*(1-G_A!$S$26) -> 433448.3422 | AK10: =WA_LR!AJ$141*WA_LR!AJ$2*(1-G_A!$S$26) -> 463672.3045 | AL10: =WA_LR!AK$141*WA_LR!AK$2*(1-G_A!$S$26) -> 500716.3647 | AM10: =WA_LR!AL$141*WA_LR!AL$2*(1-G_A!$S$26) -> 561628.7325 | AN10: =WA_LR!AM$141*WA_LR!AM$2*(1-G_A!$T$26) -> 554655.3195 | AO10: =WA_LR!AN$141*WA_LR!AN$2*(1-G_A!$T$26) -> 503842.1776 | AP10: =WA_LR!AO$141*WA_LR!AO$2*(1-G_A!$T$26) -> 487387.8914 | AQ10: =WA_LR!AP$141*WA_LR!AP$2*(1-G_A!$T$26) -> 437067.6262 | AR10: =WA_LR!AQ$141*WA_LR!AQ$2*(1-G_A!$T$26) -> 429782.5993 | AS10: =WA_LR!AR$141*WA_LR!AR$2*(1-G_A!$T$26) -> 440945.0786 | AT10: =WA_LR!AS$141*WA_LR!AS$2*(1-G_A!$T$26) -> 489523.3369 | AU10: =WA_LR!AT$141*WA_LR!AT$2*(1-G_A!$T$26) -> 493061.2429 | AV10: =WA_LR!AU$141*WA_LR!AU$2*(1-G_A!$T$26) -> 428524.9171 | AW10: =WA_LR!AV$141*WA_LR!AV$2*(1-G_A!$T$26) -> 463397.3476 | AX10: =WA_LR!AW$141*WA_LR!AW$2*(1-G_A!$T$26) -> 502593.6571 | AY10: =WA_LR!AX$141*WA_LR!AX$2*(1-G_A!$T$26) -> 562889.7452 | AZ10: =WA_LR!AY$141*WA_LR!AY$2*(1-G_A!$U$26) -> 557851.5995 | BA10: =WA_LR!AZ$141*WA_LR!AZ$2*(1-G_A!$U$26) -> 507015.5832 | BB10: =WA_LR!BA$141*WA_LR!BA$2*(1-G_A!$U$26) -> 490703.3798 | BC10: =WA_LR!BB$141*WA_LR!BB$2*(1-G_A!$U$26) -> 440133.434 | BD10: =WA_LR!BC$141*WA_LR!BC$2*(1-G_A!$U$26) -> 432365.6434 | BE10: =WA_LR!BD$141*WA_LR!BD$2*(1-G_A!$U$26) -> 443513.8825 | BF10: =WA_LR!BE$141*WA_LR!BE$2*(1-G_A!$U$26) -> 492341.6824 | BG10: =WA_LR!BF$141*WA_LR!BF$2*(1-G_A!$U$26) -> 495872.8925 | BH10: =WA_LR!BG$141*WA_LR!BG$2*(1-G_A!$U$26) -> 431075.9946 | BI10: =WA_LR!BH$141*WA_LR!BH$2*(1-G_A!$U$26) -> 467471.583 | BJ10: =WA_LR!BI$141*WA_LR!BI$2*(1-G_A!$U$26) -> 506999.7562 | BK10: =WA_LR!BJ$141*WA_LR!BJ$2*(1-G_A!$U$26) -> 566674.6674 | BL10: =WA_LR!BK$141*WA_LR!BK$2*(1-G_A!$V$26) -> 559018.0106 | BM10: =WA_LR!BL$141*WA_LR!BL$2*(1-G_A!$V$26) -> 531509.7416 | BN10: =WA_LR!BM$141*WA_LR!BM$2*(1-G_A!$V$26) -> 492197.0359 | BO10: =WA_LR!BN$141*WA_LR!BN$2*(1-G_A!$V$26) -> 441567.0105 | BP10: =WA_LR!BO$141*WA_LR!BO$2*(1-G_A!$V$26) -> 433367.4835 | BQ10: =WA_LR!BP$141*WA_LR!BP$2*(1-G_A!$V$26) -> 444481.844 | BR10: =WA_LR!BQ$141*WA_LR!BQ$2*(1-G_A!$V$26) -> 493380.7651 | BS10: =WA_LR!BR$141*WA_LR!BR$2*(1-G_A!$V$26) -> 496877.1955 | BT10: =WA_LR!BS$141*WA_LR!BS$2*(1-G_A!$V$26) -> 432034.5121 | BU10: =WA_LR!BT$141*WA_LR!BT$2*(1-G_A!$V$26) -> 469822.4444 | BV10: =WA_LR!BU$141*WA_LR!BU$2*(1-G_A!$V$26) -> 509534.5873 | BW10: =WA_LR!BV$141*WA_LR!BV$2*(1-G_A!$V$26) -> 568405.4445 | BX10: =WA_LR!BW$141*WA_LR!BW$2*(1-G_A!$W$26) -> 564266.3927 | BY10: =WA_LR!BX$141*WA_LR!BX$2*(1-G_A!$W$26) -> 513319.1342 | BZ10: =WA_LR!BY$141*WA_LR!BY$2*(1-G_A!$W$26) -> 497248.7006 | CA10: =WA_LR!BZ$141*WA_LR!BZ$2*(1-G_A!$W$26) -> 446191.6213 | CB10: =WA_LR!CA$141*WA_LR!CA$2*(1-G_A!$W$26) -> 437519.7012 | CC10: =WA_LR!CB$141*WA_LR!CB$2*(1-G_A!$W$26) -> 448705.3082 | CD10: =WA_LR!CC$141*WA_LR!CC$2*(1-G_A!$W$26) -> 498032.2922 | CE10: =WA_LR!CD$141*WA_LR!CD$2*(1-G_A!$W$26) -> 501496.0922 | CF10: =WA_LR!CE$141*WA_LR!CE$2*(1-G_A!$W$26) -> 436107.4935 | CG10: =WA_LR!CF$141*WA_LR!CF$2*(1-G_A!$W$26) -> 475592.9036 | CH10: =WA_LR!CG$141*WA_LR!CG$2*(1-G_A!$W$26) -> 515774.0019 | CI10: =WA_LR!CH$141*WA_LR!CH$2*(1-G_A!$W$26) -> 574304.8764 | CJ10: =WA_LR!CI$141*WA_LR!CI$2*(1-G_A!$X$26) -> 567237.0819 | CK10: =WA_LR!CJ$141*WA_LR!CJ$2*(1-G_A!$X$26) -> 516220.224 | CL10: =WA_LR!CK$141*WA_LR!CK$2*(1-G_A!$X$26) -> 500257.5332 | CM10: =WA_LR!CL$141*WA_LR!CL$2*(1-G_A!$X$26) -> 448988.0684 | CN10: =WA_LR!CM$141*WA_LR!CM$2*(1-G_A!$X$26) -> 439894.0712 | CO10: =WA_LR!CN$141*WA_LR!CN$2*(1-G_A!$X$26) -> 451131.3172 | CP10: =WA_LR!CO$141*WA_LR!CO$2*(1-G_A!$X$26) -> 500680.8774 | CQ10: =WA_LR!CP$141*WA_LR!CP$2*(1-G_A!$X$26) -> 504073.6089 | CR10: =WA_LR!CQ$141*WA_LR!CQ$2*(1-G_A!$X$26) -> 438379.6372 | CS10: =WA_LR!CR$141*WA_LR!CR$2*(1-G_A!$X$26) -> 479444.853 | CT10: =WA_LR!CS$141*WA_LR!CS$2*(1-G_A!$X$26) -> 519926.1599 | CU10: =WA_LR!CT$141*WA_LR!CT$2*(1-G_A!$X$26) -> 577909.6916 | CV10: =WA_LR!CU$141*WA_LR!CU$2*(1-G_A!$Y$26) -> 571247.629 | CW10: =WA_LR!CV$141*WA_LR!CV$2*(1-G_A!$Y$26) -> 520012.0434 | CX10: =WA_LR!CW$141*WA_LR!CW$2*(1-G_A!$Y$26) -> 504108.9613 | CY10: =WA_LR!CX$141*WA_LR!CX$2*(1-G_A!$Y$26) -> 452568.3872 | CZ10: =WA_LR!CY$141*WA_LR!CY$2*(1-G_A!$Y$26) -> 443118.6428 | DA10: =WA_LR!CZ$141*WA_LR!CZ$2*(1-G_A!$Y$26) -> 454507.7877 | DB10: =WA_LR!DA$141*WA_LR!DA$2*(1-G_A!$Y$26) -> 504383.6572 | DC10: =WA_LR!DB$141*WA_LR!DB$2*(1-G_A!$Y$26) -> 507618.2093 | DD10: =WA_LR!DC$141*WA_LR!DC$2*(1-G_A!$Y$26) -> 441393.9689 | DE10: =WA_LR!DD$141*WA_LR!DD$2*(1-G_A!$Y$26) -> 484208.3409 | DF10: =WA_LR!DE$141*WA_LR!DE$2*(1-G_A!$Y$26) -> 525017.2456 | DG10: =WA_LR!DF$141*WA_LR!DF$2*(1-G_A!$Y$26) -> 582632.7715 | DH10: =WA_LR!DG$141*WA_LR!DG$2*(1-G_A!$Z$26) -> 573454.1774 | DI10: =WA_LR!DH$141*WA_LR!DH$2*(1-G_A!$Z$26) -> 545984.6498 | DJ10: =WA_LR!DI$141*WA_LR!DI$2*(1-G_A!$Z$26) -> 506330.4382 | DK10: =WA_LR!DJ$141*WA_LR!DJ$2*(1-G_A!$Z$26) -> 454678.5681 | DL10: =WA_LR!DK$141*WA_LR!DK$2*(1-G_A!$Z$26) -> 444913.4043 | DM10: =WA_LR!DL$141*WA_LR!DL$2*(1-G_A!$Z$26) -> 456434.5869 | DN10: =WA_LR!DM$141*WA_LR!DM$2*(1-G_A!$Z$26) -> 506474.9693 | DO10: =WA_LR!DN$141*WA_LR!DN$2*(1-G_A!$Z$26) -> 509532.695 | DP10: =WA_LR!DO$141*WA_LR!DO$2*(1-G_A!$Z$26) -> 442975.2686 | DQ10: =WA_LR!DP$141*WA_LR!DP$2*(1-G_A!$Z$26) -> 487411.0936 | DR10: =WA_LR!DQ$141*WA_LR!DQ$2*(1-G_A!$Z$26) -> 528422.789 | DS10: =WA_LR!DR$141*WA_LR!DR$2*(1-G_A!$Z$26) -> 585524.0912 | DT10: =WA_LR!DS$141*WA_LR!DS$2*(1-G_A!$AA$26) -> 579767.0547 | DU10: =WA_LR!DT$141*WA_LR!DT$2*(1-G_A!$AA$26) -> 527983.6461 | DV10: =WA_LR!DU$141*WA_LR!DU$2*(1-G_A!$AA$26) -> 512135.8721 | DW10: =WA_LR!DV$141*WA_LR!DV$2*(1-G_A!$AA$26) -> 460000.3479 | DX10: =WA_LR!DW$141*WA_LR!DW$2*(1-G_A!$AA$26) -> 449860.7716 | DY10: =WA_LR!DX$141*WA_LR!DX$2*(1-G_A!$AA$26) -> 461614.1979 | DZ10: =WA_LR!DY$141*WA_LR!DY$2*(1-G_A!$AA$26) -> 512171.8646 | EA10: =WA_LR!DZ$141*WA_LR!DZ$2*(1-G_A!$AA$26) -> 515064.8564 | EB10: =WA_LR!EA$141*WA_LR!EA$2*(1-G_A!$AA$26) -> 447685.2138 | EC10: =WA_LR!EB$141*WA_LR!EB$2*(1-G_A!$AA$26) -> 494073.5739 | ED10: =WA_LR!EC$141*WA_LR!EC$2*(1-G_A!$AA$26) -> 535587.5074 | EE10: =WA_LR!ED$141*WA_LR!ED$2*(1-G_A!$AA$26) -> 592619.4958 | EF10: =WA_LR!EE$141*WA_LR!EE$2*(1-G_A!$AB$26) -> 584280.8485 | EG10: =WA_LR!EF$141*WA_LR!EF$2*(1-G_A!$AB$26) -> 532164.4474 | EH10: =WA_LR!EG$141*WA_LR!EG$2*(1-G_A!$AB$26) -> 516309.2209 | EI10: =WA_LR!EH$141*WA_LR!EH$2*(1-G_A!$AB$26) -> 463851.5366 | EJ10: =WA_LR!EI$141*WA_LR!EI$2*(1-G_A!$AB$26) -> 453381.2193 | EK10: =WA_LR!EJ$141*WA_LR!EJ$2*(1-G_A!$AB$26) -> 465350.7549 | EL10: =WA_LR!EK$141*WA_LR!EK$2*(1-G_A!$AB$26) -> 516263.1457 | EM10: =WA_LR!EL$141*WA_LR!EL$2*(1-G_A!$AB$26) -> 518971.2999 | EN10: =WA_LR!EM$141*WA_LR!EM$2*(1-G_A!$AB$26) -> 450963.8454 | EO10: =WA_LR!EN$141*WA_LR!EN$2*(1-G_A!$AB$26) -> 499178.2006 | EP10: =WA_LR!EO$141*WA_LR!EO$2*(1-G_A!$AB$26) -> 541069.8616 | EQ10: =WA_LR!EP$141*WA_LR!EP$2*(1-G_A!$AB$26) -> 597890.3318 | ER10: =WA_LR!EQ$141*WA_LR!EQ$2*(1-G_A!$AC$26) -> 588997.1407 | ES10: =WA_LR!ER$141*WA_LR!ER$2*(1-G_A!$AC$26) -> 536502.908 | ET10: =WA_LR!ES$141*WA_LR!ES$2*(1-G_A!$AC$26) -> 520612.9423 | EU10: =WA_LR!ET$141*WA_LR!ET$2*(1-G_A!$AC$26) -> 467813.5311 | EV10: =WA_LR!EU$141*WA_LR!EU$2*(1-G_A!$AC$26) -> 457022.2449 | EW10: =WA_LR!EV$141*WA_LR!EV$2*(1-G_A!$AC$26) -> 469233.1697 | EX10: =WA_LR!EW$141*WA_LR!EW$2*(1-G_A!$AC$26) -> 520510.9808 | EY10: =WA_LR!EX$141*WA_LR!EX$2*(1-G_A!$AC$26) -> 523023.7131 | EZ10: =WA_LR!EY$141*WA_LR!EY$2*(1-G_A!$AC$26) -> 454350.5524 | FA10: =WA_LR!EZ$141*WA_LR!EZ$2*(1-G_A!$AC$26) -> 504423.1273 | FB10: =WA_LR!FA$141*WA_LR!FA$2*(1-G_A!$AC$26) -> 546713.3019 | FC10: =WA_LR!FB$141*WA_LR!FB$2*(1-G_A!$AC$26) -> 603382.3089 | FD10: =WA_LR!FC$141*WA_LR!FC$2*(1-G_A!$AD$26) -> 591900.5341 | FE10: =WA_LR!FD$141*WA_LR!FD$2*(1-G_A!$AD$26) -> 563829.9882 | FF10: =WA_LR!FE$141*WA_LR!FE$2*(1-G_A!$AD$26) -> 523263.535 | FG10: =WA_LR!FF$141*WA_LR!FF$2*(1-G_A!$AD$26) -> 470284.4559 | FH10: =WA_LR!FG$141*WA_LR!FG$2*(1-G_A!$AD$26) -> 459220.665 | FI10: =WA_LR!FH$141*WA_LR!FH$2*(1-G_A!$AD$26) -> 471658.1327 | FJ10: =WA_LR!FI$141*WA_LR!FI$2*(1-G_A!$AD$26) -> 523136.5234 | FK10: =WA_LR!FJ$141*WA_LR!FJ$2*(1-G_A!$AD$26) -> 525434.324 | FL10: =WA_LR!FK$141*WA_LR!FK$2*(1-G_A!$AD$26) -> 456291.1429 | FM10: =WA_LR!FL$141*WA_LR!FL$2*(1-G_A!$AD$26) -> 508080.6205 | FN10: =WA_LR!FM$141*WA_LR!FM$2*(1-G_A!$AD$26) -> 550643.7772 | FO10: =WA_LR!FN$141*WA_LR!FN$2*(1-G_A!$AD$26) -> 607030.4327 | FP10: =WA_LR!FO$141*WA_LR!FO$2*(1-G_A!$AE$26) -> 599154.5152 | FQ10: =WA_LR!FP$141*WA_LR!FP$2*(1-G_A!$AE$26) -> 545751.2123 | FR10: =WA_LR!FQ$141*WA_LR!FQ$2*(1-G_A!$AE$26) -> 529702.9845 | FS10: =WA_LR!FR$141*WA_LR!FR$2*(1-G_A!$AE$26) -> 476153.7648 | FT10: =WA_LR!FS$141*WA_LR!FS$2*(1-G_A!$AE$26) -> 464751.8463 | FU10: =WA_LR!FT$141*WA_LR!FT$2*(1-G_A!$AE$26) -> 477532.2916 | FV10: =WA_LR!FU$141*WA_LR!FU$2*(1-G_A!$AE$26) -> 529580.8909 | FW10: =WA_LR!FV$141*WA_LR!FV$2*(1-G_A!$AE$26) -> 531666.5877 | FX10: =WA_LR!FW$141*WA_LR!FW$2*(1-G_A!$AE$26) -> 461528.7736 | FY10: =WA_LR!FX$141*WA_LR!FX$2*(1-G_A!$AE$26) -> 515436.2833 | FZ10: =WA_LR!FY$141*WA_LR!FY$2*(1-G_A!$AE$26) -> 558592.8516 | GA10: =WA_LR!FZ$141*WA_LR!FZ$2*(1-G_A!$AE$26) -> 615157.8757 | GB10: =WA_LR!GA$141*WA_LR!GA$2*(1-G_A!$AF$26) -> 604657.0826 | GC10: =WA_LR!GB$141*WA_LR!GB$2*(1-G_A!$AF$26) -> 550711.7821 | GD10: =WA_LR!GC$141*WA_LR!GC$2*(1-G_A!$AF$26) -> 534533.7732 | GE10: =WA_LR!GD$141*WA_LR!GD$2*(1-G_A!$AF$26) -> 480571.9328 | GF10: =WA_LR!GE$141*WA_LR!GE$2*(1-G_A!$AF$26) -> 468882.5489 | GG10: =WA_LR!GF$141*WA_LR!GF$2*(1-G_A!$AF$26) -> 481997.3544 | GH10: =WA_LR!GG$141*WA_LR!GG$2*(1-G_A!$AF$26) -> 534454.9488 | GI10: =WA_LR!GH$141*WA_LR!GH$2*(1-G_A!$AF$26) -> 536306.1323 | GJ10: =WA_LR!GI$141*WA_LR!GI$2*(1-G_A!$AF$26) -> 465359.0099 | GK10: =WA_LR!GJ$141*WA_LR!GJ$2*(1-G_A!$AF$26) -> 521254.1467 | GL10: =WA_LR!GK$141*WA_LR!GK$2*(1-G_A!$AF$26) -> 564884.0938 | GM10: =WA_LR!GL$141*WA_LR!GL$2*(1-G_A!$AF$26) -> 621508.8404 | GN10: =WA_LR!GM$141*WA_LR!GM$2*(1-G_A!$AG$26) -> 610504.8027 | GO10: =WA_LR!GN$141*WA_LR!GN$2*(1-G_A!$AG$26) -> 555949.5417 | GP10: =WA_LR!GO$141*WA_LR!GO$2*(1-G_A!$AG$26) -> 539603.4988 | GQ10: =WA_LR!GP$141*WA_LR!GP$2*(1-G_A!$AG$26) -> 485199.3279 | GR10: =WA_LR!GQ$141*WA_LR!GQ$2*(1-G_A!$AG$26) -> 473236.0314 | GS10: =WA_LR!GR$141*WA_LR!GR$2*(1-G_A!$AG$26) -> 486723.6994 | GT10: =WA_LR!GS$141*WA_LR!GS$2*(1-G_A!$AG$26) -> 539610.6756 | GU10: =WA_LR!GT$141*WA_LR!GT$2*(1-G_A!$AG$26) -> 541211.1094 | GV10: =WA_LR!GU$141*WA_LR!GU$2*(1-G_A!$AG$26) -> 469392.8143 | GW10: =WA_LR!GV$141*WA_LR!GV$2*(1-G_A!$AG$26) -> 527332.0082 | GX10: =WA_LR!GW$141*WA_LR!GW$2*(1-G_A!$AG$26) -> 571466.6937 | GY10: =WA_LR!GX$141*WA_LR!GX$2*(1-G_A!$AG$26) -> 628236.1277 | GZ10: =WA_LR!GY$141*WA_LR!GY$2*(1-G_A!$AH$26) -> 614628.4044 | HA10: =WA_LR!GZ$141*WA_LR!GZ$2*(1-G_A!$AH$26) -> 585241.5833 | HB10: =WA_LR!HA$141*WA_LR!HA$2*(1-G_A!$AH$26) -> 543077.9002 | HC10: =WA_LR!HB$141*WA_LR!HB$2*(1-G_A!$AH$26) -> 488385.5571 | HD10: =WA_LR!HC$141*WA_LR!HC$2*(1-G_A!$AH$26) -> 476203.8638 | HE10: =WA_LR!HD$141*WA_LR!HD$2*(1-G_A!$AH$26) -> 490059.137 | HF10: =WA_LR!HE$141*WA_LR!HE$2*(1-G_A!$AH$26) -> 543215.8606 | HG10: =WA_LR!HF$141*WA_LR!HF$2*(1-G_A!$AH$26) -> 544542.5943 | HH10: =WA_LR!HG$141*WA_LR!HG$2*(1-G_A!$AH$26) -> 472033.3106 | HI10: =WA_LR!HH$141*WA_LR!HH$2*(1-G_A!$AH$26) -> 531877.3855 | HJ10: =WA_LR!HI$141*WA_LR!HI$2*(1-G_A!$AH$26) -> 576399.3618 | HK10: =WA_LR!HJ$141*WA_LR!HJ$2*(1-G_A!$AH$26) -> 633211.2376 | HL10: =WA_LR!HK$141*WA_LR!HK$2*(1-G_A!$AI$26) -> 623464.1432 | HM10: =WA_LR!HL$141*WA_LR!HL$2*(1-G_A!$AI$26) -> 567451.0367 | HN10: =WA_LR!HM$141*WA_LR!HM$2*(1-G_A!$AI$26) -> 550637.6839 | HO10: =WA_LR!HN$141*WA_LR!HN$2*(1-G_A!$AI$26) -> 495239.8219 | HP10: =WA_LR!HO$141*WA_LR!HO$2*(1-G_A!$AI$26) -> 482770.5073 | HQ10: =WA_LR!HP$141*WA_LR!HP$2*(1-G_A!$AI$26) -> 497137.137 | HR10: =WA_LR!HQ$141*WA_LR!HQ$2*(1-G_A!$AI$26) -> 550959.7804 | HS10: =WA_LR!HR$141*WA_LR!HR$2*(1-G_A!$AI$26) -> 552001.0595 | HT10: =WA_LR!HS$141*WA_LR!HS$2*(1-G_A!$AI$26) -> 478218.5528 | HU10: =WA_LR!HT$141*WA_LR!HT$2*(1-G_A!$AI$26) -> 540459.2371 | HV10: =WA_LR!HU$141*WA_LR!HU$2*(1-G_A!$AI$26) -> 585716.8696 | HW10: =WA_LR!HV$141*WA_LR!HV$2*(1-G_A!$AI$26) -> 643068.2135 | HX10: =WA_LR!HW$141*WA_LR!HW$2*(1-G_A!$AJ$26) -> 630692.5275 | HY10: =WA_LR!HX$141*WA_LR!HX$2*(1-G_A!$AJ$26) -> 573812.2553 | HZ10: =WA_LR!HY$141*WA_LR!HY$2*(1-G_A!$AJ$26) -> 556689.7263 | IA10: =WA_LR!HZ$141*WA_LR!HZ$2*(1-G_A!$AJ$26) -> 500733.0182 | IB10: =WA_LR!IA$141*WA_LR!IA$2*(1-G_A!$AJ$26) -> 488037.4603 | IC10: =WA_LR!IB$141*WA_LR!IB$2*(1-G_A!$AJ$26) -> 502922.0603 | ID10: =WA_LR!IC$141*WA_LR!IC$2*(1-G_A!$AJ$26) -> 557260.1019 | IE10: =WA_LR!ID$141*WA_LR!ID$2*(1-G_A!$AJ$26) -> 557987.9024 | IF10: =WA_LR!IE$141*WA_LR!IE$2*(1-G_A!$AJ$26) -> 483090.5325 | IG10: =WA_LR!IF$141*WA_LR!IF$2*(1-G_A!$AJ$26) -> 547604.9941 | IH10: =WA_LR!IG$141*WA_LR!IG$2*(1-G_A!$AJ$26) -> 593489.1583 | II10: =WA_LR!IH$141*WA_LR!IH$2*(1-G_A!$AJ$26) -> 651299.2171 | IJ10: =WA_LR!II$141*WA_LR!II$2*(1-G_A!$AK$26) -> 638511.5745 | IK10: =WA_LR!IJ$141*WA_LR!IJ$2*(1-G_A!$AK$26) -> 580657.9882 | IL10: =WA_LR!IK$141*WA_LR!IK$2*(1-G_A!$AK$26) -> 563169.8561 | IM10: =WA_LR!IL$141*WA_LR!IL$2*(1-G_A!$AK$26) -> 506605.2886 | IN10: =WA_LR!IM$141*WA_LR!IM$2*(1-G_A!$AK$26) -> 493701.7559 | IO10: =WA_LR!IN$141*WA_LR!IN$2*(1-G_A!$AK$26) -> 509164.4674 | IP10: =WA_LR!IO$141*WA_LR!IO$2*(1-G_A!$AK$26) -> 564056.1353 | IQ10: =WA_LR!IP$141*WA_LR!IP$2*(1-G_A!$AK$26) -> 564443.6501 | IR10: =WA_LR!IQ$141*WA_LR!IQ$2*(1-G_A!$AK$26) -> 488327.2888 | IS10: =WA_LR!IR$141*WA_LR!IR$2*(1-G_A!$AK$26) -> 555217.1391 | IT10: =WA_LR!IS$141*WA_LR!IS$2*(1-G_A!$AK$26) -> 601778.3115 | IU10: =WA_LR!IT$141*WA_LR!IT$2*(1-G_A!$AK$26) -> 660173.9598 | IV10: =WA_LR!IU$141*WA_LR!IU$2*(1-G_A!$AL$26) -> 644771.4398 | IW10: =WA_LR!IV$141*WA_LR!IV$2*(1-G_A!$AL$26) -> 612987.2354 | IX10: =WA_LR!IW$141*WA_LR!IW$2*(1-G_A!$AL$26) -> 568173.2367 | IY10: =WA_LR!IX$141*WA_LR!IX$2*(1-G_A!$AL$26) -> 511143.2992 | IZ10: =WA_LR!IY$141*WA_LR!IY$2*(1-G_A!$AL$26) -> 498098.8849 | JA10: =WA_LR!IZ$141*WA_LR!IZ$2*(1-G_A!$AL$26) -> 514151.9185 | JB10: =WA_LR!JA$141*WA_LR!JA$2*(1-G_A!$AL$26) -> 569450.504 | JC10: =WA_LR!JB$141*WA_LR!JB$2*(1-G_A!$AL$26) -> 569467.7871 | JD10: =WA_LR!JC$141*WA_LR!JC$2*(1-G_A!$AL$26) -> 492280.9157 | JE10: =WA_LR!JD$141*WA_LR!JD$2*(1-G_A!$AL$26) -> 561419.1243 | JF10: =WA_LR!JE$141*WA_LR!JE$2*(1-G_A!$AL$26) -> 608551.0858 | JG10: =WA_LR!JF$141*WA_LR!JF$2*(1-G_A!$AL$26) -> 667470.147 | JH10: =WA_LR!JG$141*WA_LR!JG$2*(1-G_A!$AM$26) -> 656305.0466 | JI10: =WA_LR!JH$141*WA_LR!JH$2*(1-G_A!$AM$26) -> 596129.0429 | JJ10: =WA_LR!JI$141*WA_LR!JI$2*(1-G_A!$AM$26) -> 577712.499 | JK10: =WA_LR!JJ$141*WA_LR!JJ$2*(1-G_A!$AM$26) -> 519756.5943 | JL10: =WA_LR!JK$141*WA_LR!JK$2*(1-G_A!$AM$26) -> 506503.6243 | JM10: =WA_LR!JL$141*WA_LR!JL$2*(1-G_A!$AM$26) -> 523334.871 | JN10: =WA_LR!JM$141*WA_LR!JM$2*(1-G_A!$AM$26) -> 579478.7736 | JO10: =WA_LR!JN$141*WA_LR!JN$2*(1-G_A!$AM$26) -> 579092.4633 | JP10: =WA_LR!JO$141*WA_LR!JO$2*(1-G_A!$AM$26) -> 500161.0299 | JQ10: =WA_LR!JP$141*WA_LR!JP$2*(1-G_A!$AM$26) -> 572159.567 | JR10: =WA_LR!JQ$141*WA_LR!JQ$2*(1-G_A!$AM$26) -> 620255.0721 | JS10: =WA_LR!JR$141*WA_LR!JR$2*(1-G_A!$AM$26) -> 680265.8859 | JV10: =SUM(D10:O10)/G_A!$Q$6 -> 655.1028227 | JW10: =SUM(P10:AA10)/G_A!$R$6 -> 659.1330685 | JX10: =SUM(AB10:AM10)/G_A!$S$6 -> 664.9311205 | JY10: =SUM(AN10:AY10)/G_A!$T$6 -> 661.3779611 | JZ10: =SUM(AZ10:BK10)/G_A!$U$6 -> 665.755719 | KA10: =SUM(BL10:BW10)/G_A!$V$6 -> 668.5104821 | KB10: =SUM(BX10:CI10)/G_A!$W$6 -> 674.4929815 | KC10: =SUM(CJ10:CU10)/G_A!$X$6 -> 678.5551511 | KD10: =SUM(CV10:DG10)/G_A!$Y$6 -> 683.8832928 | KE10: =SUM(DH10:DS10)/G_A!$Z$6 -> 687.857096 | KF10: =SUM(DT10:EE10)/G_A!$AA$6 -> 695.0415984 | KG10: =SUM(EF10:EQ10)/G_A!$AB$6 -> 700.8761087 | KH10: =SUM(ER10:FC10)/G_A!$AC$6 -> 706.9162011 | KI10: =SUM(FD10:FO10)/G_A!$AD$6 -> 711.6090769 | KJ10: =SUM(FP10:GA10)/G_A!$AE$6 -> 719.749986 | KK10: =SUM(GB10:GM10)/G_A!$AF$6 -> 726.61206 | KL10: =SUM(GN10:GY10)/G_A!$AG$6 -> 733.8431884 | KM10: =SUM(GZ10:HK10)/G_A!$AH$6 -> 739.8538475 | KN10: =SUM(HL10:HW10)/G_A!$AI$6 -> 749.6716944 | KO10: =SUM(HX10:II10)/G_A!$AJ$6 -> 758.4039902 | KP10: =SUM(IJ10:IU10)/G_A!$AK$6 -> 767.7862346 | KQ10: =SUM(IV10:JG10)/G_A!$AL$6 -> 776.1800522 | KR10: =SUM(JH10:JS10)/G_A!$AM$6 -> 788.9445742
B11: Placeholder | D11: 0 | E11: 0 | F11: 0 | G11: 0 | H11: 0 | I11: 0 | J11: 0 | K11: 0 | L11: 0 | M11: 0 | N11: 0 | O11: 0 | P11: 0 | Q11: 0 | R11: 0 | S11: 0 | T11: 0 | U11: 0 | V11: 0 | W11: 0 | X11: 0 | Y11: 0 | Z11: 0 | AA11: 0 | AB11: 0 | AC11: 0 | AD11: 0 | AE11: 0 | AF11: 0 | AG11: 0 | AH11: 0 | AI11: 0 | AJ11: 0 | AK11: 0 | AL11: 0 | AM11: 0 | AN11: 0 | AO11: 0 | AP11: 0 | AQ11: 0 | AR11: 0 | AS11: 0 | AT11: 0 | AU11: 0 | AV11: 0 | AW11: 0 | AX11: 0 | AY11: 0 | AZ11: 0 | BA11: 0 | BB11: 0 | BC11: 0 | BD11: 0 | BE11: 0 | BF11: 0 | BG11: 0 | BH11: 0 | BI11: 0 | BJ11: 0 | BK11: 0 | BL11: 0 | BM11: 0 | BN11: 0 | BO11: 0 | BP11: 0 | BQ11: 0 | BR11: 0 | BS11: 0 | BT11: 0 | BU11: 0 | BV11: 0 | BW11: 0 | BX11: 0 | BY11: 0 | BZ11: 0 | CA11: 0 | CB11: 0 | CC11: 0 | CD11: 0 | CE11: 0 | CF11: 0 | CG11: 0 | CH11: 0 | CI11: 0 | CJ11: 0 | CK11: 0 | CL11: 0 | CM11: 0 | CN11: 0 | CO11: 0 | CP11: 0 | CQ11: 0 | CR11: 0 | CS11: 0 | CT11: 0 | CU11: 0 | CV11: 0 | CW11: 0 | CX11: 0 | CY11: 0 | CZ11: 0 | DA11: 0 | DB11: 0 | DC11: 0 | DD11: 0 | DE11: 0 | DF11: 0 | DG11: 0 | DH11: 0 | DI11: 0 | DJ11: 0 | DK11: 0 | DL11: 0 | DM11: 0 | DN11: 0 | DO11: 0 | DP11: 0 | DQ11: 0 | DR11: 0 | DS11: 0 | DT11: 0 | DU11: 0 | DV11: 0 | DW11: 0 | DX11: 0 | DY11: 0 | DZ11: 0 | EA11: 0 | EB11: 0 | EC11: 0 | ED11: 0 | EE11: 0 | EF11: 0 | EG11: 0 | EH11: 0 | EI11: 0 | EJ11: 0 | EK11: 0 | EL11: 0 | EM11: 0 | EN11: 0 | EO11: 0 | EP11: 0 | EQ11: 0 | ER11: 0 | ES11: 0 | ET11: 0 | EU11: 0 | EV11: 0 | EW11: 0 | EX11: 0 | EY11: 0 | EZ11: 0 | FA11: 0 | FB11: 0 | FC11: 0 | FD11: 0 | FE11: 0 | FF11: 0 | FG11: 0 | FH11: 0 | FI11: 0 | FJ11: 0 | FK11: 0 | FL11: 0 | FM11: 0 | FN11: 0 | FO11: 0 | FP11: 0 | FQ11: 0 | FR11: 0 | FS11: 0 | FT11: 0 | FU11: 0 | FV11: 0 | FW11: 0 | FX11: 0 | FY11: 0 | FZ11: 0 | GA11: 0 | GB11: 0 | GC11: 0 | GD11: 0 | GE11: 0 | GF11: 0 | GG11: 0 | GH11: 0 | GI11: 0 | GJ11: 0 | GK11: 0 | GL11: 0 | GM11: 0 | GN11: 0 | GO11: 0 | GP11: 0 | GQ11: 0 | GR11: 0 | GS11: 0 | GT11: 0 | GU11: 0 | GV11: 0 | GW11: 0 | GX11: 0 | GY11: 0 | GZ11: 0 | HA11: 0 | HB11: 0 | HC11: 0 | HD11: 0 | HE11: 0 | HF11: 0 | HG11: 0 | HH11: 0 | HI11: 0 | HJ11: 0 | HK11: 0 | HL11: 0 | HM11: 0 | HN11: 0 | HO11: 0 | HP11: 0 | HQ11: 0 | HR11: 0 | HS11: 0 | HT11: 0 | HU11: 0 | HV11: 0 | HW11: 0 | HX11: 0 | HY11: 0 | HZ11: 0 | IA11: 0 | IB11: 0 | IC11: 0 | ID11: 0 | IE11: 0 | IF11: 0 | IG11: 0 | IH11: 0 | II11: 0 | IJ11: 0 | IK11: 0 | IL11: 0 | IM11: 0 | IN11: 0 | IO11: 0 | IP11: 0 | IQ11: 0 | IR11: 0 | IS11: 0 | IT11: 0 | IU11: 0 | IV11: 0 | IW11: 0 | IX11: 0 | IY11: 0 | IZ11: 0 | JA11: 0 | JB11: 0 | JC11: 0 | JD11: 0 | JE11: 0 | JF11: 0 | JG11: 0 | JH11: 0 | JI11: 0 | JJ11: 0 | JK11: 0 | JL11: 0 | JM11: 0 | JN11: 0 | JO11: 0 | JP11: 0 | JQ11: 0 | JR11: 0 | JS11: 0 | JV11: =SUM(D11:O11)/G_A!$Q$6 -> 0 | JW11: =SUM(P11:AA11)/G_A!$R$6 -> 0 | JX11: =SUM(AB11:AM11)/G_A!$S$6 -> 0 | JY11: =SUM(AN11:AY11)/G_A!$T$6 -> 0 | JZ11: =SUM(AZ11:BK11)/G_A!$U$6 -> 0 | KA11: =SUM(BL11:BW11)/G_A!$V$6 -> 0 | KB11: =SUM(BX11:CI11)/G_A!$W$6 -> 0 | KC11: =SUM(CJ11:CU11)/G_A!$X$6 -> 0 | KD11: =SUM(CV11:DG11)/G_A!$Y$6 -> 0 | KE11: =SUM(DH11:DS11)/G_A!$Z$6 -> 0 | KF11: =SUM(DT11:EE11)/G_A!$AA$6 -> 0 | KG11: =SUM(EF11:EQ11)/G_A!$AB$6 -> 0 | KH11: =SUM(ER11:FC11)/G_A!$AC$6 -> 0 | KI11: =SUM(FD11:FO11)/G_A!$AD$6 -> 0 | KJ11: =SUM(FP11:GA11)/G_A!$AE$6 -> 0 | KK11: =SUM(GB11:GM11)/G_A!$AF$6 -> 0 | KL11: =SUM(GN11:GY11)/G_A!$AG$6 -> 0 | KM11: =SUM(GZ11:HK11)/G_A!$AH$6 -> 0 | KN11: =SUM(HL11:HW11)/G_A!$AI$6 -> 0 | KO11: =SUM(HX11:II11)/G_A!$AJ$6 -> 0 | KP11: =SUM(IJ11:IU11)/G_A!$AK$6 -> 0 | KQ11: =SUM(IV11:JG11)/G_A!$AL$6 -> 0 | KR11: =SUM(JH11:JS11)/G_A!$AM$6 -> 0
B12: PURPA | D12: 15784 | E12: 16452 | F12: 20071 | G12: 19803 | H12: 18292 | I12: 13805 | J12: 12349 | K12: 11180 | L12: 11527 | M12: 14344 | N12: 13786 | O12: 15897 | P12: 15784 | Q12: 16452 | R12: 20071 | S12: 19803 | T12: 18292 | U12: 13805 | V12: 12349 | W12: 11180 | X12: 11527 | Y12: 14344 | Z12: 13786 | AA12: 15897 | AB12: 15784 | AC12: 16452 | AD12: 20071 | AE12: 19803 | AF12: 18292 | AG12: 13805 | AH12: 12349 | AI12: 11180 | AJ12: 11527 | AK12: 14344 | AL12: 13786 | AM12: 15897 | AN12: 15784 | AO12: 16452 | AP12: 20071 | AQ12: 19803 | AR12: 18292 | AS12: 13805 | AT12: 12349 | AU12: 11180 | AV12: 11527 | AW12: 14344 | AX12: 13786 | AY12: 15897 | AZ12: 15784 | BA12: 16452 | BB12: 20071 | BC12: 19803 | BD12: 18292 | BE12: 13805 | BF12: 12349 | BG12: 11180 | BH12: 11527 | BI12: 14344 | BJ12: 13786 | BK12: 15897 | BL12: 15784 | BM12: 16452 | BN12: 20071 | BO12: 19803 | BP12: 18292 | BQ12: 13805 | BR12: 12349 | BS12: 11180 | BT12: 11527 | BU12: 14344 | BV12: 13786 | BW12: 15897 | BX12: 15784 | BY12: 16452 | BZ12: 20071 | CA12: 19803 | CB12: 18292 | CC12: 13805 | CD12: 12349 | CE12: 11180 | CF12: 11527 | CG12: 14344 | CH12: 13786 | CI12: 15897 | CJ12: 15784 | CK12: 16452 | CL12: 20071 | CM12: 19803 | CN12: 18292 | CO12: 13805 | CP12: 12349 | CQ12: 11180 | CR12: 11527 | CS12: 14344 | CT12: 13786 | CU12: 15897 | CV12: 15784 | CW12: 16452 | CX12: 20071 | CY12: 19803 | CZ12: 18292 | DA12: 13805 | DB12: 12349 | DC12: 11180 | DD12: 11527 | DE12: 14344 | DF12: 13786 | DG12: 15897 | DH12: 15784 | DI12: 16452 | DJ12: 20071 | DK12: 19803 | DL12: 18292 | DM12: 13805 | DN12: 12349 | DO12: 11180 | DP12: 11527 | DQ12: 14344 | DR12: 13786 | DS12: 15897 | DT12: 15784 | DU12: 16452 | DV12: 20071 | DW12: 19803 | DX12: 18292 | DY12: 13805 | DZ12: 12349 | EA12: 11180 | EB12: 11527 | EC12: 14344 | ED12: 13786 | EE12: 15897 | EF12: 15784 | EG12: 16452 | EH12: 20071 | EI12: 19803 | EJ12: 18292 | EK12: 13805 | EL12: 12349 | EM12: 11180 | EN12: 11527 | EO12: 14344 | EP12: 13786 | EQ12: 15897 | ER12: 15784 | ES12: 16452 | ET12: 20071 | EU12: 19803 | EV12: 18292 | EW12: 13805 | EX12: 12349 | EY12: 11180 | EZ12: 11527 | FA12: 14344 | FB12: 13786 | FC12: 15897 | FD12: 15784 | FE12: 16452 | FF12: 20071 | FG12: 19803 | FH12: 18292 | FI12: 13805 | FJ12: 12349 | FK12: 11180 | FL12: 11527 | FM12: 14344 | FN12: 13786 | FO12: 15897 | FP12: 15784 | FQ12: 16452 | FR12: 20071 | FS12: 19803 | FT12: 18292 | FU12: 13805 | FV12: 12349 | FW12: 11180 | FX12: 11527 | FY12: 14344 | FZ12: 13786 | GA12: 15897 | GB12: 15784 | GC12: 16452 | GD12: 20071 | GE12: 19803 | GF12: 18292 | GG12: 13805 | GH12: 12349 | GI12: 11180 | GJ12: 11527 | GK12: 14344 | GL12: 13786 | GM12: 15897 | GN12: 15784 | GO12: 16452 | GP12: 20071 | GQ12: 19803 | GR12: 18292 | GS12: 13805 | GT12: 12349 | GU12: 11180 | GV12: 11527 | GW12: 14344 | GX12: 13786 | GY12: 15897 | GZ12: 15784 | HA12: 16452 | HB12: 20071 | HC12: 19803 | HD12: 18292 | HE12: 13805 | HF12: 12349 | HG12: 11180 | HH12: 11527 | HI12: 14344 | HJ12: 13786 | HK12: 15897 | HL12: 15784 | HM12: 16452 | HN12: 20071 | HO12: 19803 | HP12: 18292 | HQ12: 13805 | HR12: 12349 | HS12: 11180 | HT12: 11527 | HU12: 14344 | HV12: 13786 | HW12: 15897 | HX12: 15784 | HY12: 16452 | HZ12: 20071 | IA12: 19803 | IB12: 18292 | IC12: 13805 | ID12: 12349 | IE12: 11180 | IF12: 11527 | IG12: 14344 | IH12: 13786 | II12: 15897 | IJ12: 15784 | IK12: 16452 | IL12: 20071 | IM12: 19803 | IN12: 18292 | IO12: 13805 | IP12: 12349 | IQ12: 11180 | IR12: 11527 | IS12: 14344 | IT12: 13786 | IU12: 15897 | IV12: 15784 | IW12: 16452 | IX12: 20071 | IY12: 19803 | IZ12: 18292 | JA12: 13805 | JB12: 12349 | JC12: 11180 | JD12: 11527 | JE12: 14344 | JF12: 13786 | JG12: 15897 | JH12: 15784 | JI12: 16452 | JJ12: 20071 | JK12: 19803 | JL12: 18292 | JM12: 13805 | JN12: 12349 | JO12: 11180 | JP12: 11527 | JQ12: 14344 | JR12: 13786 | JS12: 15897 | JV12: =SUM(D12:O12)/G_A!$Q$6 -> 20.92351598 | JW12: =SUM(P12:AA12)/G_A!$R$6 -> 20.86634791 | JX12: =SUM(AB12:AM12)/G_A!$S$6 -> 20.92351598 | JY12: =SUM(AN12:AY12)/G_A!$T$6 -> 20.92351598 | JZ12: =SUM(AZ12:BK12)/G_A!$U$6 -> 20.92351598 | KA12: =SUM(BL12:BW12)/G_A!$V$6 -> 20.86634791 | KB12: =SUM(BX12:CI12)/G_A!$W$6 -> 20.92351598 | KC12: =SUM(CJ12:CU12)/G_A!$X$6 -> 20.92351598 | KD12: =SUM(CV12:DG12)/G_A!$Y$6 -> 20.92351598 | KE12: =SUM(DH12:DS12)/G_A!$Z$6 -> 20.86634791 | KF12: =SUM(DT12:EE12)/G_A!$AA$6 -> 20.92351598 | KG12: =SUM(EF12:EQ12)/G_A!$AB$6 -> 20.92351598 | KH12: =SUM(ER12:FC12)/G_A!$AC$6 -> 20.92351598 | KI12: =SUM(FD12:FO12)/G_A!$AD$6 -> 20.86634791 | KJ12: =SUM(FP12:GA12)/G_A!$AE$6 -> 20.92351598 | KK12: =SUM(GB12:GM12)/G_A!$AF$6 -> 20.92351598 | KL12: =SUM(GN12:GY12)/G_A!$AG$6 -> 20.92351598 | KM12: =SUM(GZ12:HK12)/G_A!$AH$6 -> 20.86634791 | KN12: =SUM(HL12:HW12)/G_A!$AI$6 -> 20.92351598 | KO12: =SUM(HX12:II12)/G_A!$AJ$6 -> 20.92351598 | KP12: =SUM(IJ12:IU12)/G_A!$AK$6 -> 20.92351598 | KQ12: =SUM(IV12:JG12)/G_A!$AL$6 -> 20.86634791 | KR12: =SUM(JH12:JS12)/G_A!$AM$6 -> 20.92351598
B13: Solar Select | D13: 1298 | E13: 2547 | F13: 3882 | G13: 5169 | H13: 6132 | I13: 6494 | J13: 7154 | K13: 6404 | L13: 4969 | M13: 3365 | N13: 1527 | O13: 1143 | P13: 1285 | Q13: 2522 | R13: 3843 | S13: 5118 | T13: 6071 | U13: 6429 | V13: 7082 | W13: 6340 | X13: 4920 | Y13: 3332 | Z13: 1512 | AA13: 1131 | AB13: 1273 | AC13: 2497 | AD13: 3805 | AE13: 5067 | AF13: 6010 | AG13: 6365 | AH13: 7012 | AI13: 6277 | AJ13: 4870 | AK13: 3298 | AL13: 1497 | AM13: 1120 | AN13: 1260 | AO13: 2472 | AP13: 3767 | AQ13: 5016 | AR13: 5950 | AS13: 6301 | AT13: 6941 | AU13: 6214 | AV13: 4822 | AW13: 3265 | AX13: 1482 | AY13: 1109 | AZ13: 1247 | BA13: 2447 | BB13: 3729 | BC13: 4966 | BD13: 5891 | BE13: 6238 | BF13: 6872 | BG13: 6152 | BH13: 4774 | BI13: 3233 | BJ13: 1467 | BK13: 1098 | BL13: 0 | BM13: 0 | BN13: 0 | BO13: 0 | BP13: 0 | BQ13: 0 | BR13: 0 | BS13: 0 | BT13: 0 | BU13: 0 | BV13: 0 | BW13: 0 | BX13: 0 | BY13: 0 | BZ13: 0 | CA13: 0 | CB13: 0 | CC13: 0 | CD13: 0 | CE13: 0 | CF13: 0 | CG13: 0 | CH13: 0 | CI13: 0 | CJ13: 0 | CK13: 0 | CL13: 0 | CM13: 0 | CN13: 0 | CO13: 0 | CP13: 0 | CQ13: 0 | CR13: 0 | CS13: 0 | CT13: 0 | CU13: 0 | CV13: 0 | CW13: 0 | CX13: 0 | CY13: 0 | CZ13: 0 | DA13: 0 | DB13: 0 | DC13: 0 | DD13: 0 | DE13: 0 | DF13: 0 | DG13: 0 | DH13: 0 | DI13: 0 | DJ13: 0 | DK13: 0 | DL13: 0 | DM13: 0 | DN13: 0 | DO13: 0 | DP13: 0 | DQ13: 0 | DR13: 0 | DS13: 0 | DT13: 0 | DU13: 0 | DV13: 0 | DW13: 0 | DX13: 0 | DY13: 0 | DZ13: 0 | EA13: 0 | EB13: 0 | EC13: 0 | ED13: 0 | EE13: 0 | EF13: 0 | EG13: 0 | EH13: 0 | EI13: 0 | EJ13: 0 | EK13: 0 | EL13: 0 | EM13: 0 | EN13: 0 | EO13: 0 | EP13: 0 | EQ13: 0 | ER13: 0 | ES13: 0 | ET13: 0 | EU13: 0 | EV13: 0 | EW13: 0 | EX13: 0 | EY13: 0 | EZ13: 0 | FA13: 0 | FB13: 0 | FC13: 0 | FD13: 0 | FE13: 0 | FF13: 0 | FG13: 0 | FH13: 0 | FI13: 0 | FJ13: 0 | FK13: 0 | FL13: 0 | FM13: 0 | FN13: 0 | FO13: 0 | FP13: 0 | FQ13: 0 | FR13: 0 | FS13: 0 | FT13: 0 | FU13: 0 | FV13: 0 | FW13: 0 | FX13: 0 | FY13: 0 | FZ13: 0 | GA13: 0 | GB13: 0 | GC13: 0 | GD13: 0 | GE13: 0 | GF13: 0 | GG13: 0 | GH13: 0 | GI13: 0 | GJ13: 0 | GK13: 0 | GL13: 0 | GM13: 0 | GN13: 0 | GO13: 0 | GP13: 0 | GQ13: 0 | GR13: 0 | GS13: 0 | GT13: 0 | GU13: 0 | GV13: 0 | GW13: 0 | GX13: 0 | GY13: 0 | GZ13: 0 | HA13: 0 | HB13: 0 | HC13: 0 | HD13: 0 | HE13: 0 | HF13: 0 | HG13: 0 | HH13: 0 | HI13: 0 | HJ13: 0 | HK13: 0 | HL13: 0 | HM13: 0 | HN13: 0 | HO13: 0 | HP13: 0 | HQ13: 0 | HR13: 0 | HS13: 0 | HT13: 0 | HU13: 0 | HV13: 0 | HW13: 0 | HX13: 0 | HY13: 0 | HZ13: 0 | IA13: 0 | IB13: 0 | IC13: 0 | ID13: 0 | IE13: 0 | IF13: 0 | IG13: 0 | IH13: 0 | II13: 0 | IJ13: 0 | IK13: 0 | IL13: 0 | IM13: 0 | IN13: 0 | IO13: 0 | IP13: 0 | IQ13: 0 | IR13: 0 | IS13: 0 | IT13: 0 | IU13: 0 | IV13: 0 | IW13: 0 | IX13: 0 | IY13: 0 | IZ13: 0 | JA13: 0 | JB13: 0 | JC13: 0 | JD13: 0 | JE13: 0 | JF13: 0 | JG13: 0 | JH13: 0 | JI13: 0 | JJ13: 0 | JK13: 0 | JL13: 0 | JM13: 0 | JN13: 0 | JO13: 0 | JP13: 0 | JQ13: 0 | JR13: 0 | JS13: 0 | JV13: =SUM(D13:O13)/G_A!$Q$6 -> 5.717351598 | JW13: =SUM(P13:AA13)/G_A!$R$6 -> 5.644922587 | JX13: =SUM(AB13:AM13)/G_A!$S$6 -> 5.603995434 | JY13: =SUM(AN13:AY13)/G_A!$T$6 -> 5.54783105 | JZ13: =SUM(AZ13:BK13)/G_A!$U$6 -> 5.492465753 | KA13: =SUM(BL13:BW13)/G_A!$V$6 -> 0 | KB13: =SUM(BX13:CI13)/G_A!$W$6 -> 0 | KC13: =SUM(CJ13:CU13)/G_A!$X$6 -> 0 | KD13: =SUM(CV13:DG13)/G_A!$Y$6 -> 0 | KE13: =SUM(DH13:DS13)/G_A!$Z$6 -> 0 | KF13: =SUM(DT13:EE13)/G_A!$AA$6 -> 0 | KG13: =SUM(EF13:EQ13)/G_A!$AB$6 -> 0 | KH13: =SUM(ER13:FC13)/G_A!$AC$6 -> 0 | KI13: =SUM(FD13:FO13)/G_A!$AD$6 -> 0 | KJ13: =SUM(FP13:GA13)/G_A!$AE$6 -> 0 | KK13: =SUM(GB13:GM13)/G_A!$AF$6 -> 0 | KL13: =SUM(GN13:GY13)/G_A!$AG$6 -> 0 | KM13: =SUM(GZ13:HK13)/G_A!$AH$6 -> 0 | KN13: =SUM(HL13:HW13)/G_A!$AI$6 -> 0 | KO13: =SUM(HX13:II13)/G_A!$AJ$6 -> 0 | KP13: =SUM(IJ13:IU13)/G_A!$AK$6 -> 0 | KQ13: =SUM(IV13:JG13)/G_A!$AL$6 -> 0 | KR13: =SUM(JH13:JS13)/G_A!$AM$6 -> 0
B14: Net Retail Load | D14: =D10-D11-D12-D13 -> 531826.8632 | E14: =E10-E11-E12-E13 -> 479183.6033 | F14: 458301.823 | G14: =G10-G11-G12-G13 -> 408352.4246 | H14: 403679.4529 | I14: 418948.5029 | J14: 468023.0501 | K14: 472915.7294 | L14: 409711.3979 | M14: 438444.0099 | N14: 477886.7311 | O14: 538053.1385 | P14: 533679.5161 | Q14: 503754.347 | R14: 460352.1647 | S14: 410604.5964 | T14: 406286.1267 | U14: 421637.7877 | V14: 471100.6606 | W14: 475998.825 | X14: 412267.9362 | Y14: 441049.594 | Z14: 480356.4153 | AA14: 539861.9041 | AB14: 538261.643 | AC14: 485382.2213 | AD14: 464780.6176 | AE14: 415017.178 | AF14: 410999.3851 | AG14: 426588.6258 | AH14: 476671.9267 | AI14: 481587.2738 | AJ14: 417051.3422 | AK14: 446030.3045 | AL14: 485433.3647 | AM14: 544611.7325 | AN14: 537611.3195 | AO14: 484918.1776 | AP14: 463549.8914 | AQ14: 412248.6262 | AR14: 405540.5993 | AS14: 420839.0786 | AT14: 470233.3369 | AU14: 475667.2429 | AV14: 412175.9171 | AW14: 445788.3476 | AX14: 487325.6571 | AY14: 545883.7452 | AZ14: 540820.5995 | BA14: 488116.5832 | BB14: 466903.3798 | BC14: 415364.434 | BD14: 408182.6434 | BE14: 423470.8825 | BF14: 473120.6824 | BG14: 478540.8925 | BH14: 414774.9946 | BI14: 449894.583 | BJ14: 491746.7562 | BK14: 549679.6674 | BL14: 543234.0106 | BM14: 515057.7416 | BN14: 472126.0359 | BO14: 421764.0105 | BP14: =BP10-BP11-BP12-BP13 -> 415075.4835 | BQ14: 430676.844 | BR14: 481031.7651 | BS14: 485697.1955 | BT14: 420507.5121 | BU14: 455478.4444 | BV14: 495748.5873 | BW14: 552508.4445 | BX14: 548482.3927 | BY14: 496867.1342 | BZ14: 477177.7006 | CA14: 426388.6213 | CB14: 419227.7012 | CC14: 434900.3082 | CD14: 485683.2922 | CE14: 490316.0922 | CF14: 424580.4935 | CG14: 461248.9036 | CH14: 501988.0019 | CI14: 558407.8764 | CJ14: 551453.0819 | CK14: 499768.224 | CL14: 480186.5332 | CM14: 429185.0684 | CN14: 421602.0712 | CO14: 437326.3172 | CP14: 488331.8774 | CQ14: 492893.6089 | CR14: 426852.6372 | CS14: 465100.853 | CT14: 506140.1599 | CU14: 562012.6916 | CV14: 555463.629 | CW14: 503560.0434 | CX14: 484037.9613 | CY14: 432765.3872 | CZ14: 424826.6428 | DA14: 440702.7877 | DB14: 492034.6572 | DC14: 496438.2093 | DD14: 429866.9689 | DE14: 469864.3409 | DF14: 511231.2456 | DG14: 566735.7715 | DH14: 557670.1774 | DI14: 529532.6498 | DJ14: 486259.4382 | DK14: 434875.5681 | DL14: 426621.4043 | DM14: 442629.5869 | DN14: 494125.9693 | DO14: 498352.695 | DP14: 431448.2686 | DQ14: 473067.0936 | DR14: 514636.789 | DS14: 569627.0912 | DT14: 563983.0547 | DU14: 511531.6461 | DV14: 492064.8721 | DW14: 440197.3479 | DX14: 431568.7716 | DY14: 447809.1979 | DZ14: 499822.8646 | EA14: 503884.8564 | EB14: =EB10-EB11-EB12-EB13 -> 436158.2138 | EC14: 479729.5739 | ED14: 521801.5074 | EE14: 576722.4958 | EF14: 568496.8485 | EG14: 515712.4474 | EH14: 496238.2209 | EI14: 444048.5366 | EJ14: 435089.2193 | EK14: 451545.7549 | EL14: 503914.1457 | EM14: 507791.2999 | EN14: 439436.8454 | EO14: 484834.2006 | EP14: 527283.8616 | EQ14: 581993.3318 | ER14: 573213.1407 | ES14: 520050.908 | ET14: 500541.9423 | EU14: 448010.5311 | EV14: 438730.2449 | EW14: 455428.1697 | EX14: 508161.9808 | EY14: 511843.7131 | EZ14: 442823.5524 | FA14: 490079.1273 | FB14: 532927.3019 | FC14: 587485.3089 | FD14: 576116.5341 | FE14: 547377.9882 | FF14: 503192.535 | FG14: 450481.4559 | FH14: 440928.665 | FI14: 457853.1327 | FJ14: 510787.5234 | FK14: 514254.324 | FL14: 444764.1429 | FM14: 493736.6205 | FN14: 536857.7772 | FO14: 591133.4327 | FP14: 583370.5152 | FQ14: 529299.2123 | FR14: 509631.9845 | FS14: 456350.7648 | FT14: 446459.8463 | FU14: 463727.2916 | FV14: 517231.8909 | FW14: 520486.5877 | FX14: 450001.7736 | FY14: 501092.2833 | FZ14: 544806.8516 | GA14: 599260.8757 | GB14: 588873.0826 | GC14: 534259.7821 | GD14: 514462.7732 | GE14: 460768.9328 | GF14: 450590.5489 | GG14: 468192.3544 | GH14: 522105.9488 | GI14: 525126.1323 | GJ14: 453832.0099 | GK14: 506910.1467 | GL14: 551098.0938 | GM14: 605611.8404 | GN14: =GN10-GN11-GN12-GN13 -> 594720.8027 | GO14: 539497.5417 | GP14: 519532.4988 | GQ14: 465396.3279 | GR14: 454944.0314 | GS14: 472918.6994 | GT14: 527261.6756 | GU14: 530031.1094 | GV14: 457865.8143 | GW14: 512988.0082 | GX14: 557680.6937 | GY14: 612339.1277 | GZ14: 598844.4044 | HA14: 568789.5833 | HB14: 523006.9002 | HC14: 468582.5571 | HD14: 457911.8638 | HE14: 476254.137 | HF14: 530866.8606 | HG14: 533362.5943 | HH14: 460506.3106 | HI14: 517533.3855 | HJ14: 562613.3618 | HK14: 617314.2376 | HL14: 607680.1432 | HM14: 550999.0367 | HN14: 530566.6839 | HO14: 475436.8219 | HP14: 464478.5073 | HQ14: 483332.137 | HR14: 538610.7804 | HS14: 540821.0595 | HT14: 466691.5528 | HU14: 526115.2371 | HV14: 571930.8696 | HW14: 627171.2135 | HX14: 614908.5275 | HY14: 557360.2553 | HZ14: 536618.7263 | IA14: 480930.0182 | IB14: 469745.4603 | IC14: 489117.0603 | ID14: 544911.1019 | IE14: 546807.9024 | IF14: 471563.5325 | IG14: 533260.9941 | IH14: 579703.1583 | II14: 635402.2171 | IJ14: 622727.5745 | IK14: 564205.9882 | IL14: 543098.8561 | IM14: 486802.2886 | IN14: 475409.7559 | IO14: 495359.4674 | IP14: 551707.1353 | IQ14: 553263.6501 | IR14: 476800.2888 | IS14: 540873.1391 | IT14: 587992.3115 | IU14: 644276.9598 | IV14: 628987.4398 | IW14: 596535.2354 | IX14: 548102.2367 | IY14: 491340.2992 | IZ14: =IZ10-IZ11-IZ12-IZ13 -> 479806.8849 | JA14: 500346.9185 | JB14: 557101.504 | JC14: 558287.7871 | JD14: 480753.9157 | JE14: 547075.1243 | JF14: 594765.0858 | JG14: 651573.147 | JH14: 640521.0466 | JI14: 579677.0429 | JJ14: 557641.499 | JK14: 499953.5943 | JL14: 488211.6243 | JM14: 509529.871 | JN14: 567129.7736 | JO14: 567912.4633 | JP14: 488634.0299 | JQ14: 557815.567 | JR14: 606469.0721 | JS14: 664368.8859 | JV14: =JV10-JV11-JV12-JV13 -> 628.4619551 | JW14: 632.621798 | JX14: 638.403609 | JY14: 634.9066141 | JZ14: 639.3397373 | KA14: 647.6441342 | KB14: 653.5694655 | KC14: 657.6316351 | KD14: 662.9597768 | KE14: 666.9907481 | KF14: 674.1180824 | KG14: 679.9525928 | KH14: 685.9926851 | KI14: 690.742729 | KJ14: 698.82647 | KK14: 705.6885441 | KL14: 712.9196725 | KM14: 718.9874996 | KN14: 728.7481784 | KO14: 737.4804742 | KP14: 746.8627186 | KQ14: 755.3137043 | KR14: 768.0210582
A16: Goal | B16: Primary Compliance Target | D16: =D14*D7 -> 252617.76 | E16: =E14*E7 -> 227612.2116 | F16: 217693.3659 | G16: 193967.4017 | H16: 191747.7401 | I16: 199000.5389 | J16: 222310.9488 | K16: 224634.9715 | L16: 194612.914 | M16: 208260.9047 | N16: 226996.1973 | O16: 255575.2408 | P16: 293523.7339 | Q16: 277064.8909 | R16: 253193.6906 | S16: 225832.528 | T16: 223457.3697 | U16: 231900.7833 | V16: 259105.3633 | W16: 261799.3538 | X16: 226747.3649 | Y16: 242577.2767 | Z16: 264196.0284 | AA16: 296924.0472 | AB16: 336413.5269 | AC16: 303363.8883 | AD16: 290487.886 | AE16: 259385.7362 | AF16: 256874.6157 | AG16: 266617.8911 | AH16: 297919.9542 | AI16: 300992.0461 | AJ16: 260657.0889 | AK16: 278768.9403 | AL16: 303395.853 | AM16: 340382.3328 | AN16: 354823.4709 | AO16: 320045.9972 | AP16: 305942.9283 | AQ16: 272084.0933 | AR16: 267656.7956 | AS16: 277753.7918 | AT16: 310354.0023 | AU16: 313940.3803 | AV16: 272036.1053 | AW16: 294220.3094 | AX16: =AX14*AX7 -> 321634.9337 | AY16: 360283.2718 | AZ16: 375870.3167 | BA16: 339241.0253 | BB16: 324497.8489 | BC16: 288678.2816 | BD16: 283686.9372 | BE16: 294312.2633 | BF16: 328818.8743 | BG16: 332585.9203 | BH16: 288268.6212 | BI16: 312676.7352 | BJ16: 341763.9956 | BK16: 382027.3689 | BL16: 396560.8277 | BM16: 375992.1514 | BN16: 344652.0062 | BO16: 307887.7277 | BP16: =BP14*BP7 -> 303005.103 | BQ16: 314394.0961 | BR16: 351153.1885 | BS16: 354558.9527 | BT16: 306970.4838 | BU16: 332499.2644 | BV16: 361896.4687 | BW16: 403331.1645 | BX16: 419589.0304 | BY16: 380103.3577 | BZ16: 365040.941 | CA16: 326187.2953 | CB16: 320709.1914 | CC16: 332698.7358 | CD16: 371547.7186 | CE16: 375091.8105 | CF16: 324804.0775 | CG16: 352855.4113 | CH16: 384020.8215 | CI16: 427182.0255 | CJ16: 441162.4655 | CK16: 399814.5792 | CL16: 384149.2266 | CM16: 343348.0547 | CN16: 337281.6569 | CO16: 349861.0537 | CP16: 390665.5019 | CQ16: 394314.8871 | CR16: 341482.1098 | CS16: 372080.6824 | CT16: 404912.1279 | CU16: 449610.1533 | CV16: 444370.9032 | CW16: 402848.0347 | CX16: 387230.369 | CY16: 346212.3098 | CZ16: 339861.3142 | DA16: 352562.2301 | DB16: 393627.7258 | DC16: 397150.5675 | DD16: 343893.5751 | DE16: 375891.4727 | DF16: 408984.9965 | DG16: 453388.6172 | DH16: 446136.1419 | DI16: 423626.1198 | DJ16: 389007.5506 | DK16: 347900.4545 | DL16: 341297.1235 | DM16: 354103.6696 | DN16: 395300.7755 | DO16: 398682.156 | DP16: 345158.6149 | DQ16: 378453.6749 | DR16: 411709.4312 | DS16: 455701.673 | DT16: 451186.4437 | DU16: 409225.3169 | DV16: 393651.8977 | DW16: 352157.8783 | DX16: 345255.0173 | DY16: 358247.3583 | DZ16: 399858.2917 | EA16: 403107.8851 | EB16: =EB14*EB7 -> 348926.5711 | EC16: 383783.6591 | ED16: 417441.2059 | EE16: 461377.9966 | EF16: 483222.3212 | EG16: 438355.5803 | EH16: 421802.4877 | EI16: 377441.2561 | EJ16: 369825.8364 | EK16: 383813.8917 | EL16: 428327.0239 | EM16: 431622.6049 | EN16: 373521.3186 | EO16: 412109.0705 | EP16: 448191.2824 | EQ16: 494694.332 | ER16: 487231.1696 | ES16: 442043.2718 | ET16: 425460.6509 | EU16: 380808.9515 | EV16: 372920.7082 | EW16: 387113.9442 | EX16: 431937.6837 | EY16: 435067.1562 | EZ16: 376400.0195 | FA16: 416567.2582 | FB16: 452988.2066 | FC16: 499362.5126 | FD16: 489699.054 | FE16: 465271.2899 | FF16: 427713.6547 | FG16: 382909.2375 | FH16: 374789.3652 | FI16: 389175.1628 | FJ16: 434169.3949 | FK16: 437116.1754 | FL16: 378049.5215 | FM16: 419676.1274 | FN16: 456329.1106 | FO16: 502463.4178 | FP16: 495864.938 | FQ16: 449904.3304 | FR16: 433187.1868 | FS16: 387898.1501 | FT16: 379490.8694 | FU16: 394168.1978 | FV16: 439647.1072 | FW16: 442413.5995 | FX16: 382501.5075 | FY16: 425928.4408 | FZ16: 463085.8238 | GA16: 509371.7444 | GB16: 529985.7743 | GC16: 480833.8039 | GD16: 463016.4959 | GE16: 414692.0395 | GF16: 405531.494 | GG16: 421373.119 | GH16: 469895.3539 | GI16: 472613.5191 | GJ16: 408448.8089 | GK16: 456219.1321 | GL16: 495988.2845 | GM16: 545050.6564 | GN16: =GN14*GN7 -> 535248.7225 | GO16: 485547.7875 | GP16: 467579.2489 | GQ16: 418856.6951 | GR16: 409449.6282 | GS16: 425626.8294 | GT16: 474535.5081 | GU16: 477027.9984 | GV16: 412079.2328 | GW16: 461689.2074 | GX16: 501912.6244 | GY16: 551105.2149 | GZ16: 538959.964 | HA16: 511910.625 | HB16: 470706.2102 | HC16: 421724.3014 | HD16: 412120.6774 | HE16: 428628.7233 | HF16: 477780.1745 | HG16: 480026.3348 | HH16: 414455.6796 | HI16: 465780.047 | HJ16: 506352.0256 | HK16: 555582.8139 | HL16: 546912.1289 | HM16: 495899.133 | HN16: 477510.0155 | HO16: 427893.1397 | HP16: 418030.6566 | HQ16: 434998.9233 | HR16: 484749.7024 | HS16: 486738.9535 | HT16: 420022.3975 | HU16: 473503.7134 | HV16: 514737.7827 | HW16: 564454.0922 | HX16: 584163.1012 | HY16: 529492.2426 | HZ16: 509787.7899 | IA16: 456883.5173 | IB16: 446258.1873 | IC16: 464661.2073 | ID16: 517665.5468 | IE16: 519467.5072 | IF16: 447985.3559 | IG16: 506597.9444 | IH16: 550718.0004 | II16: 603632.1062 | IJ16: 591591.1958 | IK16: 535995.6888 | IL16: 515943.9133 | IM16: 462462.1741 | IN16: 451639.2681 | IO16: 470591.4941 | IP16: 524121.7785 | IQ16: 525600.4676 | IR16: 452960.2744 | IS16: 513829.4822 | IT16: 558592.6959 | IU16: 612063.1118 | IV16: 597538.0678 | IW16: 566708.4736 | IX16: 520697.1249 | IY16: 466773.2842 | IZ16: =IZ14*IZ7 -> 455816.5407 | JA16: 475329.5726 | JB16: 529246.4288 | JC16: 530373.3978 | JD16: 456716.2199 | JE16: 519721.3681 | JF16: 565026.8315 | JG16: 618994.4897 | JH16: 640521.0466 | JI16: 579677.0429 | JJ16: 557641.499 | JK16: 499953.5943 | JL16: 488211.6243 | JM16: 509529.871 | JN16: 567129.7736 | JO16: 567912.4633 | JP16: 488634.0299 | JQ16: 557815.567 | JR16: 606469.0721 | JS16: 664368.8859 | JV16: =SUM(D16:O16)/G_A!$Q$6 -> 298.5194287 | JW16: =SUM(P16:AA16)/G_A!$R$6 -> 347.9419889 | JX16: =SUM(AB16:AM16)/G_A!$S$6 -> 399.0022556 | JY16: =SUM(AN16:AY16)/G_A!$T$6 -> 419.0383653 | JZ16: =SUM(AZ16:BK16)/G_A!$U$6 -> 444.3411174 | KA16: =SUM(BL16:BW16)/G_A!$V$6 -> 472.780218 | KB16: =SUM(BX16:CI16)/G_A!$W$6 -> 499.9806411 | KC16: =SUM(CJ16:CU16)/G_A!$X$6 -> 526.1053081 | KD16: =SUM(CV16:DG16)/G_A!$Y$6 -> 530.3678214 | KE16: =SUM(DH16:DS16)/G_A!$Z$6 -> 533.5925985 | KF16: =SUM(DT16:EE16)/G_A!$AA$6 -> 539.294466 | KG16: =SUM(EF16:EQ16)/G_A!$AB$6 -> 577.9597038 | KH16: =SUM(ER16:FC16)/G_A!$AC$6 -> 583.0937823 | KI16: =SUM(FD16:FO16)/G_A!$AD$6 -> 587.1313196 | KJ16: =SUM(FP16:GA16)/G_A!$AE$6 -> 594.0024995 | KK16: =SUM(GB16:GM16)/G_A!$AF$6 -> 635.1196897 | KL16: =SUM(GN16:GY16)/G_A!$AG$6 -> 641.6277052 | KM16: =SUM(GZ16:HK16)/G_A!$AH$6 -> 647.0887496 | KN16: =SUM(HL16:HW16)/G_A!$AI$6 -> 655.8733606 | KO16: =SUM(HX16:II16)/G_A!$AJ$6 -> 700.6064505 | KP16: =SUM(IJ16:IU16)/G_A!$AK$6 -> 709.5195827 | KQ16: =SUM(IV16:JG16)/G_A!$AL$6 -> 717.5480191 | KR16: =SUM(JH16:JS16)/G_A!$AM$6 -> 768.0210582
B17: Alternative Compliance | D17: =D14*D8 -> 0 | E17: 0 | F17: 0 | G17: 0 | H17: 0 | I17: 0 | J17: 0 | K17: 0 | L17: 0 | M17: 0 | N17: 0 | O17: 0 | P17: 0 | Q17: 0 | R17: 0 | S17: 0 | T17: 0 | U17: 0 | V17: 0 | W17: 0 | X17: 0 | Y17: 0 | Z17: 0 | AA17: 0 | AB17: 0 | AC17: 0 | AD17: 0 | AE17: 0 | AF17: 0 | AG17: 0 | AH17: 0 | AI17: 0 | AJ17: 0 | AK17: 0 | AL17: 0 | AM17: 0 | AN17: 0 | AO17: 0 | AP17: 0 | AQ17: 0 | AR17: 0 | AS17: 0 | AT17: 0 | AU17: 0 | AV17: 0 | AW17: 0 | AX17: 0 | AY17: 0 | AZ17: 0 | BA17: 0 | BB17: 0 | BC17: 0 | BD17: 0 | BE17: 0 | BF17: 0 | BG17: 0 | BH17: 0 | BI17: 0 | BJ17: 0 | BK17: 0 | BL17: 0 | BM17: 0 | BN17: 0 | BO17: 0 | BP17: =BP14*BP8 -> 0 | BQ17: 0 | BR17: 0 | BS17: 0 | BT17: 0 | BU17: 0 | BV17: 0 | BW17: 0 | BX17: 0 | BY17: 0 | BZ17: 0 | CA17: 0 | CB17: 0 | CC17: 0 | CD17: 0 | CE17: 0 | CF17: 0 | CG17: 0 | CH17: 0 | CI17: 0 | CJ17: 110290.6164 | CK17: 99953.64481 | CL17: 96037.30664 | CM17: 85837.01368 | CN17: 84320.41423 | CO17: 87465.26344 | CP17: 97666.37548 | CQ17: 98578.72177 | CR17: 85370.52744 | CS17: 93020.17059 | CT17: 101228.032 | CU17: 112402.5383 | CV17: 111092.7258 | CW17: 100712.0087 | CX17: 96807.59226 | CY17: 86553.07744 | CZ17: 84965.32855 | DA17: 88140.55753 | DB17: 98406.93144 | DC17: 99287.64187 | DD17: 85973.39378 | DE17: 93972.86818 | DF17: 102246.2491 | DG17: 113347.1543 | DH17: 111534.0355 | DI17: 105906.53 | DJ17: 97251.88764 | DK17: 86975.11363 | DL17: 85324.28087 | DM17: 88525.91739 | DN17: 98825.19387 | DO17: 99670.539 | DP17: 86289.65371 | DQ17: 94613.41873 | DR17: 102927.3578 | DS17: 113925.4182 | DT17: 112796.6109 | DU17: 102306.3292 | DV17: 98412.97442 | DW17: 88039.46958 | DX17: 86313.75432 | DY17: 89561.83958 | DZ17: 99964.57292 | EA17: 100776.9713 | EB17: =EB14*EB8 -> 87231.64276 | EC17: 95945.91477 | ED17: 104360.3015 | EE17: 115344.4992 | EF17: 85274.52727 | EG17: 77356.86712 | EH17: 74435.73313 | EI17: 66607.28049 | EJ17: 65263.38289 | EK17: 67731.86324 | EL17: 75587.12186 | EM17: 76168.69499 | EN17: 65915.52681 | EO17: 72725.13009 | EP17: 79092.57924 | EQ17: 87298.99976 | ER17: 85981.9711 | ES17: 78007.6362 | ET17: 75081.29134 | EU17: 67201.57967 | EV17: 65809.53674 | EW17: 68314.22545 | EX17: 76224.29712 | EY17: 76776.55697 | EZ17: 66423.53286 | FA17: 73511.86909 | FB17: 79939.09529 | FC17: 88122.79634 | FD17: 86417.48012 | FE17: 82106.69823 | FF17: 75478.88024 | FG17: 67572.21838 | FH17: 66139.29974 | FI17: 68677.96991 | FJ17: 76618.12851 | FK17: 77138.1486 | FL17: 66714.62143 | FM17: 74060.49307 | FN17: 80528.66658 | FO17: 88670.01491 | FP17: 87505.57729 | FQ17: 79394.88184 | FR17: 76444.79767 | FS17: 68452.61473 | FT17: 66968.97694 | FU17: 69559.09373 | FV17: 77584.78363 | FW17: 78072.98815 | FX17: 67500.26604 | FY17: 75163.8425 | FZ17: 81721.02774 | GA17: 89889.13136 | GB17: 58887.30826 | GC17: 53425.97821 | GD17: 51446.27732 | GE17: 46076.89328 | GF17: 45059.05489 | GG17: 46819.23544 | GH17: 52210.59488 | GI17: 52512.61323 | GJ17: 45383.20099 | GK17: 50691.01467 | GL17: 55109.80938 | GM17: 60561.18404 | GN17: =GN14*GN8 -> 59472.08027 | GO17: 53949.75417 | GP17: 51953.24988 | GQ17: 46539.63279 | GR17: 45494.40314 | GS17: 47291.86994 | GT17: 52726.16756 | GU17: 53003.11094 | GV17: 45786.58143 | GW17: 51298.80082 | GX17: 55768.06937 | GY17: 61233.91277 | GZ17: 59884.44044 | HA17: 56878.95833 | HB17: 52300.69002 | HC17: 46858.25571 | HD17: 45791.18638 | HE17: 47625.4137 | HF17: 53086.68606 | HG17: 53336.25943 | HH17: 46050.63106 | HI17: 51753.33855 | HJ17: 56261.33618 | HK17: 61731.42376 | HL17: 60768.01432 | HM17: 55099.90367 | HN17: 53056.66839 | HO17: 47543.68219 | HP17: 46447.85073 | HQ17: 48333.2137 | HR17: 53861.07804 | HS17: 54082.10595 | HT17: 46669.15528 | HU17: 52611.52371 | HV17: 57193.08696 | HW17: 62717.12135 | HX17: 30745.42638 | HY17: 27868.01277 | HZ17: 26830.93631 | IA17: 24046.50091 | IB17: 23487.27301 | IC17: 24455.85302 | ID17: 27245.55509 | IE17: 27340.39512 | IF17: 23578.17663 | IG17: 26663.04971 | IH17: 28985.15792 | II17: 31770.11085 | IJ17: 31136.37873 | IK17: 28210.29941 | IL17: 27154.94281 | IM17: 24340.11443 | IN17: 23770.48779 | IO17: 24767.97337 | IP17: 27585.35676 | IQ17: 27663.18251 | IR17: 23840.01444 | IS17: 27043.65696 | IT17: 29399.61558 | IU17: 32213.84799 | IV17: 31449.37199 | IW17: 29826.76177 | IX17: 27405.11184 | IY17: 24567.01496 | IZ17: =IZ14*IZ8 -> 23990.34425 | JA17: 25017.34593 | JB17: 27855.0752 | JC17: 27914.38936 | JD17: 24037.69579 | JE17: 27353.75622 | JF17: 29738.25429 | JG17: 32578.65735 | JH17: 0 | JI17: 0 | JJ17: 0 | JK17: 0 | JL17: 0 | JM17: 0 | JN17: 0 | JO17: 0 | JP17: 0 | JQ17: 0 | JR17: 0 | JS17: 0 | JV17: =SUM(D17:O17)/G_A!$Q$6 -> 0 | JW17: =SUM(P17:AA17)/G_A!$R$6 -> 0 | JX17: =SUM(AB17:AM17)/G_A!$S$6 -> 0 | JY17: =SUM(AN17:AY17)/G_A!$T$6 -> 0 | JZ17: =SUM(AZ17:BK17)/G_A!$U$6 -> 0 | KA17: =SUM(BL17:BW17)/G_A!$V$6 -> 0 | KB17: =SUM(BX17:CI17)/G_A!$W$6 -> 0 | KC17: =SUM(CJ17:CU17)/G_A!$X$6 -> 131.526327 | KD17: =SUM(CV17:DG17)/G_A!$Y$6 -> 132.5919554 | KE17: =SUM(DH17:DS17)/G_A!$Z$6 -> 133.3981496 | KF17: =SUM(DT17:EE17)/G_A!$AA$6 -> 134.8236165 | KG17: =SUM(EF17:EQ17)/G_A!$AB$6 -> 101.9928889 | KH17: =SUM(ER17:FC17)/G_A!$AC$6 -> 102.8989028 | KI17: =SUM(FD17:FO17)/G_A!$AD$6 -> 103.6114093 | KJ17: =SUM(FP17:GA17)/G_A!$AE$6 -> 104.8239705 | KK17: =SUM(GB17:GM17)/G_A!$AF$6 -> 70.56885441 | KL17: =SUM(GN17:GY17)/G_A!$AG$6 -> 71.29196725 | KM17: =SUM(GZ17:HK17)/G_A!$AH$6 -> 71.89874996 | KN17: =SUM(HL17:HW17)/G_A!$AI$6 -> 72.87481784 | KO17: =SUM(HX17:II17)/G_A!$AJ$6 -> 36.87402371 | KP17: =SUM(IJ17:IU17)/G_A!$AK$6 -> 37.34313593 | KQ17: =SUM(IV17:JG17)/G_A!$AL$6 -> 37.76568521 | KR17: =SUM(JH17:JS17)/G_A!$AM$6 -> 0
